Workbook

Sheet Dashboard
B2: Local Authority Data on Funding and Characteristics of High Needs Pupils
B4: Local Authority or Region: | D4: 1 | E4: =VLOOKUP(D4,LA_lookup,2,FALSE) -> 970
C26: =IF(OR(LA_Num=201,LA_Num=420),"Numbers too small to be shown","(Excludes suppressed data)") -> (Excludes suppressed data)
D28: Learning Difficulty | E28: Behaviour Difficulties | F28: Speech, Language | G28: Sensory Impairment | H28: Physical Disability | I28: Autism | J28: Other | N28: 2009 | O28: 2010 | P28: 2011 | Q28: 2012 | R28: 2013 | S28: 2014
C29: =VLOOKUP($D$4,'Data Summary'!$A$7:$C$169,3,0) -> England | D29: 0.3492687472 | E29: 0.2128167609 | F29: 0.2051293251 | G29: 0.03908507866 | H29: 0.03923067403 | I29: 0.1116206949 | J29: 0.04284871912 | L29: =VLOOKUP($D$4,'Data Summary'!$A$7:$C$169,3,0) -> England | M29: SEN pupils | N29: 0.2066914392 | O29: 0.2105339847 | P29: 0.2060466293 | Q29: 0.1978846201 | R29: 0.1873509814 | S29: 0.179195896
M30: With Statements | N30: 0.02785370748 | O30: 0.02765312977 | P30: 0.02759893228 | Q30: 0.02764972732 | R30: 0.02780548885 | S30: 0.02786931585
C31: England | D31: ='Data Summary'!P7 -> 0.3492687472 | E31: ='Data Summary'!Q7 -> 0.2128167609 | F31: ='Data Summary'!R7 -> 0.2051293251 | G31: ='Data Summary'!S7 -> 0.03908507866 | H31: ='Data Summary'!T7 -> 0.03923067403 | I31: ='Data Summary'!U7 -> 0.1116206949 | J31: ='Data Summary'!V7 -> 0.04284871912 | L31: England | M31: SEN pupils | N31: ='Data Summary'!J7 -> 0.2066914392 | O31: ='Data Summary'!K7 -> 0.2105339847 | P31: ='Data Summary'!L7 -> 0.2060466293 | Q31: ='Data Summary'!M7 -> 0.1978846201 | R31: ='Data Summary'!N7 -> 0.1873509814 | S31: ='Data Summary'!O7 -> 0.179195896
M32: With Statements | N32: ='Data Summary'!D7 -> 0.02785370748 | O32: ='Data Summary'!E7 -> 0.02765312977 | P32: ='Data Summary'!F7 -> 0.02759893228 | Q32: ='Data Summary'!G7 -> 0.02764972732 | R32: ='Data Summary'!H7 -> 0.02780548885 | S32: ='Data Summary'!I7 -> 0.02786931585
C33: Statistical Neighbours (1) | D33: =Neighbours!P20 -> x | E33: =Neighbours!Q20 -> x | F33: =Neighbours!R20 -> x | G33: =Neighbours!S20 -> x | H33: =Neighbours!T20 -> x | I33: =Neighbours!U20 -> x | J33: =Neighbours!V20 -> x | L33: Statistical Neighbours | M33: SEN pupils | N33: =Neighbours!J20 -> x | O33: =Neighbours!K20 -> x | P33: =Neighbours!L20 -> x | Q33: =Neighbours!M20 -> x | R33: =Neighbours!N20 -> x | S33: =Neighbours!O20 -> x
M34: With Statements | N34: =Neighbours!D20 -> x | O34: =Neighbours!E20 -> x | P34: =Neighbours!F20 -> x | Q34: =Neighbours!G20 -> x | R34: =Neighbours!H20 -> x | S34: =Neighbours!I20 -> x
J35: Source: School Census (2) | S35: Source: School Census (3)
N48: ="Funding and spend on high needs for " & VLOOKUP($D$4,'Data Summary'!$A$7:$C$169,3,0) -> Funding and spend on high needs for England
C58: =IF(OR(LA_Num=201,LA_Num=420),"Numbers too small to be shown","(Excludes suppressed data)") -> (Excludes suppressed data) | N58: Funding in £millions
E59: Mainstream settings | F59: Special settings | G59: SEN Units and RP in mainstream settings | H59: Other incl. AP | N59: 2009-10 | O59: 2010-11 | P59: 2011-12 | Q59: 2012-13 | R59: 2013-14 | S59: 2014-15 | T59: 2015-16
C60: =VLOOKUP($D$4,'Data Summary'!$A$7:$C$159,3,0) -> England | E60: 0.4669661121 | F60: 0.4543978406 | G60: 0.05733746652 | H60: 0.0212985808 | L60: DSG High Needs (5) | M60: LA | Q60: =VLOOKUP($D$4,Summary_data,'Data Summary'!AA3,FALSE)/1000000 -> 4732.062142 | R60: =VLOOKUP($D$4,Summary_data,'Data Summary'!AD3,FALSE)/1000000 -> 4966.890212 | S60: =VLOOKUP($D$4,Summary_data,'Data Summary'!AG3,FALSE)/1000000 -> 5181.282242 | T60: =VLOOKUP($D$4,Summary_data,'Data Summary'!AJ3,FALSE)/1000000 -> 5245.11995
M61: England | Q61: =Funding!C159/1000000 -> 4732.062142 | R61: =Funding!E159/1000000 -> 4966.890212 | S61: =Funding!G159/1000000 -> 5181.282242 | T61: =Funding!I159/1000000 -> 5245.11995
C62: England | E62: ='Data Summary'!$W$7 -> 0.4669661121 | F62: ='Data Summary'!$X$7 -> 0.4543978406 | G62: ='Data Summary'!$Y$7 -> 0.05733746652 | H62: ='Data Summary'!$Z$7 -> 0.0212985808 | M62: Statistical Neighbours | Q62: =Neighbours!AA20 -> x | R62: =Neighbours!AD20 -> x | S62: =Neighbours!AG20 -> x | T62: =Neighbours!AJ20 -> x
L63: S251 SEN budget (6) | M63: LA | N63: =VLOOKUP($D$4,Summary_data,'Data Summary'!AM3,FALSE)/1000000 -> 2966.886053 | O63: =VLOOKUP($D$4,Summary_data,'Data Summary'!AP3,FALSE)/1000000 -> 3128.176915 | P63: =VLOOKUP($D$4,Summary_data,'Data Summary'!AS3,FALSE)/1000000 -> 3198.305049 | Q63: =VLOOKUP($D$4,Summary_data,'Data Summary'!AV3,FALSE)/1000000 -> 3458.40672 | R63: =VLOOKUP($D$4,Summary_data,'Data Summary'!AY3,FALSE)/1000000 -> 4738.098263 | S63: =VLOOKUP($D$4,Summary_data,'Data Summary'!BB3,FALSE)/1000000 -> 4691.621373
C64: Statistical Neighbours | E64: =Neighbours!W20 -> x | F64: =Neighbours!X20 -> x | G64: =Neighbours!Y20 -> x | H64: =Neighbours!Z20 -> x | M64: England | N64: =Funding!EC159/1000000 -> 2966.886053 | O64: =Funding!DA159/1000000 -> 3128.176915 | P64: =Funding!CE159/1000000 -> 3198.305049 | Q64: =Funding!BM159/1000000 -> 3458.40672 | R64: =Funding!AQ159/1000000 -> 4738.098263 | S64: =Funding!S159/1000000 -> 4691.621373
M65: Statistical Neighbours | N65: =Neighbours!AM20 -> x | O65: =Neighbours!AP20 -> x | P65: =Neighbours!AS20 -> x | Q65: =Neighbours!AV20 -> x | R65: =Neighbours!AY20 -> x | S65: =Neighbours!BB20 -> x
H66: Source: SEN 2 survey (4) | L66: S251 SEN spend (7) | M66: LA | N66: =VLOOKUP($D$4,Summary_data,'Data Summary'!BE3,FALSE)/1000000 -> 5197.467462 | O66: =VLOOKUP($D$4,Summary_data,'Data Summary'!BH3,FALSE)/1000000 -> 5465.4997 | P66: =VLOOKUP($D$4,Summary_data,'Data Summary'!BK3,FALSE)/1000000 -> 5524.841161 | Q66: =VLOOKUP($D$4,Summary_data,'Data Summary'!BN3,FALSE)/1000000 -> 5400.081472 | R66: =VLOOKUP($D$4,Summary_data,'Data Summary'!BQ3,FALSE)/1000000 -> 4654.499557
M67: England | N67: =Funding!GX159/1000000 -> 5197.467462 | O67: =Funding!GP159/1000000 -> 5465.4997 | P67: =Funding!GH159/1000000 -> 5524.841161 | Q67: =Funding!FZ159/1000000 -> 5400.081472 | R67: =Funding!FD159/1000000 -> 4654.499557
M68: Statistical Neighbours | N68: =Neighbours!BE20 -> x | O68: =Neighbours!BH20 -> x | P68: =Neighbours!BK20 -> x | Q68: =Neighbours!BN20 -> x | R68: =Neighbours!BQ20 -> x
C93: ="LA = " & VLOOKUP($D$4,'Data Summary'!$A$7:$C$159,3,0) -> LA = England | E93: % of total funding
E94: 2009-10 | F94: 2010-11 | G94: 2011-12 | H94: 2012-13 | I94: 2013-14 | J94: 2014-15 | K94: 2015-16
C95: DSG High Needs (4) | D95: LA | H95: =VLOOKUP($D$4,Summary_data,'Data Summary'!AB3,FALSE) -> 0.1283967504 | I95: =VLOOKUP($D$4,Summary_data,'Data Summary'!AE3,FALSE) -> 0.1304713729 | J95: =VLOOKUP($D$4,Summary_data,'Data Summary'!AH3,FALSE) -> 0.1337611647 | K95: =VLOOKUP($D$4,Summary_data,'Data Summary'!AK3,FALSE) -> 0.1323952864
D96: England | H96: ='Data Summary'!AB7 -> 0.1283967504 | I96: ='Data Summary'!AE7 -> 0.1304713729 | J96: ='Data Summary'!AH7 -> 0.1337611647 | K96: ='Data Summary'!AK7 -> 0.1323952864
D97: Statistical Neighbours | H97: =Neighbours!AB20 -> x | I97: =Neighbours!AE20 -> x | J97: =Neighbours!AH20 -> x | K97: =Neighbours!AK20 -> x
C98: S251 SEN budget (5) | D98: LA | E98: =VLOOKUP($D$4,Summary_data,'Data Summary'!AN3,FALSE) -> 0.07993147529 | F98: =VLOOKUP($D$4,Summary_data,'Data Summary'!AQ3,FALSE) -> 0.08100375146 | G98: =VLOOKUP($D$4,Summary_data,'Data Summary'!AT3,FALSE) -> 0.08792135114 | H98: =VLOOKUP($D$4,Summary_data,'Data Summary'!AW3,FALSE) -> 0.102183245 | I98: =VLOOKUP($D$4,Summary_data,'Data Summary'!AZ3,FALSE) -> 0.1215736526 | J98: =VLOOKUP($D$4,Summary_data,'Data Summary'!BC3,FALSE) -> 0.1184265711
D99: England | E99: ='Data Summary'!AN7 -> 0.07993147529 | F99: ='Data Summary'!AQ7 -> 0.08100375146 | G99: ='Data Summary'!AT7 -> 0.08792135114 | H99: ='Data Summary'!AW7 -> 0.102183245 | I99: ='Data Summary'!AZ7 -> 0.1215736526 | J99: ='Data Summary'!BC7 -> 0.1184265711
D100: Statistical Neighbours | E100: =Neighbours!AN20 -> x | F100: =Neighbours!AQ20 -> x | G100: =Neighbours!AT20 -> x | H100: =Neighbours!AW20 -> x | I100: =Neighbours!AZ20 -> x | J100: =Neighbours!BC20 -> x
C101: S251 SEN spend (6) | D101: LA | E101: =VLOOKUP($D$4,Summary_data,'Data Summary'!BF3,FALSE) -> 0.1271897334 | F101: =VLOOKUP($D$4,Summary_data,'Data Summary'!BI3,FALSE) -> 0.1320903768 | G101: =VLOOKUP($D$4,Summary_data,'Data Summary'!BL3,FALSE) -> 0.1459260967 | H101: =VLOOKUP($D$4,Summary_data,'Data Summary'!BO3,FALSE) -> 0.1543202857 | I101: =VLOOKUP($D$4,Summary_data,'Data Summary'!BR3,FALSE) -> 0.1519363834
D102: England | E102: ='Data Summary'!BF7 -> 0.1271897334 | F102: ='Data Summary'!BI7 -> 0.1320903768 | G102: ='Data Summary'!BL7 -> 0.1459260967 | H102: ='Data Summary'!BO7 -> 0.1543202857 | I102: ='Data Summary'!BR7 -> 0.1519363834
D103: Statistical Neighbours | E103: =Neighbours!BF20 -> x | F103: =Neighbours!BI20 -> x | G103: =Neighbours!BL20 -> x | H103: =Neighbours!BO20 -> x | I103: =Neighbours!BR20 -> x
C127: ="LA = " & VLOOKUP($D$4,'Data Summary'!$A$7:$C$159,3,0) -> LA = England | E127: Funding per SEN pupil (7)
E128: 2009-10 | F128: 2010-11 | G128: 2011-12 | H128: 2012-13 | I128: 2013-14 | J128: 2014-15
C129: DSG High Needs (4) | D129: LA | H129: =VLOOKUP($D$4,Summary_data,'Data Summary'!AC3,FALSE) -> 2924.022234 | I129: =VLOOKUP($D$4,Summary_data,'Data Summary'!AF3,FALSE) -> 3213.546892 | J129: =VLOOKUP($D$4,Summary_data,'Data Summary'!AI3,FALSE) -> 3470.499509
D130: England | H130: ='Data Summary'!AC7 -> 2924.022234 | I130: ='Data Summary'!AF7 -> 3213.546892 | J130: ='Data Summary'!AI7 -> 3470.499509
D131: Statistical Neighbours | H131: =Neighbours!AC20 -> x | I131: =Neighbours!AF20 -> x | J131: =Neighbours!AI20 -> x
C132: S251 SEN budget (5) | D132: LA | E132: =VLOOKUP($D$4,Summary_data,'Data Summary'!AO3,FALSE) -> 1773.811541 | F132: =VLOOKUP($D$4,Summary_data,'Data Summary'!AR3,FALSE) -> 1834.72939 | G132: =VLOOKUP($D$4,Summary_data,'Data Summary'!AU3,FALSE) -> 1910.696339 | H132: =VLOOKUP($D$4,Summary_data,'Data Summary'!AX3,FALSE) -> 2137.008737 | I132: =VLOOKUP($D$4,Summary_data,'Data Summary'!BA3,FALSE) -> 3065.519933 | J132: =VLOOKUP($D$4,Summary_data,'Data Summary'!BD3,FALSE) -> 3142.517414
D133: England | E133: ='Data Summary'!AO7 -> 1773.811541 | F133: ='Data Summary'!AR7 -> 1834.72939 | G133: ='Data Summary'!AU7 -> 1910.696339 | H133: ='Data Summary'!AX7 -> 2137.008737 | I133: ='Data Summary'!BA7 -> 3065.519933 | J133: ='Data Summary'!BD7 -> 3142.517414
D134: Statistical Neighbours | E134: =Neighbours!AO20 -> x | F134: =Neighbours!AR20 -> x | G134: =Neighbours!AU20 -> x | H134: =Neighbours!AX20 -> x | I134: =Neighbours!BA20 -> x | J134: =Neighbours!BD20 -> x
C135: S251 SEN spend (6) | D135: LA | E135: =VLOOKUP($D$4,Summary_data,'Data Summary'!BG3,FALSE) -> 3107.40878 | F135: =VLOOKUP($D$4,Summary_data,'Data Summary'!BJ3,FALSE) -> 3205.609274 | G135: =VLOOKUP($D$4,Summary_data,'Data Summary'!BM3,FALSE) -> 3300.590038 | H135: =VLOOKUP($D$4,Summary_data,'Data Summary'!BP3,FALSE) -> 3336.802818 | I135: =VLOOKUP($D$4,Summary_data,'Data Summary'!BS3,FALSE) -> 3011.432093
D136: England | E136: ='Data Summary'!BG7 -> 3107.40878 | F136: ='Data Summary'!BJ7 -> 3205.609274 | G136: ='Data Summary'!BM7 -> 3300.590038 | H136: ='Data Summary'!BP7 -> 3336.802818 | I136: ='Data Summary'!BS7 -> 3011.432093
D137: Statistical Neighbours | E137: =Neighbours!BG20 -> x | F137: =Neighbours!BJ20 -> x | G137: =Neighbours!BM20 -> x | H137: =Neighbours!BP20 -> x | I137: =Neighbours!BS20 -> x
C140: Attainment
L143: ="LA = " & VLOOKUP($D$4,'Data Summary'!$A$7:$C$169,3,0) -> LA = England
L145: SEN without statement | N145: 2008/09 | O145: 2009/10 | P145: 2010/11 | Q145: 2011/12 | R145: 2012/13
L146: LA | N146: 0.186 | O146: 0.229 | P146: 0.248 | Q146: 0.253 | R146: 0.266
L147: England | N147: =IFERROR(Attainment!OR159/100,"") -> 0.186 | O147: =IFERROR(Attainment!OE159/100,"") -> 0.229 | P147: =IFERROR(Attainment!NR159/100,"") -> 0.248 | Q147: =IFERROR(Attainment!NE159/100,"") -> 0.253 | R147: =IFERROR(Attainment!MR159/100,"") -> 0.266
L148: Statistical Neighbours | N148: =Neighbours!BZ20 -> x | O148: =Neighbours!CA20 -> x | P148: =Neighbours!CB20 -> x | Q148: =Neighbours!CC20 -> x | R148: =Neighbours!CD20 -> x
L150: SEN with statement | N150: 2008/09 | O150: 2009/10 | P150: 2010/11 | Q150: 2011/12 | R150: 2012/13
L151: LA | N151: 0.061 | O151: 0.073 | P151: 0.085 | Q151: 0.084 | R151: 0.095
L152: England | N152: =IFERROR(Attainment!OT159/100,"") -> 0.061 | O152: =IFERROR(Attainment!OG159/100,"") -> 0.073 | P152: =IFERROR(Attainment!NT159/100,"") -> 0.085 | Q152: =IFERROR(Attainment!NG159/100,"") -> 0.084 | R152: =IFERROR(Attainment!MT159/100,"") -> 0.095
L153: Statistical Neighbours | N153: =Neighbours!CE20 -> x | O153: =Neighbours!CF20 -> x | P153: =Neighbours!CG20 -> x | Q153: =Neighbours!CH20 -> x | R153: =Neighbours!CI20 -> x
J159: Source: National pupil database
G162: With Statement | J162: Without Statement
B163: % SEN pupils achieving | G163: LA | H163: England | I163: Statistical Neighbours | J163: LA | K163: England | L163: Statistical Neighbours
B164: Expected standard at EYFSP (2014) | G164: =IFERROR(VLOOKUP(E4,Attainment,Attainment!S2,FALSE)/100, "x") -> 0.03 | H164: =Attainment!S159/100 -> 0.03 | I164: =Neighbours!CJ20 -> x | J164: =IFERROR(VLOOKUP(E4,Attainment,Attainment!O2,FALSE)/100,"x") -> 0.19 | K164: =Attainment!O159/100 -> 0.19 | L164: =Neighbours!CK20 -> x
B165: Phonic decoding standard (2014) | G165: =IFERROR(VLOOKUP(E4,Attainment,Attainment!BI2,FALSE)/100,"x") -> 0.17 | H165: =Attainment!BI159/100 -> 0.17 | I165: =Neighbours!CL20 -> x | J165: =IFERROR(VLOOKUP(E4,Attainment,Attainment!BG2,FALSE)/100,"x") -> 0.4 | K165: =Attainment!BG159/100 -> 0.4 | L165: =Neighbours!CM20 -> x
B166: Level 2 or above in KS1 reading (2014) | G166: =IFERROR(VLOOKUP($E$4,Attainment,Attainment!DF$2)/100,"x") -> 0.25 | H166: =Attainment!DF$159/100 -> 0.25 | I166: =Neighbours!CN20 -> x | J166: =IFERROR(VLOOKUP($E$4,Attainment,Attainment!DA$2)/100,"x") -> 0.64 | K166: =Attainment!DA$159/100 -> 0.64 | L166: =Neighbours!CO20 -> x
B167: Level 2 or above in KS1 Writing (2014) | G167: =IFERROR(VLOOKUP($E$4,Attainment,Attainment!DG$2)/100,"x") -> 0.19 | H167: =Attainment!DG$159/100 -> 0.19 | I167: =Neighbours!CP20 -> x | J167: =IFERROR(VLOOKUP($E$4,Attainment,Attainment!DB$2)/100,"x") -> 0.54 | K167: =Attainment!DB$159/100 -> 0.54 | L167: =Neighbours!CQ20 -> x
B168: Level 2 or above in KS1 Maths (2014) | G168: =IFERROR(VLOOKUP($E$4,Attainment,Attainment!DH$2)/100,"x") -> 0.28 | H168: =Attainment!DH$159/100 -> 0.28 | I168: =Neighbours!CR20 -> x | J168: =IFERROR(VLOOKUP($E$4,Attainment,Attainment!DC$2)/100,"x") -> 0.73 | K168: =Attainment!DC$159/100 -> 0.73 | L168: =Neighbours!CS20 -> x
B169: Level 2 or above in KS1 Science (2014) | G169: =IFERROR(VLOOKUP($E$4,Attainment,Attainment!DI$2)/100,"x") -> 0.25 | H169: =Attainment!DI$159/100 -> 0.25 | I169: =Neighbours!CT20 -> x | J169: =IFERROR(VLOOKUP($E$4,Attainment,Attainment!DD$2)/100,"x") -> 0.69 | K169: =Attainment!DD$159/100 -> 0.69 | L169: =Neighbours!CU20 -> x
B170: Level 4 or above in KS2 Grammar, Punctuation & Spelling (2014) | G170: =IFERROR(VLOOKUP(E4,Attainment,Attainment!JL2,FALSE)/100,"x") -> 0.18 | H170: =Attainment!JL159/100 -> 0.18 | I170: =Neighbours!CV20 -> x | J170: =IFERROR(VLOOKUP(E4,Attainment,Attainment!JF2,FALSE)/100,"x") -> 0.39 | K170: =Attainment!JF159/100 -> 0.39 | L170: =Neighbours!CW20 -> x
B171: Level 4 or above in KS2 Reading, Writing & Maths (2014) | G171: =IFERROR(VLOOKUP(E4,Attainment,Attainment!JM2,FALSE)/100,"x") -> 0.15 | H171: =Attainment!JM159/100 -> 0.15 | I171: =Neighbours!CX20 -> x | J171: =IFERROR(VLOOKUP(E4,Attainment,Attainment!JG2,FALSE)/100,"x") -> 0.42 | K171: =Attainment!JG159/100 -> 0.42 | L171: =Neighbours!CY20 -> x
B172: An education or employment destination for KS4 cohort (2011/12) | G172: =IFERROR(VLOOKUP($E$4,Attainment,Attainment!PK$2),"") -> 0.86 | H172: =Attainment!PK$159 -> 0.86 | I172: =Neighbours!CZ20 -> x | J172: =IFERROR(VLOOKUP($E$4,Attainment,Attainment!PJ$2),"") -> 0.81 | K172: =Attainment!PJ$159 -> 0.81 | L172: =Neighbours!DA20 -> x
B175: Summary of other statistics | I175: LA | J175: England | K175: Statistical Neighbours
B176: % 16-17 year olds with Learning Difficulties and/or Disabilities in education and training (2014) | I176: =VLOOKUP($E$4,Attainment,Attainment!PC$2)/100 -> 0.858 | J176: =Attainment!PC$159/100 -> 0.858 | K176: =Neighbours!DB20 -> x
B177: % of high needs places for post 16 students (2014) | I177: =VLOOKUP(D4,Summary_data,'Data Summary'!BT3,FALSE) -> 0.2226645624 | J177: ='Data Summary'!BT7 -> 0.2226645624 | K177: =Neighbours!BT20 -> x
B178: No of under 16s claiming Disability Living Allowance (Nov13) | I178: =VLOOKUP(D4,Summary_data,'Data Summary'!BU3,FALSE) -> 313340 | J178: ='Data Summary'!BU7 -> 313340 | K178: =Neighbours!BU20 -> x
B179: % of births with low birth weight (2013) | I179: =VLOOKUP(E4,Other_data,Other!X3,FALSE)/100 -> 0.07 | J179: =Other!X161/100 -> 0.07 | K179: =Neighbours!DC20 -> x
B180: % of under 16s whose day to day activities are limited (Census 11) | I180: =VLOOKUP($D$4,Summary_data,'Data Summary'!$BV$3,FALSE) -> 0.03727875824 | J180: ='Data Summary'!$BV$7 -> 0.03727875824 | K180: =Neighbours!BV20 -> x
B181: % of 16-24yr olds whose day to day activities are limited (Census 11) | I181: =VLOOKUP($D$4,Summary_data,'Data Summary'!$BW$3,FALSE) -> 0.051808031 | J181: ='Data Summary'!$BW$7 -> 0.051808031 | K181: =Neighbours!BW20 -> x
B182: % of under 16s with bad health (Census 11) | I182: =VLOOKUP($D$4,Summary_data,'Data Summary'!$BX$3,FALSE) -> 0.006425596602 | J182: ='Data Summary'!$BX$7 -> 0.006425596602 | K182: =Neighbours!BX20 -> x
B183: % of 16-24 year olds with bad health (Census 11) | I183: =VLOOKUP($D$4,Summary_data,'Data Summary'!$BY$3,FALSE) -> 0.01109846527 | J183: ='Data Summary'!$BY$7 -> 0.01109846527 | K183: =Neighbours!BY20 -> x
B184: % Children in need who are disabled (2014) | I184: =IFERROR(VLOOKUP(E4,Other_data,Other!KC3,FALSE)/100,"x") -> 0.132 | J184: =Other!KC161/100 -> 0.132 | K184: =Neighbours!DD20 -> x
B185: Rate per 10,000 population of hospital admissions caused by unintentional and deliberate injuries in children aged 0-14 (2012/13) | I185: =VLOOKUP(E4,Other_data,Other!HX3,FALSE) -> 103.8291862 | J185: =Other!HX161 -> 103.8291862 | K185: =Neighbours!DE$20 -> x
B186: Rate per 10,000 population of hospital admissions caused by unintentional and deliberate injuries in young people aged 15-24 (2012/13) | I186: =VLOOKUP($E$4,Other_data,Other!$IG$3,FALSE) -> 130.6541233 | J186: =Other!$IG$161 -> 130.6541233 | K186: =Neighbours!DF$20 -> x
B187: Rate per 100,000 population of hospital admissions for asthma aged under 19 years (2012/13) | I187: =VLOOKUP($E$4,Other_data,Other!$IM$3,FALSE) -> 221.4366302 | J187: =Other!$IM$161 -> 221.4366302 | K187: =Neighbours!DG$20 -> x
B188: Rate per 100,000 population of hospital admissions for mental health conditions aged under 19 years (2012/13) | I188: =VLOOKUP($E$4,Other_data,Other!$IV$3,FALSE) -> 87.62784167 | J188: =Other!$IV$161 -> 87.62784167 | K188: =Neighbours!DH$20 -> x
B189: Rate per 100,000 population of hospital admissions as a result of self-harm aged 10-24yrs (2012/13) | I189: =VLOOKUP($E$4,Other_data,Other!$IY$3,FALSE) -> 346.2727914 | J189: =Other!$IY$161 -> 346.2727914 | K189: =Neighbours!DI$20 -> x
B190: Rate per 100,000 population of Epilepsy admissions aged under 19 (2011/12) | I190: =VLOOKUP($E$4,Other_data,Other!$JB$3,FALSE) -> 79.3 | J190: =Other!$JB$161 -> 79.3 | K190: =Neighbours!DJ$20 -> x
B191: Rate per 100,000 population of Admissions for bronchiolitis aged under 2 years (2011/12) | I191: =VLOOKUP($E$4,Other_data,Other!$JE$3,FALSE) -> 2066.2 | J191: =Other!$JE$161 -> 2066.2 | K191: =Neighbours!DK$20 -> x
B192: Rate per 100,000 population of Respiratory tract infections aged 0-4 (2011/12) | I192: =VLOOKUP($E$4,Other_data,Other!$JH$3,FALSE) -> 1100.7 | J192: =Other!$JH$161 -> 1100.7 | K192: =Neighbours!DL$20 -> x
B195: Notes:
B196: For the pie charts above, suppressed data have been treated as zero to avoid presenting no data in some instances
B197: x = data unavailable, or suppressed as based on small number of pupils
B198: (1) Statistical neighbours for each LA are taken from the Children's Services Statistical Neighbour benchmarking tool (see link below). The data displayed on this dashboard is the average value across the statistical neighbours for each LA.
C199: https://www.gov.uk/government/publications/local-authority-interactive-tool-lait
B200: (2) Pupils at School Action Plus and those pupils with a statement of SEN provided information on their primary need and, if appropriate, their secondary need. Information on primary need only is given here.
B201: (3) The source of the data is the January School Census. Total pupils includes those in maintained and direct grant nursery schools, maintained primary and secondary schools, city technology colleges, university technology colleges, studio schools, primary and secondary academies including free schools, special schools, special academies including free schools, pupil referral units, alternative provision academies including free schools and independent schools. Pupils includes both sole and dual registrations. Local Authority is based on where pupil attends school.
B204: (4) Mainstream settings includes non-maintained early years settings in the private and voluntary sector, maintained mainstream schools (including foundation schools) and academies (including free schools). Special settings includes maintained special schools (including foundation schools), non-maintained special schools, independent special schools and other independent schools and special academies (including free schools). SEN Units and RP in mainstream settings includes resourced provision in maintained mainstream schools and SEN units in maintained mainstream schools. Other includes hospital schools (including foundation schools) and pupil referral units, alternative provision academies (including free schools), educated other than in school and awaiting provision.
B208: (5) Dedicated Schools Grant High Needs Block funding before any deductions
B209: (6) The SEN budget lines for 2014-15 are top up funding(1.2.1, 1.2.2, 1.2.3, 1.2.4) , PFI/BSF costs at special schools(1.2.10), Direct payments (SEN and disability)(1.2.11), SEN support services (1.2.5), Support for inclusion (1.2.8), Special schools and PRUs in financial difficulty (1.2.9), SEN transport (1.4.11), Individual Schools Budget for special schools (1.01), Contingencies for special schools (1.1.1), Capital expenditure from revenue for special schools (1.4.6) and Prudential borrowing costs for special schools (1.4.7). Budget lines from previous years will vary but where possible other suitable lines were selected. Total Budget for the denominator is Total Schools Budget (before Academy recoupment) (1.6.1).
B212: (7) The SEN expenditure lines included are SEN funding (not for special schools) (38), spending by schools for special schools brought forward (67), spending by LA within schools budget for special schools (72) and independent/Non maintained schools fees (74). Total Budget for the denominator is Total Schools Budget (including CERA) (81). Please note both the SEN budget and spend are based on data provided by Local Authorities. The lines selected for both are not comparable.
B214: (8) Funding per SEN pupil is based on total SEN pupils with and without statements from the School Census as a denominator for comparison and is not intended to be the total funding that is allocated to each pupil.
B215: (9) National and regional totals have been rounded according to the National Statistics releases (see source data for details). There may be discrepancies between totals and the sum of constituent parts.

Sheet Data list
A1: List of Local Authority data in this database with source of data
A2: Please refer to source data for full data descriptions
A4: Funding | B4: Source | C4: Notes
A5: DSG_funding | B5: https://www.gov.uk/government/publications/dedicated-schools-grant-dsg-2015-to-2016 | C5: Dedicated Schools Grant funding is before any deductions
B6: https://www.gov.uk/government/publications/dedicated-schools-grant-2014-to-2015 | C6: Notional 12-13 data is taken form 13-14 spreadsheets.
B7: https://www.gov.uk/government/publications/dedicated-schools-grant-2013-to-2014
A8: Schools_Block_Funding_2014_15 | B8: https://www.gov.uk/government/publications/schools-block-funding-formulae-2014-to-2015 | C8: Data is based on returns from LAs with formula funding.
A9: Section251_Budgets | B9: https://www.gov.uk/government/collections/section-251-materials | C9: The Section 251 data is based on returns form LAs and are the primary means of informing schools and the public in general about local authority funding and expenditure plans.
B10: http://www.education.gov.uk/schools/adminandfinance/financialmanagement/schoolsrevenuefunding/section251/archive/b0068383/section-251-data-archive/outturn-data---detailed-level-2008-09-onwards
A11: Section251_Outturn | B11: https://www.gov.uk/government/collections/section-251-materials
B12: http://www.education.gov.uk/schools/adminandfinance/financialmanagement/schoolsrevenuefunding/section251/archive/b0068383/section-251-data-archive/outturn-data---detailed-level-2008-09-onwards
A13: HighNeedsPlaces_AY1415 | B13: https://www.gov.uk/government/publications/post-16-high-needs-allocated-place-numbers | C13: Data is based on returns from LAs
A16: Pupils | B16: Source
A17: Pupils with SEN with and without statements from January Census data | B17: https://www.gov.uk/government/collections/statistics-special-educational-needs-sen
A18: Jan 2014 Census: Primary type of need for pupils
A19: Children with a statement maintained by the LA | B19: https://www.gov.uk/government/collections/statistics-special-educational-needs-sen
A22: Attainment | B22: Source
A23: Achievement in early years foundation stage profile (EYFSP) teacher assessments | B23: https://www.gov.uk/government/statistics/eyfsp-attainment-by-pupil-characteristics-2013-to-2014
A24: Year 1 pupils meeting the required standard of phonic decoding | B24: https://www.gov.uk/government/statistics/phonics-screening-check-and-key-stage-1-assessments-england-2014
A25: Pupils achieving level 2 or above in key stage 1 teacher assessments
A26: Achievements at level 4 or above in key stage 2 | B26: https://www.gov.uk/government/statistics/national-curriculum-assessments-at-key-stage-2-2014-revised
A27: Achievements at GCSE and equivalent for pupils at the end of key stage 4 | B27: https://www.gov.uk/government/publications/gcse-and-equivalent-attainment-by-pupil-characteristics-2012-to-2013
A28: 16-17 year olds in education and training by Learning Difficulties and/or Disabilities | B28: https://www.gov.uk/government/collections/statistics-special-educational-needs-sen
A29: KS4 going to, or remaining in, an education or employment destination
A31: Other | B31: Source
A32: DLA_caseload | B32: http://tabulation-tool.dwp.gov.uk/100pc/dla/tabtool_dla.html
A33: Low_Birthweight | B33: http://www.ons.gov.uk/ons/rel/vsob1/births-by-area-of-usual-residence-of-mother--england-and-wales/2013/index.html
B34: http://www.ons.gov.uk/ons/publications/re-reference-tables.html?edition=tcm%3A77-320857
B35: http://www.ons.gov.uk/ons/publications/re-reference-tables.html?edition=tcm%3A77-272510
B36: http://www.ons.gov.uk/ons/publications/re-reference-tables.html?edition=tcm%3A77-222793
A37: Population Census 2011 health data | B37: www.nomisweb.co.uk
A38: Hospital admissions caused by unintentional and deliberate injuries in children | B38: http://fingertips.phe.org.uk/cyphof
A39: Hospital admissions for asthma (Under 19 years)
A40: Hospital admissions for mental health conditions (Under 19 years)
A41: Hospital admissions as a result of self-harm (10 - 24 yrs)
A42: Epilepsy admissions (aged under 19) | B42: http://atlas.chimat.org.uk/IAS/metadata/view/indicatorinstance?pid=428&id=16550&norefer=true
A43: Admissions for bronchiolitis aged under 2 years | B43: http://atlas.chimat.org.uk/IAS/metadata/view/indicatorinstance?pid=3072&id=16328&norefer=true
A44: Respiratory tract infections - aged 0-4 2011/12 | B44: http://atlas.chimat.org.uk/IAS/metadata/view/indicatorinstance?pid=1038&id=16387&norefer=true
A45: Children in need with a disability | B45: https://www.gov.uk/government/statistics/characteristics-of-children-in-need-in-england-2012-to-2013
B46: https://www.gov.uk/government/statistics/characteristics-of-children-in-need-2013-to-2014

Sheet Funding
A1: Local Authority funding data (Please refer to source data for full data descriptions)
A2: 1 | B2: 2 | C2: 3 | D2: 4 | E2: 5 | F2: 6 | G2: 7 | H2: 8 | I2: 9 | J2: 10 | K2: 11 | L2: 12 | M2: 13 | N2: 14 | O2: 15 | P2: 16 | Q2: 17 | R2: 18 | S2: 19 | T2: 20 | U2: 21 | V2: 22 | W2: 23 | X2: 24 | Y2: 25 | Z2: 26 | AA2: 27 | AB2: 28 | AC2: 29 | AD2: 30 | AE2: 31 | AF2: 32 | AG2: 33 | AH2: 34 | AI2: 35 | AJ2: 36 | AK2: 37 | AL2: 38 | AM2: 39 | AN2: 40 | AO2: 41 | AP2: 42 | AQ2: 43 | AR2: 44 | AS2: 45 | AT2: 46 | AU2: 47 | AV2: 48 | AW2: 49 | AX2: 50 | AY2: 51 | AZ2: 52 | BA2: 53 | BB2: 54 | BC2: 55 | BD2: 56 | BE2: 57 | BF2: 58 | BG2: 59 | BH2: 60 | BI2: 61 | BJ2: 62 | BK2: 63 | BL2: 64 | BM2: 65 | BN2: 66 | BO2: 67 | BP2: 68 | BQ2: 69 | BR2: 70 | BS2: 71 | BT2: 72 | BU2: 73 | BV2: 74 | BW2: 75 | BX2: 76 | BY2: 77 | BZ2: 78 | CA2: 79 | CB2: 80 | CC2: 81 | CD2: 82 | CE2: 83 | CF2: 84 | CG2: 85 | CH2: 86 | CI2: 87 | CJ2: 88 | CK2: 89 | CL2: 90 | CM2: 91 | CN2: 92 | CO2: 93 | CP2: 94 | CQ2: 95 | CR2: 96 | CS2: 97 | CT2: 98 | CU2: 99 | CV2: 100 | CW2: 101 | CX2: 102 | CY2: 103 | CZ2: 104 | DA2: 105 | DB2: 106 | DC2: 107 | DD2: 108 | DE2: 109 | DF2: 110 | DG2: 111 | DH2: 112 | DI2: 113 | DJ2: 114 | DK2: 115 | DL2: 116 | DM2: 117 | DN2: 118 | DO2: 119 | DP2: 120 | DQ2: 121 | DR2: 122 | DS2: 123 | DT2: 124 | DU2: 125 | DV2: 126 | DW2: 127 | DX2: 128 | DY2: 129 | DZ2: 130 | EA2: 131 | EB2: 132 | EC2: 133 | ED2: 134 | EE2: 135 | EF2: 136 | EG2: 137 | EH2: 138 | EI2: 139 | EJ2: 140 | EK2: 141 | EL2: 142 | EM2: 143 | EN2: 144 | EO2: 145 | EP2: 146 | EQ2: 147 | ER2: 148 | ES2: 149 | ET2: 150 | EU2: 151 | EV2: 152 | EW2: 153 | EX2: 154 | EY2: 155 | EZ2: 156 | FA2: 157 | FB2: 158 | FC2: 159 | FD2: 160 | FE2: 161 | FF2: 162 | FG2: 163 | FH2: 164 | FI2: 165 | FJ2: 166 | FK2: 167 | FL2: 168 | FM2: 169 | FN2: 170 | FO2: 171 | FP2: 172 | FQ2: 173 | FR2: 174 | FS2: 175 | FT2: 176 | FU2: 177 | FV2: 178 | FW2: 179 | FX2: 180 | FY2: 181 | FZ2: 182 | GA2: 183 | GB2: 184 | GC2: 185 | GD2: 186 | GE2: 187 | GF2: 188 | GG2: 189 | GH2: 190 | GI2: 191 | GJ2: 192 | GK2: 193 | GL2: 194 | GM2: 195 | GN2: 196 | GO2: 197 | GP2: 198 | GQ2: 199 | GR2: 200 | GS2: 201 | GT2: 202 | GU2: 203 | GV2: 204 | GW2: 205 | GX2: 206 | GY2: 207 | GZ2: 208 | HA2: 209 | HB2: 210 | HC2: 211 | HD2: 212 | HE2: 213 | HF2: 214 | HG2: 215 | HH2: 216 | HI2: 217 | HJ2: 218 | HK2: 219 | HL2: 220 | HM2: 221 | HN2: 222
C5: 2012-13 DSG | E5: 2013-14 DSG | G5: 2014-15 DSG | I5: 2015-16 DSG | L5: Summary of Schools Block Funding 2014-15 for SEN | S5: Section 251 budget 14-15 relating to SEN | AQ5: Section 251 budget 13-14 relating to SEN | BM5: Section 251 budget 12-13 relating to SEN | CE5: Section 251 budget 11-12 relating to SEN | DA5: Section 251 budget 10-11 relating to SEN | EC5: Section 251 budget 09-10 relating to SEN | FD5: Section 251 outturn 1314 relating to SEN | FZ5: Section 251 outturn 1213 relating to SEN | GH5: Section 251 outturn 1112 relating to SEN | GP5: Section 251 outturn 1011 | GX5: Section 251 outturn 0910 relating to SEN | HG5: High Needs place allocations for AY 14/15 for institutions funded by EFA
A6: LA No | B6: LA Name | C6: Notional High Needs Block | D6: Notional Total DSG | E6: High Needs Block | F6: Total DSG | G6: High Needs Block | H6: Total DSG | I6: High Needs Block | J6: Total DSG | L6: Total Funding (excl. MFG) | M6: Total Notional SEN (excl. MFG) | N6: Notional Sen Total - proportion of funding | O6: MFG Net total funding | P6: High Needs additional funding | Q6: Schools Block Total funding | S6: Total SEN budget | T6: 1.2.1 Top up funding - maintained providers | U6: 1.2.10 PFI/ BSF costs at special schools and AP/ PRUs | V6: 1.2.11 Direct payments (SEN and disability) | W6: 1.2.2 Top-up funding – academies, free schools and colleges | X6: 1.2.3 Top-up and other funding – non-maintained and independent providers | Y6: 1.2.4 Additional high needs targeted funding for mainstream schools and academies | Z6: 1.2.5 SEN support services | AA6: 1.2.8 Support for inclusion | AB6: 1.2.9 Special schools and PRUs in financial difficulty | AC6: 1.4.11 SEN transport | AD6: 1.0.1 Individual Schools Budget (before Academy recoupment) (Special schools only) | AE6: 1.1.1 Contingencies (Special schools only) | AF6: 1.4.6 Capital expenditure from revenue (CERA) (Special schools only) | AG6: 1.4.7 Prudential borrowing costs (Special schools only) | AH6: 1.6.1 TOTAL SCHOOLS BUDGET (before Academy recoupment) | AI6: 2.0.1 Therapies and other health related services | AJ6: 2.1.1 Educational psychology service | AK6: 2.1.2 SEN administration, assessment and coordination and monitoring | AL6: 2.1.3 Parent partnership, guidance and information | AM6: 2.1.4 Home to school transport: SEN transport expenditure (0 - 25) | AN6: SEN Places Apr to Aug | AO6: SEN Places Sep to Mar | AP6: SEN Funding | AQ6: Total SEN budget | AR6: 1.2.1 Top up funding - maintained providers | AS6: 1.2.10 Direct payments (SEN and disability) | AT6: 1.2.2 Top up funding - Academies and Free Schools | AU6: 1.2.3 Top up funding - independent providers | AV6: 1.2.5 SEN support services | AW6: 1.2.6 Support for inclusion | AX6: 1.2.8 Special schools and PRUs in financial difficulty | AY6: 1.2.9 PFI and BSF costs at special schools | AZ6: 1.4.11 SEN transport | BA6: 1.0.1 Individual Schools Budget (before Academy recoupment) (Special schools only) | BB6: 1.1.1 Contingencies (Special schools only) | BC6: 1.4.6 Capital expenditure from revenue (CERA) (Special schools only) | BD6: 1.4.7 Prudential borrowing costs (Special schools only) | BE6: 1.6.1 TOTAL SCHOOLS BUDGET (before Academy recoupment) | BF6: 2.0.1 Therapies and other health related services | BG6: 2.1.1 Educational psychology service | BH6: 2.1.2 SEN administration, assessment and coordination and monitoring | BI6: 2.1.3 Parent partnership, guidance and information | BJ6: 2.1.4 Home to school transport: SEN transport expenditure(0 - 25) | BK6: Places | BL6: Funding | BM6: Total SEN budget | BN6: 1.2.1 Provision for pupils with SEN (including assigned resources) | BO6: 1.2.2 SEN support services | BP6: 1.2.3 Support for inclusion | BQ6: 1.2.4 Fees for pupils with SEN at independent special schools & abroad | BR6: 1.2.5 SEN transport | BS6: 1.0.1 Individual Schools Budget (Special schools only) | BT6: 1.0.4 Threshold and Performance Pay (Devolved) (Special schools only) | BU6: 1.1.1 Support for schools in financial difficulty (Special schools only) | BV6: 1.1.2 Contingencies (Special schools only) | BW6: 1.8.1 Capital Expenditure from Revenue (Special schools only) | BX6: 1.8.2 Prudential borrowing costs (Special schools only) | BY6: 1.9.1 Total Schools budget | BZ6: 2.0.1 Educational psychology service | CA6: 2.0.2 SEN administration, assessment and coordination and monitoring | CB6: 2.0.3 Therapies and other health related services | CC6: 2.0.4 Parent partnership, guidance and information | CD6: 2.0.7 Home to school transport: SEN transport expenditure(5 - 25) | CE6: Total SEN budget | CF6: 1.2.1 Provision for pupils with SEN (including assigned resources) | CG6: 1.2.2 SEN support services | CH6: 1.2.3 Support for inclusion | CI6: 1.2.4 Fees for pupils with SEN at independent special schools & abroad | CJ6: 1.2.5 SEN transport | CK6: 1.0.1 Individual Schools Budget (Special schools only) | CL6: 1.0.4 Threshold and Performance Pay (Devolved) (Special schools only) | CM6: 1.1.1 Support for schools in financial difficulty (Special schools only) | CN6: 1.1.2 School specific contingencies (Special schools only) | CO6: 1.1.3 Early Years contingency (Special schools only) | CP6: 1.8.1 Capital Expenditure from Revenue (CERA) (Special schools only) | CQ6: 1.8.2 Prudential borrowing costs (Special schools only) | CR6: 1.9.1 TOTAL SCHOOLS BUDGET | CS6: 2.0.1 Educational psychology service | CT6: 2.0.2 SEN administration, assessment and coordination | CU6: 2.0.3 Therapies and other health related services | CV6: 2.0.4 Parent partnership, guidance and information | CW6: 2.0.5 Monitoring of SEN provision | CX6: 2.1.3 Home to school transport: SEN transport expenditure | CY6: 2.1.5 Home to post16 provision transport: SEN/ LLDD transport expenditure (aged 16-18) | CZ6: 2.1.6 Home to post16 provision transport: SEN/ LLDD transport expenditure (aged 19-25) | DA6: Total SEN budget | DB6: 1.2.1 Provision for pupils with SEN (including assigned resources) | DC6: 1.2.2 Provision for pupils with SEN, provision not included in line 1.2.1 | DD6: 1.2.3 Support for inclusion | DE6: 1.2.4 Fees for pupils at independent special schools & abroad | DF6: 1.2.5 SEN transport | DG6: 1.0.1 Individual Schools Budget (Special schools only) | DH6: 1.0.2 School Standards Grant - Maintained Schools (Special schools only) | DI6: 1.0.3 School Standards Grant - Pupil Referral Units (Special schools only) | DJ6: 1.0.4 School Standards Grant (Personalisation) - Maintained Schools (Special schools only) | DK6: 1.0.5 School Standards Grant (Personalisation) - Pupil Referral Units (Special schools only) | DL6: 1.0.6 School Development Grant (Special schools only) | DM6: 1.0.7 Other Standards Fund Allocation - Devolved (Special schools only) | DN6: 1.0.8 Threshold and Performance Pay (Devolved) (Special schools only) | DO6: 1.1.1 Support for schools in financial difficulty (Special schools only) | DP6: 1.1.2 School-specific contingencies (Special schools only) | DQ6: 1.1.3 Early Years contingency (Special schools only) | DR6: 1.7.1 Capital Expenditure from Revenue (CERA)(Special schools only) | DS6: 1.7.2 Prudential borrowing costs (Special schools only) | DT6: 1.8.1 TOTAL SCHOOLS BUDGET | DU6: 2.0.1 Educational Psychology Service | DV6: 2.0.2 SEN administration, assessment and co-ordination | DW6: 2.0.3 Therapies and other health related services | DX6: 2.0.4 Parent partnership, guidance and information | DY6: 2.0.5 Monitoring of SEN provision | DZ6: 2.1.3 Home to school transport: SEN transport expenditure | EA6: 2.1.5 Home to post-16 provision transportt: SEN/ LLDD transport expenditure (aged 16-18) | EB6: 2.1.6 Home to post-16 provision transport: SEN/ LLDD transport expenditure (aged 19-25) | EC6: Total SEN budget | ED6: 1.2.1 Provision for pupils with SEN (including assigned resources) | EE6: 1.2.2 Provision for pupils with SEN provision not included in line 1.2.1 | EF6: 1.2.3 Support for inclusion | EG6: 1.2.4 Fees for pupils at independent special schools & abroad | EH6: 1.2.5 SEN transport | EI6: 1.0.1 Individual Schools Budget (Special schools only) | EJ6: 1.0.2 School Standards Grant - Maintained Schools (Special schools only) | EK6: 1.0.3 School Standards Grant - Pupil Referral Units (Special schools only) | EL6: 1.0.4 School Standards Grant (Personalisation) - Maintained Schools (Special schools only) | EM6: 1.0.5 School Standards Grant (Personalisation) - Pupil Referral Units (Special schools only) | EN6: 1.0.6 School Development Grant (Special schools only) | EO6: 1.0.7 Other Standards Fund Allocation - Devolved (Special schools only) | EP6: 1.0.8 Threshold and Performance Pay (Devolved) (Special schools only) | EQ6: 1.1.1 Support for schools in financial difficulty (Special schools only) | ER6: 1.1.2 School-specific contingencies (Special schools only) | ES6: 1.7.1 Capital Expenditure from Revenue (CERA) (Special schools only) | ET6: 1.7.2 Prudential borrowing costs (Special schools only) | EU6: 1.8.1 TOTAL SCHOOLS BUDGET | EV6: 2.0.1 Educational Psychology Service | EW6: 2.0.2 SEN administration assessment and co-ordination | EX6: 2.0.3 Therapies and other health related services | EY6: 2.0.4 Parent partnership guidance and informationwhere | EZ6: 2.0.5 Monitoring of SEN provision | FA6: 2.1.3 Home to school transport: SEN transport expenditure | FB6: 2.1.5 Home to college transport: SEN transport expenditure | FD6: Total SEN spend | FE6: 1.2.1 Top up funding - maintained providers | FF6: 1.2.10 Direct payments (SEN and disability) | FG6: 1.2.2 Top-up funding – academies, free schools and colleges | FH6: 1.2.3 Top-up and other funding – non-maintained and independent providers | FI6: 1.2.5 SEN support services | FJ6: 1.2.6 Support for inclusion | FK6: 1.2.8 Special schools and PRUs in financial difficulty | FL6: 1.2.9 PFI and BSF costs at special schools | FM6: 1.4.11 SEN transport | FN6: 1.0.1 Individual Schools Spend (Special/AP spend only) | FO6: 1.1.1 Contingencies (Special/AP spend only) | FP6: 1.4.6 Capital expenditure from revenue (CERA) (Special/AP spend only) | FQ6: 1.4.7 Prudential borrowing costs (Special/AP spend only) | FR6: 1.6.1 TOTAL SCHOOLS EXPENDITURE | FS6: 2.0.1 Therapies and other health related services | FT6: 2.1.1 Educational psychology service | FU6: 2.1.2 SEN administration, assessment and coordination and monitoring | FV6: 2.1.3 Parent partnership, guidance and information | FW6: 2.1.4 Home to school transport (pre 16): SEN transport expenditure | FX6: 2.1.6 Home to post-16 provision: SEN/ LLDD transport expenditure (aged 16-18) | FY6: 2.1.7 Home to post-16 provision: SEN/ LLDD transport expenditure (aged 19-25) | FZ6: Total SEN spend | GA6: 38 SEN funding (Not for special schools) | GB6: Spending by schools (brought forward): 67 Special Schools | GC6: Spending by LA within schools budget 72 Special Schools | GD6: 74 Independent/Non-Maintained schools fees | GE6: 81 TOTAL SCHOOLS BUDGET (including CERA) (line 68 + line 80 + line 57 col (f)) | GF6: 89 Home to school transport: SEN transport expenditure (0-25) | GG6: 102 TOTAL EDUCATION SPENDING (including CERA) (line 81 + line 100) | GH6: Total SEN spend | GI6: 38 SEN funding (Not for special schools) | GJ6: Spending by schools (brought forward): 66 Special Schools | GK6: Spending by LA within schools budget 71 Special Schools | GL6: 73 Independent/Non-Maintained schools fees | GM6: 80 TOTAL SCHOOLS BUDGET (including CERA) (line 67 + line 79 + line 56 col (f)) | GN6: 89 Home to school transport: SEN transport expenditure (0-25) | GO6: 101 TOTAL EDUCATION SPENDING (including CERA) (line 80 + line 99) | GP6: Total SEN spend | GQ6: 38 SEN funding (Not for special schools) | GR6: Spending by schools (brought forward): 67 Special Schools | GS6: Spending by LA within schools budget 72 Special Schools | GT6: 74 Independent/Non-Maintained schools fees | GU6: 81 TOTAL SCHOOLS BUDGET (including CERA) (line 68 + line 80 + line 57 col (f)) | GV6: 89 Home to school transport: SEN transport expenditure (0-25) | GW6: 105 TOTAL EDUCATION SPENDING (including CERA) (line 81 + line 103) | GX6: Total SEN spend | GY6: 38 SEN funding (Not for special schools) | GZ6: Spending by schools (brought forward): 67 Special Schools | HA6: Spending by LA within schools budget 72 Special Schools | HB6: 74 Independent/Non-Maintained schools fees | HC6: 81 TOTAL SCHOOLS BUDGET (including CERA) (line 68 + line 80 + line 57 col(f)) | HD6: 89 Home to school transport: SEN transport expenditure (0-25) | HE6: 109 TOTAL EDUCATION SPENDING (including CERA) (line 81 + line 108) | HG6: Pre-16 SEN Units in mainstream schools | HH6: Pre-16 Resourced Provision in mainstream schools | HI6: Pre-16 Alternative Provision | HJ6: Pre-16 SEN Places in Special Schools and other institutions | HK6: Post-16 - Schools - 16-18 | HL6: Post-16 Further education & other providers 16-18 | HM6: Post-16 Further education & other providers 19-25 | HN6: Total
A7: 201 | B7: City of London | C7: 142000 | D7: 2328858.117 | E7: 330640.5549 | F7: 2478151.858 | G7: 315084.1052 | H7: 2471453.175 | I7: 319837.7435 | J7: 2444000 | L7: 1614378 | M7: 151975 | N7: =M7/L7 -> 0.09413842359 | O7: 0 | P7: 0 | Q7: 1614378 | S7: =SUM(T7:AG7) -> 272000 | T7: 34000 | U7: 0 | V7: 0 | W7: 4000 | X7: 204000 | Y7: 0 | Z7: 30000 | AA7: 0 | AB7: 0 | AC7: 0 | AD7: 0 | AF7: 0 | AG7: 0 | AH7: 2393378 | AI7: 0 | AJ7: 22000 | AK7: 0 | AL7: 0 | AM7: 13000 | AN7: 0 | AO7: 0 | AP7: 0 | AQ7: =SUM(AR7:BD7) -> 353195 | AR7: 164195 | AS7: 0 | AT7: 2000 | AU7: 110000 | AV7: 22000 | AW7: 0 | AX7: 0 | AY7: 0 | AZ7: 55000 | BA7: 0 | BC7: 0 | BD7: 0 | BE7: 2431000 | BF7: 0 | BG7: 22000 | BH7: 0 | BI7: 0 | BJ7: 12000 | BK7: 0 | BL7: 0 | BM7: =SUM(BN7:BX7) -> 142000 | BN7: 78000 | BO7: 0 | BP7: 0 | BQ7: 64000 | BR7: 0 | BS7: 0 | BT7: 0 | BU7: 0 | BV7: 0 | BW7: 0 | BX7: 0 | BY7: 2409000 | BZ7: 18000 | CA7: 259600 | CB7: 8700 | CC7: 4300 | CD7: 12000 | CE7: =SUM(CF7:CQ7) -> 142000 | CF7: 78000 | CG7: 0 | CH7: 0 | CI7: 64000 | CJ7: 0 | CK7: 0 | CL7: 0 | CM7: 0 | CN7: 0 | CP7: 0 | CQ7: 0 | CR7: 2464069 | CS7: 18000 | CT7: 8900 | CU7: 8300 | CV7: 4100 | CW7: 8900 | CX7: 12000 | CY7: 8000 | CZ7: 0 | DA7: =SUM(DB7:DS7) -> 144000 | DB7: 80000 | DC7: 0 | DD7: 0 | DE7: 64000 | DF7: 0 | DG7: 0 | DH7: 0 | DI7: 0 | DJ7: 0 | DK7: 0 | DL7: 0 | DM7: 0 | DN7: 0 | DO7: 0 | DP7: 0 | DQ7: 0 | DR7: 0 | DS7: 0 | DT7: 2522735 | DU7: 18000 | DV7: 8500 | DW7: 7900 | DX7: 3900 | DY7: 8500 | DZ7: 12000 | EA7: 8000 | EB7: 0 | EC7: =SUM(ED7:ET7) -> 193989 | ED7: 104000 | EE7: 0 | EF7: 0 | EG7: 89989 | EH7: 0 | EI7: 0 | EJ7: 0 | EK7: 0 | EL7: 0 | EM7: 0 | EN7: 0 | EO7: 0 | EP7: 0 | EQ7: 0 | ER7: 0 | ES7: 0 | ET7: 0 | EU7: 2310755 | EV7: 18000 | EW7: 8100 | EX7: 7500 | EY7: 3700 | EZ7: 8100 | FA7: 10000 | FB7: 8000 | FD7: =SUM(FE7:FQ7) -> 376948 | FE7: 243455 | FF7: 0 | FG7: 0 | FH7: 96207 | FI7: 37286 | FJ7: 0 | FK7: 0 | FL7: 0 | FM7: 0 | FN7: 0 | FP7: 0 | FQ7: 0 | FR7: 2394928 | FS7: 0 | FT7: 19012 | FU7: 31500 | FV7: 0 | FW7: 36593 | FX7: 3310 | FY7: 892 | FZ7: =SUM(GA7:GD7) -> 106831.69 | GA7: 48632.69 | GB7: 0 | GC7: 0 | GD7: 58199 | GE7: 2617724.65 | GF7: 24296 | GG7: 4521383.65 | GH7: =SUM(GI7:GL7) -> 99213 | GI7: 99213 | GJ7: 0 | GK7: 0 | GL7: 0 | GM7: 2289247.15 | GN7: 31624 | GO7: 3679891.15 | GP7: =SUM(GQ7:GT7) -> 39666 | GQ7: 39666 | GR7: 0 | GS7: 0 | GT7: 0 | GU7: 2283245 | GV7: 14641 | GW7: 3378872 | GX7: =SUM(GY7:HB7) -> 206974 | GY7: 48642 | GZ7: 0 | HA7: 67598 | HB7: 90734 | HC7: 2574415 | HD7: 7966 | HE7: 3874832 | HG7: 0 | HH7: 0 | HI7: 0 | HJ7: 0 | HK7: 3 | HL7: 2 | HM7: 2 | HN7: 7
A8: 202 | B8: Camden | C8: 31252835.82 | D8: 155234019.6 | E8: 31815517.63 | F8: 161228817.7 | G8: 32279852.54 | H8: 160130558.3 | I8: 32227440.7 | J8: 161530000 | L8: 108369672 | M8: 20799851 | N8: 0.1919342434 | O8: 833614 | P8: 100000 | Q8: 109203285 | S8: =SUM(T8:AG8) -> 27746074 | T8: 15355436 | U8: 0 | V8: 0 | W8: 1258239 | X8: 5353201 | Y8: 0 | Z8: 1457819 | AA8: 1179681 | AB8: 0 | AC8: 0 | AD8: 3115026 | AF8: 26672 | AG8: 0 | AH8: 177183092 | AI8: 0 | AJ8: 309030 | AK8: 584973 | AL8: 111941 | AM8: 3055758 | AN8: 297 | AO8: 262 | AP8: 2970000 | AQ8: =SUM(AR8:BD8) -> 32802051 | AR8: 16705303 | AS8: 0 | AT8: 127304 | AU8: 7047122 | AV8: 943838 | AW8: 1353484 | AX8: 0 | AY8: 2925000 | AZ8: 0 | BA8: 3700000 | BC8: 0 | BD8: 0 | BE8: 185154050.9 | BF8: 0 | BG8: 375567 | BH8: 614772 | BI8: 110738 | BJ8: 3030077 | BK8: 565 | BL8: 5495466 | BM8: =SUM(BN8:BX8) -> 19180129.5 | BN8: 2647106 | BO8: 0 | BP8: 448415 | BQ8: 5797671 | BR8: 0 | BS8: 10286937.5 | BT8: 0 | BU8: 0 | BV8: 0 | BW8: 0 | BX8: 0 | BY8: 182083289 | BZ8: 533342.37 | CA8: 524419.05 | CB8: 0 | CC8: 95736.3 | CD8: 3744223.1 | CE8: =SUM(CF8:CQ8) -> 21496188 | CF8: 3166957 | CG8: 0 | CH8: 621333 | CI8: 7973720 | CJ8: 0 | CK8: 9699595 | CL8: 0 | CM8: 0 | CN8: 10797 | CP8: 23786 | CQ8: 0 | CR8: 183391353 | CS8: 223354 | CT8: 453252 | CU8: 0 | CV8: 106728 | CW8: 112644 | CX8: 4560583 | CY8: 0 | CZ8: 0 | DA8: =SUM(DB8:DS8) -> 20297846 | DB8: 3625478 | DC8: 0 | DD8: 855323 | DE8: 6901713 | DF8: 0 | DG8: 8254412 | DH8: 252617 | DI8: 0 | DJ8: 34841 | DK8: 0 | DL8: 277317 | DM8: 56915 | DN8: 0 | DO8: 0 | DP8: 13235 | DQ8: 0 | DR8: 22516 | DS8: 3479 | DT8: 189147424 | DU8: 180096 | DV8: 487861 | DW8: 0 | DX8: 97162 | DY8: 91212 | DZ8: 4285953 | EA8: 0 | EB8: 0 | EC8: =SUM(ED8:ET8) -> 18390054.4 | ED8: 2649724.21 | EE8: 657601.37 | EF8: 826618.62 | EG8: 5352650.77 | EH8: 0 | EI8: 7990659 | EJ8: 233159 | EK8: 0 | EL8: 33248 | EM8: 0 | EN8: 540210 | EO8: 73403.46 | EP8: 0 | EQ8: 0 | ER8: 10751.72 | ES8: 22028.25 | ET8: 0 | EU8: 178797884.4 | EV8: 214568.63 | EW8: 564021.67 | EX8: 0 | EY8: 91237.99 | EZ8: 74099.81 | FA8: 3585242.77 | FB8: 0 | FD8: =SUM(FE8:FQ8) -> 30649343.81 | FE8: 19960275.55 | FF8: 0 | FG8: 117815.01 | FH8: 4909295.41 | FI8: 834960 | FJ8: 1100383 | FK8: 0 | FL8: 0 | FM8: 0 | FN8: 3700000 | FP8: 26614.84 | FQ8: 0 | FR8: 175845458.3 | FS8: 0 | FT8: 506343.97 | FU8: 753621.66 | FV8: 115875.69 | FW8: 2608760.48 | FX8: 372793 | FY8: 13625.33 | FZ8: =SUM(GA8:GD8) -> 33930983.12 | GA8: 16553006.56 | GB8: 10392581.56 | GC8: 367023 | GD8: 6618372 | GE8: 199125374.4 | GF8: 2736598 | GG8: 212036323.4 | GH8: =SUM(GI8:GL8) -> 34266296.4 | GI8: 16627339.35 | GJ8: 10338151.05 | GK8: 446213 | GL8: 6854593 | GM8: 196235123.6 | GN8: 2768829 | GO8: 212974814.6 | GP8: =SUM(GQ8:GT8) -> 36518071 | GQ8: 17590029 | GR8: 9697515 | GS8: 1775200 | GT8: 7455327 | GU8: 195022029 | GV8: 3155433 | GW8: 221862265 | GX8: =SUM(GY8:HB8) -> 33557824.93 | GY8: 15739350 | GZ8: 9256804 | HA8: 1562386.09 | HB8: 6999284.842 | HC8: 194851439.7 | HD8: 3528165.219 | HE8: 226449889.5 | HG8: 0 | HH8: 84 | HI8: 85 | HJ8: 315 | HK8: 49 | HL8: 20 | HM8: 33 | HN8: 586
A9: 203 | B9: Greenwich | C9: 35464972.51 | D9: 228648611.4 | E9: 36906793.63 | F9: 238307217.8 | G9: 37965527.29 | H9: 245180374.9 | I9: 38332528.51 | J9: 256034000 | L9: 171551975 | M9: 16220434 | N9: 0.0945511353 | O9: 1589178 | P9: 0 | Q9: 173141153 | S9: 32074635 | T9: 12490919 | U9: 0 | V9: 0 | W9: 5893236 | X9: 5376540 | Y9: 0 | Z9: 4731355 | AA9: 768435 | AB9: 0 | AC9: 344150 | AD9: 2470000 | AF9: 0 | AG9: 0 | AH9: 251387601 | AI9: 0 | AJ9: 743740 | AK9: 462373 | AL9: 112726 | AM9: 3281160 | AN9: 242 | AO9: 249 | AP9: 2470000 | AQ9: 33313133 | AR9: 13328912 | AS9: 0 | AT9: 6037897 | AU9: 4635922 | AV9: 4523706 | AW9: 703115 | AX9: 0 | AY9: 0 | AZ9: 344150 | BA9: 3739431 | BC9: 0 | BD9: 0 | BE9: 257582316 | BF9: 0 | BG9: 732880 | BH9: 434992 | BI9: 193587 | BJ9: 3271360 | BK9: 399.25 | BL9: 3739431 | BM9: 23180267.57 | BN9: 1760971.77 | BO9: 3549825 | BP9: 706933 | BQ9: 3319370 | BR9: 344150 | BS9: 13481763.8 | BT9: 0 | BU9: 0 | BV9: 17254 | BW9: 0 | BX9: 0 | BY9: 249915497.4 | BZ9: 723360 | CA9: 441200 | CB9: 0 | CC9: 224757 | CD9: 3303100 | CE9: 22782016 | CF9: 918520 | CG9: 2871795 | CH9: 1439903 | CI9: 3719370 | CJ9: 0 | CK9: 13649518 | CL9: 0 | CM9: 0 | CN9: 182910 | CP9: 0 | CQ9: 0 | CR9: 252866217 | CS9: 978620 | CT9: 463600 | CU9: 0 | CV9: 96870 | CW9: 115900 | CX9: 2887223 | CY9: 0 | CZ9: 0 | DA9: 21170134.12 | DB9: 2633360 | DC9: 876200 | DD9: 1013435 | DE9: 3229370 | DF9: 0 | DG9: 12069793.33 | DH9: 169685.7873 | DI9: 0 | DJ9: 22450 | DK9: 0 | DL9: 369963 | DM9: 189428 | DN9: 370355 | DO9: 0 | DP9: 169150 | DQ9: 0 | DR9: 56944 | DS9: 0 | DT9: 248855420.2 | DU9: 1090710 | DV9: 459326 | DW9: 0 | DX9: 65618 | DY9: 182916 | DZ9: 3208290 | EA9: 0 | EB9: 0 | EC9: 18638416.84 | ED9: 2062820 | EE9: 867380 | EF9: 0 | EG9: 2960340 | EH9: 0 | EI9: 11547690.81 | EJ9: 170681.03 | EK9: 32060 | EL9: 22720 | EM9: 1772 | EN9: 373529 | EO9: 138641 | EP9: 366061 | EQ9: 0 | ER9: 38558 | ES9: 56164 | ET9: 0 | EU9: 236418955.4 | EV9: 1128970 | EW9: 467586 | EX9: 0 | EY9: 133698 | EZ9: 192946 | FA9: 3067740 | FB9: 0 | FD9: 29899207 | FE9: 15852832 | FF9: 0 | FG9: 5482188 | FH9: 2772201 | FI9: 4715326 | FJ9: 654125 | FK9: 0 | FL9: 0 | FM9: 344150 | FN9: 78385 | FP9: 0 | FQ9: 0 | FR9: 235502848 | FS9: 0 | FT9: 848796 | FU9: 383428 | FV9: 180696 | FW9: 2995833 | FX9: 269488 | FY9: 0 | FZ9: 32910219.41 | GA9: 18104261 | GB9: 10602662.41 | GC9: 1365811 | GD9: 2837485 | GE9: 259135567.2 | GF9: 3313100 | GG9: 274338834.2 | GH9: 42180190.05 | GI9: 23789688 | GJ9: 14410364.05 | GK9: 1221125 | GL9: 2759013 | GM9: 255037657.7 | GN9: 3307640 | GO9: 272861194.7 | GP9: 37010048 | GQ9: 19074318 | GR9: 13996984 | GS9: 932674 | GT9: 3006072 | GU9: 262723299 | GV9: 3354493 | GW9: 288144540 | GX9: 35894381 | GY9: 17822242 | GZ9: 13923316 | HA9: 857503 | HB9: 3291320 | HC9: 252284323.6 | HD9: 3204471 | HE9: 283952980.6 | HG9: 20 | HH9: 204 | HI9: 122 | HJ9: 399 | HK9: 155 | HL9: 14 | HM9: 53 | HN9: 967
A10: 204 | B10: Hackney | C10: 31389691.9 | D10: 204521202.2 | E10: 35207205.92 | F10: 217994200.9 | G10: 36092656.21 | H10: 226410659.2 | I10: 36394709.66 | J10: 256905000 | L10: 157016704 | M10: 36495571 | N10: 0.2324311368 | O10: 4877 | P10: 0 | Q10: 157021581 | S10: 35456210 | T10: 16050030 | U10: 388950 | V10: 0 | W10: 3355820 | X10: 7999510 | Y10: 360900 | Z10: 3202570 | AA10: 326740 | AB10: 471690 | AC10: 0 | AD10: 3300000 | AF10: 0 | AG10: 0 | AH10: 231388683 | AI10: 0 | AJ10: 471570 | AK10: 442040 | AL10: 127720 | AM10: 3230770 | AN10: 330 | AO10: 330 | AP10: 3300000 | AQ10: 34481890 | AR10: 15618290 | AS10: 0 | AT10: 2387500 | AU10: 8821640 | AV10: 180680 | AW10: 1457150 | AX10: 477000 | AY10: 356850 | AZ10: 0 | BA10: 5173300 | BC10: 9480 | BD10: 0 | BE10: 220884303 | BF10: 0 | BG10: 505890 | BH10: 466700 | BI10: 184930 | BJ10: 3228070 | BK10: 568.08 | BL10: 12258964 | BM10: 19615174 | BN10: 2958320 | BO10: 185070 | BP10: 1203370 | BQ10: 6639881 | BR10: 0 | BS10: 8161193 | BT10: 310000 | BU10: 0 | BV10: 56750 | BW10: 100590 | BX10: 0 | BY10: 204834301.8 | BZ10: 543570 | CA10: 457000 | CB10: 0 | CC10: 113710 | CD10: 3285520 | CE10: 14529832 | CF10: 2433553 | CG10: 0 | CH10: 776969 | CI10: 3803003 | CJ10: 0 | CK10: 7331901 | CL10: 0 | CM10: 0 | CN10: 171450 | CP10: 12956 | CQ10: 0 | CR10: 205806000 | CS10: 539456 | CT10: 340093 | CU10: 0 | CV10: 106963 | CW10: 138764 | CX10: 2891132 | CY10: 118053 | CZ10: 0 | DA10: 14355236.2 | DB10: 2605644 | DC10: 0 | DD10: 1165788 | DE10: 3264281 | DF10: 0 | DG10: 6552807.197 | DH10: 158240 | DI10: 0 | DJ10: 21284 | DK10: 0 | DL10: 118816 | DM10: 192334 | DN10: 112243 | DO10: 0 | DP10: 136526 | DQ10: 0 | DR10: 27273 | DS10: 0 | DT10: 202334045.7 | DU10: 844419 | DV10: 369265 | DW10: 136198 | DX10: 121838 | DY10: 150667 | DZ10: 3385321 | EA10: 140066 | EB10: 0 | EC10: 12533435.23 | ED10: 2144912.6 | EE10: 0 | EF10: 716737.95 | EG10: 2806014.87 | EH10: 0 | EI10: 6203278.44 | EJ10: 154913.6 | EK10: 0 | EL10: 20848 | EM10: 0 | EN10: 103141.8 | EO10: 83907 | EP10: 173055 | EQ10: 0 | ER10: 92626 | ES10: 33999.97 | ET10: 0 | EU10: 192646388.8 | EV10: 966390.03 | EW10: 559083.26 | EX10: 194391.43 | EY10: 144128.42 | EZ10: 398182.41 | FA10: 3720557.01 | FB10: 163726.54 | FD10: 36812470 | FE10: 15816540 | FF10: 0 | FG10: 2493510 | FH10: 8660400 | FI10: 3030510 | FJ10: 434810 | FK10: 380040 | FL10: 322880 | FM10: 0 | FN10: 5673780 | FP10: 0 | FQ10: 0 | FR10: 211865940 | FS10: 0 | FT10: 402710 | FU10: 412230 | FV10: 126910 | FW10: 3048430 | FX10: 20280 | FY10: 0 | FZ10: 32251271 | GA10: 15441129 | GB10: 8396582 | GC10: 1366140 | GD10: 7047420 | GE10: 217056771.8 | GF10: 3288330 | GG10: 230733291.8 | GH10: 30169327.7 | GI10: 15459523.14 | GJ10: 7677324.56 | GK10: 1331990 | GL10: 5700490 | GM10: 213955354 | GN10: 2905980 | GO10: 226090914 | GP10: 28672371 | GQ10: 14747987 | GR10: 7963889 | GS10: 955839 | GT10: 5004656 | GU10: 213857012 | GV10: 3203940 | GW10: 233478732 | GX10: 26785258.59 | GY10: 14770630 | GZ10: 7696237 | HA10: 323595.9196 | HB10: 3994795.669 | HC10: 213879434.2 | HD10: 3998818.44 | HE10: 246475356.2 | HG10: 0 | HH10: 83 | HI10: 255 | HJ10: 317 | HK10: 53 | HL10: 60 | HM10: 40 | HN10: 808
A11: 205 | B11: Hammersmith and Fulham | C11: 17136743.3 | D11: 114042492 | E11: 17867333.95 | F11: 120929593.2 | G11: 18463204.06 | H11: 119086669.6 | I11: 18622126.94 | J11: 131775000 | L11: 81761987 | M11: 9459786 | N11: 0.1156990717 | O11: 508063 | P11: 0 | Q11: 82270050 | S11: 18167538 | T11: 8839093 | U11: 0 | V11: 0 | W11: 748460 | X11: 1943909 | Y11: 0 | Z11: 681000 | AA11: 1541556 | AB11: 0 | AC11: 0 | AD11: 4270000 | AF11: 143520 | AG11: 0 | AH11: 119431461 | AI11: 814800 | AJ11: 652400 | AK11: 0 | AL11: 0 | AM11: 1758600 | AN11: 201 | AO11: 216 | AP11: 2085000 | AQ11: 45345253 | AR11: 33165127 | AS11: 0 | AT11: 2255840 | AU11: 1131986 | AV11: 681000 | AW11: 1657300 | AX11: 0 | AY11: 0 | AZ11: 0 | BA11: 6454000 | BC11: 0 | BD11: 0 | BE11: 147882038 | BF11: 1607400 | BG11: 0 | BH11: 0 | BI11: 0 | BJ11: 1937900 | BK11: 80478 | BL11: 3554000 | BM11: 12871561 | BN11: 484148 | BO11: 182692 | BP11: 179996 | BQ11: 4078924 | BR11: 0 | BS11: 7945801 | BT11: 0 | BU11: 0 | BV11: 0 | BW11: 0 | BX11: 0 | BY11: 118584826 | BZ11: 488880 | CA11: 623025 | CB11: 119993 | CC11: 30820 | CD11: 1653700 | CE11: 12306232 | CF11: 157456 | CG11: 183202 | CH11: 232933 | CI11: 4231863 | CJ11: 0 | CK11: 6946066 | CL11: 0 | CM11: 0 | CN11: 102850 | CP11: 451862 | CQ11: 0 | CR11: 124540608 | CS11: 465600 | CT11: 410000 | CU11: 116500 | CV11: 30820 | CW11: 213025 | CX11: 1653700 | CY11: 0 | CZ11: 0 | DA11: 11886388 | DB11: 87023 | DC11: 0 | DD11: 235325 | DE11: 4346010 | DF11: 0 | DG11: 6245720 | DH11: 160211 | DI11: 0 | DJ11: 21284 | DK11: 0 | DL11: 202955 | DM11: 33145 | DN11: 0 | DO11: 0 | DP11: 102853 | DQ11: 0 | DR11: 451862 | DS11: 0 | DT11: 131465399.4 | DU11: 577371 | DV11: 409056 | DW11: 36295 | DX11: 31014 | DY11: 213029 | DZ11: 1800000 | EA11: 0 | EB11: 0 | EC11: 11438227 | ED11: 84570 | EE11: 0 | EF11: 228494 | EG11: 4269038 | EH11: 0 | EI11: 6307192 | EJ11: 192217 | EK11: 0 | EL11: 26060 | EM11: 0 | EN11: 210333 | EO11: 49078 | EP11: 0 | EQ11: 0 | ER11: 63016 | ES11: 3229 | ET11: 5000 | EU11: 117411538 | EV11: 576548 | EW11: 397535 | EX11: 35263 | EY11: 46090 | EZ11: 208981 | FA11: 2353617 | FB11: 0 | FD11: =SUM(FE11:FQ11) -> 20668017 | FE11: 2723580 | FF11: 0 | FG11: 0 | FH11: 2302915 | FI11: 1400999 | FJ11: 1109303 | FK11: 0 | FL11: 0 | FM11: 0 | FN11: 12931418 | FP11: 199802 | FQ11: 0 | FR11: 100255423 | FS11: 702835 | FT11: 265240 | FU11: 159600 | FV11: 0 | FW11: 1564510 | FX11: 0 | FY11: 0 | FZ11: 22516638.93 | GA11: 6598053.18 | GB11: 9025621.75 | GC11: 4031924 | GD11: 2861040 | GE11: 124508140.2 | GF11: 1601105 | GG11: 137293590.2 | GH11: 19019357.81 | GI11: 6443571.33 | GJ11: 8172137.48 | GK11: 1722252 | GL11: 2681397 | GM11: 133319859.1 | GN11: 1596907 | GO11: 147039844.1 | GP11: 18589855 | GQ11: 6076577 | GR11: 7560277 | GS11: 1814073 | GT11: 3138928 | GU11: 148843334 | GV11: 1638530 | GW11: 161703206 | GX11: 19265578 | GY11: 5621316 | GZ11: 7800497 | HA11: 1902948 | HB11: 3940817 | HC11: 126461327.3 | HD11: 2120572 | HE11: 143497786.3 | HG11: 102 | HH11: 0 | HI11: 196 | HJ11: 392 | HK11: 43 | HL11: 26 | HM11: 16 | HN11: 775
A12: 206 | B12: Islington | C12: 23470301.81 | D12: 158171557.3 | E12: 25049512.76 | F12: 163981576.1 | G12: 25207096.99 | H12: 164228047 | I12: 25581798.74 | J12: 170157000 | L12: 114098117 | M12: 24324453 | N12: 0.2131889083 | O12: 42009 | P12: 100000 | Q12: 114140126 | S12: 22721354 | T12: 11811197 | U12: 50000 | V12: 0 | W12: 551674 | X12: 3529934 | Y12: 300000 | Z12: 533513 | AA12: 2048831 | AB12: 0 | AC12: 429539 | AD12: 3466666 | AF12: 0 | AG12: 0 | AH12: 169256146 | AI12: 0 | AJ12: 876580 | AK12: 256385 | AL12: 0 | AM12: 2449218 | AN12: 340 | AO12: 350 | AP12: 3466667 | AQ12: 23439009 | AR12: 11796205 | AS12: 0 | AT12: 850668 | AU12: 3362405 | AV12: 433841 | AW12: 2141706 | AX12: 244000 | AY12: 50000 | AZ12: 428933 | BA12: 4131251 | BC12: 0 | BD12: 0 | BE12: 169801928 | BF12: 0 | BG12: 898213 | BH12: 309590 | BI12: 0 | BJ12: 0 | BK12: 432 | BL12: 4164062 | BM12: 15629873.36 | BN12: 3158770.01 | BO12: 0 | BP12: 1028414.88 | BQ12: 3065631 | BR12: 400000 | BS12: 7965940.51 | BT12: 0 | BU12: 0 | BV12: 11116.96 | BW12: 0 | BX12: 0 | BY12: 164496596.3 | BZ12: 763768.78 | CA12: 279772.84 | CB12: 0 | CC12: 30000 | CD12: 1997450.9 | CE12: 14151806.78 | CF12: 1699359 | CG12: 0 | CH12: 998109 | CI12: 3065631 | CJ12: 14933 | CK12: 7895711.78 | CL12: 0 | CM12: 0 | CN12: 478063 | CP12: 0 | CQ12: 0 | CR12: 164562686.7 | CS12: 895215 | CT12: 281462 | CU12: 29488 | CV12: 102670 | CW12: 82968 | CX12: 1946148 | CY12: 0 | CZ12: 0 | DA12: 13523048 | DB12: 1728688 | DC12: 0 | DD12: 667558 | DE12: 2665631 | DF12: 14933 | DG12: 7539714 | DH12: 127152 | DI12: 0 | DJ12: 18507 | DK12: 0 | DL12: 145059 | DM12: 117564 | DN12: 0 | DO12: 14256 | DP12: 483986 | DQ12: 0 | DR12: 0 | DS12: 0 | DT12: 155641951.3 | DU12: 1259891 | DV12: 395301 | DW12: 64027 | DX12: 101159 | DY12: 140642 | DZ12: 1956261 | EA12: 0 | EB12: 0 | EC12: 12801757.76 | ED12: 2192976.97 | EE12: 0 | EF12: 305085.97 | EG12: 2568947 | EH12: 0 | EI12: 7214585.68 | EJ12: 124246 | EK12: 0 | EL12: 15636 | EM12: 0 | EN12: 109364 | EO12: 112947.02 | EP12: 0 | EQ12: 0 | ER12: 157969.12 | ES12: 0 | ET12: 0 | EU12: 154389157.2 | EV12: 1140767.49 | EW12: 510679.12 | EX12: 43599.03 | EY12: 95062.03 | EZ12: 141265.62 | FA12: 2095215.37 | FB12: 0 | FD12: 21063683 | FE12: 12004584 | FF12: 0 | FG12: 280775 | FH12: 3848569 | FI12: 376513 | FJ12: 0 | FK12: 0 | FL12: 50000 | FM12: 672575 | FN12: 3830667 | FP12: 0 | FQ12: 0 | FR12: 158045072 | FS12: 0 | FT12: 918985 | FU12: 331786 | FV12: 0 | FW12: 2694000 | FX12: 90000 | FY12: 172287 | FZ12: 27930502.74 | GA12: 12278825.53 | GB12: 10404255.21 | GC12: 2289145 | GD12: 2958277 | GE12: 180441626.8 | GF12: 2463182 | GG12: 193272104.8 | GH12: 26388088.89 | GI12: 11320215.03 | GJ12: 9781417.86 | GK12: 2547356 | GL12: 2739100 | GM12: 176521454.6 | GN12: 2194918 | GO12: 191196826.6 | GP12: 25525130.68 | GQ12: 11475017.5 | GR12: 9465230.18 | GS12: 1845376 | GT12: 2739507 | GU12: 174968819.9 | GV12: 2052346 | GW12: 198506584.9 | GX12: =SUM(GY12:HB12) -> 24580664 | GY12: 10509053 | GZ12: 9255587 | HA12: 1835697 | HB12: 2980327 | HC12: 176797848 | HD12: 1913748 | HE12: 210692333 | HG12: 84 | HH12: 15 | HI12: 218 | HJ12: 304 | HK12: 71 | HL12: 27 | HM12: 12 | HN12: 731
A13: 207 | B13: Kensington and Chelsea | C13: 16778840.06 | D13: 79494874.62 | E13: 16364174.87 | F13: 83294694.78 | G13: 17096012.4 | H13: 82729634.78 | I13: 17340888.65 | J13: 89598000 | L13: 56115386 | M13: 3982791 | N13: 0.07097502635 | O13: 60888 | P13: 864000 | Q13: 56176274 | S13: 13963311 | T13: 7054480 | U13: 0 | V13: 0 | W13: 261480 | X13: 4445060 | Y13: 690260 | Z13: 151650 | AA13: 414400 | AB13: 0 | AC13: 0 | AD13: 945981 | AF13: 0 | AG13: 0 | AH13: 90120029 | AI13: 0 | AJ13: 571730 | AK13: 437530 | AL13: 0 | AM13: 1275650 | AN13: 90 | AO13: 90 | AP13: 900000 | AQ13: 14375950.61 | AR13: 6659155.81 | AS13: 0 | AT13: 269269.17 | AU13: 4578034.97 | AV13: 344699.1 | AW13: 357991.56 | AX13: 0 | AY13: 0 | AZ13: 0 | BA13: 2166800 | BC13: 0 | BD13: 0 | BE13: 86820102.98 | BF13: 0 | BG13: 614120 | BH13: 490440 | BI13: 0 | BJ13: 1718280 | BK13: 219 | BL13: 2434880 | BM13: 10963719.51 | BN13: 1411831.69 | BO13: 301142.67 | BP13: 29741.22 | BQ13: 4617081.21 | BR13: 0 | BS13: 4542410 | BT13: 0 | BU13: 0 | BV13: 39113.67 | BW13: 22399.05 | BX13: 0 | BY13: 92079260.01 | BZ13: 605840 | CA13: 553440 | CB13: 84400 | CC13: 50000 | CD13: 1637100 | CE13: =SUM(CF13:CQ13) -> 9298165.831 | CF13: 0 | CG13: 212579.36 | CH13: 31609.25 | CI13: 4358100 | CJ13: 0 | CK13: 4533250 | CL13: 0 | CM13: 0 | CN13: 119328.7715 | CP13: 43298.45 | CQ13: 0 | CR13: 89998650.49 | CS13: 657520 | CT13: 520940 | CU13: 85530 | CV13: 24000 | CW13: 10580 | CX13: 1856090 | CY13: 58560 | CZ13: 0 | DA13: 8010536.485 | DB13: 0 | DC13: 0 | DD13: 92171.96766 | DE13: 3339871.149 | DF13: 0 | DG13: 4218830 | DH13: 78160 | DI13: 15000 | DJ13: 10640 | DK13: 1740 | DL13: 132049 | DM13: 5120 | DN13: 0 | DO13: 0 | DP13: 69087.0794 | DQ13: 0 | DR13: 47867.28882 | DS13: 0 | DT13: 88188512 | DU13: 679930 | DV13: 516220 | DW13: 85850 | DX13: 9150 | DY13: 13400 | DZ13: 1620590 | EA13: 0 | EB13: 0 | EC13: 7982881.73 | ED13: 0 | EE13: 0 | EF13: 83692.69 | EG13: 3589935.66 | EH13: 0 | EI13: 4100640 | EJ13: 74950 | EK13: 19630 | EL13: 10220 | EM13: 1740 | EN13: 68730 | EO13: 5120 | EP13: 0 | EQ13: 0 | ER13: 20364.13 | ES13: 7859.25 | ET13: 0 | EU13: 81181810.7 | EV13: 702670.55 | EW13: 762215.09 | EX13: 89757.06 | EY13: 9278.09 | EZ13: 0 | FA13: 1687071.34 | FB13: 0 | FD13: 8166745.08 | FE13: 1370275.53 | FF13: 0 | FG13: 294184.48 | FH13: 4219336.57 | FI13: 483066.21 | FJ13: 529882.29 | FK13: 0 | FL13: 0 | FM13: 0 | FN13: 1270000 | FP13: 0 | FQ13: 0 | FR13: 82059701.59 | FS13: 0 | FT13: 540462.86 | FU13: 620137.79 | FV13: 0 | FW13: 2036350.27 | FX13: 0 | FY13: 0 | FZ13: 15943672.67 | GA13: 4580230 | GB13: 5083779.48 | GC13: 1958519.11 | GD13: 4321144.08 | GE13: 97038275.9 | GF13: 1962757.4 | GG13: 105936967.2 | GH13: 14506767.95 | GI13: 4722630 | GJ13: 5122862.21 | GK13: 113834.39 | GL13: 4547441.35 | GM13: 92390248.09 | GN13: 1800794.26 | GO13: 103144420.7 | GP13: 13684090 | GQ13: 4519610 | GR13: 4926123 | GS13: 285030 | GT13: 3953327 | GU13: 95927854 | GV13: 1852419 | GW13: 106408589 | GX13: 12601048.32 | GY13: 3957590 | GZ13: 4589368.07 | HA13: 402556.7944 | HB13: 3651533.46 | HC13: 99792957.03 | HD13: 1873354.113 | HE13: 113683035.5 | HG13: 36 | HH13: 0 | HI13: 63 | HJ13: 59 | HK13: 41 | HL13: 16 | HM13: 17 | HN13: 232
A14: 208 | B14: Lambeth | C14: 31830371 | D14: 231966229.6 | E14: 36445528.41 | F14: 245354279.1 | G14: 36491216.27 | H14: 249211129.2 | I14: 36429636.85 | J14: 263164000 | L14: 173718872 | M14: 37059576 | N14: 0.2133307428 | O14: 5295517 | P14: 580000 | Q14: 179014389 | S14: 34949827 | T14: 18689282 | U14: 0 | V14: 0 | W14: 2179209 | X14: 4275602 | Y14: 0 | Z14: 0 | AA14: 5025734 | AB14: 0 | AC14: 0 | AD14: 4780000 | AF14: 0 | AG14: 0 | AH14: 247888217 | AI14: 0 | AJ14: 615000 | AK14: 0 | AL14: 180165 | AM14: 3428000 | AN14: 360 | AO14: 360 | AP14: 3600000 | AQ14: 35929827 | AR14: 18689282 | AS14: 0 | AT14: 2179209 | AU14: 4275602 | AV14: 0 | AW14: 4155734 | AX14: 0 | AY14: 0 | AZ14: 0 | BA14: 6630000 | BC14: 0 | BD14: 0 | BE14: 243291824.1 | BF14: 0 | BG14: 612200 | BH14: 0 | BI14: 180165 | BJ14: 3526351 | BK14: 700 | BL14: 6680000 | BM14: 21409642.97 | BN14: 2169046 | BO14: 0 | BP14: 3565506.99 | BQ14: 5184602 | BR14: 0 | BS14: 10463590.26 | BT14: 0 | BU14: 0 | BV14: 26897.72 | BW14: 0 | BX14: 0 | BY14: 228952099.7 | BZ14: 635853 | CA14: 193620 | CB14: 0 | CC14: 50046 | CD14: 3585070 | CE14: 17691268.37 | CF14: 2030059.04 | CG14: 0 | CH14: 2009898 | CI14: 3835094 | CJ14: 0 | CK14: 9796657.334 | CL14: 0 | CM14: 0 | CN14: 19560 | CP14: 0 | CQ14: 0 | CR14: 223030053.1 | CS14: 1179150 | CT14: 193620 | CU14: 114131 | CV14: 50046 | CW14: 368710 | CX14: 4020545 | CY14: 83642 | CZ14: 0 | DA14: 17646803.69 | DB14: 2030059 | DC14: 0 | DD14: 563168 | DE14: 5399977 | DF14: 0 | DG14: 9024392.741 | DH14: 214978.8737 | DI14: 0 | DJ14: 27771 | DK14: 0 | DL14: 160300.0737 | DM14: 149424 | DN14: 0 | DO14: 0 | DP14: 76733 | DQ14: 0 | DR14: 0 | DS14: 0 | DT14: 248818516.3 | DU14: 1386338 | DV14: 218286 | DW14: 114131 | DX14: 50046 | DY14: 368710 | DZ14: 4086938 | EA14: 83642 | EB14: 0 | EC14: 16115007.36 | ED14: 2070480.23 | EE14: 0 | EF14: 557593.21 | EG14: 4102161.66 | EH14: 0 | EI14: 8867616.26 | EJ14: 201868 | EK14: 0 | EL14: 27204 | EM14: 0 | EN14: 127704 | EO14: 91665 | EP14: 0 | EQ14: 0 | ER14: 68715 | ES14: 0 | ET14: 0 | EU14: 234481807.1 | EV14: 998694.02 | EW14: 216632 | EX14: 135000 | EY14: 49669 | EZ14: 365939 | FA14: 3860570.77 | FB14: 0 | FD14: 31173191.29 | FE14: 12676987.33 | FF14: 0 | FG14: 10724748.96 | FH14: 0 | FI14: 0 | FJ14: 0 | FK14: 0 | FL14: 1162000 | FM14: 0 | FN14: 6609455 | FP14: 0 | FQ14: 0 | FR14: 210141219.3 | FS14: 0 | FT14: 673804.26 | FU14: 667863.08 | FV14: 0 | FW14: 3166805.92 | FX14: 0 | FY14: 0 | FZ14: 42072151.66 | GA14: 20638623.25 | GB14: 11343546.41 | GC14: 206912 | GD14: 9883070 | GE14: 246763293.3 | GF14: 4129807 | GG14: 283935370.3 | GH14: 37210497.86 | GI14: 20028747.01 | GJ14: 10543790.85 | GK14: 235778 | GL14: 6402182 | GM14: 241859837 | GN14: 3671633 | GO14: 272241031 | GP14: 36568574.11 | GQ14: 22086439 | GR14: 10330986 | GS14: 74673.11 | GT14: 4076476 | GU14: 249194717.6 | GV14: 2962279 | GW14: 283098297.6 | GX14: 36740627 | GY14: 21663740 | GZ14: 10824919 | HA14: 32850 | HB14: 4219118 | HC14: 235538098.6 | HD14: 4127654 | HE14: 267501932.3 | HG14: 94 | HH14: 0 | HI14: 150 | HJ14: 491 | HK14: 50 | HL14: 67 | HM14: 70 | HN14: 922
A15: 209 | B15: Lewisham | C15: 37948494.71 | D15: 235015107.7 | E15: 41061157.39 | F15: 250360880.4 | G15: 43420598.33 | H15: 268560817.9 | I15: 43842361.2 | J15: 275783000 | L15: 191286247 | M15: 28379007 | N15: 0.1483588467 | O15: 2016690 | P15: 200000 | Q15: 193302937 | S15: 39351580 | T15: 18855000 | U15: 0 | V15: 0 | W15: 3534000 | X15: 6180000 | Y15: 0 | Z15: 3100000 | AA15: 900000 | AB15: 0 | AC15: 0 | AD15: 6660000 | AF15: 122580 | AG15: 0 | AH15: 268706420 | AI15: 0 | AJ15: 906566 | AK15: 487851 | AL15: 94017 | AM15: 3208214 | AN15: 795 | AO15: 816 | AP15: 7770000 | AQ15: 43399633 | AR15: 22097000 | AS15: 0 | AT15: 2090000 | AU15: 5048000 | AV15: 3302000 | AW15: 1012000 | AX15: 0 | AY15: 0 | AZ15: 0 | BA15: 9646333 | BC15: 204300 | BD15: 0 | BE15: 249453793 | BF15: 0 | BG15: 772274 | BH15: 537493 | BI15: 97926 | BJ15: 3847011 | BK15: 792 | BL15: 7600000 | BM15: 25836250.78 | BN15: 4355000 | BO15: 905000 | BP15: 96000 | BQ15: 5456000 | BR15: 0 | BS15: 14883882.42 | BT15: 0 | BU15: 35450.92 | BV15: 25240.44 | BW15: 79677 | BX15: 0 | BY15: 245034507.3 | BZ15: 678094.96 | CA15: 505791.62 | CB15: 0 | CC15: 93263.81 | CD15: 4054027.39 | CE15: 22849221.83 | CF15: 2759063 | CG15: 1568911 | CH15: 85876 | CI15: 4118758 | CJ15: 0 | CK15: 14209490 | CL15: 0 | CM15: 0 | CN15: 52749.762 | CP15: 54374.073 | CQ15: 0 | CR15: 237623912 | CS15: 577925 | CT15: 481129 | CU15: 0 | CV15: 88288 | CW15: 0 | CX15: 3528496 | CY15: 185710 | CZ15: 0 | DA15: =SUM(DB15:DS15) -> 21640548.57 | DB15: 1896845 | DC15: 1766204.265 | DD15: 35876 | DE15: 4368757.641 | DF15: 0 | DG15: 12816479.04 | DH15: 256257 | DI15: 0 | DJ15: 34152 | DK15: 0 | DL15: 328899 | DM15: 86537 | DN15: 0 | DO15: 0 | DP15: 7668.61908 | DQ15: 0 | DR15: 42873 | DS15: 0 | DT15: 230476281.5 | DU15: 713376.9961 | DV15: 543086.6321 | DW15: 0 | DX15: 91218.03725 | DY15: 79429.24313 | DZ15: 2967250.131 | EA15: 172658.293 | EB15: 0 | EC15: 19421618.18 | ED15: 1396261.17 | EE15: 1855328.61 | EF15: 35875.5 | EG15: 3476726.41 | EH15: 0 | EI15: 11886305 | EJ15: 254869 | EK15: 0 | EL15: 34002 | EM15: 0 | EN15: 299131.91 | EO15: 122564 | EP15: 0 | EQ15: 0 | ER15: 10429.58 | ES15: 50125 | ET15: 0 | EU15: 215828262.6 | EV15: 803399.67 | EW15: 614061.87 | EX15: 0 | EY15: 102073.59 | EZ15: 99295.14 | FA15: 3556477.38 | FB15: 208308.7 | FD15: 41963400 | FE15: 21831000 | FF15: 0 | FG15: 2981000 | FH15: 5246000 | FI15: 3145000 | FJ15: 874000 | FK15: 0 | FL15: 0 | FM15: 0 | FN15: 7698000 | FP15: 188400 | FQ15: 0 | FR15: 249453000 | FS15: 0 | FT15: 1111776 | FU15: 732625 | FV15: 4899 | FW15: 3452995 | FX15: 0 | FY15: 258540 | FZ15: 62812891.21 | GA15: 37899395.41 | GB15: 15595371.8 | GC15: 3392686 | GD15: 5925438 | GE15: 256757773.7 | GF15: 4249899 | GG15: 295504882.7 | GH15: 63106183.99 | GI15: 36872795.93 | GJ15: 15138767.06 | GK15: 4566462 | GL15: 6528159 | GM15: 248181700.8 | GN15: 4466773 | GO15: 280954633.8 | GP15: 55934742.99 | GQ15: 25121300 | GR15: 14237234 | GS15: 10415451.61 | GT15: 6160757.38 | GU15: 261412922.2 | GV15: 1751740.63 | GW15: 281035089.4 | GX15: 47824992.83 | GY15: 21544815 | GZ15: 13875732 | HA15: 7297371.58 | HB15: 5107074.25 | HC15: 247133904.6 | HD15: 3584916.617 | HE15: 284209476.1 | HG15: 60 | HH15: 150 | HI15: 206 | HJ15: 628 | HK15: 109 | HL15: 96 | HM15: 111 | HN15: 1360
A16: 210 | B16: Southwark | C16: 34578761 | D16: 224418572.1 | E16: 37732085.74 | F16: 239179149.2 | G16: 38469041.37 | H16: 241662971.2 | I16: 38653117.17 | J16: 288701000 | L16: 172743570 | M16: 10556035 | N16: 0.06110812113 | O16: 0 | P16: 0 | Q16: 172743570 | S16: 38025630 | T16: 21390455 | U16: 0 | V16: 0 | W16: 2131752 | X16: 4436417 | Y16: 0 | Z16: 1800010 | AA16: 1484847 | AB16: 27065 | AC16: 0 | AD16: 6755084 | AF16: 0 | AG16: 0 | AH16: 243888509 | AI16: 0 | AJ16: 921225 | AK16: 1600545 | AL16: 153747 | AM16: 4675454 | AN16: 426 | AO16: 426 | AP16: 4260000 | AQ16: 36989565 | AR16: 21201817 | AS16: 0 | AT16: 1729799 | AU16: 4512932 | AV16: 1383114 | AW16: 1038082 | AX16: 22786 | AY16: 0 | AZ16: 0 | BA16: 7101035 | BC16: 0 | BD16: 0 | BE16: 239916101 | BF16: 0 | BG16: 869754 | BH16: 855619 | BI16: 149678 | BJ16: 4445353 | BK16: 544 | BL16: 7088216 | BM16: 23577385.65 | BN16: 2886993.31 | BO16: 418045.35 | BP16: 1454135.05 | BQ16: 3731613.76 | BR16: 0 | BS16: 14941425.28 | BT16: 0 | BU16: 22123.9 | BV16: 123049 | BW16: 0 | BX16: 0 | BY16: 207396077 | BZ16: 1376827.02 | CA16: 917439.45 | CB16: 0 | CC16: 144477.17 | CD16: 3748723.65 | CE16: 21361496.77 | CF16: 2232719 | CG16: 0 | CH16: 1389400 | CI16: 3219968 | CJ16: 0 | CK16: 14414671 | CL16: 0 | CM16: 0 | CN16: 19357 | CP16: 85381.77 | CQ16: 0 | CR16: 202856983 | CS16: 1548019 | CT16: 625298 | CU16: 0 | CV16: 491892 | CW16: 152895 | CX16: 4167378 | CY16: 0 | CZ16: 0 | DA16: 20271803.89 | DB16: 1942303 | DC16: 0 | DD16: 1396609 | DE16: 3236677 | DF16: 0 | DG16: 12723997.39 | DH16: 361995 | DI16: 0 | DJ16: 49214 | DK16: 0 | DL16: 259224 | DM16: 185878.1215 | DN16: 0 | DO16: 0 | DP16: 12987.42618 | DQ16: 0 | DR16: 102918.956 | DS16: 0 | DT16: 212114949.8 | DU16: 1036102.807 | DV16: 1308927.13 | DW16: 0 | DX16: 524509.8964 | DY16: 155577.576 | DZ16: 4247566.707 | EA16: 0 | EB16: 0 | EC16: 19034393.4 | ED16: 1424946.14 | EE16: 0 | EF16: 1436438.57 | EG16: 2866829.36 | EH16: 0 | EI16: 12101160.61 | EJ16: 346121.5 | EK16: 0 | EL16: 48104 | EM16: 0 | EN16: 249156.33 | EO16: 222743.89 | EP16: 0 | EQ16: 30024 | ER16: 52355 | ES16: 256514 | ET16: 0 | EU16: 205806479.3 | EV16: 1134104.71 | EW16: 1341076.91 | EX16: 172690.19 | EY16: 556256.51 | EZ16: 145186.32 | FA16: 4008472.28 | FB16: 0 | FD16: 61576509 | FE16: 26206762 | FF16: 0 | FG16: 2330215 | FH16: 4443525 | FI16: 1659696 | FJ16: 431432 | FK16: 0 | FL16: 0 | FM16: 0 | FN16: 26503679 | FP16: 1200 | FQ16: 0 | FR16: 250641609 | FS16: 0 | FT16: 58321 | FU16: 872981 | FV16: 139758 | FW16: 4617871 | FX16: 0 | FY16: 0 | FZ16: 29115408.65 | GA16: 13169384.52 | GB16: 15946024.13 | GC16: 0 | GD16: 0 | GE16: 221686401.5 | GF16: 8591066.88 | GG16: 255851503.5 | GH16: 50297537.21 | GI16: 13524936.48 | GJ16: 15586524.73 | GK16: 16559707 | GL16: 4626369 | GM16: 401322689.8 | GN16: 16643 | GO16: 428816541.8 | GP16: 33116000.43 | GQ16: 14657557.87 | GR16: 15163006.29 | GS16: 53810.62 | GT16: 3241625.65 | GU16: 230029698.2 | GV16: 0 | GW16: 270410193.8 | GX16: 33124420.06 | GY16: 15626928 | GZ16: 14558204 | HA16: 25640.7804 | HB16: 2913647.28 | HC16: 222855311.4 | HD16: 6122771.327 | HE16: 267454712.6 | HG16: 94 | HH16: 19 | HI16: 100 | HJ16: 436 | HK16: 101 | HL16: 54 | HM16: 90 | HN16: 894
A17: 211 | B17: Tower Hamlets | C17: 42014107 | D17: 299959005.1 | E17: 43040063.75 | F17: 312560225.2 | G17: 43326839.47 | H17: 316126475 | I17: 43744648.88 | J17: 316655000 | L17: 205753480 | M17: 18513892 | N17: 0.08998094224 | O17: 33790460 | P17: 0 | Q17: 239543940 | S17: 41559266 | T17: 23031108 | U17: 32409 | V17: 0 | W17: 1420000 | X17: 6250000 | Y17: 0 | Z17: 6094976 | AA17: 48000 | AB17: 0 | AC17: 0 | AD17: 4682773 | AF17: 0 | AG17: 0 | AH17: 344555656 | AI17: 508846 | AJ17: 1621366 | AK17: 636918 | AL17: 1103076 | AM17: 3592717 | AN17: 445 | AO17: 455 | AP17: 4508333.3 | AQ17: 39713140.94 | AR17: 21677147.94 | AS17: 0 | AT17: 200655 | AU17: 7325303 | AV17: 4425874 | AW17: 48000 | AX17: 0 | AY17: 34033 | AZ17: 0 | BA17: 6002128 | BC17: 0 | BD17: 0 | BE17: 334302610.9 | BF17: 421818 | BG17: 794162 | BH17: 521581 | BI17: 937697 | BJ17: 3466372 | BK17: 640 | BL17: 6000000 | BM17: 23505165.33 | BN17: 3580956.2 | BO17: 733551.6 | BP17: 48006 | BQ17: 5798458 | BR17: 0 | BS17: 13122680.53 | BT17: 208857 | BU17: 0 | BV17: 12656 | BW17: 0 | BX17: 0 | BY17: 321701079.2 | BZ17: 830262 | CA17: 504305 | CB17: 441906 | CC17: 1105000 | CD17: 3482130 | CE17: 22818801 | CF17: 2485670 | CG17: 538642 | CH17: 49006 | CI17: 6279445 | CJ17: 0 | CK17: 12819841 | CL17: 0 | CM17: 0 | CN17: 646197 | CP17: 0 | CQ17: 0 | CR17: 320433662.5 | CS17: 1321918 | CT17: 511581 | CU17: 372620 | CV17: 1148695 | CW17: 0 | CX17: 2871991.73 | CY17: 527395.9689 | CZ17: 86777.74803 | DA17: 22761828 | DB17: 3818590 | DC17: 479822 | DD17: 64905 | DE17: 6023945 | DF17: 0 | DG17: 10973602 | DH17: 250038 | DI17: 0 | DJ17: 31926 | DK17: 0 | DL17: 338000 | DM17: 145000 | DN17: 0 | DO17: 0 | DP17: 636000 | DQ17: 0 | DR17: 0 | DS17: 0 | DT17: 311757970.7 | DU17: 1464438 | DV17: 468671 | DW17: 148680 | DX17: 1558690 | DY17: 34787.8 | DZ17: 3688380 | EA17: 288620 | EB17: 0 | EC17: 18070322.28 | ED17: 2733482.75 | EE17: 934499.22 | EF17: 41455.03 | EG17: 3347766.37 | EH17: 0 | EI17: 9762041.91 | EJ17: 223435 | EK17: 0 | EL17: 31272 | EM17: 0 | EN17: 272705 | EO17: 161565 | EP17: 0 | EQ17: 0 | ER17: 562100 | ES17: 0 | ET17: 0 | EU17: 285752445 | EV17: 852728.28 | EW17: 757004.94 | EX17: 164116.34 | EY17: 1609727.34 | EZ17: 28472.42 | FA17: 4058589.95 | FB17: 211615.07 | FD17: 45772685 | FE17: 24301193 | FF17: 0 | FG17: 748738 | FH17: 6426938 | FI17: 4915416 | FJ17: 48000 | FK17: 0 | FL17: 34033 | FM17: 0 | FN17: 9298367 | FP17: 0 | FQ17: 0 | FR17: 341040840 | FS17: 402103 | FT17: 1620158 | FU17: 664609 | FV17: 1083440 | FW17: 3621770 | FX17: 0 | FY17: 0 | FZ17: 65818496.97 | GA17: 43633279.53 | GB17: 13659317.44 | GC17: 2278420 | GD17: 6247480 | GE17: 337553099.4 | GF17: 3370926 | GG17: 365512393.4 | GH17: 68242479.42 | GI17: 46271407.89 | GJ17: 13713304 | GK17: 0 | GL17: 8257767.53 | GM17: 336848003.5 | GN17: 4081882 | GO17: 364689853.5 | GP17: 62045032 | GQ17: 41346989 | GR17: 12880145 | GS17: 1897109 | GT17: 5920789 | GU17: 323106151 | GV17: 3120311 | GW17: 372021559 | GX17: 53455037.81 | GY17: 34521166 | GZ17: 12169807 | HA17: 1699197.81 | HB17: 5064867 | HC17: 310501880.4 | HD17: 3649986 | HE17: 367836602.4 | HG17: 50 | HH17: 77 | HI17: 260 | HJ17: 437 | HK17: 149 | HL17: 53 | HM17: 88 | HN17: 1114
A18: 212 | B18: Wandsworth | C18: 47791399.15 | D18: 183997136 | E18: 39262379.06 | F18: 193854752.1 | G18: 41272056.36 | H18: 196566481.7 | I18: 41642667.19 | J18: 205801000 | L18: 131983730 | M18: 18978796 | N18: 0.1437964816 | O18: 615320 | P18: 0 | Q18: 132599050 | S18: 36456225 | T18: 15893616 | U18: 0 | V18: 0 | W18: 3116559 | X18: 5387486 | Y18: 75440 | Z18: 3541406 | AA18: 620523 | AB18: 0 | AC18: 0 | AD18: 7821195 | AF18: 0 | AG18: 0 | AH18: 205302645 | AI18: 63532 | AJ18: 697700 | AK18: 1107315 | AL18: 118510 | AM18: 2812658 | AN18: 704 | AO18: 702 | AP18: 7028333 | AQ18: 35478844.04 | AR18: 15524277.36 | AS18: 0 | AT18: 1671356.03 | AU18: 5453818 | AV18: 3413509.81 | AW18: 617317.84 | AX18: 0 | AY18: 0 | AZ18: 0 | BA18: 8798565 | BC18: 0 | BD18: 0 | BE18: 202338424 | BF18: 121437 | BG18: 680015 | BH18: 1030830 | BI18: 117616 | BJ18: 2853715 | BK18: 924 | BL18: 9107596 | BM18: 36416781.14 | BN18: 2670335 | BO18: 177414 | BP18: 617747 | BQ18: 5253176 | BR18: 0 | BS18: 27590953.14 | BT18: 0 | BU18: 0 | BV18: 107156 | BW18: 0 | BX18: 0 | BY18: 200069996.8 | BZ18: 785772 | CA18: 1012180 | CB18: 63760 | CC18: 117718 | CD18: 2908911 | CE18: 33641334 | CF18: 1038358 | CG18: 169938 | CH18: 591523 | CI18: 5068529 | CJ18: 0 | CK18: 26543173 | CL18: 0 | CM18: 0 | CN18: 229813 | CP18: 0 | CQ18: 0 | CR18: 215283089.5 | CS18: 823790.9672 | CT18: 799425.6866 | CU18: 131818.7061 | CV18: 97427.2666 | CW18: 57077.70993 | CX18: 2840339 | CY18: 44681.57832 | CZ18: 0 | DA18: 33240501 | DB18: 1010037 | DC18: 362164 | DD18: 647083 | DE18: 5064352 | DF18: 0 | DG18: 24784391 | DH18: 330316 | DI18: 25280 | DJ18: 47868 | DK18: 1809 | DL18: 464066 | DM18: 340119 | DN18: 0 | DO18: 0 | DP18: 163016 | DQ18: 0 | DR18: 0 | DS18: 0 | DT18: 212109507 | DU18: 762245.1029 | DV18: 591106.7318 | DW18: 213763.3041 | DX18: 97422.86089 | DY18: 54473.66252 | DZ18: 2721083 | EA18: 44681.69123 | EB18: 0 | EC18: 30944829 | ED18: 802377 | EE18: 1054423 | EF18: 291927 | EG18: 4058736 | EH18: 0 | EI18: 23655654 | EJ18: 312930 | EK18: 45150 | EL18: 42996 | EM18: 3544 | EN18: 336003 | EO18: 142008 | EP18: 0 | EQ18: 0 | ER18: 199081 | ES18: 0 | ET18: 0 | EU18: 200562363 | EV18: 771567 | EW18: 629192 | EX18: 214028 | EY18: 98215 | EZ18: 57892 | FA18: 2867293 | FB18: 47200 | FD18: 17298502.29 | FE18: 5052877.64 | FF18: 0 | FG18: 539606.14 | FH18: 1749949.4 | FI18: 1763859.41 | FJ18: 150815.23 | FK18: 0 | FL18: 0 | FM18: 0 | FN18: 8041394.47 | FP18: 0 | FQ18: 0 | FR18: 181198025.8 | FS18: 29336.41 | FT18: 0 | FU18: 1207533.4 | FV18: 116648.64 | FW18: 3244182.44 | FX18: 443509.82 | FY18: 0 | FZ18: 70151476.56 | GA18: 19814385 | GB18: 30339244.56 | GC18: 13417009 | GD18: 6580838 | GE18: 215643189.5 | GF18: 2610627 | GG18: 230720744.5 | GH18: 68039241.79 | GI18: 20608832 | GJ18: 28660659.79 | GK18: 12453379 | GL18: 6316371 | GM18: 229166306.2 | GN18: 2776623 | GO18: 245363520.2 | GP18: 53675993.25 | GQ18: 16705313 | GR18: 29093588 | GS18: 2172824.25 | GT18: 5704268 | GU18: 231614703.2 | GV18: 2242899.12 | GW18: 252360422.6 | GX18: 51190232.13 | GY18: 16204047 | GZ18: 27020619 | HA18: 2112530.751 | HB18: 5853035.38 | HC18: 220961255.5 | HD18: 2815422.87 | HE18: 245382474.7 | HG18: 105 | HH18: 65 | HI18: 60 | HJ18: 610 | HK18: 155 | HL18: 32 | HM18: 53 | HN18: 1080
A19: 213 | B19: Westminster | C19: 19572247.39 | D19: 123990670.4 | E19: 23321816.24 | F19: 127186517.9 | G19: 23986748.83 | H19: 126162269.6 | I19: 24108351.71 | J19: 146909000 | L19: 88032448 | M19: 7577365 | N19: 0.08607468237 | O19: 1954190 | P19: 491630 | Q19: 89986638 | S19: 17182590 | T19: 5321900 | U19: 0 | V19: 0 | W19: 4887005 | X19: 3374685 | Y19: 0 | Z19: 842900 | AA19: 466100 | AB19: 0 | AC19: 0 | AD19: 2290000 | AF19: 0 | AG19: 0 | AH19: 125820373 | AI19: 65000 | AJ19: 637477 | AK19: 388975 | AL19: 0 | AM19: 1968230 | AN19: 163 | AO19: 165 | AP19: 1641666 | AQ19: 18404111 | AR19: 7081064 | AS19: 0 | AT19: 3174823 | AU19: 4579747 | AV19: 1083121 | AW19: 165356 | AX19: 0 | AY19: 0 | AZ19: 0 | BA19: 2320000 | BC19: 0 | BD19: 0 | BE19: 128699796 | BF19: 65000 | BG19: 1028457 | BH19: 574940 | BI19: 42300 | BJ19: 3187930 | BK19: 245 | BL19: 2320000 | BM19: =SUM(BN19:BX19) -> 11293067.55 | BN19: 2279718.88 | BO19: 0 | BP19: 0 | BQ19: 4933049 | BR19: 0 | BS19: 4080299.67 | BT19: 0 | BU19: 0 | BV19: 0 | BW19: 0 | BX19: 0 | BY19: 114130045.2 | BZ19: 797400 | CA19: 1328830 | CB19: 0 | CC19: 42300 | CD19: 3505150 | CE19: 9444149 | CF19: 447900 | CG19: 0 | CH19: 0 | CI19: 4932049 | CJ19: 0 | CK19: 4064200 | CL19: 0 | CM19: 0 | CN19: 0 | CP19: 0 | CQ19: 0 | CR19: 127937575 | CS19: 933100 | CT19: 692680 | CU19: 0 | CV19: 42300 | CW19: 70700 | CX19: 3377000 | CY19: 0 | CZ19: 0 | DA19: 9495042.456 | DB19: 1173857.42 | DC19: 0 | DD19: 0 | DE19: 4781506 | DF19: 0 | DG19: 3234177.632 | DH19: 82664.68647 | DI19: 0 | DJ19: 10642 | DK19: 0 | DL19: 125404.0274 | DM19: 83780.69067 | DN19: 3010 | DO19: 0 | DP19: 0 | DQ19: 0 | DR19: 0 | DS19: 0 | DT19: 134860287.4 | DU19: 780300 | DV19: 898900 | DW19: 52300 | DX19: 42200 | DY19: 70700 | DZ19: 2421700 | EA19: 0 | EB19: 0 | EC19: 8526337.2 | ED19: 871800 | EE19: 0 | EF19: 0 | EG19: 4707400 | EH19: 0 | EI19: 2680400 | EJ19: 79331.2 | EK19: 0 | EL19: 10424 | EM19: 0 | EN19: 88474 | EO19: 69062 | EP19: 3010 | EQ19: 0 | ER19: 16436 | ES19: 0 | ET19: 0 | EU19: 125263803.6 | EV19: 731700 | EW19: 832700 | EX19: 60600 | EY19: 42300 | EZ19: 68700 | FA19: 3002800 | FB19: 0 | FD19: 21480153.72 | FE19: 9019814.15 | FF19: 0 | FG19: 2988151.54 | FH19: 6137791.41 | FI19: 313800 | FJ19: 530.38 | FK19: 176930 | FL19: 0 | FM19: 0 | FN19: 2843136.24 | FP19: 0 | FQ19: 0 | FR19: 92691543.81 | FS19: 0 | FT19: 516972.52 | FU19: 0 | FV19: 88049.48 | FW19: 3534957.8 | FX19: 0 | FY19: 0 | FZ19: 26078452.61 | GA19: 10540572.85 | GB19: 4527798.05 | GC19: 5037278.34 | GD19: 5972803.37 | GE19: 108804941.5 | GF19: 3429933.78 | GG19: 119285135.5 | GH19: 27617939.43 | GI19: 12343044.81 | GJ19: 4372723.62 | GK19: 4916129 | GL19: 5986042 | GM19: 127551530.7 | GN19: 3571613 | GO19: 142448295.7 | GP19: 23859747 | GQ19: 13141257 | GR19: 4177418 | GS19: 923077 | GT19: 5617995 | GU19: 135904065 | GV19: 3565003 | GW19: 153816896 | GX19: 22860549.88 | GY19: 13172448 | GZ19: 3406534 | HA19: 837259 | HB19: 5444308.88 | HC19: 136084996 | HD19: 4054512.83 | HE19: 151526303.6 | HG19: 0 | HH19: 78 | HI19: 65 | HJ19: 197 | HK19: 59 | HL19: 36 | HM19: 3 | HN19: 438
A20: 301 | B20: Barking and Dagenham | C20: 20805032.46 | D20: 196105741.2 | E20: 22732980.35 | F20: 216912510.6 | G20: 23901798 | H20: 223917075.5 | I20: 24000615.7 | J20: 228815000 | L20: 176905063 | M20: 12248447 | N20: 0.06923740221 | O20: 54827 | P20: 0 | Q20: 176959890 | S20: 22692803 | T20: 10568209 | U20: 0 | V20: 0 | W20: 51800 | X20: 6627275 | Y20: 0 | Z20: 0 | AA20: 2577200 | AB20: 0 | AC20: 200000 | AD20: 2668319 | AF20: 0 | AG20: 0 | AH20: 243374643 | AI20: 0 | AJ20: 693500 | AK20: 712000 | AL20: 27600 | AM20: 1746700 | AN20: 283 | AO20: 283 | AP20: 2841724 | AQ20: 20952212 | AR20: 9374066 | AS20: 0 | AT20: 51800 | AU20: 5640767 | AV20: 0 | AW20: 2014600 | AX20: 0 | AY20: 0 | AZ20: 200000 | BA20: 3670979 | BC20: 0 | BD20: 0 | BE20: 233239584 | BF20: 0 | BG20: 675700 | BH20: 965400 | BI20: 28000 | BJ20: 2285000 | BK20: 440.7 | BL20: 4158565 | BM20: 14367353.99 | BN20: 1260800 | BO20: 0 | BP20: 1450900 | BQ20: 4824700.01 | BR20: 200000 | BS20: 6599553.89 | BT20: 0 | BU20: 11164.88 | BV20: 8635.21 | BW20: 11600 | BX20: 0 | BY20: 220437026 | BZ20: 737900 | CA20: 906400 | CB20: 0 | CC20: 73300 | CD20: 2096000 | CE20: 12064149 | CF20: 1237620 | CG20: 0 | CH20: 630100 | CI20: 3559700 | CJ20: 200000 | CK20: 6436729 | CL20: 0 | CM20: 0 | CN20: 0 | CP20: 0 | CQ20: 0 | CR20: 197045333.1 | CS20: 978145 | CT20: 672708 | CU20: 466560 | CV20: 123300 | CW20: 0 | CX20: 1163200 | CY20: 218100 | CZ20: 69155 | DA20: 11563435 | DB20: 1060622 | DC20: 834368 | DD20: 568693 | DE20: 2824680 | DF20: 0 | DG20: 6143263 | DH20: 56600 | DI20: 0 | DJ20: 8978 | DK20: 0 | DL20: 41233 | DM20: 0 | DN20: 0 | DO20: 9080 | DP20: 15918 | DQ20: 0 | DR20: 0 | DS20: 0 | DT20: 193323621 | DU20: 813178 | DV20: 768552 | DW20: 416220 | DX20: 53989 | DY20: 0 | DZ20: 1504581 | EA20: 293100 | EB20: 156320 | EC20: 10280027.67 | ED20: 1082064 | EE20: 859250 | EF20: 488158 | EG20: 2426679 | EH20: 0 | EI20: 5289464.81 | EJ20: 55491 | EK20: 0 | EL20: 11634 | EM20: 0 | EN20: 40345.86 | EO20: 6730 | EP20: 0 | EQ20: 7108 | ER20: 13103 | ES20: 0 | ET20: 0 | EU20: 176412977.9 | EV20: 829748 | EW20: 502438 | EX20: 0 | EY20: 59835 | EZ20: 0 | FA20: 3698172 | FB20: 0 | FD20: 18673810 | FE20: 7532436 | FF20: 0 | FG20: 12650 | FH20: 5681422 | FI20: 0 | FJ20: 2137316 | FK20: 0 | FL20: 0 | FM20: 200000 | FN20: 3109986 | FP20: 0 | FQ20: 0 | FR20: 224491193 | FS20: 0 | FT20: 606746 | FU20: 622341 | FV20: 7572 | FW20: 2152289 | FX20: 79284 | FY20: 0 | FZ20: 20709336.39 | GA20: 9327129.5 | GB20: 7061093.89 | GC20: 0 | GD20: 4321113 | GE20: 234129904.5 | GF20: 2673058 | GG20: 255491870.5 | GH20: 17940348.96 | GI20: 6728336.06 | GJ20: 6329882.9 | GK20: 399316 | GL20: 4482814 | GM20: 222072026.1 | GN20: 3184328 | GO20: 243163228.1 | GP20: 18714851.02 | GQ20: 6074019 | GR20: 6024734 | GS20: 1994857.73 | GT20: 4621240.29 | GU20: 209773551.6 | GV20: 1868796.16 | GW20: 248254490.2 | GX20: 10899938 | GY20: 0 | GZ20: 5504106 | HA20: 1708960 | HB20: 3686872 | HC20: 191706830.5 | HD20: 1872228 | HE20: 221821540.5 | HG20: 0 | HH20: 317 | HI20: 156 | HJ20: 246 | HK20: 52 | HL20: 82 | HM20: 46 | HN20: 899
A21: 302 | B21: Barnet | C21: 36076258 | D21: 257781768.4 | E21: 39038520.57 | F21: 270735421.1 | G21: 41300318.1 | H21: 277989503.1 | I21: 41671178.09 | J21: 293825000 | L21: 209779119 | M21: 16680983 | N21: 0.07951688938 | O21: 368595 | P21: 0 | Q21: 210147714 | S21: 42706435.91 | T21: 17296449.36 | U21: 0 | V21: 0 | W21: 6236398.88 | X21: 11138864 | Y21: 0 | Z21: 3073893 | AA21: 0 | AB21: 0 | AC21: 400000 | AD21: 4560830.67 | AF21: 0 | AG21: 0 | AH21: 287322838.3 | AI21: 48654 | AJ21: 513155 | AK21: 459913 | AL21: 172760 | AM21: 4310828 | AN21: 429 | AO21: 436 | AP21: 4330833 | AQ21: 38783245 | AR21: 16028192 | AS21: 0 | AT21: 4524151 | AU21: 10451857 | AV21: 3147545 | AW21: 44000 | AX21: 0 | AY21: 0 | AZ21: 400000 | BA21: 4187500 | BC21: 0 | BD21: 0 | BE21: 276864853 | BF21: 200160 | BG21: 750977 | BH21: 1024163 | BI21: 184403 | BJ21: 4392630 | BK21: 520 | BL21: 5425000 | BM21: 23964842.97 | BN21: 6219777 | BO21: 494035 | BP21: 489700 | BQ21: 7756458 | BR21: 400000 | BS21: 8504122.97 | BT21: 0 | BU21: 0 | BV21: 100750 | BW21: 0 | BX21: 0 | BY21: 219787921.1 | BZ21: 894782.13 | CA21: 1392184.44 | CB21: 200160 | CC21: 149635.17 | CD21: 5424999.15 | CE21: 21543498.15 | CF21: 4452782.56 | CG21: 494035 | CH21: 489700 | CI21: 7806458 | CJ21: 400000 | CK21: 7852322.59 | CL21: 0 | CM21: 0 | CN21: 48200 | CP21: 0 | CQ21: 0 | CR21: 243648841 | CS21: 1214041 | CT21: 1292649 | CU21: 200160 | CV21: 119630 | CW21: 0 | CX21: 5417840 | CY21: 41450 | CZ21: 0 | DA21: 19009702.17 | DB21: 711110 | DC21: 2558470 | DD21: 294700 | DE21: 7511963 | DF21: 400000 | DG21: 6923768 | DH21: 168200.7604 | DI21: 0 | DJ21: 22874 | DK21: 0 | DL21: 274167.6686 | DM21: 96248.73988 | DN21: 0 | DO21: 0 | DP21: 48200 | DQ21: 0 | DR21: 0 | DS21: 0 | DT21: 270713318.7 | DU21: 904090 | DV21: 1368926 | DW21: 200160 | DX21: 110466 | DY21: 0 | DZ21: 5969329 | EA21: 41150 | EB21: 100000 | EC21: 18240813.64 | ED21: 548760 | EE21: 2879461 | EF21: 300750 | EG21: 6825739 | EH21: 400000 | EI21: 6731225.01 | EJ21: 165951.12 | EK21: 0 | EL21: 20420 | EM21: 0 | EN21: 272955.51 | EO21: 68832 | EP21: 0 | EQ21: 0 | ER21: 26720 | ES21: 0 | ET21: 0 | EU21: 256917351.3 | EV21: 851954 | EW21: 1372460 | EX21: 197862 | EY21: 95810 | EZ21: 0 | FA21: 6000551 | FB21: 41150 | FD21: 38319171 | FE21: 15706697 | FF21: 0 | FG21: 4610611 | FH21: 10166314 | FI21: 3295705 | FJ21: 0 | FK21: 0 | FL21: 0 | FM21: 400000 | FN21: 4139844 | FP21: 0 | FQ21: 0 | FR21: 206455974 | FS21: 0 | FT21: 751317.35 | FU21: 1225857.64 | FV21: 196389.03 | FW21: 4502716 | FX21: 482088 | FY21: 0 | FZ21: 45159627.24 | GA21: 25824947.34 | GB21: 10120744.9 | GC21: 1319235 | GD21: 7894700 | GE21: 234494234.9 | GF21: 5042142 | GG21: 253711645.9 | GH21: 41627765.04 | GI21: 23396863.53 | GJ21: 9058859.51 | GK21: 2058878 | GL21: 7113164 | GM21: 253746103 | GN21: 5699624 | GO21: 275302111 | GP21: 43472207.83 | GQ21: 27260590 | GR21: 6780673 | GS21: 1829205.46 | GT21: 7601739.37 | GU21: 286269119.7 | GV21: 5163663.28 | GW21: 313025772.7 | GX21: 43158521.01 | GY21: 26552748 | GZ21: 8573885 | HA21: 1037452.97 | HB21: 6994435.04 | HC21: 282877392.6 | HD21: 5429243.33 | HE21: 316460239.3 | HG21: 0 | HH21: 223 | HI21: 142 | HJ21: 375 | HK21: 148 | HL21: 46 | HM21: 111 | HN21: 1045
A22: 303 | B22: Bexley | C22: 22873165.78 | D22: 191373342.7 | E22: 26564432.34 | F22: 196642970 | G22: 27124028.95 | H22: 201697690 | I22: 27548062.84 | J22: 209678000 | L22: 159904225 | M22: 15950320 | N22: 0.09974920925 | O22: 1 | P22: 0 | Q22: 159904226 | S22: 25634000 | T22: 7310000 | U22: 0 | V22: 0 | W22: 1358000 | X22: 9590000 | Y22: 0 | Z22: 2359000 | AA22: 200000 | AB22: 0 | AC22: 0 | AD22: 4817000 | AF22: 0 | AG22: 0 | AH22: 201695000 | AI22: 81000 | AJ22: 816000 | AK22: 155000 | AL22: 62000 | AM22: 1616000 | AN22: 470 | AO22: 490 | AP22: 4816667 | AQ22: 25527000 | AR22: 6042000 | AS22: 0 | AT22: 528000 | AU22: 6445000 | AV22: 6279000 | AW22: 200000 | AX22: 0 | AY22: 0 | AZ22: 0 | BA22: 6033000 | BC22: 0 | BD22: 0 | BE22: 114728000 | BF22: 89000 | BG22: 752000 | BH22: 71000 | BI22: 61000 | BJ22: 2115000 | BK22: 517 | BL22: 10990000 | BM22: 17947007.98 | BN22: 2310000 | BO22: 906000 | BP22: 200000 | BQ22: 5832000 | BR22: 0 | BS22: 8599007.98 | BT22: 0 | BU22: 0 | BV22: 100000 | BW22: 0 | BX22: 0 | BY22: 120961784 | BZ22: 650000 | CA22: 953000 | CB22: 86000 | CC22: 44000 | CD22: 2162000 | CE22: 17984690 | CF22: 2713000 | CG22: 842000 | CH22: 57000 | CI22: 5907000 | CJ22: 0 | CK22: 8370690 | CL22: 0 | CM22: 0 | CN22: 95000 | CP22: 0 | CQ22: 0 | CR22: 162891407 | CS22: 653000 | CT22: 192000 | CU22: 94000 | CV22: 60000 | CW22: 27000 | CX22: 2325000 | CY22: 60000 | CZ22: 0 | DA22: 17964781 | DB22: 3239000 | DC22: 834339 | DD22: 57000 | DE22: 5678000 | DF22: 0 | DG22: 7484968 | DH22: 213198 | DI22: 0 | DJ22: 32647 | DK22: 0 | DL22: 273357 | DM22: 69272 | DN22: 0 | DO22: 0 | DP22: 83000 | DQ22: 0 | DR22: 0 | DS22: 0 | DT22: 201330046 | DU22: 745000 | DV22: 237000 | DW22: 56000 | DX22: 67000 | DY22: 37000 | DZ22: 2567000 | EA22: 17000 | EB22: 0 | EC22: 18272510.95 | ED22: 2868000 | EE22: 2115000 | EF22: 57000 | EG22: 5364000 | EH22: 0 | EI22: 7202421.91 | EJ22: 203691.51 | EK22: 0 | EL22: 32092 | EM22: 0 | EN22: 265411.55 | EO22: 81893.98 | EP22: 0 | EQ22: 0 | ER22: 83000 | ES22: 0 | ET22: 0 | EU22: 190712355.5 | EV22: 871000 | EW22: 237000 | EX22: 56000 | EY22: 27000 | EZ22: 37000 | FA22: 2551000 | FB22: 17000 | FD22: 25919000 | FE22: 5443000 | FF22: 0 | FG22: 528000 | FH22: 7774000 | FI22: 5696000 | FJ22: 200000 | FK22: 0 | FL22: 0 | FM22: 0 | FN22: 6278000 | FP22: 0 | FQ22: 0 | FR22: 103900000 | FS22: 46000 | FT22: 986000 | FU22: 328000 | FV22: 72000 | FW22: 2199000 | FX22: 0 | FY22: 0 | FZ22: 28861205.82 | GA22: 10165742.72 | GB22: 9533463.1 | GC22: 3661000 | GD22: 5501000 | GE22: 114881857.4 | GF22: 2385000 | GG22: 145886764.4 | GH22: 28223876.51 | GI22: 10224196.35 | GJ22: 9099680.16 | GK22: 3300000 | GL22: 5600000 | GM22: 172962409.5 | GN22: 2229000 | GO22: 188226241.5 | GP22: 30261673 | GQ22: 12197156 | GR22: 8903517 | GS22: 3336000 | GT22: 5825000 | GU22: 200658702 | GV22: 2355000 | GW22: 227615702 | GX22: 28001145 | GY22: 11288153 | GZ22: 8655992 | HA22: 2682000 | HB22: 5375000 | HC22: 204126638.2 | HD22: 2465000 | HE22: 228446638.2 | HG22: 16 | HH22: 194 | HI22: 127 | HJ22: 455 | HK22: 138 | HL22: 21 | HM22: 24 | HN22: 975
A23: 304 | B23: Brent | C23: 52105843.56 | D23: 254702854.4 | E23: 53700348.68 | F23: 264973167.2 | G23: 55543781.17 | H23: 272648012.7 | I23: 55831064.42 | J23: 296135000 | L23: 188668316 | M23: 28536333 | N23: 0.1512513262 | O23: 2141753 | P23: 616000 | Q23: 190810069 | S23: 44465384 | T23: 24150609 | U23: 0 | V23: 0 | W23: 4110671 | X23: 8546512 | Y23: 70000 | Z23: 1047072 | AA23: 225250 | AB23: 0 | AC23: 511075 | AD23: 5781667 | AF23: 22528 | AG23: 0 | AH23: 275021819.5 | AI23: 634205 | AJ23: 194711 | AK23: 426360 | AL23: 61775 | AM23: 2357500 | AN23: 542 | AO23: 604 | AP23: 5781666 | AQ23: 42624402 | AR23: 21280645 | AS23: 0 | AT23: 2034832 | AU23: 7913956 | AV23: 1003219 | AW23: 3403472 | AX23: 0 | AY23: 0 | AZ23: 522377 | BA23: 6446477 | BC23: 19424 | BD23: 0 | BE23: 284045625.2 | BF23: 629710 | BG23: 203884 | BH23: 447818 | BI23: 64872 | BJ23: 2557500 | BK23: 654.65 | BL23: 6446477 | BM23: 31117992.59 | BN23: 6181344 | BO23: 0 | BP23: 1116168 | BQ23: 9319628 | BR23: 500376 | BS23: 12749870.65 | BT23: 0 | BU23: 2406 | BV23: 8199.94 | BW23: 0 | BX23: 1240000 | BY23: 254121785.9 | BZ23: 458146 | CA23: 532626 | CB23: 60000 | CC23: 64482 | CD23: 2807500 | CE23: 18389014 | CF23: 1028651 | CG23: 0 | CH23: 384836 | CI23: 4546512 | CJ23: 0 | CK23: 12421904 | CL23: 0 | CM23: 0 | CN23: 7111 | CP23: 0 | CQ23: 0 | CR23: 243626547 | CS23: 722947 | CT23: 1758290.4 | CU23: 442511.4 | CV23: 69351 | CW23: 0 | CX23: 9150313 | CY23: 0 | CZ23: 0 | DA23: 22913720.12 | DB23: 2363406 | DC23: 2506000 | DD23: 794848 | DE23: 5146000 | DF23: 262000 | DG23: 11246063 | DH23: 203408 | DI23: 0 | DJ23: 27877 | DK23: 0 | DL23: 219479 | DM23: 128349.12 | DN23: 0 | DO23: 0 | DP23: 16290 | DQ23: 0 | DR23: 0 | DS23: 0 | DT23: 250078440.9 | DU23: 947884 | DV23: 1282122 | DW23: 346119 | DX23: 67868 | DY23: 0 | DZ23: 3638440 | EA23: 0 | EB23: 0 | EC23: 20291282 | ED23: 2380000 | EE23: 1183000 | EF23: 778500 | EG23: 4453000 | EH23: 256000 | EI23: 10708617 | EJ23: 203208 | EK23: 0 | EL23: 27412 | EM23: 0 | EN23: 176200 | EO23: 114950 | EP23: 0 | EQ23: 0 | ER23: 10395 | ES23: 0 | ET23: 0 | EU23: 248721746 | EV23: 873522 | EW23: 977317 | EX23: 339000 | EY23: 67868 | EZ23: 393000 | FA23: 3377064 | FB23: 0 | FD23: 48244883.83 | FE23: 28837141.17 | FF23: 0 | FG23: 5428623.89 | FH23: 6891702.33 | FI23: 992031.33 | FJ23: 392592.61 | FK23: 0 | FL23: 0 | FM23: 510751.87 | FN23: 5179999.49 | FP23: 12041.14 | FQ23: 0 | FR23: 214845638.3 | FS23: 1154900.47 | FT23: 423533.65 | FU23: 702992.14 | FV23: 380019.12 | FW23: 3044063.54 | FX23: 370409 | FY23: 0 | FZ23: 33399473.16 | GA23: 9941475.7 | GB23: 13180110.72 | GC23: 134569.07 | GD23: 10143317.67 | GE23: 245623265.1 | GF23: 3769258.92 | GG23: 258889830.4 | GH23: 49640157.15 | GI23: 25116155.91 | GJ23: 12289654.32 | GK23: 75921 | GL23: 12158425.92 | GM23: 277999197.6 | GN23: 3755793 | GO23: 294028894.8 | GP23: 45782677.36 | GQ23: 22545316 | GR23: 12554066 | GS23: 1232139.59 | GT23: 9451155.77 | GU23: 283049408.4 | GV23: 2079302.96 | GW23: 312206356.4 | GX23: 40559342.41 | GY23: 21911551 | GZ23: 11993657 | HA23: 282190.7438 | HB23: 6371943.67 | HC23: 277402681 | HD23: 3500248.21 | HE23: 307790107.7 | HG23: 69 | HH23: 35 | HI23: 102 | HJ23: 541 | HK23: 211 | HL23: 69 | HM23: 77 | HN23: 1104
A24: 305 | B24: Bromley | C24: 44094982.86 | D24: 220808833.5 | E24: 46449312.16 | F24: 229483832.6 | G24: 47776654.62 | H24: 232800115.5 | I24: 48365120.39 | J24: 251733000 | L24: 169325076 | M24: 19269889 | N24: 0.1138041066 | O24: 4350 | P24: 0 | Q24: 169329426 | S24: 35266804 | T24: 10373091 | U24: 0 | V24: 0 | W24: 2427100 | X24: 12915990 | Y24: 0 | Z24: 4351060 | AA24: 392020 | AB24: 0 | AC24: 330000 | AD24: 4477543 | AF24: 0 | AG24: 0 | AH24: 231346726 | AI24: 0 | AJ24: 515787 | AK24: 886561 | AL24: 175132 | AM24: 3830021 | AN24: 534 | AO24: 529 | AP24: 5310833 | AQ24: 42240466 | AR24: 3341971 | AS24: 0 | AT24: 2216360 | AU24: 13009635 | AV24: 4397260 | AW24: 1160670 | AX24: 0 | AY24: 0 | AZ24: 330000 | BA24: 16984570 | BC24: 800000 | BD24: 0 | BE24: 230231776 | BF24: 0 | BG24: 608926 | BH24: 810484 | BI24: 134115 | BJ24: 3754785 | BK24: 650 | BL24: 6248000 | BM24: 34124854.86 | BN24: 5318085 | BO24: 3660759 | BP24: 1124023 | BQ24: 11645800 | BR24: 320000 | BS24: 10134096.86 | BT24: 0 | BU24: 0 | BV24: 552091 | BW24: 800000 | BX24: 570000 | BY24: 140106521.3 | BZ24: 982565 | CA24: 1210396 | CB24: 30700 | CC24: 116905 | CD24: 3829599 | CE24: 24272472.31 | CF24: 122010 | CG24: 3324790 | CH24: 863898 | CI24: 11961836 | CJ24: 90000 | CK24: 7339678.31 | CL24: 0 | CM24: 0 | CN24: 0 | CP24: 0 | CQ24: 570260 | CR24: 111260392.4 | CS24: 960842 | CT24: 1011058 | CU24: 30700 | CV24: 111642 | CW24: 205068 | CX24: 3429202 | CY24: 109888 | CZ24: 0 | DA24: 23992089.74 | DB24: 74011 | DC24: 4112332 | DD24: 881453 | DE24: 8694800 | DF24: 237980 | DG24: 8644331.002 | DH24: 174651.7396 | DI24: 0 | DJ24: 26266 | DK24: 0 | DL24: 485489 | DM24: 3206 | DN24: 0 | DO24: 0 | DP24: 0 | DQ24: 0 | DR24: 87310 | DS24: 570260 | DT24: 248965606.9 | DU24: 958777 | DV24: 861152 | DW24: 30700 | DX24: 90694 | DY24: 176594 | DZ24: 3508168 | EA24: 106597 | EB24: 0 | EC24: 22697863 | ED24: 72920 | EE24: 3992526 | EF24: 387145 | EG24: 8628778 | EH24: 0 | EI24: 8409657 | EJ24: 172362 | EK24: 0 | EL24: 24644 | EM24: 0 | EN24: 358532 | EO24: 11319 | EP24: 0 | EQ24: 0 | ER24: 0 | ES24: 78140 | ET24: 561840 | EU24: 236595305 | EV24: 956392 | EW24: 834537 | EX24: 30000 | EY24: 91484 | EZ24: 143018 | FA24: 3555427 | FB24: 105461 | FD24: 39136582.77 | FE24: 4463585.15 | FF24: 0 | FG24: 3308759.02 | FH24: 10976997.67 | FI24: 4420751.7 | FJ24: 872906.89 | FK24: 0 | FL24: 0 | FM24: 186723.73 | FN24: 11226858.61 | FP24: 3680000 | FQ24: 0 | FR24: 120557014.9 | FS24: 0 | FT24: 642807.04 | FU24: 769211.3 | FV24: 115445 | FW24: 3624442.42 | FX24: 56197.38 | FY24: 17466.75 | FZ24: 34244904.04 | GA24: 10031092.78 | GB24: 10964484.68 | GC24: 3131311.26 | GD24: 10118015.32 | GE24: 135269503.4 | GF24: 3005056.44 | GG24: 149499148.3 | GH24: 36377526.32 | GI24: 11544817.4 | GJ24: 10649485.89 | GK24: 3338845.88 | GL24: 10844377.15 | GM24: 161802210.2 | GN24: 3485233.41 | GO24: 179326623.3 | GP24: 42424351 | GQ24: 17813427 | GR24: 10567100 | GS24: 3559759 | GT24: 10484065 | GU24: 268415898 | GV24: 3646742 | GW24: 286474903 | GX24: 39534571 | GY24: 16856542 | GZ24: 10014351 | HA24: 3963972 | HB24: 8699706 | HC24: 262324866.3 | HD24: 3883352 | HE24: 286308370.3 | HG24: 263 | HH24: 85 | HI24: 186 | HJ24: 465 | HK24: 183 | HL24: 40 | HM24: 71 | HN24: 1293
A25: 306 | B25: Croydon | C25: 42137581.37 | D25: 266469630 | E25: 48903962.27 | F25: 279579517.8 | G25: 51407095.8 | H25: 284464529.1 | I25: 51909239.39 | J25: 309203000 | L25: 203286887 | M25: 24702878 | N25: 0.1215173215 | O25: 140324 | P25: 149000 | Q25: 203427210 | S25: 46723499 | T25: 23318832 | U25: 0 | V25: 0 | W25: 3978500 | X25: 7147000 | Y25: 149000 | Z25: 3652000 | AA25: 549000 | AB25: 0 | AC25: 250000 | AD25: 7679167 | AF25: 0 | AG25: 0 | AH25: 288173300 | AI25: 54800 | AJ25: 1422500 | AK25: 1260500 | AL25: 81000 | AM25: 9506000 | AN25: 758 | AO25: 865 | AP25: 7679167 | AQ25: 47576100 | AR25: 18976767 | AS25: 0 | AT25: 71800 | AU25: 12223500 | AV25: 4358200 | AW25: 506000 | AX25: 0 | AY25: 0 | AZ25: 106000 | BA25: 9333833 | BC25: 0 | BD25: 2000000 | BE25: 295449800 | BF25: 0 | BG25: 883300 | BH25: 79600 | BI25: 79900 | BJ25: 6545300 | BK25: 979 | BL25: 9333833 | BM25: 31673844.31 | BN25: 2140213 | BO25: 3809040 | BP25: 469428 | BQ25: 9303285 | BR25: 104477 | BS25: 14847401.31 | BT25: 0 | BU25: 0 | BV25: 0 | BW25: 0 | BX25: 1000000 | BY25: 246118939.3 | BZ25: 862104 | CA25: 420537 | CB25: 409990 | CC25: 116771 | CD25: 7060920 | CE25: 24626363.79 | CF25: 2089384.61 | CG25: 1863608 | CH25: 988782.39 | CI25: 8674969 | CJ25: 143602 | CK25: 10809517.8 | CL25: 0 | CM25: 0 | CN25: 56499.99 | CP25: 0 | CQ25: 0 | CR25: 250379431.7 | CS25: 965249 | CT25: 570083.4 | CU25: 369359 | CV25: 104816 | CW25: 0 | CX25: 7870341 | CY25: 0 | CZ25: 0 | DA25: 26778852 | DB25: 3969096 | DC25: 0 | DD25: 0 | DE25: 9733914 | DF25: 0 | DG25: 12088111 | DH25: 265576 | DI25: 0 | DJ25: 36272 | DK25: 0 | DL25: 294438 | DM25: 104703 | DN25: 0 | DO25: 0 | DP25: 200000 | DQ25: 0 | DR25: 11742 | DS25: 75000 | DT25: 253378207 | DU25: 965528 | DV25: 752346 | DW25: 731404 | DX25: 104518 | DY25: 0 | DZ25: 9495743 | EA25: 0 | EB25: 0 | EC25: 23418842.39 | ED25: 3280695.4 | EE25: 0 | EF25: 0 | EG25: 8607146.58 | EH25: 0 | EI25: 10677431.29 | EJ25: 247993.27 | EK25: 0 | EL25: 35068 | EM25: 0 | EN25: 227716.49 | EO25: 50454 | EP25: 0 | EQ25: 0 | ER25: 200000 | ES25: 17337.36 | ET25: 75000 | EU25: 243556382.7 | EV25: 955080.55 | EW25: 804027.29 | EX25: 839543.6427 | EY25: 114651.8 | EZ25: 0 | FA25: 5834419.87 | FB25: 0 | FD25: 47639214 | FE25: 6244118 | FF25: 0 | FG25: 71800 | FH25: 14020350 | FI25: 4715363 | FJ25: 463346 | FK25: 0 | FL25: 0 | FM25: 222755 | FN25: 19901482 | FP25: 0 | FQ25: 2000000 | FR25: 204047185 | FS25: 122675 | FT25: 805710 | FU25: 275778 | FV25: 75519 | FW25: 7061339 | FX25: 0 | FY25: 0 | FZ25: 56379195.52 | GA25: 25723818.75 | GB25: 14862766.77 | GC25: 4384456 | GD25: 11408154 | GE25: 241961038.3 | GF25: 7091376 | GG25: 268743400.3 | GH25: 34632383.27 | GI25: 5091602.63 | GJ25: 13370180.64 | GK25: 5429425 | GL25: 10741175 | GM25: 262034455.8 | GN25: 7365733 | GO25: 292069716.9 | GP25: 40083346 | GQ25: 14359697 | GR25: 12620149 | GS25: 4518228 | GT25: 8585272 | GU25: 275341632 | GV25: 8399582 | GW25: 318016106 | GX25: 39299903.9 | GY25: 13968834 | GZ25: 11432720 | HA25: 5352373.473 | HB25: 8545976.43 | HC25: 277946267.2 | HD25: 7321248.405 | HE25: 325135969.9 | HG25: 252 | HH25: 0 | HI25: 501 | HJ25: 791 | HK25: 153 | HL25: 68 | HM25: 98 | HN25: 1863
A26: 307 | B26: Ealing | C26: 41077591.12 | D26: 269185809.1 | E26: 42417550.35 | F26: 282585602.4 | G26: 43346449.44 | H26: 288237025.5 | I26: 43957146.6 | J26: 296599000 | L26: 206450341 | M26: 22701427 | N26: 0.1099607145 | O26: 7 | P26: 3322847 | Q26: 206450348 | S26: 38309122 | T26: 20859943 | U26: 0 | V26: 0 | W26: 2092618 | X26: 7364628 | Y26: 0 | Z26: 912723 | AA26: 482991 | AB26: 0 | AC26: 163311 | AD26: 6397500 | AF26: 35408 | AG26: 0 | AH26: 300285804 | AI26: 0 | AJ26: 540263 | AK26: 347919 | AL26: 116581 | AM26: 4215056 | AN26: 631 | AO26: 646 | AP26: 6400000 | AQ26: 39761181 | AR26: 21491752 | AS26: 0 | AT26: 2169055 | AU26: 7843322 | AV26: 922389 | AW26: 536962 | AX26: 0 | AY26: 0 | AZ26: 157363 | BA26: 6608795 | BC26: 31543 | BD26: 0 | BE26: 294884325 | BF26: 0 | BG26: 528830 | BH26: 340556 | BI26: 114114 | BJ26: 4114315 | BK26: 689 | BL26: 6608795 | BM26: 30976554.37 | BN26: 6202086 | BO26: 1243954.56 | BP26: 809988 | BQ26: 6727329 | BR26: 0 | BS26: 15422705.77 | BT26: 0 | BU26: 0 | BV26: 548146.04 | BW26: 22345 | BX26: 0 | BY26: 269891409.1 | BZ26: 544621 | CA26: 412189 | CB26: 0 | CC26: 193675 | CD26: 4272807 | CE26: 26230180 | CF26: 3898138 | CG26: 727018 | CH26: 366738 | CI26: 5766327 | CJ26: 0 | CK26: 15413439 | CL26: 0 | CM26: 0 | CN26: 28837 | CP26: 29683 | CQ26: 0 | CR26: 285379093 | CS26: 970756 | CT26: 421602 | CU26: 0 | CV26: 211568 | CW26: 0 | CX26: 4466819 | CY26: 0 | CZ26: 0 | DA26: 22888398 | DB26: 3199722 | DC26: 695803 | DD26: 0 | DE26: 4880259 | DF26: 0 | DG26: 13205384 | DH26: 258670 | DI26: 0 | DJ26: 31926 | DK26: 0 | DL26: 166492 | DM26: 410929 | DN26: 0 | DO26: 0 | DP26: 10129 | DQ26: 0 | DR26: 29084 | DS26: 0 | DT26: 270048456 | DU26: 982002 | DV26: 471749 | DW26: 0 | DX26: 251456 | DY26: 0 | DZ26: 4661032 | EA26: 0 | EB26: 0 | EC26: 21997894.19 | ED26: 2555260 | EE26: 889309.35 | EF26: 0 | EG26: 4960620.85 | EH26: 0 | EI26: 12726387 | EJ26: 253768.99 | EK26: 0 | EL26: 31376 | EM26: 0 | EN26: 160172 | EO26: 398960 | EP26: 0 | EQ26: 0 | ER26: 1543 | ES26: 20497 | ET26: 0 | EU26: 249520642 | EV26: 986761.88 | EW26: 471761.12 | EX26: 0 | EY26: 251461.2 | EZ26: 0 | FA26: 4615732.48 | FB26: 0 | FD26: 42006270 | FE26: 22760083 | FF26: 0 | FG26: 2483783 | FH26: 7688154 | FI26: 1718233 | FJ26: 516852 | FK26: 0 | FL26: 0 | FM26: 157363 | FN26: 6666056 | FP26: 15746 | FQ26: 0 | FR26: 275994304 | FS26: 0 | FT26: 547194 | FU26: 479648 | FV26: 113446 | FW26: 4673048 | FX26: 0 | FY26: 0 | FZ26: 38491433.86 | GA26: 14588570.02 | GB26: 16706186.84 | GC26: 1544243 | GD26: 5652434 | GE26: 289982214.7 | GF26: 5243844 | GG26: 305284767.7 | GH26: 38196415.09 | GI26: 14958531.01 | GJ26: 15828440.08 | GK26: 1147936 | GL26: 6261508 | GM26: 286236342.1 | GN26: 5181109 | GO26: 304866006.1 | GP26: 39874802.63 | GQ26: 17948847 | GR26: 15061592 | GS26: 1128968.89 | GT26: 5735394.74 | GU26: 298714946.5 | GV26: 5282223.73 | GW26: 317896954.9 | GX26: 36792809.94 | GY26: 15931935 | GZ26: 14262364 | HA26: 1207044.146 | HB26: 5391466.793 | HC26: 281300060.8 | HD26: 5004033 | HE26: 307090436.8 | HG26: 54 | HH26: 54 | HI26: 113 | HJ26: 590 | HK26: 117 | HL26: 25 | HM26: 41 | HN26: 994
A27: 308 | B27: Enfield | C27: 28101858.17 | D27: 277837083.8 | E27: 29582420.32 | F27: 290628770.5 | G27: 31023101.51 | H27: 294253655.3 | I27: 31453889.21 | J27: 299481000 | L27: 233103844 | M27: 20191360 | N27: 0.0866195926 | O27: 595992 | P27: 0 | Q27: 233699836 | S27: 31991912 | T27: 15019226 | U27: 0 | V27: 0 | W27: 551415 | X27: 4551046 | Y27: 0 | Z27: 2460944 | AA27: 3297814 | AB27: 0 | AC27: 0 | AD27: 5769167 | AF27: 0 | AG27: 342300 | AH27: 310586144 | AI27: 0 | AJ27: 2309813 | AK27: 680674 | AL27: 212400 | AM27: 3323412 | AN27: 574 | AO27: 579 | AP27: 5769167 | AQ27: 31272733 | AR27: 13741064 | AS27: 0 | AT27: 701394 | AU27: 4110168 | AV27: 2935050 | AW27: 3259897 | AX27: 0 | AY27: 0 | AZ27: 0 | BA27: 6525160 | BC27: 0 | BD27: 0 | BE27: 307612447 | BF27: 0 | BG27: 2416527 | BH27: 627216 | BI27: 211820 | BJ27: 3366018 | BK27: 658 | BL27: 6832660 | BM27: 21894848.08 | BN27: 2197491.44 | BO27: 1455854.18 | BP27: 1591088.95 | BQ27: 3659449 | BR27: 55640 | BS27: 12558087.08 | BT27: 0 | BU27: 0 | BV27: 7980 | BW27: 26957.43 | BX27: 342300 | BY27: 271602778.3 | BZ27: 2515186.37 | CA27: 662146.82 | CB27: 0 | CC27: 211880 | CD27: 3268936.7 | CE27: 19855835 | CF27: 1271946 | CG27: 1226534 | CH27: 1147200 | CI27: 3246090 | CJ27: 55640 | CK27: 12375466 | CL27: 0 | CM27: 0 | CN27: 144583 | CP27: 95126 | CQ27: 293250 | CR27: 266779132.8 | CS27: 2390438 | CT27: 314626 | CU27: 0 | CV27: 210310 | CW27: 85896 | CX27: 3606978 | CY27: 95820 | CZ27: 0 | DA27: 18642858.7 | DB27: 1676635 | DC27: 238800 | DD27: 1419780 | DE27: 3091600 | DF27: 55640 | DG27: 10920371 | DH27: 238430.7 | DI27: 0 | DJ27: 31926 | DK27: 0 | DL27: 336327 | DM27: 193200 | DN27: 0 | DO27: 0 | DP27: 138284 | DQ27: 0 | DR27: 25435 | DS27: 276430 | DT27: 275261218.3 | DU27: 2133916 | DV27: 316480 | DW27: 0 | DX27: 210700 | DY27: 85896 | DZ27: 3854077 | EA27: 175400 | EB27: 0 | EC27: 17653805.9 | ED27: 1173133 | EE27: 673020 | EF27: 1149560 | EG27: 2973710 | EH27: 54930 | EI27: 10581605 | EJ27: 242023.9 | EK27: 0 | EL27: 31272 | EM27: 0 | EN27: 330854 | EO27: 103672 | EP27: 0 | EQ27: 0 | ER27: 2160 | ES27: 25296 | ET27: 312570 | EU27: 272077349 | EV27: 2516862 | EW27: 404367 | EX27: 0 | EY27: 208010 | EZ27: 85896 | FA27: 3902967 | FB27: 140850 | FD27: 31225907 | FE27: 13646500 | FF27: 0 | FG27: 471609 | FH27: 3685361 | FI27: 3421257 | FJ27: 3147420 | FK27: 0 | FL27: 0 | FM27: 0 | FN27: 6525160 | FP27: 0 | FQ27: 328600 | FR27: 271744461 | FS27: 0 | FT27: 2639220 | FU27: 800576 | FV27: 237310 | FW27: 3539442 | FX27: 16596 | FY27: 149365 | FZ27: 47463070.28 | GA27: 29517469.19 | GB27: 13533379.09 | GC27: 885615 | GD27: 3526607 | GE27: 296798483.8 | GF27: 3409494 | GG27: 319486679.8 | GH27: 40466558.88 | GI27: 23222515.64 | GJ27: 12756740.24 | GK27: 939986 | GL27: 3547317 | GM27: 280200226.4 | GN27: 3699747 | GO27: 304983039.4 | GP27: 40527539 | GQ27: 23524169 | GR27: 12265015 | GS27: 1049100 | GT27: 3689255 | GU27: 293777215 | GV27: 3860335 | GW27: 320412055 | GX27: 40395174 | GY27: 24571184 | GZ27: 11735652 | HA27: 921289 | HB27: 3167049 | HC27: 298290585.8 | HD27: 3934670 | HE27: 331092109.8 | HG27: 32 | HH27: 106 | HI27: 100 | HJ27: 481 | HK27: 118 | HL27: 60 | HM27: 49 | HN27: 946
A28: 309 | B28: Haringey | C28: 30195846.2 | D28: 211000635.4 | E28: 29920087.46 | F28: 227009032 | G28: 31131008.34 | H28: 229387373.1 | I28: 31376000.01 | J28: 236477000 | L28: 172022994 | M28: 11712781 | N28: 0.06808846148 | O28: 3911908 | P28: 500000 | Q28: 175934902 | S28: 29559400 | T28: 13571855 | U28: 0 | V28: 0 | W28: 2511145 | X28: 5395500 | Y28: 500000 | Z28: 3190900 | AA28: 0 | AB28: 0 | AC28: 500000 | AD28: 3890000 | AF28: 0 | AG28: 0 | AH28: 234254923 | AI28: 0 | AJ28: 863300 | AK28: 358727 | AL28: 0 | AM28: 2555600 | AN28: 384 | AO28: 389 | AP28: 3890000 | AQ28: 29052362 | AR28: 13344169 | AS28: 0 | AT28: 613932 | AU28: 5844500 | AV28: 3854070 | AW28: 248000 | AX28: 13591 | AY28: 0 | AZ28: 500000 | BA28: 4603500 | BC28: 30600 | BD28: 0 | BE28: 231387822 | BF28: 0 | BG28: 951015 | BH28: 244732 | BI28: 0 | BJ28: 2829498 | BK28: 479.8 | BL28: 4603500 | BM28: 20114901.95 | BN28: 1661136.88 | BO28: 2099700 | BP28: 248000 | BQ28: 5259500 | BR28: 500000 | BS28: 10302374.36 | BT28: 0 | BU28: 13590.71 | BV28: 0 | BW28: 30600 | BX28: 0 | BY28: 222483881.4 | BZ28: 965300 | CA28: 239900 | CB28: 0 | CC28: 0 | CD28: 2862700 | CE28: 19401073.8 | CF28: 2924780 | CG28: 654581 | CH28: 190440 | CI28: 5420584 | CJ28: 500000 | CK28: 9676492.72 | CL28: 0 | CM28: 12871 | CN28: 21325.07892 | CP28: 0 | CQ28: 0 | CR28: 232075053.9 | CS28: 1071373.776 | CT28: 322032 | CU28: 18750 | CV28: 232277 | CW28: 0 | CX28: 2374135 | CY28: 225907.5 | CZ28: 209482.5 | DA28: 18528038.43 | DB28: 2218962.037 | DC28: 233207.9402 | DD28: 361964.0675 | DE28: 6384890.659 | DF28: 0 | DG28: 8644205.116 | DH28: 168267.179 | DI28: 15240 | DJ28: 21920 | DK28: 1809 | DL28: 169404.1774 | DM28: 178894.753 | DN28: 0 | DO28: 13135.01152 | DP28: 11138.48976 | DQ28: 0 | DR28: 0 | DS28: 105000 | DT28: 236354264.4 | DU28: 871444.8789 | DV28: 658052.6024 | DW28: 0 | DX28: 1199520.525 | DY28: 0 | DZ28: 1621814.097 | EA28: 178375 | EB28: 178375 | EC28: 17856242.91 | ED28: 2576659.64 | EE28: 293807.91 | EF28: 669310.64 | EG28: 5296156.82 | EH28: 118637.21 | EI28: 8259657.3 | EJ28: 167371.93 | EK28: 0 | EL28: 21472 | EM28: 0 | EN28: 168008.4 | EO28: 118130.3 | EP28: 0 | EQ28: 13114.96 | ER28: 48501.65 | ES28: 0 | ET28: 105414.15 | EU28: 213083881.2 | EV28: 942363.85 | EW28: 502405.74 | EX28: 0 | EY28: 1722216.42 | EZ28: 0 | FA28: 3422179.82 | FB28: 29700 | FD28: 31818629 | FE28: 13734991 | FF28: 0 | FG28: 3083852 | FH28: 6241212 | FI28: 3331393 | FJ28: 294048 | FK28: 0 | FL28: 0 | FM28: 500000 | FN28: 4623133 | FP28: 10000 | FQ28: 0 | FR28: 195630861 | FS28: 0 | FT28: 786966 | FU28: 274500 | FV28: 0 | FW28: 2159428 | FX28: 408039 | FY28: 82138 | FZ28: 47520232.56 | GA28: 28973268.73 | GB28: 11455976.83 | GC28: 1077909 | GD28: 6013078 | GE28: 230260570.4 | GF28: 2959851 | GG28: 246787857.4 | GH28: 53319020.87 | GI28: 35241829.51 | GJ28: 10479328.36 | GK28: 1655283 | GL28: 5942580 | GM28: 243056676.4 | GN28: 0 | GO28: 257631717.4 | GP28: 41948468.86 | GQ28: 23422018 | GR28: 10160357 | GS28: 1217604.82 | GT28: 7148489.04 | GU28: 246325288.1 | GV28: 3415271.65 | GW28: 276841648.3 | GX28: 35589801.27 | GY28: 19431044 | GZ28: 9555075 | HA28: 319881.603 | HB28: 6283800.669 | HC28: 233005219.3 | HD28: 2934512 | HE28: 268446381.5 | HG28: 54 | HH28: 0 | HI28: 113 | HJ28: 397 | HK28: 104 | HL28: 26 | HM28: 64 | HN28: 758
A29: 310 | B29: Harrow | C29: 23170879.95 | D29: 173359101.3 | E29: 24842275.75 | F29: 179062031 | G29: 25928482.67 | H29: 183673380.5 | I29: 26145491.55 | J29: 187225000 | L29: 140555140 | M29: 4316246 | N29: 0.03070856036 | O29: 10117 | P29: 0 | Q29: 140565256 | S29: 26467106 | T29: 7792296 | U29: 2356743 | V29: 0 | W29: 2743649 | X29: 4535312 | Y29: 0 | Z29: 60000 | AA29: 0 | AB29: 0 | AC29: 187330 | AD29: 8791776 | AF29: 0 | AG29: 0 | AH29: 185243299 | AI29: 0 | AJ29: 1113947 | AK29: 1172463 | AL29: 80567 | AM29: 3665519 | AN29: 327 | AO29: 342 | AP29: 3357500 | AQ29: 26374193 | AR29: 8977855 | AS29: 0 | AT29: 1048480 | AU29: 4403265 | AV29: 60000 | AW29: 0 | AX29: 0 | AY29: 1871033 | AZ29: 187330 | BA29: 9826230 | BC29: 0 | BD29: 0 | BE29: 180607277 | BF29: 0 | BG29: 654420 | BH29: 2074418 | BI29: 77480 | BJ29: 3343090 | BK29: 556 | BL29: 11402283 | BM29: 17370988 | BN29: 2608265 | BO29: 221795 | BP29: 0 | BQ29: 5647840.43 | BR29: 187330 | BS29: 8705757.57 | BT29: 0 | BU29: 0 | BV29: 0 | BW29: 0 | BX29: 0 | BY29: 131913936 | BZ29: 716570 | CA29: 1680935 | CB29: 0 | CC29: 77481 | CD29: 3934244 | CE29: 16157680 | CF29: 268895 | CG29: 752175 | CH29: 0 | CI29: 6560812 | CJ29: 187330 | CK29: 8374196 | CL29: 0 | CM29: 0 | CN29: 14272 | CP29: 0 | CQ29: 0 | CR29: 171917414 | CS29: 1634339 | CT29: 685186 | CU29: 0 | CV29: 86381 | CW29: 408075 | CX29: 4249909 | CY29: 0 | CZ29: 0 | DA29: 14333807 | DB29: 935346 | DC29: 883826 | DD29: 136489 | DE29: 4360360 | DF29: 189203 | DG29: 7239889 | DH29: 163487 | DI29: 0 | DJ29: 22397 | DK29: 0 | DL29: 250218 | DM29: 76161 | DN29: 0 | DO29: 0 | DP29: 76431 | DQ29: 0 | DR29: 0 | DS29: 0 | DT29: 162238371 | DU29: 1236036 | DV29: 399357 | DW29: 0 | DX29: 317120 | DY29: 228540 | DZ29: 3880674 | EA29: 0 | EB29: 0 | EC29: 15035847.31 | ED29: 1070938 | EE29: 1172583 | EF29: 273976 | EG29: 5318914 | EH29: 189635 | EI29: 6387655 | EJ29: 166500.31 | EK29: 0 | EL29: 21654 | EM29: 0 | EN29: 221802 | EO29: 179364 | EP29: 0 | EQ29: 0 | ER29: 32826 | ES29: 0 | ET29: 0 | EU29: 156578111 | EV29: 1129776 | EW29: 379147 | EX29: 559490 | EY29: 531336 | EZ29: 105575 | FA29: 6256960 | FB29: 0 | FD29: 18112681 | FE29: 6863410 | FF29: 0 | FG29: 1154706 | FH29: 6460758 | FI29: 60000 | FJ29: 0 | FK29: 0 | FL29: 2266041 | FM29: 187330 | FN29: 1120436 | FP29: 0 | FQ29: 0 | FR29: 131875238 | FS29: 0 | FT29: 908174 | FU29: 2185103 | FV29: 78637 | FW29: 3116600 | FX29: 380490 | FY29: 190245 | FZ29: 26706089.77 | GA29: 10089026 | GB29: 8909320.96 | GC29: 3748720.38 | GD29: 3959022.43 | GE29: 134515540.1 | GF29: 3529502.74 | GG29: 151687384.5 | GH29: 27403455.27 | GI29: 12180637 | GJ29: 8558941.27 | GK29: 2482383 | GL29: 4181494 | GM29: 155211721.9 | GN29: 3675944 | GO29: 174853648.9 | GP29: 28178902.3 | GQ29: 15461464 | GR29: 8301652 | GS29: 1672742.71 | GT29: 2743043.59 | GU29: 181637472.6 | GV29: 4095913.48 | GW29: 203871225 | GX29: 28273647 | GY29: 14478848 | GZ29: 7502996 | HA29: 1466775 | HB29: 4825028 | HC29: 174246190.3 | HD29: 4454147 | HE29: 200596515.3 | HG29: 0 | HH29: 84 | HI29: 172 | HJ29: 391 | HK29: 68 | HL29: 80 | HM29: 58 | HN29: 853
A30: 311 | B30: Havering | C30: 17547364 | D30: 184861211.9 | E30: 18037535.63 | F30: 189594577.9 | G30: 18874748.25 | H30: 193934555.3 | I30: 19161137.83 | J30: 193897000 | L30: 159223299 | M30: 7929970 | N30: 0.04980408049 | O30: 7898 | P30: 79887 | Q30: 159231197 | S30: 16477154 | T30: 7703941 | U30: 0 | V30: 0 | W30: 1656208 | X30: 2610445 | Y30: 0 | Z30: 1645750 | AA30: 70810 | AB30: 0 | AC30: 0 | AD30: 2790000 | AF30: 0 | AG30: 0 | AH30: 194332848 | AI30: 0 | AJ30: 835108 | AK30: 421670 | AL30: 91564 | AM30: 1373750 | AN30: 279 | AO30: 279 | AP30: 2790000 | AQ30: 17150367 | AR30: 7808132 | AS30: 0 | AT30: 1590601 | AU30: 2367679 | AV30: 1538850 | AW30: 68750 | AX30: 3881 | AY30: 0 | AZ30: 0 | BA30: 3772474 | BC30: 0 | BD30: 0 | BE30: 189614291 | BF30: 0 | BG30: 1071368 | BH30: 399950 | BI30: 101244 | BJ30: 1364470 | BK30: 399.33 | BL30: 3752692 | BM30: 9742325.29 | BN30: 1072530 | BO30: 1388620 | BP30: 114758 | BQ30: 1879410 | BR30: 0 | BS30: 5253435.32 | BT30: 0 | BU30: 3881 | BV30: 29690.97 | BW30: 0 | BX30: 0 | BY30: 142355662.4 | BZ30: 1064430 | CA30: 373880 | CB30: 0 | CC30: 65580 | CD30: 1280470 | CE30: 9152385 | CF30: 1044052 | CG30: 1026200 | CH30: 139545 | CI30: 1679413 | CJ30: 0 | CK30: 5253035 | CL30: 0 | CM30: 0 | CN30: 10140 | CP30: 0 | CQ30: 0 | CR30: 176091991 | CS30: 914890 | CT30: 376660 | CU30: 0 | CV30: 77270 | CW30: 125303 | CX30: 1608790 | CY30: 72465 | CZ30: 72465 | DA30: 8655370.91 | DB30: 819752 | DC30: 976080 | DD30: 140615 | DE30: 1483153 | DF30: 0 | DG30: 4894975 | DH30: 116883 | DI30: 0 | DJ30: 15963 | DK30: 0 | DL30: 157619 | DM30: 35070 | DN30: 0 | DO30: 0 | DP30: 15260.9096 | DQ30: 0 | DR30: 0 | DS30: 0 | DT30: 194216771.7 | DU30: 917820 | DV30: 340470 | DW30: 0 | DX30: 108180 | DY30: 121366 | DZ30: 1824760 | EA30: 104330 | EB30: 104330 | EC30: 7946096 | ED30: 551592 | EE30: 879150 | EF30: 120504 | EG30: 1469414 | EH30: 0 | EI30: 4593404 | EJ30: 121152 | EK30: 0 | EL30: 15636 | EM30: 0 | EN30: 156550 | EO30: 20296 | EP30: 0 | EQ30: 0 | ER30: 18398 | ES30: 0 | ET30: 0 | EU30: 183422569 | EV30: 982720 | EW30: 353110 | EX30: 0 | EY30: 126490 | EZ30: 0 | FA30: 1834980 | FB30: 177199 | FD30: 17382842 | FE30: 7313302 | FF30: 0 | FG30: 1987111 | FH30: 2515711 | FI30: 1662740 | FJ30: 76672 | FK30: 0 | FL30: 0 | FM30: 0 | FN30: 3827306 | FP30: 0 | FQ30: 0 | FR30: 124869289 | FS30: 0 | FT30: 932256 | FU30: 463630 | FV30: 0 | FW30: 1793833 | FX30: 72525 | FY30: 67055 | FZ30: 22092302.07 | GA30: 13821643 | GB30: 5649851.07 | GC30: 2620808 | GD30: 0 | GE30: 137362916.9 | GF30: 1855920 | GG30: 152433518.9 | GH30: 20566258.42 | GI30: 12242935 | GJ30: 5507684.01 | GK30: 580113.48 | GL30: 2235525.93 | GM30: 156195357.5 | GN30: 2062982.92 | GO30: 172364352.6 | GP30: 23092733.66 | GQ30: 15292947 | GR30: 5438951 | GS30: 397830.72 | GT30: 1963004.94 | GU30: 201105897.5 | GV30: 1803538.64 | GW30: 235715207.8 | GX30: 20310835.1 | GY30: 12711744 | GZ30: 5143108 | HA30: 461964.1171 | HB30: 1994018.98 | HC30: 192834389.6 | HD30: 1639335.01 | HE30: 219764802.4 | HG30: 36 | HH30: 59 | HI30: 142 | HJ30: 279 | HK30: 39 | HL30: 56 | HM30: 134 | HN30: 745
A31: 312 | B31: Hillingdon | C31: 29086744.28 | D31: 220302133.4 | E31: 29876729.62 | F31: 231847516 | G31: 31490703.63 | H31: 238891619.9 | I31: 32152580.47 | J31: 252371000 | L31: 181922892 | M31: 8981562 | N31: 0.04937015843 | O31: 1685634 | P31: 350000 | Q31: 183608526 | S31: 29008833 | T31: 7091800 | U31: 0 | V31: 0 | W31: 5841500 | X31: 8670400 | Y31: 518800 | Z31: 937900 | AA31: 487600 | AB31: 0 | AC31: 0 | AD31: 5460833 | AF31: 0 | AG31: 0 | AH31: 241707847.5 | AI31: 0 | AJ31: 569900 | AK31: 412400 | AL31: 237900 | AM31: 6096400 | AN31: 371 | AO31: 395 | AP31: 3840000 | AQ31: 29422600 | AR31: 6489400 | AS31: 0 | AT31: 5642100 | AU31: 8162800 | AV31: 1093300 | AW31: 695000 | AX31: 0 | AY31: 0 | AZ31: 0 | BA31: 7340000 | BC31: 0 | BD31: 0 | BE31: 240915200 | BF31: 0 | BG31: 520800 | BH31: 555900 | BI31: 238000 | BJ31: 4949700 | BK31: 441 | BL31: 4310000 | BM31: 25715253.51 | BN31: 6272000 | BO31: 947000 | BP31: 606000 | BQ31: 6321000 | BR31: 0 | BS31: 11569253.51 | BT31: 0 | BU31: 0 | BV31: 0 | BW31: 0 | BX31: 0 | BY31: 166664795.3 | BZ31: 738600 | CA31: 572100 | CB31: 0 | CC31: 330000 | CD31: 4800100 | CE31: 20773880 | CF31: 628500 | CG31: 1072400 | CH31: 254000 | CI31: 6696400 | CJ31: 0 | CK31: 12122580 | CL31: 0 | CM31: 0 | CN31: 0 | CP31: 0 | CQ31: 0 | CR31: 241557400 | CS31: 890705.2 | CT31: 487566 | CU31: 214900 | CV31: 396469.5 | CW31: 0 | CX31: 3436892 | CY31: 672000 | CZ31: 448000 | DA31: 19598699 | DB31: 0 | DC31: 2648601 | DD31: 249400 | DE31: 5215800 | DF31: 0 | DG31: 10899423 | DH31: 268364 | DI31: 0 | DJ31: 33887 | DK31: 0 | DL31: 222703 | DM31: 48279 | DN31: 0 | DO31: 0 | DP31: 12242 | DQ31: 0 | DR31: 0 | DS31: 0 | DT31: 231183529 | DU31: 719500 | DV31: 752300 | DW31: 0 | DX31: 484700 | DY31: 0 | DZ31: 4474900 | EA31: 0 | EB31: 0 | EC31: 18631683.98 | ED31: 836494.59 | EE31: 964073.1 | EF31: 0 | EG31: 6531963.92 | EH31: 0 | EI31: 9717547.37 | EJ31: 252707 | EK31: 0 | EL31: 31792 | EM31: 0 | EN31: 251535 | EO31: 40346 | EP31: 0 | EQ31: 0 | ER31: 0 | ES31: 5225 | ET31: 0 | EU31: 218551198.8 | EV31: 777870 | EW31: 642340 | EX31: 0 | EY31: 161640 | EZ31: 0 | FA31: 4046530 | FB31: 0 | FD31: 26897590.62 | FE31: 7114306.12 | FF31: 0 | FG31: 7170489.44 | FH31: 6837110.21 | FI31: 826982.85 | FJ31: 633702 | FK31: 0 | FL31: 0 | FM31: 0 | FN31: 4315000 | FP31: 0 | FQ31: 0 | FR31: 151989040.7 | FS31: 198676 | FT31: 503241.24 | FU31: 405294.01 | FV31: 152367.43 | FW31: 4226612 | FX31: 1543632 | FY31: 720362 | FZ31: 25538052.04 | GA31: 10020851.43 | GB31: 8205463 | GC31: 0 | GD31: 7311737.61 | GE31: 171675134.7 | GF31: 5803711.32 | GG31: 201187956.9 | GH31: 32175542.58 | GI31: 12368977.08 | GJ31: 12482385.68 | GK31: 46931 | GL31: 7277248.82 | GM31: 203226737.2 | GN31: 5130031.18 | GO31: 232294919.7 | GP31: 33315145.61 | GQ31: 13841947 | GR31: 11944953 | GS31: 48616.75 | GT31: 7479628.86 | GU31: 241268626.4 | GV31: 3928923.55 | GW31: 278600401.3 | GX31: 31942899 | GY31: 12761324 | GZ31: 11798868 | HA31: 10649 | HB31: 7372058 | HC31: 237755988.4 | HD31: 4533596 | HE31: 281115468.4 | HG31: 0 | HH31: 114 | HI31: 50 | HJ31: 525 | HK31: 148 | HL31: 8 | HM31: 50 | HN31: 895
A32: 313 | B32: Hounslow | C32: 29077337.88 | D32: 206620316.5 | E32: 32107544.22 | F32: 216799126.6 | G32: 33240838.8 | H32: 220445809.9 | I32: 33550418.46 | J32: 222643000 | L32: 164969101 | M32: 22244294 | N32: 0.1348391539 | O32: 48964 | P32: 0 | Q32: 165018065 | S32: 30198224 | T32: 14087013 | U32: 0 | V32: 0 | W32: 2185683 | X32: 6462635 | Y32: 0 | Z32: 2533263 | AA32: 447130 | AB32: 0 | AC32: 0 | AD32: 4482500 | AF32: 0 | AG32: 0 | AH32: 222797532 | AI32: 45000 | AJ32: 567791 | AK32: 388500 | AL32: 58349 | AM32: 3448273 | AN32: 473 | AO32: 482 | AP32: 4782500 | AQ32: 30859277 | AR32: 14256599 | AS32: 0 | AT32: 1825623 | AU32: 6266505 | AV32: 2441733 | AW32: 444817 | AX32: 0 | AY32: 0 | AZ32: 0 | BA32: 5624000 | BC32: 0 | BD32: 0 | BE32: 223101476 | BF32: 80800 | BG32: 606402 | BH32: 385030 | BI32: 58706 | BJ32: 5669088 | BK32: 579 | BL32: 12237159 | BM32: 20362062.76 | BN32: 2664301.83 | BO32: 1760409.99 | BP32: 687510.6 | BQ32: 6317051.3 | BR32: 0 | BS32: 8890145.04 | BT32: 0 | BU32: 1144 | BV32: 41500 | BW32: 0 | BX32: 0 | BY32: 183198176.7 | BZ32: 567908 | CA32: 390385 | CB32: 80800 | CC32: 56668.06 | CD32: 3600418 | CE32: 15649674.07 | CF32: 865305 | CG32: 2153708 | CH32: 562920 | CI32: 5066600 | CJ32: 0 | CK32: 6871841.861 | CL32: 0 | CM32: 0 | CN32: 129299.2121 | CP32: 0 | CQ32: 0 | CR32: 133380451.8 | CS32: 569284.8507 | CT32: 407296.6815 | CU32: 0 | CV32: 33165.94775 | CW32: 4370.05909 | CX32: 3365377.617 | CY32: 177521.4046 | CZ32: 0 | DA32: 16144562.57 | DB32: 396641 | DC32: 2774793 | DD32: 235597 | DE32: 4237739 | DF32: 0 | DG32: 7844772.14 | DH32: 167492.567 | DI32: 0 | DJ32: 23881 | DK32: 0 | DL32: 309949.8624 | DM32: 41739 | DN32: 0 | DO32: 1144 | DP32: 108611 | DQ32: 0 | DR32: 2203 | DS32: 0 | DT32: 217952578.6 | DU32: 784129 | DV32: 540183 | DW32: 62800 | DX32: 84583 | DY32: 52929 | DZ32: 3165854 | EA32: 163426 | EB32: 0 | EC32: 14680522.31 | ED32: 232701 | EE32: 1829771 | EF32: 253146 | EG32: 4179797 | EH32: 0 | EI32: 7553645.31 | EJ32: 172697 | EK32: 0 | EL32: 23604 | EM32: 0 | EN32: 309491 | EO32: 9703 | EP32: 0 | EQ32: 1129 | ER32: 112654 | ES32: 2184 | ET32: 0 | EU32: 199786584.3 | EV32: 734197 | EW32: 507717 | EX32: 83200 | EY32: 81451 | EZ32: 64587 | FA32: 3236829 | FB32: 172587 | FD32: 32923011 | FE32: 14624876 | FF32: 0 | FG32: 3032420 | FH32: 6682369 | FI32: 2216320 | FJ32: 433439 | FK32: 0 | FL32: 0 | FM32: 0 | FN32: 5933587 | FP32: 0 | FQ32: 0 | FR32: 153591551 | FS32: 40050 | FT32: 765672 | FU32: 381190 | FV32: 48719 | FW32: 4031639 | FX32: 358368 | FY32: 89592 | FZ32: 32560671.92 | GA32: 11974435.17 | GB32: 10101045.75 | GC32: 3509451 | GD32: 6975740 | GE32: 182121223.5 | GF32: 3932109 | GG32: 196232400.5 | GH32: 33256049.85 | GI32: 14510464.68 | GJ32: 9396900.17 | GK32: 2839368 | GL32: 6509317 | GM32: 209402910.3 | GN32: 3633990 | GO32: 225757688.3 | GP32: 31947430.45 | GQ32: 15648157 | GR32: 8886891 | GS32: 2497520.86 | GT32: 4914861.59 | GU32: 224838902.7 | GV32: 3595848.59 | GW32: 253927009.2 | GX32: 28899745 | GY32: 13463266 | GZ32: 8463666 | HA32: 2601830 | HB32: 4370983 | HC32: 225317078.2 | HD32: 3313863 | HE32: 257156044.2 | HG32: 284 | HH32: 4 | HI32: 83 | HJ32: 485 | HK32: 84 | HL32: 36 | HM32: 45 | HN32: 1021
A33: 314 | B33: Kingston upon Thames | C33: 17253204.24 | D33: 109941211.6 | E33: 17728659.91 | F33: 115382269.1 | G33: 18371323.02 | H33: 118272927.9 | I33: 18603905.12 | J33: 118373000 | L33: 88676417 | M33: 4532487 | N33: 0.05111265377 | O33: 1147721 | P33: 294000 | Q33: 89824139 | S33: 16457632 | T33: 5961507 | U33: 0 | V33: 0 | W33: 808310 | X33: 6631215 | Y33: 0 | Z33: 220600 | AA33: 0 | AB33: 0 | AC33: 0 | AD33: 2695000 | AF33: 0 | AG33: 141000 | AH33: 118543709 | AI33: 243996 | AJ33: 642640 | AK33: 394967 | AL33: 29257 | AM33: 2427228 | AN33: 269.5 | AO33: 269.5 | AP33: 2695000 | AQ33: 15744479 | AR33: 5730210 | AS33: 0 | AT33: 845967 | AU33: 6111702 | AV33: 220600 | AW33: 0 | AX33: 0 | AY33: 0 | AZ33: 0 | BA33: 2695000 | BC33: 0 | BD33: 141000 | BE33: 115315099 | BF33: 219398 | BG33: 504630 | BH33: 354845 | BI33: 26285 | BJ33: 2242040 | BK33: 313.5 | BL33: 3047000 | BM33: 14294995.58 | BN33: 1909000 | BO33: 412496 | BP33: 6127 | BQ33: 5693000 | BR33: 0 | BS33: 6129442.58 | BT33: 0 | BU33: 0 | BV33: 3930 | BW33: 0 | BX33: 141000 | BY33: 84176719.03 | BZ33: 537574 | CA33: 349263 | CB33: 279253 | CC33: 38953 | CD33: 2191212.8 | CE33: 12423229 | CF33: 813700 | CG33: 403858 | CH33: 6107 | CI33: 5135800 | CJ33: 0 | CK33: 5878217 | CL33: 0 | CM33: 0 | CN33: 13433 | CP33: 27314 | CQ33: 144800 | CR33: 121223893 | CS33: 587740 | CT33: 318805 | CU33: 288377 | CV33: 38551 | CW33: 56106 | CX33: 2287007 | CY33: 7052.2 | CZ33: 2859 | DA33: 11929347 | DB33: 866100 | DC33: 457630 | DD33: 29453 | DE33: 4916400 | DF33: 0 | DG33: 5273338.005 | DH33: 120768 | DI33: 0 | DJ33: 16387 | DK33: 0 | DL33: 85203 | DM33: 1642 | DN33: 0 | DO33: 0 | DP33: 13826 | DQ33: 0 | DR33: 0 | DS33: 148600 | DT33: 121959139.4 | DU33: 606214 | DV33: 346870 | DW33: 296306 | DX33: 38106 | DY33: 57602 | DZ33: 2312898 | EA33: 13221 | EB33: 5666 | EC33: 10344215.37 | ED33: 824900 | EE33: 454260 | EF33: 31707 | EG33: 3710200 | EH33: 0 | EI33: 4945534.37 | EJ33: 114575 | EK33: 0 | EL33: 15636 | EM33: 0 | EN33: 80071 | EO33: 1508 | EP33: 0 | EQ33: 0 | ER33: 13624 | ES33: 0 | ET33: 152200 | EU33: 113348292.8 | EV33: 744028 | EW33: 375446 | EX33: 274877 | EY33: 31905 | EZ33: 60989 | FA33: 2138440 | FB33: 11802 | FD33: 16010198 | FE33: 5499897 | FF33: 0 | FG33: 873902 | FH33: 6223223 | FI33: 220600 | FJ33: 0 | FK33: 0 | FL33: 0 | FM33: 0 | FN33: 3047000 | FP33: 0 | FQ33: 145576 | FR33: 76229371 | FS33: 203455 | FT33: 637187 | FU33: 343330 | FV33: 25432 | FW33: 2106861 | FX33: 41803 | FY33: 179227 | FZ33: 18530529.87 | GA33: 6423041.05 | GB33: 6396533.82 | GC33: 353011 | GD33: 5357944 | GE33: 83669143.48 | GF33: 2264040 | GG33: 95699647.48 | GH33: 19059564.86 | GI33: 7680016.81 | GJ33: 6080893.05 | GK33: 486923 | GL33: 4811732 | GM33: 112099345.4 | GN33: 2246731 | GO33: 125622105.4 | GP33: 19959984 | GQ33: 8968447 | GR33: 5743878 | GS33: 397128 | GT33: 4850531 | GU33: 127717783 | GV33: 2275403 | GW33: 143545370 | GX33: 18797838 | GY33: 8547153 | GZ33: 5719224 | HA33: 381019 | HB33: 4150442 | HC33: 121657422.4 | HD33: 2180520 | HE33: 140235628.4 | HG33: 65 | HH33: 78 | HI33: 20 | HJ33: 273.5 | HK33: 51 | HL33: 23 | HM33: 43 | HN33: 553.5
A34: 315 | B34: Merton | C34: 24151319.3 | D34: 128432119.3 | E34: 26759084.88 | F34: 135538774.9 | G34: 27607449.84 | H34: 138391051.9 | I34: 27895585.57 | J34: 154301000 | L34: 94993049 | M34: 8188178 | N34: 0.08619765431 | O34: 1348047 | P34: 272340 | Q34: 96341097 | S34: 24832719 | T34: 8985150 | U34: 0 | V34: 0 | W34: 1563867 | X34: 7885800 | Y34: 272340 | Z34: 1079871 | AA34: 1368451 | AB34: 0 | AC34: 0 | AD34: 3470000 | AF34: 0 | AG34: 207240 | AH34: 142776192 | AI34: 0 | AJ34: 609190 | AK34: 929965 | AL34: 62820 | AM34: 2815500 | AN34: 347 | AO34: 347 | AP34: 3470000 | AQ34: 23580360.31 | AR34: 10012410.31 | AS34: 0 | AT34: 445310 | AU34: 7060680 | AV34: 1259550 | AW34: 1185170 | AX34: 0 | AY34: 0 | AZ34: 0 | BA34: 3410000 | BC34: 0 | BD34: 207240 | BE34: 139710050.1 | BF34: 0 | BG34: 597190 | BH34: 898405 | BI34: 65270 | BJ34: 2911810 | BK34: 435 | BL34: 8278538 | BM34: 17804964.3 | BN34: 1974545 | BO34: 0 | BP34: 1839280 | BQ34: 7540680 | BR34: 0 | BS34: 6240344.3 | BT34: 689 | BU34: 2186 | BV34: 0 | BW34: 0 | BX34: 207240 | BY34: 138505434.7 | BZ34: 535730 | CA34: 823287 | CB34: 0 | CC34: 63660 | CD34: 2881850 | CE34: 16607892 | CF34: 671150 | CG34: 0 | CH34: 3054071 | CI34: 7027860 | CJ34: 0 | CK34: 5816159 | CL34: 0 | CM34: 0 | CN34: 38652 | CP34: 0 | CQ34: 0 | CR34: 121884734 | CS34: 319410 | CT34: 542322 | CU34: 0 | CV34: 65150 | CW34: 327144 | CX34: 2584260 | CY34: 156470 | CZ34: 0 | DA34: 14277860 | DB34: 470381 | DC34: 0 | DD34: 1551780 | DE34: 7013898 | DF34: 0 | DG34: 4914775 | DH34: 113845 | DI34: 0 | DJ34: 17818 | DK34: 0 | DL34: 130395 | DM34: 30945 | DN34: 0 | DO34: 0 | DP34: 34023 | DQ34: 0 | DR34: 0 | DS34: 0 | DT34: 123483856.8 | DU34: 319960 | DV34: 560817 | DW34: 0 | DX34: 94090 | DY34: 288925 | DZ34: 2473880 | EA34: 105000 | EB34: 0 | EC34: 13065872 | ED34: 468320 | EE34: 245780 | EF34: 1312831 | EG34: 6237690 | EH34: 0 | EI34: 4530529 | EJ34: 123236 | EK34: 0 | EL34: 17404 | EM34: 0 | EN34: 72047 | EO34: 31027 | EP34: 0 | EQ34: 0 | ER34: 27008 | ES34: 0 | ET34: 0 | EU34: 114060609 | EV34: 299010 | EW34: 555034 | EX34: 146370 | EY34: 84800 | EZ34: 233905 | FA34: 2365791 | FB34: 56840 | FD34: 24551567 | FE34: 9790393 | FF34: 0 | FG34: 1980600 | FH34: 5965057 | FI34: 1233384 | FJ34: 1125669 | FK34: 0 | FL34: 0 | FM34: 0 | FN34: 4249224 | FP34: 0 | FQ34: 207240 | FR34: 136207674 | FS34: 0 | FT34: 620083 | FU34: 1001642 | FV34: 66113 | FW34: 3226828 | FX34: 0 | FY34: 159931 | FZ34: 28602364.37 | GA34: 13248390.49 | GB34: 7579020.88 | GC34: 1406479 | GD34: 6368474 | GE34: 149629734.4 | GF34: 2866782 | GG34: 173597367.4 | GH34: 28510484.81 | GI34: 11185411.19 | GJ34: 6752618.62 | GK34: 4212927 | GL34: 6359528 | GM34: 144179733 | GN34: 2704916 | GO34: 169976413 | GP34: 25101270 | GQ34: 10226729 | GR34: 5914579 | GS34: 2523119 | GT34: 6436843 | GU34: 145621264.9 | GV34: 0 | GW34: 171117199.9 | GX34: 23602051.64 | GY34: 9431835 | GZ34: 5332309 | HA34: 2315182.3 | HB34: 6522725.34 | HC34: 131289430.9 | HD34: 0 | HE34: 153979804.7 | HG34: 0 | HH34: 120 | HI34: 68 | HJ34: 335 | HK34: 81 | HL34: 12 | HM34: 41 | HN34: 657
A35: 316 | B35: Newham | C35: 37977913.18 | D35: 335845014.1 | E35: 39903943.99 | F35: 363448813.6 | G35: 40558337.33 | H35: 367894015.6 | I35: 41129106.98 | J35: 370270000 | L35: 291939319 | M35: 20081889 | N35: 0.06878788739 | O35: 886137 | P35: 0 | Q35: 292825457 | S35: 31195718 | T35: 12341480 | U35: 0 | V35: 0 | W35: 1084000 | X35: 4241200 | Y35: 0 | Z35: 5526920 | AA35: 439400 | AB35: 0 | AC35: 1417300 | AD35: 6138000 | AF35: 7418 | AG35: 0 | AH35: 388936942 | AI35: 0 | AJ35: 520700 | AK35: 1438600 | AL35: 0 | AM35: 3102700 | AN35: 169 | AO35: 169 | AP35: 1574000 | AQ35: 40542121 | AR35: 8602054 | AS35: 0 | AT35: 328175 | AU35: 2278500 | AV35: 3272111 | AW35: 1132600 | AX35: 0 | AY35: 0 | AZ35: 1417300 | BA35: 23488838 | BC35: 22543 | BD35: 0 | BE35: 396078899 | BF35: 0 | BG35: 521200 | BH35: 653500 | BI35: 0 | BJ35: 3102700 | BK35: 334 | BL35: 3024000 | BM35: 15409618.79 | BN35: 1468541.21 | BO35: 3789486.28 | BP35: 261583.9 | BQ35: 2620094.17 | BR35: 1512618.79 | BS35: 5657540.32 | BT35: 0 | BU35: 0 | BV35: 63634.45 | BW35: 36119.67 | BX35: 0 | BY35: 330479415.4 | BZ35: 656600 | CA35: 975800 | CB35: 0 | CC35: 413400 | CD35: 3102700 | CE35: 12404252.77 | CF35: 0 | CG35: 3604791.164 | CH35: 237468.1016 | CI35: 1823493.333 | CJ35: 1515321.626 | CK35: 5092340 | CL35: 0 | CM35: 0 | CN35: 98562.96749 | CP35: 32275.58096 | CQ35: 0 | CR35: 318459170 | CS35: 762885 | CT35: 607751 | CU35: 0 | CV35: 276300 | CW35: 142000 | CX35: 2927883 | CY35: 0 | CZ35: 0 | DA35: 12316724 | DB35: 0 | DC35: 4160419 | DD35: 347282 | DE35: 1776516 | DF35: 1464892 | DG35: 4249393 | DH35: 77176 | DI35: 0 | DJ35: 10642 | DK35: 0 | DL35: 84799 | DM35: 31399 | DN35: 0 | DO35: 0 | DP35: 51806 | DQ35: 0 | DR35: 62400 | DS35: 0 | DT35: 325686499 | DU35: 1053750 | DV35: 685200 | DW35: 0 | DX35: 250350 | DY35: 275000 | DZ35: 3134100 | EA35: 0 | EB35: 0 | EC35: 12608247.5 | ED35: 4372437.74 | EE35: 0 | EF35: 355254.76 | EG35: 1891967 | EH35: 1493767.09 | EI35: 4165563.87 | EJ35: 82225 | EK35: 0 | EL35: 10424 | EM35: 0 | EN35: 81983.83 | EO35: 15197.11 | EP35: 0 | EQ35: 0 | ER35: 75877.1 | ES35: 63550 | ET35: 0 | EU35: 325111016.6 | EV35: 1096700 | EW35: 715500 | EX35: 0 | EY35: 473000 | EZ35: 294076 | FA35: 1887700 | FB35: 0 | FD35: 40701477 | FE35: 18356225 | FF35: 0 | FG35: 933439 | FH35: 2591799 | FI35: 5408335 | FJ35: 601736 | FK35: 0 | FL35: 0 | FM35: 1417300 | FN35: 11376997 | FP35: 15646 | FQ35: 0 | FR35: 359088724 | FS35: 0 | FT35: 620728 | FU35: 633653 | FV35: 0 | FW35: 2773044 | FX35: 399604 | FY35: 0 | FZ35: 34669622.18 | GA35: 22947482.5 | GB35: 5412381.68 | GC35: 2810024 | GD35: 3499734 | GE35: 374724882.5 | GF35: 5063789 | GG35: 436835493.5 | GH35: 33186700.46 | GI35: 21169870 | GJ35: 5151253.46 | GK35: 2611493 | GL35: 4254084 | GM35: 345212118.1 | GN35: 1417300 | GO35: 428429005.1 | GP35: 30328047.82 | GQ35: 20849194 | GR35: 4642269 | GS35: 1526956.82 | GT35: 3309628 | GU35: 349699125.4 | GV35: 3790591 | GW35: 399155388.2 | GX35: 30914835.62 | GY35: 19852773 | GZ35: 4496174 | HA35: 1520932.149 | HB35: 5044956.47 | HC35: 342747331.6 | HD35: 2490482.35 | HE35: 391297844.8 | HG35: 0 | HH35: 259 | HI35: 171 | HJ35: 137 | HK35: 52 | HL35: 115 | HM35: 60 | HN35: 794
A36: 317 | B36: Redbridge | C36: 33421017.31 | D36: 238528955.8 | E36: 35896276.09 | F36: 250681252.2 | G36: 36015132.13 | H36: 254580041.3 | I36: 36311288.2 | J36: 266554000 | L36: 190868285 | M36: 19136617 | N36: 0.1002608527 | O36: 0 | P36: 0 | Q36: 190868285 | S36: 34462548 | T36: 11809283 | U36: 0 | V36: 0 | W36: 514061 | X36: 7748561 | Y36: 0 | Z36: 6748371 | AA36: 1270947 | AB36: 0 | AC36: 0 | AD36: 6320000 | AF36: 38897 | AG36: 12428 | AH36: 275735548 | AI36: 17596 | AJ36: 823083 | AK36: 486128 | AL36: 57266 | AM36: 3859994 | AN36: 352 | AO36: 352 | AP36: 3520000 | AQ36: 33990369 | AR36: 11539086 | AS36: 0 | AT36: 0 | AU36: 7077461 | AV36: 6660995 | AW36: 2838621 | AX36: 0 | AY36: 0 | AZ36: 0 | BA36: 5864370 | BC36: 7484 | BD36: 2352 | BE36: 285514775 | BF36: 20589 | BG36: 955484 | BH36: 471301 | BI36: 67006 | BJ36: 3753830 | BK36: 600.5 | BL36: 5864370 | BM36: 22650414.52 | BN36: 1485392 | BO36: 745620 | BP36: 799462 | BQ36: 5555316 | BR36: 0 | BS36: 13746195.52 | BT36: 0 | BU36: 10209 | BV36: 14340 | BW36: 112521 | BX36: 181359 | BY36: 254507762.1 | BZ36: 786280 | CA36: 102496 | CB36: 18969 | CC36: 61735 | CD36: 3902425 | CE36: 13394856.72 | CF36: 824492.8121 | CG36: 0 | CH36: 260927 | CI36: 5240085.836 | CJ36: 0 | CK36: 6743828.565 | CL36: 0 | CM36: 11866 | CN36: 161926.3712 | CO36: 0 | CP36: 121377.1963 | CQ36: 30352.94188 | CR36: 153839373.4 | CS36: 1074139 | CT36: 102496 | CU36: 144553 | CV36: 55197.58976 | CW36: 225358 | CX36: 3377111.028 | CY36: 65774.55 | CZ36: 0 | DA36: 19440671.53 | DB36: 644848.2493 | DC36: 0 | DD36: 294138.6822 | DE36: 4967407.111 | DF36: 0 | DG36: 12510545.27 | DH36: 193411 | DI36: 0 | DJ36: 23139 | DK36: 0 | DL36: 295011 | DM36: 269837.0001 | DN36: 0 | DO36: 12608 | DP36: 70877.45025 | DQ36: 0 | DR36: 126598.7666 | DS36: 32250 | DT36: 258430886.4 | DU36: 1065921.732 | DV36: 0 | DW36: 14233.40226 | DX36: 46785.58303 | DY36: 381017.6448 | DZ36: 3462592.095 | EA36: 74245.65 | EB36: 0 | EC36: 19027235.4 | ED36: 0 | EE36: 639146.73 | EF36: 154613.54 | EG36: 4650450.62 | EH36: 0 | EI36: 12380284.47 | EJ36: 192411 | EK36: 0 | EL36: 26360 | EM36: 0 | EN36: 231783.61 | EO36: 141081.95 | EP36: 0 | EQ36: 13133 | ER36: 446555.48 | ES36: 133667 | ET36: 17748 | EU36: 242181698.1 | EV36: 1055112.15 | EW36: 0 | EX36: 187756.15 | EY36: 45208.11 | EZ36: 371847.73 | FA36: 3431210.75 | FB36: 393591.7 | FD36: 31405095.87 | FE36: 11436949.25 | FF36: 0 | FG36: 278823 | FH36: 6102649.51 | FI36: 3165463.5 | FJ36: 4859860.37 | FK36: 0 | FL36: 0 | FM36: 0 | FN36: 5469398 | FP36: 70961.24 | FQ36: 20991 | FR36: 249571251.7 | FS36: 0 | FT36: 705543.83 | FU36: 513667.75 | FV36: 51793.83 | FW36: 4461480.21 | FX36: 0 | FY36: 0 | FZ36: 45135408.86 | GA36: 24756962.89 | GB36: 14481649.97 | GC36: 465227 | GD36: 5431569 | GE36: 267242248.3 | GF36: 3447692 | GG36: 286150179.3 | GH36: 42874783.42 | GI36: 23142204.48 | GJ36: 14410394.94 | GK36: 611909 | GL36: 4710275 | GM36: 258508611.7 | GN36: 3418592 | GO36: 277101621.7 | GP36: 41230377.63 | GQ36: 22396289 | GR36: 13733165 | GS36: 752690.76 | GT36: 4348232.87 | GU36: 266430822.3 | GV36: 3186535.53 | GW36: 296594701.3 | GX36: 37767251 | GY36: 18836553 | GZ36: 13742158 | HA36: 865071 | HB36: 4323469 | HC36: 260190086.7 | HD36: 3332135 | HE36: 290352114.8 | HG36: 108 | HH36: 34 | HI36: 106 | HJ36: 464 | HK36: 143 | HL36: 52 | HM36: 59 | HN36: 966
A37: 318 | B37: Richmond upon Thames | C37: 18649291.53 | D37: 118428095.1 | E37: 19701562.45 | F37: 124413880.5 | G37: 20551310.74 | H37: 128611550.9 | I37: 20941924.44 | J37: 132030000 | L37: 95349741 | M37: 10304592 | N37: 0.1080715259 | O37: 0 | P37: 100000 | Q37: 95349741 | S37: 18327961 | T37: 5439841 | U37: 0 | V37: 0 | W37: 1036771 | X37: 8109800 | Y37: 100000 | Z37: 1553490 | AA37: 213859 | AB37: 0 | AC37: 0 | AD37: 1870000 | AF37: 4200 | AG37: 0 | AH37: 127127596 | AI37: 432800 | AJ37: 723417 | AK37: 804371 | AL37: 89593 | AM37: 3179542 | AN37: 187 | AO37: 187 | AP37: 1870000 | AQ37: 17811494 | AR37: 5472552 | AS37: 0 | AT37: 1323700 | AU37: 7582500 | AV37: 1505947 | AW37: 193428 | AX37: 0 | AY37: 0 | AZ37: 0 | BA37: 1729167 | BC37: 4200 | BD37: 0 | BE37: 123792130 | BF37: 474800 | BG37: 700740 | BH37: 634754 | BI37: 91883 | BJ37: 2979549 | BK37: 150 | BL37: 3418850 | BM37: 14600808.29 | BN37: 1840723 | BO37: 1712655.26 | BP37: 187393.6 | BQ37: 7425878.13 | BR37: 0 | BS37: 3425451.68 | BT37: 0 | BU37: 388 | BV37: 2494 | BW37: 5824.62 | BX37: 0 | BY37: 110924906.8 | BZ37: 819240.66 | CA37: 657221.46 | CB37: 305800 | CC37: 146659.49 | CD37: 2880713.47 | CE37: 13205123.21 | CF37: 1004927.5 | CG37: 1629600 | CH37: 145615.2654 | CI37: 7030070.776 | CJ37: 0 | CK37: 3377982.621 | CL37: 0 | CM37: 0 | CN37: 14378.47056 | CP37: 2548.57595 | CQ37: 0 | CR37: 106776770.3 | CS37: 579121.4572 | CT37: 478003.683 | CU37: 239902.2263 | CV37: 114942.1226 | CW37: 131940.0356 | CX37: 2786268.454 | CY37: 0 | CZ37: 0 | DA37: 11274636.29 | DB37: 778300 | DC37: 860000 | DD37: 98817.23753 | DE37: 6560595.444 | DF37: 0 | DG37: 2790069.126 | DH37: 76715 | DI37: 0 | DJ37: 10907 | DK37: 0 | DL37: 50382 | DM37: 42021 | DN37: 0 | DO37: 0 | DP37: 2629.48274 | DQ37: 0 | DR37: 4200 | DS37: 0 | DT37: 107663010.3 | DU37: 689629.5645 | DV37: 364072.9873 | DW37: 265298.7348 | DX37: 114260.6389 | DY37: 122256.7255 | DZ37: 2744716.079 | EA37: 0 | EB37: 0 | EC37: 10319616.63 | ED37: 709900 | EE37: 848700 | EF37: 56636.82 | EG37: 5827903.2 | EH37: 0 | EI37: 2670352.21 | EJ37: 75056 | EK37: 0 | EL37: 10580 | EM37: 0 | EN37: 98761 | EO37: 12839 | EP37: 0 | EQ37: 0 | ER37: 4688.4 | ES37: 4200 | ET37: 0 | EU37: 106290606.4 | EV37: 629269 | EW37: 364254.16 | EX37: 224472.56 | EY37: 105645.94 | EZ37: 121615.9 | FA37: 2632199.95 | FB37: 0 | FD37: 20349410.62 | FE37: 7502576.77 | FF37: 0 | FG37: 1175216.97 | FH37: 8077203.05 | FI37: 1616442.34 | FJ37: 222223.49 | FK37: 0 | FL37: 0 | FM37: 0 | FN37: 1755748 | FP37: 0 | FQ37: 0 | FR37: 91569508 | FS37: 574765.04 | FT37: 777589.48 | FU37: 804543.35 | FV37: 94209.98 | FW37: 3389315.94 | FX37: 1204 | FY37: 1569 | FZ37: 20951719.49 | GA37: 7150933.47 | GB37: 4296224.02 | GC37: 1544676 | GD37: 7959886 | GE37: 112966810.6 | GF37: 3143990 | GG37: 126833798.6 | GH37: 19831728.95 | GI37: 7106939.31 | GJ37: 3915423.64 | GK37: 1374199 | GL37: 7435167 | GM37: 118086256.4 | GN37: 2971820 | GO37: 133586340.4 | GP37: 19782118.48 | GQ37: 7518379 | GR37: 3505588 | GS37: 1473363.88 | GT37: 7284787.6 | GU37: 122082641.8 | GV37: 2924842.43 | GW37: 148034121.3 | GX37: 18251408.62 | GY37: 7680171 | GZ37: 3183489 | HA37: 1312133.495 | HB37: 6075615.123 | HC37: 120082228.3 | HD37: 2791250.4 | HE37: 143029248.2 | HG37: 160 | HH37: 14 | HI37: 20 | HJ37: 197 | HK37: 24 | HL37: 27 | HM37: 19 | HN37: 461
A38: 319 | B38: Sutton | C38: 28769424 | D38: 155224852.9 | E38: 30545832.29 | F38: 162606144.4 | G38: 31283776.97 | H38: 166846195.1 | I38: 31577471.17 | J38: 176685000 | L38: 122270426 | M38: 11859647 | N38: 0.09699522107 | O38: 178924 | P38: 96000 | Q38: 122454226 | S38: 26495825 | T38: 7986000 | U38: 0 | V38: 0 | W38: 1172900 | X38: 9389000 | Y38: 96000 | Z38: 1815837 | AA38: 2031188 | AB38: 0 | AC38: 370000 | AD38: 3631600 | AF38: 400 | AG38: 2900 | AH38: 170820055 | AI38: 2000 | AJ38: 668900 | AK38: 943860 | AL38: 92600 | AM38: 3693990 | AN38: 80 | AO38: 80 | AP38: 800000 | AQ38: 26688332 | AR38: 7770973 | AS38: 0 | AT38: 89565 | AU38: 10114229 | AV38: 1762389 | AW38: 1839076 | AX38: 0 | AY38: 0 | AZ38: 410000 | BA38: 4698000 | BC38: 400 | BD38: 3700 | BE38: 166178888 | BF38: 31200 | BG38: 787000 | BH38: 922220 | BI38: 93500 | BJ38: 3969800 | BK38: 423 | BL38: 3898000 | BM38: 20758830 | BN38: 2142400 | BO38: 1238320 | BP38: 1504550 | BQ38: 11073067 | BR38: 444050 | BS38: 4342343 | BT38: 0 | BU38: 0 | BV38: 10000 | BW38: 400 | BX38: 3700 | BY38: 109813604.6 | BZ38: 705335 | CA38: 822971 | CB38: 30600 | CC38: 70000 | CD38: 4262970 | CE38: 20217453 | CF38: 1342600 | CG38: 1164600 | CH38: 847250 | CI38: 10448290 | CJ38: 398900 | CK38: 6001675 | CL38: 0 | CM38: 0 | CN38: 11838 | CP38: 400 | CQ38: 1900 | CR38: 172368042 | CS38: 664000 | CT38: 989500 | CU38: 30000 | CV38: 71700 | CW38: 123820 | CX38: 4050900 | CY38: 21100 | CZ38: 0 | DA38: 17875983.38 | DB38: 1022530 | DC38: 1066400 | DD38: 178300 | DE38: 9305795 | DF38: 497400 | DG38: 5395153.38 | DH38: 125745 | DI38: 0 | DJ38: 18560 | DK38: 0 | DL38: 108020 | DM38: 95491 | DN38: 0 | DO38: 0 | DP38: 59289 | DQ38: 0 | DR38: 600 | DS38: 2700 | DT38: 178063294.4 | DU38: 668000 | DV38: 969800 | DW38: 0 | DX38: 72300 | DY38: 210860 | DZ38: 4020700 | EA38: 20100 | EB38: 0 | EC38: 15335141 | ED38: 496400 | EE38: 328800 | EF38: 829900 | EG38: 7995700 | EH38: 266800 | EI38: 5146940 | EJ38: 119332 | EK38: 0 | EL38: 17924 | EM38: 0 | EN38: 100811 | EO38: 14864 | EP38: 0 | EQ38: 0 | ER38: 11770 | ES38: 700 | ET38: 5200 | EU38: 167449131 | EV38: 781000 | EW38: 736500 | EX38: 0 | EY38: 96300 | EZ38: 57472 | FA38: 3759300 | FB38: 19100 | FD38: 26306529.05 | FE38: 10024617.39 | FF38: 0 | FG38: 370231.49 | FH38: 9137149.5 | FI38: 2414293.51 | FJ38: 1984759.67 | FK38: 384647 | FL38: 0 | FM38: 438210.99 | FN38: 1549165.5 | FP38: 0 | FQ38: 3454 | FR38: 108057380.1 | FS38: 17641.47 | FT38: 719963.41 | FU38: 897559.6 | FV38: 89320.58 | FW38: 3626538.77 | FX38: 476394 | FY38: 163633.1 | FZ38: 23037915.85 | GA38: 8299802.25 | GB38: 4939051.6 | GC38: 1376531 | GD38: 8422531 | GE38: 111244437.6 | GF38: 3852631 | GG38: 136837859.6 | GH38: 23125747.45 | GI38: 9259031.64 | GJ38: 5290102.81 | GK38: 243223 | GL38: 8333390 | GM38: 117747849.1 | GN38: 3684149 | GO38: 140558592.1 | GP38: 30522420 | GQ38: 14707663 | GR38: 6198069 | GS38: 1492869 | GT38: 8123819 | GU38: 182005107 | GV38: 3854812 | GW38: 205553188 | GX38: 30177581 | GY38: 13906170 | GZ38: 6137459 | HA38: 1733675 | HB38: 8400277 | HC38: 182030086.3 | HD38: 3908181 | HE38: 209757470.3 | HG38: 329 | HH38: 0 | HI38: 180 | HJ38: 351 | HK38: 64 | HL38: 11 | HM38: 27 | HN38: 962
A39: 320 | B39: Waltham Forest | C39: 33206759.61 | D39: 220558291.7 | E39: 32866585.51 | F39: 231922860.6 | G39: 34041433.68 | H39: 237213129.4 | I39: 34233092.93 | J39: 241473000 | L39: 179217629 | M39: 18534558 | N39: =M39/L39 -> 0.1034192791 | O39: 0 | P39: 0 | Q39: 179217629 | S39: 32243243 | T39: 6882589 | U39: 0 | V39: 0 | W39: 10617829 | X39: 6341487 | Y39: 82838 | Z39: 1586000 | AA39: 1090000 | AB39: 0 | AC39: 0 | AD39: 5642500 | AF39: 0 | AG39: 0 | AH39: 243181190 | AI39: 0 | AJ39: 607000 | AK39: 469500 | AL39: 10 | AM39: 3465054 | AN39: 479 | AO39: 479 | AP39: 4790000 | AQ39: 32630272.14 | AR39: 11539274.02 | AS39: 0 | AT39: 3612253.45 | AU39: 5514523 | AV39: 1341853 | AW39: 996000 | AX39: 0 | AY39: 0 | AZ39: 0 | BA39: 9504666.67 | BC39: 121702 | BD39: 0 | BE39: 233313999.9 | BF39: 0 | BG39: 655000 | BH39: 456900 | BI39: 10 | BJ39: 3427001 | BK39: 611.15 | BL39: 5839603 | BM39: 23912495.13 | BN39: 1833145 | BO39: 0 | BP39: 2052091.2 | BQ39: 4151810.97 | BR39: 0 | BS39: 15773600 | BT39: 0 | BU39: 4882.06 | BV39: 26515.39 | BW39: 70450.51 | BX39: 0 | BY39: 225163977.4 | BZ39: 500300 | CA39: 586400 | CB39: 0 | CC39: 10 | CD39: 3360852 | CE39: 17509198.77 | CF39: 726661 | CG39: 0 | CH39: 604964 | CI39: 4350016 | CJ39: 0 | CK39: 11808617.73 | CL39: 0 | CM39: 0 | CN39: 0 | CO39: 0 | CP39: 18940.03096 | CQ39: 0 | CR39: 133057939.8 | CS39: 494900 | CT39: 553140 | CU39: 0 | CV39: 10 | CW39: 116960 | CX39: 3651210.998 | CY39: 117000 | CZ39: 238000 | DA39: 22369105.47 | DB39: 650675 | DC39: 0 | DD39: 1036248 | DE39: 4491586.991 | DF39: 0 | DG39: 15422302.8 | DH39: 246034.6818 | DI39: 13200 | DJ39: 33972 | DK39: 5427 | DL39: 323049 | DM39: 90395 | DN39: 0 | DO39: 0 | DP39: 33459 | DQ39: 0 | DR39: 22756 | DS39: 0 | DT39: 215714484.4 | DU39: 1198418.674 | DV39: 553140 | DW39: 0 | DX39: 73019.19 | DY39: 116960 | DZ39: 3362843 | EA39: 72006 | EB39: 186015 | EC39: 21814419.11 | ED39: 764507 | EE39: 0 | EF39: 1009896 | EG39: 4122686 | EH39: 0 | EI39: 15181380.96 | EJ39: 248613.15 | EK39: 13180 | EL39: 38800 | EM39: 3544 | EN39: 332796 | EO39: 54987 | EP39: 0 | EQ39: 0 | ER39: 21559 | ES39: 22470 | ET39: 0 | EU39: 208983412.7 | EV39: 1045336 | EW39: 668837 | EX39: 0 | EY39: 72426 | EZ39: 113262 | FA39: 3120558 | FB39: 105364 | FD39: 26786658.3 | FE39: 9886750.45 | FF39: 0 | FG39: 4412717.85 | FH39: 3717698 | FI39: 1783399 | FJ39: 645254 | FK39: 0 | FL39: 0 | FM39: 0 | FN39: 6219137 | FP39: 121702 | FQ39: 0 | FR39: 184180438.2 | FS39: 0 | FT39: 233888 | FU39: 459040 | FV39: 0 | FW39: 2399984 | FX39: 26940 | FY39: 332243 | FZ39: 32403581.62 | GA39: 14855068.21 | GB39: 14315099.41 | GC39: 0 | GD39: 3233414 | GE39: 218238227.3 | GF39: 3342587 | GG39: 236197878.3 | GH39: 35455856.1 | GI39: 15197279.05 | GJ39: 17196052.05 | GK39: 0 | GL39: 3062525 | GM39: 226181994.4 | GN39: 3619833 | GO39: 256240276.4 | GP39: 33430645.48 | GQ39: 13580867.05 | GR39: 16494603.42 | GS39: 38875.01 | GT39: 3316300 | GU39: 230203565.6 | GV39: 3610290.89 | GW39: 271989812.3 | GX39: 31291326 | GY39: 12258641 | GZ39: 15616197 | HA39: 55891 | HB39: 3360597 | HC39: 222114938.4 | HD39: 3362845 | HE39: 260005397.4 | HG39: 0 | HH39: 177 | HI39: 296 | HJ39: 577 | HK39: 120 | HL39: 60 | HM39: 34 | HN39: 1264
A40: 330 | B40: Birmingham | C40: 111138700.4 | D40: 993605808 | E40: 114258053.1 | F40: 1029894564 | G40: 121707954.8 | H40: 1054265826 | I40: 123244217.9 | J40: 1057627000 | L40: 809951278 | M40: 153447239 | N40: 0.1894524315 | O40: 297913 | P40: 500000 | Q40: 810249191 | S40: 126556431 | T40: 47967510 | U40: 0 | V40: 0 | W40: 6289376 | X40: 17805345 | Y40: 500000 | Z40: 11162880 | AA40: 441027 | AB40: 0 | AC40: 0 | AD40: 42390293 | AF40: 0 | AG40: 0 | AH40: 1069057631 | AI40: 0 | AJ40: 2432433 | AK40: 1428952 | AL40: 313970 | AM40: 17258576 | AN40: 3440 | AO40: 3525 | AP40: 34274613 | AQ40: 117398294 | AR40: 52428595 | AS40: 0 | AT40: 0 | AU40: 10537330 | AV40: 10533706 | AW40: 455230 | AX40: 0 | AY40: 0 | AZ40: 0 | BA40: 43443433 | BC40: 0 | BD40: 0 | BE40: 1056935393 | BF40: 0 | BG40: 2319651 | BH40: 1347660 | BI40: 352555 | BJ40: 16226608 | BK40: 4345 | BL40: 43443434 | BM40: 96305354.1 | BN40: 10370474 | BO40: 6797880 | BP40: 261817 | BQ40: 7685721 | BR40: 0 | BS40: 69913491.1 | BT40: 0 | BU40: 0 | BV40: 635719 | BW40: 453033 | BX40: 187219 | BY40: 963724257.8 | BZ40: 2331162 | CA40: 1540521 | CB40: 0 | CC40: 403291 | CD40: 17329793 | CE40: 92081962.84 | CF40: 8678026.809 | CG40: 6767880 | CH40: 506918.026 | CI40: 6975431 | CJ40: 0 | CK40: 68149950 | CL40: 0 | CM40: 0 | CN40: 746608 | CP40: 69930 | CQ40: 187219 | CR40: 1002780137 | CS40: 2117124 | CT40: 1158275 | CU40: 0 | CV40: 400010 | CW40: 175057 | CX40: 13430718.29 | CY40: 149010 | CZ40: 0 | DA40: 89474560.62 | DB40: 14363574.69 | DC40: 0 | DD40: 393593.0778 | DE40: 6972885 | DF40: 0 | DG40: 60794511 | DH40: 1312899.855 | DI40: 21912 | DJ40: 197515 | DK40: 1772 | DL40: 2549801 | DM40: 2048788 | DN40: 0 | DO40: 0 | DP40: 145405 | DQ40: 0 | DR40: 484685 | DS40: 187219 | DT40: 1005077964 | DU40: 2938092.369 | DV40: 1762705.42 | DW40: 0 | DX40: 433000.975 | DY40: 246902.7737 | DZ40: 15367839.2 | EA40: 149010 | EB40: 0 | EC40: 86384917.25 | ED40: 14100997.69 | EE40: 0 | EF40: 221270.08 | EG40: 6019008 | EH40: 0 | EI40: 59092161 | EJ40: 1298183.48 | EK40: 0 | EL40: 194440 | EM40: 0 | EN40: 2775524 | EO40: 1961914 | EP40: 0 | EQ40: 0 | ER40: 136608 | ES40: 397592 | ET40: 187219 | EU40: 963623721.8 | EV40: 3578278.37 | EW40: 2291167.42 | EX40: 0 | EY40: 477014.98 | EZ40: 344487.04 | FA40: 15014858.2 | FB40: 0 | FD40: 109932789 | FE40: 37816371 | FF40: 0 | FG40: 11278557 | FH40: 13067676 | FI40: 9478614 | FJ40: 478296 | FK40: 0 | FL40: 0 | FM40: 0 | FN40: 37813275 | FP40: 0 | FQ40: 0 | FR40: 788144867 | FS40: 0 | FT40: 2305072 | FU40: 943947 | FV40: 362042 | FW40: 17725070.66 | FX40: 0 | FY40: 0 | FZ40: 145527910 | GA40: 52506167 | GB40: 74565903 | GC40: 8274745 | GD40: 10181095 | GE40: 979201664 | GF40: 16565971 | GG40: 1066478779 | GH40: 146171997.3 | GI40: 56856623.59 | GJ40: 72663543.71 | GK40: 9330105 | GL40: 7321725 | GM40: 1031996568 | GN40: 16146074 | GO40: 1116344072 | GP40: 164901372.9 | GQ40: 76733215 | GR40: 74159304 | GS40: 7170272.58 | GT40: 6838581.28 | GU40: 1065471771 | GV40: 16077175 | GW40: 1169842210 | GX40: 145484404 | GY40: 59884663 | GZ40: 70196362 | HA40: 7719687.656 | HB40: 7683691.32 | HC40: 1050136924 | HD40: 16685721 | HE40: 1199079846 | HG40: 361 | HH40: 398 | HI40: 741 | HJ40: 3338 | HK40: 504 | HL40: 241 | HM40: 208 | HN40: 5791
A41: 331 | B41: Coventry | C41: 27213004.09 | D41: 248278341.8 | E41: 28221819.71 | F41: 258470768.3 | G41: 29381313.75 | H41: 264404828.9 | I41: 29758760.8 | J41: 266163000 | L41: 212130822 | M41: 18449221 | N41: 0.08697095889 | O41: 0 | P41: 0 | Q41: 212130822 | S41: 29009712 | T41: 9626794 | U41: 0 | V41: 0 | W41: 231206 | X41: 5215129 | Y41: 0 | Z41: 4369461 | AA41: 711022 | AB41: 0 | AC41: 310000 | AD41: 8546100 | AF41: 0 | AG41: 0 | AH41: 270712070 | AI41: 0 | AJ41: 707246 | AK41: 710553 | AL41: 124666 | AM41: 3204758 | AN41: 770 | AO41: 770 | AP41: 7736099 | AQ41: 29918573 | AR41: 9587349 | AS41: 0 | AT41: 245940 | AU41: 4196899 | AV41: 4411126 | AW41: 1877794 | AX41: 216924 | AY41: 0 | AZ41: 310000 | BA41: 9072541 | BC41: 0 | BD41: 0 | BE41: 266674582 | BF41: 0 | BG41: 710147 | BH41: 546351 | BI41: 115936 | BJ41: 3008420 | BK41: 935.75 | BL41: 9071033 | BM41: 25061162.22 | BN41: 2206382 | BO41: 3088184 | BP41: 596399 | BQ41: 3640808 | BR41: 310000 | BS41: 15158041.22 | BT41: 0 | BU41: 4230 | BV41: 57118 | BW41: 0 | BX41: 0 | BY41: 221855586.4 | BZ41: 660957.91 | CA41: 526146.84 | CB41: 0 | CC41: 163528.54 | CD41: 3302251.38 | CE41: 25990268 | CF41: 791448 | CG41: 5390332 | CH41: 459724 | CI41: 3819094 | CJ41: 300000 | CK41: 15159610 | CL41: 0 | CM41: 4230 | CN41: 14880 | CP41: 0 | CQ41: 50950 | CR41: 257290563 | CS41: 746073 | CT41: 481917 | CU41: 0 | CV41: 163760 | CW41: 272290 | CX41: 3122374 | CY41: 416576 | CZ41: 70590 | DA41: 26830508.31 | DB41: 2012193 | DC41: 4244345 | DD41: 1030693 | DE41: 4080228.308 | DF41: 300000 | DG41: 13580674.07 | DH41: 344642.3199 | DI41: 1171.81182 | DJ41: 46702 | DK41: 108.21332 | DL41: 537486.7671 | DM41: 272218.8226 | DN41: 0 | DO41: 17225 | DP41: 311870 | DQ41: 0 | DR41: 0 | DS41: 50950 | DT41: 258519177.8 | DU41: 856716 | DV41: 503600 | DW41: 0 | DX41: 185038 | DY41: 290585 | DZ41: 2726456 | EA41: 297781 | EB41: 18813 | EC41: 24931426.68 | ED41: 204083.33 | EE41: 5628224.57 | EF41: 628474.86 | EG41: 4358860.99 | EH41: 0 | EI41: 12986782.13 | EJ41: 333932 | EK41: 1175 | EL41: 46532 | EM41: 106 | EN41: 460553.39 | EO41: 187881.92 | EP41: 0 | EQ41: 11565.76 | ER41: 29402.56 | ES41: 0 | ET41: 53852.17 | EU41: 246597924.7 | EV41: 955289.19 | EW41: 511236.98 | EX41: 0 | EY41: 182054.58 | EZ41: 292871.26 | FA41: 3206428.71 | FB41: 57799.42 | FD41: 29669030 | FE41: 9674299 | FF41: 0 | FG41: 195257 | FH41: 4393255 | FI41: 4744178 | FJ41: 1753509 | FK41: 0 | FL41: 0 | FM41: 310000 | FN41: 8598532 | FP41: 0 | FQ41: 0 | FR41: 204970766 | FS41: 0 | FT41: 711597 | FU41: 577277 | FV41: 193202 | FW41: 2973659 | FX41: 0 | FY41: 105505 | FZ41: 35884977.81 | GA41: 14883336.99 | GB41: 17099010.82 | GC41: 157469 | GD41: 3745161 | GE41: 229592482.5 | GF41: 3122921 | GG41: 252205261.5 | GH41: 36121312.78 | GI41: 15429274.96 | GJ41: 16836100.82 | GK41: 198239 | GL41: 3657698 | GM41: 246619529.7 | GN41: 3773996 | GO41: 270932397.7 | GP41: 37022234 | GQ41: 16135870 | GR41: 16423551 | GS41: 309898 | GT41: 4152915 | GU41: 274797809 | GV41: 3477153 | GW41: 303665783 | GX41: 46600846 | GY41: 26370157 | GZ41: 15758609 | HA41: 370461 | HB41: 4101619 | HC41: 267100507.6 | HD41: 3653109 | HE41: 306904270.6 | HG41: 0 | HH41: 66 | HI41: 46 | HJ41: 765 | HK41: 104 | HL41: 75 | HM41: 76 | HN41: 1132
A42: 332 | B42: Dudley | C42: 26752083.94 | D42: 229636237.7 | E42: 29423958.2 | F42: 234323116.3 | G42: 30308305.95 | H42: 236052052.5 | I42: 30793739.3 | J42: 232953000 | L42: 190277760 | M42: 14887774 | N42: 0.07824232322 | O42: 626880 | P42: 0 | Q42: 190904639 | S42: 24633297 | T42: 8491648 | U42: 0 | V42: 0 | W42: 142988 | X42: 4107237 | Y42: 9128 | Z42: 3822787 | AA42: 408767 | AB42: 105198 | AC42: 0 | AD42: 7544356 | AF42: 1188 | AG42: 0 | AH42: 237550160 | AI42: 0 | AJ42: 578783 | AK42: 848412 | AL42: 110699 | AM42: 3131371 | AN42: 753 | AO42: 753 | AP42: 7544356 | AQ42: 27374519 | AR42: 9452187 | AS42: 0 | AT42: 878416 | AU42: 3377913 | AV42: 3593017 | AW42: 592791 | AX42: 379115 | AY42: 0 | AZ42: 0 | BA42: 9099892 | BC42: 1188 | BD42: 0 | BE42: 237521651 | BF42: 0 | BG42: 567620 | BH42: 482130 | BI42: 111249 | BJ42: 3043854 | BK42: 881 | BL42: 9099892 | BM42: 20469876 | BN42: 1681729 | BO42: 4871838 | BP42: 383580 | BQ42: 1915346 | BR42: 0 | BS42: 11606208 | BT42: 0 | BU42: 0 | BV42: 9987 | BW42: 1188 | BX42: 0 | BY42: 214961487.4 | BZ42: 630591 | CA42: 628069 | CB42: 0 | CC42: 114343 | CD42: 2808059 | CE42: 18846821 | CF42: 74734 | CG42: 4736416 | CH42: 661816 | CI42: 1962100 | CJ42: 0 | CK42: 11395819 | CL42: 0 | CM42: 0 | CN42: 14874 | CP42: 1062 | CQ42: 0 | CR42: 230753797 | CS42: 623717 | CT42: 446643 | CU42: 0 | CV42: 112413 | CW42: 55737 | CX42: 2545314 | CY42: 329300 | CZ42: 0 | DA42: 18685569.33 | DB42: 5393190 | DC42: 100072 | DD42: 143370 | DE42: 1947946 | DF42: 0 | DG42: 9981161 | DH42: 309135.3323 | DI42: 0 | DJ42: 41699 | DK42: 0 | DL42: 590556 | DM42: 168254 | DN42: 0 | DO42: 0 | DP42: 9153 | DQ42: 0 | DR42: 1033 | DS42: 0 | DT42: 236975265.7 | DU42: 831850 | DV42: 657540 | DW42: 0 | DX42: 277740 | DY42: 83638 | DZ42: 2368142 | EA42: 0 | EB42: 0 | EC42: 17606796 | ED42: 5066182 | EE42: 116300 | EF42: 146176 | EG42: 2045842 | EH42: 0 | EI42: 9224335 | EJ42: 296746 | EK42: 0 | EL42: 39812 | EM42: 0 | EN42: 553121 | EO42: 112264 | EP42: 0 | EQ42: 0 | ER42: 5072 | ES42: 946 | ET42: 0 | EU42: 224240533 | EV42: 871342 | EW42: 767654 | EX42: 0 | EY42: 115364 | EZ42: 120843 | FA42: 2439435 | FB42: 0 | FD42: 26246194 | FE42: 9234576 | FF42: 0 | FG42: 432095 | FH42: 2760923 | FI42: 3657612 | FJ42: 678407 | FK42: 381501 | FL42: 0 | FM42: 0 | FN42: 9099892 | FP42: 1188 | FQ42: 0 | FR42: 200129502 | FS42: 0 | FT42: 587565 | FU42: 622149 | FV42: 109827 | FW42: 3383453 | FX42: 165098 | FY42: 19475 | FZ42: 23526517 | GA42: 8606768 | GB42: 12314087 | GC42: 1042774 | GD42: 1562888 | GE42: 228739313.1 | GF42: 3321575 | GG42: 254180388.1 | GH42: 29145519 | GI42: 15076059 | GJ42: 12160144 | GK42: 629013 | GL42: 1280303 | GM42: 240232131.6 | GN42: 3243960 | GO42: 268118486.6 | GP42: 28825775 | GQ42: 15043877 | GR42: 11119377 | GS42: 752106 | GT42: 1910415 | GU42: 248274394 | GV42: 3010621 | GW42: 300722988 | GX42: 28046169 | GY42: 14246587 | GZ42: 10487600 | HA42: 1386786 | HB42: 1925196 | HC42: 239733480 | HD42: 2511031 | HE42: 279178875 | HG42: 0 | HH42: 92 | HI42: 116 | HJ42: 719 | HK42: 32 | HL42: 77 | HM42: 23 | HN42: 1059
A43: 333 | B43: Sandwell | C43: 33085138.55 | D43: 245502399 | E43: 34930533.73 | F43: 255964596.9 | G43: 36523297.68 | H43: 263897269.2 | I43: 36980633.33 | J43: 278055000 | L43: 205263300 | M43: 24032950 | N43: 0.1170835215 | O43: 0 | P43: 0 | Q43: 205263300 | S43: 33675962 | T43: 18844558 | U43: 0 | V43: 0 | W43: 3752251 | X43: 2905055 | Y43: 53500 | Z43: 3105500 | AA43: 306800 | AB43: 0 | AC43: 0 | AD43: 4708298 | AF43: 0 | AG43: 0 | AH43: 263559418 | AI43: 0 | AJ43: 892700 | AK43: 83900 | AL43: 69800 | AM43: 2503700 | AN43: 409 | AO43: 515 | AP43: 4708298 | AQ43: 32142113.68 | AR43: 17023338.15 | AS43: 0 | AT43: 1559000.01 | AU43: 2053875.52 | AV43: 3829000 | AW43: 468900 | AX43: 0 | AY43: 680000 | AZ43: 0 | BA43: 6528000 | BC43: 0 | BD43: 0 | BE43: 255865907.2 | BF43: 0 | BG43: 843800 | BH43: 126000 | BI43: 69800 | BJ43: 2397401 | BK43: 601 | BL43: 5608000 | BM43: 20599575.55 | BN43: 3036900 | BO43: 3628400 | BP43: 193401 | BQ43: 1981800 | BR43: 0 | BS43: 11012621.55 | BT43: 0 | BU43: 0 | BV43: 746453 | BW43: 0 | BX43: 0 | BY43: 224422503.6 | BZ43: 820300 | CA43: 44100 | CB43: 0 | CC43: 69800 | CD43: 2571200 | CE43: 16369260 | CF43: 51900 | CG43: 2409800 | CH43: 284000 | CI43: 1981800 | CJ43: 0 | CK43: 10763877 | CL43: 0 | CM43: 0 | CN43: 877883 | CP43: 0 | CQ43: 0 | CR43: 239524123 | CS43: 892400 | CT43: 579100 | CU43: 0 | CV43: 69800 | CW43: 130300 | CX43: 2312600 | CY43: 29800 | CZ43: 119200 | DA43: 16644889.9 | DB43: 51900 | DC43: 2936900 | DD43: 229600 | DE43: 1688100 | DF43: 0 | DG43: 10356919.01 | DH43: 173081 | DI43: 0 | DJ43: 21443 | DK43: 0 | DL43: 81032 | DM43: 21914.89 | DN43: 0 | DO43: 0 | DP43: 1084000 | DQ43: 0 | DR43: 0 | DS43: 0 | DT43: 225807177.8 | DU43: 1143900 | DV43: 822400 | DW43: 160500 | DX43: 66900 | DY43: 208300 | DZ43: 2579900 | EA43: 31500 | EB43: 125800 | EC43: 15820130.08 | ED43: 51400 | EE43: 2728070 | EF43: 223300 | EG43: 1669000 | EH43: 0 | EI43: 9779997.12 | EJ43: 162851.33 | EK43: 0 | EL43: 21004 | EM43: 0 | EN43: 156225 | EO43: 18971.63 | EP43: 0 | EQ43: 0 | ER43: 1009311 | ES43: 0 | ET43: 0 | EU43: 220140218.5 | EV43: 1135530 | EW43: 811800 | EX43: 173200 | EY43: 69400 | EZ43: 205600 | FA43: 2675400 | FB43: 0 | FD43: 32983499 | FE43: 14445560 | FF43: 0 | FG43: 3597881 | FH43: 617611 | FI43: 4789950 | FJ43: 1444834 | FK43: 0 | FL43: 648845 | FM43: 0 | FN43: 7438818 | FP43: 0 | FQ43: 0 | FR43: 204974860 | FS43: 0 | FT43: 1174410 | FU43: 129009 | FV43: 69123 | FW43: 2353095 | FX43: 227782 | FY43: 162064 | FZ43: 39960046.23 | GA43: 21263817.58 | GB43: 12804623.65 | GC43: 711211 | GD43: 5180394 | GE43: 251569890.9 | GF43: 2681538 | GG43: 277156591.9 | GH43: 40662148.22 | GI43: 23182548.31 | GJ43: 11901874.91 | GK43: 930733 | GL43: 4646992 | GM43: 268975613.2 | GN43: 2734333 | GO43: 295132246.2 | GP43: 41532567 | GQ43: 23731871 | GR43: 11499665 | GS43: 2052302 | GT43: 4248729 | GU43: 264064459 | GV43: 2520727 | GW43: 299670951 | GX43: 38124206 | GY43: 22003466 | GZ43: 10316178 | HA43: 2040500 | HB43: 3764062 | HC43: 258211886 | HD43: 2253286 | HE43: 302459198 | HG43: 0 | HH43: 214 | HI43: 280 | HJ43: 456 | HK43: 86 | HL43: 71 | HM43: 23 | HN43: 1130
A44: 334 | B44: Solihull | C44: 21396844.37 | D44: 154747796.2 | E44: 22151413.77 | F44: 158398861.5 | G44: 24101021.55 | H44: 162990393.1 | I44: 24781084.08 | J44: 173447000 | L44: 127091859 | M44: 5110034 | N44: 0.0402074062 | O44: 129048 | P44: 0 | Q44: 127220907 | S44: 20585163 | T44: 5209824 | U44: 0 | V44: 0 | W44: 1741726 | X44: 5730070 | Y44: 137000 | Z44: 2441540 | AA44: 225510 | AB44: 0 | AC44: 0 | AD44: 5073400 | AF44: 26093 | AG44: 0 | AH44: 164441278 | AI44: 0 | AJ44: 491573 | AK44: 568595 | AL44: 82404 | AM44: 1886207 | AN44: 503.8 | AO44: 510 | AP44: 5073400 | AQ44: 20296958 | AR44: 5958818 | AS44: 0 | AT44: 533148 | AU44: 4541070 | AV44: 2167551 | AW44: 1007170 | AX44: 0 | AY44: 0 | AZ44: 0 | BA44: 6014629 | BC44: 74572 | BD44: 0 | BE44: 160984304 | BF44: 0 | BG44: 507085 | BH44: 612548 | BI44: 85586 | BJ44: 1894183 | BK44: 623.6 | BL44: 6059598 | BM44: 15189746.37 | BN44: 1079422 | BO44: 548430 | BP44: 1626420 | BQ44: 3696020 | BR44: 0 | BS44: 8239454.37 | BT44: 0 | BU44: 0 | BV44: 0 | BW44: 0 | BX44: 0 | BY44: 117126578.2 | BZ44: 581009.02 | CA44: 629871.8 | CB44: 0 | CC44: 87406 | CD44: 2148699 | CE44: 15236892.98 | CF44: 1023227.346 | CG44: 2748412.629 | CH44: 0 | CI44: 3500000 | CJ44: 0 | CK44: 7689357 | CL44: 0 | CM44: 0 | CN44: 190550 | CP44: 85346 | CQ44: 0 | CR44: 143085717.4 | CS44: 602808.4927 | CT44: 461753.5624 | CU44: 0 | CV44: 82705.00632 | CW44: 14312.85842 | CX44: 2099361.507 | CY44: 7069.53939 | CZ44: 4480.68452 | DA44: 13221353.88 | DB44: 415679 | DC44: 3198362 | DD44: 0 | DE44: 2146091 | DF44: 0 | DG44: 6781899 | DH44: 215260 | DI44: 0 | DJ44: 27771 | DK44: 0 | DL44: 216785 | DM44: 9785 | DN44: 0 | DO44: 0 | DP44: 192560 | DQ44: 0 | DR44: 17161.88264 | DS44: 0 | DT44: 152349591.1 | DU44: 600340.2236 | DV44: 177678 | DW44: 0 | DX44: 80778.72773 | DY44: 86991 | DZ44: 589427.2562 | EA44: 0 | EB44: 0 | EC44: 13084475.45 | ED44: 320230 | EE44: 3132577 | EF44: 0 | EG44: 2101950 | EH44: 0 | EI44: 6478289.81 | EJ44: 201967.76 | EK44: 0 | EL44: 26892 | EM44: 0 | EN44: 191204 | EO44: 569463 | EP44: 0 | EQ44: 0 | ER44: 0 | ES44: 61901.88 | ET44: 0 | EU44: 153282511.9 | EV44: 628850 | EW44: 177678 | EX44: 0 | EY44: 79019 | EZ44: 86551 | FA44: 2163665 | FB44: 11462 | FD44: 21329014 | FE44: 5826341 | FF44: 0 | FG44: 542583 | FH44: 5960635 | FI44: 2084246 | FJ44: 813390 | FK44: 0 | FL44: 0 | FM44: 0 | FN44: 5956000 | FP44: 145819 | FQ44: 0 | FR44: 112451210 | FS44: 0 | FT44: 437765 | FU44: 622456 | FV44: 108993 | FW44: 2466478 | FX44: 322183 | FY44: 0 | FZ44: 17707235 | GA44: 3589338 | GB44: 9354107 | GC44: 257323 | GD44: 4506467 | GE44: 125737036 | GF44: 2612681 | GG44: 137684042 | GH44: 20769987 | GI44: 6254131 | GJ44: 8688449 | GK44: 1912655 | GL44: 3914752 | GM44: 137767209 | GN44: 2219380 | GO44: 148959524 | GP44: 21478684 | GQ44: 8364915 | GR44: 8106429 | GS44: 1554751 | GT44: 3452589 | GU44: 162273848 | GV44: 2084980 | GW44: 175361248 | GX44: 20517742.56 | GY44: 8376214 | GZ44: 8018312 | HA44: 1379232.561 | HB44: 2743984 | HC44: 164232158.9 | HD44: 2263943 | HE44: 183412254.9 | HG44: 89 | HH44: 0 | HI44: 160 | HJ44: 485 | HK44: 85 | HL44: 37 | HM44: 64 | HN44: 920
A45: 335 | B45: Walsall | C45: 26115347 | D45: 217411909.9 | E45: 27292192.95 | F45: 223264253.5 | G45: 28260716.22 | H45: 228191555.1 | I45: 28414971.3 | J45: 230717000 | L45: 187962692 | M45: 13660707 | N45: 0.07267775778 | O45: 0 | P45: 0 | Q45: 187962692 | S45: 24118569 | T45: 11342221 | U45: 0 | V45: 0 | W45: 536363 | X45: 3649870 | Y45: 788300 | Z45: 1196699 | AA45: 185116 | AB45: 480000 | AC45: 0 | AD45: 5940000 | AF45: 0 | AG45: 0 | AH45: 237529620 | AI45: 0 | AJ45: 979364 | AK45: 403856 | AL45: 0 | AM45: 2369922 | AN45: 585 | AO45: 597 | AP45: 5940000 | AQ45: 25089968 | AR45: 10713421 | AS45: 0 | AT45: 580383 | AU45: 3162175 | AV45: 1518320 | AW45: 1060000 | AX45: 970000 | AY45: 0 | AZ45: 0 | BA45: 7085669 | BC45: 0 | BD45: 0 | BE45: 228513242 | BF45: 167273 | BG45: 831721 | BH45: 495862 | BI45: 0 | BJ45: 3501762 | BK45: 723.67 | BL45: 7025668 | BM45: 18936682.03 | BN45: 3307965.28 | BO45: 0 | BP45: 0 | BQ45: 3658819.28 | BR45: 0 | BS45: 11966005.47 | BT45: 0 | BU45: 0 | BV45: 3892 | BW45: 0 | BX45: 0 | BY45: 170028488.5 | BZ45: 662371 | CA45: 394898 | CB45: 13756 | CC45: 0 | CD45: 2758617 | CE45: 19347945.41 | CF45: 0 | CG45: 2081588.412 | CH45: 1041212 | CI45: 4456647 | CJ45: 0 | CK45: 11758085 | CL45: 0 | CM45: 0 | CN45: 10413 | CP45: 0 | CQ45: 0 | CR45: 216505561.8 | CS45: 690850.0038 | CT45: 271595.5992 | CU45: 9983.04205 | CV45: 15000 | CW45: 0 | CX45: 2002050.206 | CY45: 0 | CZ45: 0 | DA45: 18722961.12 | DB45: 3272070.967 | DC45: 0 | DD45: 0 | DE45: 3943703.348 | DF45: 0 | DG45: 10629000.81 | DH45: 288316 | DI45: 23452 | DJ45: 37247 | DK45: 1809 | DL45: 413038 | DM45: 57883 | DN45: 0 | DO45: 0 | DP45: 53817 | DQ45: 0 | DR45: 2624 | DS45: 0 | DT45: 222168551.3 | DU45: 879511.3904 | DV45: 364860.8841 | DW45: 12708.5675 | DX45: 0 | DY45: 0 | DZ45: 2548784.629 | EA45: 0 | EB45: 0 | EC45: 18141712.6 | ED45: 3343318.68 | EE45: 0 | EF45: 0 | EG45: 3970720.28 | EH45: 0 | EI45: 10051343.73 | EJ45: 272943 | EK45: 0 | EL45: 36484 | EM45: 0 | EN45: 388405.91 | EO45: 63195 | EP45: 0 | EQ45: 0 | ER45: 13236 | ES45: 2066 | ET45: 0 | EU45: 222241555.5 | EV45: 1116266.57 | EW45: 455628.04 | EX45: 37665.69 | EY45: 121577 | EZ45: 0 | FA45: 3043579 | FB45: 0 | FD45: 23508659 | FE45: 9481411 | FF45: 0 | FG45: 360682 | FH45: 4104650 | FI45: 1953177 | FJ45: 332699 | FK45: 0 | FL45: 0 | FM45: 0 | FN45: 7276040 | FP45: 0 | FQ45: 0 | FR45: 225558192 | FS45: 0 | FT45: 900931 | FU45: 91403 | FV45: 0 | FW45: 2449147 | FX45: 0 | FY45: 0 | FZ45: 25566380 | GA45: 11422585 | GB45: 12395578 | GC45: 49190 | GD45: 1699027 | GE45: 162290327.9 | GF45: 2517308 | GG45: 177996516.9 | GH45: 27886806.03 | GI45: 13126156.94 | GJ45: 11863343.09 | GK45: 38517 | GL45: 2858789 | GM45: 202975116.4 | GN45: 2180230 | GO45: 216741087.4 | GP45: 30034969 | GQ45: 14563830 | GR45: 12423048 | GS45: 135927 | GT45: 2912164 | GU45: 240790898 | GV45: 2180230 | GW45: 255457536 | GX45: 29977281.66 | GY45: 14230360 | GZ45: 12337626 | HA45: 191262.6623 | HB45: 3218033 | HC45: 235615687.1 | HD45: 2355640 | HE45: 259179634.6 | HG45: 0 | HH45: 111 | HI45: 135 | HJ45: 507 | HK45: 114 | HL45: 35 | HM45: 12 | HN45: 914
A46: 336 | B46: Wolverhampton | C46: 25862491.66 | D46: 189836488.7 | E46: 26602297.61 | F46: 196683181.3 | G46: 27605705.19 | H46: 202170023.4 | I46: 27662002.93 | J46: 200310000 | L46: 154162127 | M46: 20291349 | N46: 0.1316234369 | O46: 2884008 | P46: 0 | Q46: 157046135 | S46: 18866760 | T46: 1253830 | U46: 250000 | V46: 0 | W46: 0 | X46: 970000 | Y46: 250000 | Z46: 1417910 | AA46: 31430 | AB46: 368000 | AC46: 150000 | AD46: 14175590 | AF46: 0 | AG46: 0 | AH46: 206765705 | AI46: 0 | AJ46: 1924510 | AK46: 224620 | AL46: 148720 | AM46: 2700850 | AN46: 760 | AO46: 760 | AP46: 7600000 | AQ46: 33083834 | AR46: 5988362 | AS46: 0 | AT46: 1125000 | AU46: 1817760 | AV46: 4556608 | AW46: 29253 | AX46: 1114329 | AY46: 0 | AZ46: 0 | BA46: 18452522 | BC46: 0 | BD46: 0 | BE46: 208100202 | BF46: 0 | BG46: 1416328 | BH46: 487294 | BI46: 115764 | BJ46: 2270429 | BK46: 1048.33 | BL46: 10709630 | BM46: 19230725.76 | BN46: 0 | BO46: 4084970 | BP46: 31444 | BQ46: 1785080 | BR46: 0 | BS46: 13314717.7 | BT46: 0 | BU46: 0 | BV46: 14514.06 | BW46: 0 | BX46: 0 | BY46: 193514399.3 | BZ46: 1748830 | CA46: 705476 | CB46: 0 | CC46: 166291 | CD46: 2272540 | CE46: 18716305 | CF46: 0 | CG46: 4035017 | CH46: 24580 | CI46: 1803200 | CJ46: 0 | CK46: 12847073 | CL46: 0 | CM46: 0 | CN46: 5578 | CP46: 857 | CQ46: 0 | CR46: 194789267 | CS46: 1834260 | CT46: 741590 | CU46: 0 | CV46: 122920 | CW46: 67410 | CX46: 1658470 | CY46: 134190 | CZ46: 0 | DA46: 15847662.66 | DB46: 0 | DC46: 1586705 | DD46: 19900 | DE46: 1860352 | DF46: 0 | DG46: 11164270.4 | DH46: 294615 | DI46: 0 | DJ46: 43952 | DK46: 0 | DL46: 747609.2569 | DM46: 105711 | DN46: 0 | DO46: 0 | DP46: 17103 | DQ46: 0 | DR46: 7445 | DS46: 0 | DT46: 200474956.9 | DU46: 1562390 | DV46: 361010 | DW46: 81000 | DX46: 106100 | DY46: 73190 | DZ46: 2748150 | EA46: 108410 | EB46: 0 | EC46: 14615580 | ED46: 0 | EE46: 1216557 | EF46: 19900 | EG46: 1268400 | EH46: 0 | EI46: 10828433 | EJ46: 297677 | EK46: 77566 | EL46: 42256 | EM46: 7088 | EN46: 734437 | EO46: 90257 | EP46: 0 | EQ46: 0 | ER46: 29472 | ES46: 3537 | ET46: 0 | EU46: 199014738 | EV46: 1471070 | EW46: 366190 | EX46: 81000 | EY46: 106100 | EZ46: 58200 | FA46: 3031600 | FB46: 106800 | FD46: 22813348 | FE46: 5988717 | FF46: 0 | FG46: 1064652 | FH46: 2488687 | FI46: 866999 | FJ46: 450457 | FK46: 732000 | FL46: 248000 | FM46: 0 | FN46: 10973836 | FP46: 0 | FQ46: 0 | FR46: 171677832 | FS46: 1148955 | FT46: 1494480 | FU46: 384356 | FV46: 509595 | FW46: 2772631 | FX46: 33208 | FY46: 40177 | FZ46: 25272612.17 | GA46: 8181332.45 | GB46: 15187360.25 | GC46: 172954.91 | GD46: 1730964.56 | GE46: 205811550 | GF46: 2511959.5 | GG46: 237806386 | GH46: 24725811.77 | GI46: 8673625 | GJ46: 13635769.77 | GK46: 695599 | GL46: 1720818 | GM46: 213065975.5 | GN46: 2393850 | GO46: 245435980.5 | GP46: 25320820.03 | GQ46: 9821614 | GR46: 13337762 | GS46: 190583.51 | GT46: 1970860.52 | GU46: 215509439.7 | GV46: 336115.27 | GW46: 253845915.6 | GX46: 25143772.67 | GY46: 10369625 | GZ46: 12707950 | HA46: 93725.67 | HB46: 1972472 | HC46: 223834360.4 | HD46: 2641944.11 | HE46: 263944621.2 | HG46: 0 | HH46: 140 | HI46: 256 | HJ46: 760 | HK46: 83 | HL46: 162 | HM46: 58 | HN46: 1459
A47: 340 | B47: Knowsley | C47: 18485058.55 | D47: 114342341.9 | E47: 19201094.86 | F47: 115217976.3 | G47: 19791545.49 | H47: 115125970.7 | I47: 19827736.86 | J47: 111665000 | L47: 84867757 | M47: 11110639 | N47: 0.1309170808 | O47: 56147 | P47: 2074032 | Q47: 84923904 | S47: 15651035 | T47: 7244497 | U47: 0 | V47: 0 | W47: 1045205 | X47: 1800000 | Y47: 0 | Z47: 1196209 | AA47: 181188 | AB47: 24769 | AC47: 0 | AD47: 4159167 | AF47: 0 | AG47: 0 | AH47: 115304033 | AI47: 0 | AJ47: 258963 | AK47: 237995 | AL47: 81355 | AM47: 1446123 | AN47: 420 | AO47: 413 | AP47: 4159167 | AQ47: 16400082 | AR47: 2977474 | AS47: 0 | AT47: 0 | AU47: 1201000 | AV47: 1196209 | AW47: 181188 | AX47: 24769 | AY47: 0 | AZ47: 0 | BA47: 10819442 | BC47: 0 | BD47: 0 | BE47: 115245000 | BF47: 0 | BG47: 380451 | BH47: 312326 | BI47: 6885 | BJ47: 1683432 | BK47: 525 | BL47: 9691068 | BM47: 15405975.39 | BN47: 3638377.89 | BO47: 1203538.78 | BP47: 181187.88 | BQ47: 2272700 | BR47: 0 | BS47: 7777648.04 | BT47: 0 | BU47: 24769.23 | BV47: 307753.57 | BW47: 0 | BX47: 0 | BY47: 122665523.9 | BZ47: 510613.34 | CA47: 293917.34 | CB47: 0 | CC47: 38977.55 | CD47: 1603295.03 | CE47: 15592064.33 | CF47: 3584259.466 | CG47: 1256688.778 | CH47: 191610.9951 | CI47: 2175828 | CJ47: 0 | CK47: 7986219 | CL47: 0 | CM47: 1800 | CN47: 395658.0869 | CP47: 0 | CQ47: 0 | CR47: 122335661.6 | CS47: 461729.6896 | CT47: 287063.6781 | CU47: 0 | CV47: 77229 | CW47: 0 | CX47: 1676051.398 | CY47: 0 | CZ47: 0 | DA47: 15873938.89 | DB47: 3310766.844 | DC47: 1156143.544 | DD47: 191610.9951 | DE47: 2094661 | DF47: 0 | DG47: 8509519.353 | DH47: 278637.6094 | DI47: 39000 | DJ47: 38731 | DK47: 1809 | DL47: 176402.8195 | DM47: 0.0001 | DN47: 0 | DO47: 0 | DP47: 76656.72734 | DQ47: 0 | DR47: 0 | DS47: 0 | DT47: 118743198.2 | DU47: 640061.2935 | DV47: 277229.3132 | DW47: 0 | DX47: 79779.03748 | DY47: 0 | DZ47: 1929258.953 | EA47: 0 | EB47: 0 | EC47: 15863107.62 | ED47: 3422418.87 | EE47: 1154124.68 | EF47: 189713.86 | EG47: 2056252.41 | EH47: 0 | EI47: 8319716.1 | EJ47: 309285.31 | EK47: 38000 | EL47: 37576 | EM47: 1772 | EN47: 215401 | EO47: 37063 | EP47: 0 | EQ47: 0 | ER47: 81784.39 | ES47: 0 | ET47: 0 | EU47: 119701751.4 | EV47: 735432.55 | EW47: 352167.21 | EX47: 0 | EY47: 80432.76 | EZ47: 0 | FA47: 1696916.27 | FB47: 0 | FD47: 16998246.82 | FE47: 7103450.43 | FF47: 0 | FG47: 783975.39 | FH47: 2117441 | FI47: 1026999 | FJ47: 166381 | FK47: 0 | FL47: 0 | FM47: 0 | FN47: 5800000 | FP47: 0 | FQ47: 0 | FR47: 105505862.9 | FS47: 0 | FT47: 195322 | FU47: 288991 | FV47: 10000 | FW47: 1813669 | FX47: 13271 | FY47: 0 | FZ47: 15786748.96 | GA47: 3616223.8 | GB47: 8618857.95 | GC47: 1316615.21 | GD47: 2235052 | GE47: 129996083.7 | GF47: 1776939.77 | GG47: 174112677.2 | GH47: 14308071.84 | GI47: 3211828.41 | GJ47: 9039711.26 | GK47: 260304.73 | GL47: 1796227.44 | GM47: 130892440.1 | GN47: 1707128.67 | GO47: 189258770.4 | GP47: 16601578.75 | GQ47: 3234182 | GR47: 10794590 | GS47: 118134.21 | GT47: 2454672.54 | GU47: 134678520.5 | GV47: 2009241.25 | GW47: 203905479.9 | GX47: 15839067.87 | GY47: 3053806.59 | GZ47: 10677228 | HA47: 106252.5732 | HB47: 2001780.71 | HC47: 130591692.5 | HD47: 2051616.44 | HE47: 201264042.9 | HG47: 76 | HH47: 0 | HI47: 113 | HJ47: 377 | HK47: 60 | HL47: 45 | HM47: 91 | HN47: 762
A48: 341 | B48: Liverpool | C48: 38051463.8 | D48: 325319830 | E48: 41373692.67 | F48: 334137807.4 | G48: 42884816.11 | H48: 340246037.5 | I48: 43642641.07 | J48: 353940000 | L48: 253448571 | M48: 35051593 | N48: 0.1382986413 | O48: 6014917 | P48: 0 | Q48: 259463488 | S48: 40446644 | T48: 14606822 | U48: 0 | V48: 0 | W48: 593739 | X48: 5012202 | Y48: 0 | Z48: 7867246 | AA48: 46420 | AB48: 40720 | AC48: 0 | AD48: 12104167 | AF48: 175328 | AG48: 0 | AH48: 358035041 | AI48: 471123 | AJ48: 283702 | AK48: 572089 | AL48: 156233 | AM48: 4612595 | AN48: 1190 | AO48: 1225 | AP48: 12104167 | AQ48: 40685385 | AR48: 16094677 | AS48: 0 | AT48: 0 | AU48: 6310400 | AV48: 5772464 | AW48: 24554 | AX48: 38001 | AY48: 0 | AZ48: 0 | BA48: 12329961 | BC48: 115328 | BD48: 0 | BE48: 355223439 | BF48: 506701 | BG48: 436389 | BH48: 627353 | BI48: 266511 | BJ48: 4269988 | BK48: 1227.09 | BL48: 12108834 | BM48: 30040848.08 | BN48: 0 | BO48: 5200774 | BP48: 24439 | BQ48: 3632302 | BR48: 0 | BS48: 20970005.08 | BT48: 0 | BU48: 0 | BV48: 38000 | BW48: 175328 | BX48: 0 | BY48: 358167142.4 | BZ48: 454051 | CA48: 617790 | CB48: 461938 | CC48: 365283 | CD48: 4740663 | CE48: 28789885 | CF48: 0 | CG48: 5245996 | CH48: 368951 | CI48: 2997573 | CJ48: 0 | CK48: 19804865 | CL48: 0 | CM48: 0 | CN48: 171274 | CP48: 175328 | CQ48: 25898 | CR48: 372760766 | CS48: 351341 | CT48: 556187 | CU48: 486881 | CV48: 408507 | CW48: 92817 | CX48: 3791265 | CY48: 578479 | CZ48: 80097 | DA48: 29408291 | DB48: 4922931 | DC48: 1885275 | DD48: 62272 | DE48: 3078069 | DF48: 0 | DG48: 16962117 | DH48: 529281 | DI48: 0 | DJ48: 64806 | DK48: 0 | DL48: 1226647 | DM48: 373715 | DN48: 0 | DO48: 0 | DP48: 124894 | DQ48: 0 | DR48: 178284 | DS48: 0 | DT48: 382224355 | DU48: 538886 | DV48: 473659 | DW48: 0 | DX48: 483311 | DY48: 459224 | DZ48: 4133525.091 | EA48: 191072.6042 | EB48: 96348.98 | EC48: 28116740 | ED48: 3873621 | EE48: 2442344 | EF48: 392309 | EG48: 3090196 | EH48: 0 | EI48: 15638635 | EJ48: 519569 | EK48: 2990 | EL48: 65040 | EM48: 354 | EN48: 1049238 | EO48: 185800 | EP48: 0 | EQ48: 0 | ER48: 124427 | ES48: 732217 | ET48: 0 | EU48: 370470434 | EV48: 577118 | EW48: 103964 | EX48: 0 | EY48: 316754 | EZ48: 245973 | FA48: 3900749 | FB48: 438911 | FD48: 40183219 | FE48: 14714321 | FF48: 0 | FG48: 0 | FH48: 5965491 | FI48: 7191944 | FJ48: 24348 | FK48: 2954 | FL48: 0 | FM48: 0 | FN48: 12108833 | FP48: 175328 | FQ48: 0 | FR48: 322084270 | FS48: 735297 | FT48: 411398 | FU48: 617449 | FV48: 267800 | FW48: 4630073 | FX48: 74029 | FY48: 0 | FZ48: 41098211 | GA48: 12023799 | GB48: 22178118 | GC48: 1578108 | GD48: 5318186 | GE48: 358599570.2 | GF48: 4308163 | GG48: 391890377.2 | GH48: 38284987.51 | GI48: 12446275.9 | GJ48: 20165437.61 | GK48: 1001383 | GL48: 4671891 | GM48: 378296953.3 | GN48: 4616188 | GO48: 416442980.3 | GP48: 36727970 | GQ48: 11295017 | GR48: 19249001 | GS48: 2150270 | GT48: 4033682 | GU48: 417465722 | GV48: 4248534 | GW48: 476989644 | GX48: 36111765.28 | GY48: 11144503.58 | GZ48: 18658443.7 | HA48: 2884317 | HB48: 3424501 | HC48: 420030094.6 | HD48: 3990091 | HE48: 496245643.6 | HG48: 106 | HH48: 362 | HI48: 273 | HJ48: 1059 | HK48: 224 | HL48: 50 | HM48: 49 | HN48: 2123
A49: 342 | B49: St Helens | C49: 16730252.05 | D49: 124239180.3 | E49: 17058078.58 | F49: 127046650.4 | G49: 17785827.3 | H49: 128665145.7 | I49: 18108053.85 | J49: 127138000 | L49: 99403512 | M49: 3795880 | N49: 0.03818657836 | O49: 635427 | P49: 0 | Q49: 100038939 | S49: 16720692 | T49: 8356604 | U49: 0 | V49: 0 | W49: 0 | X49: 2024988 | Y49: 0 | Z49: 1982809 | AA49: 0 | AB49: 0 | AC49: 50500 | AD49: 3957663 | AF49: 348128 | AG49: 0 | AH49: 132973643 | AI49: 0 | AJ49: 605528 | AK49: 145668 | AL49: 61493 | AM49: 1977759 | AN49: 348 | AO49: 348 | AP49: 3496303 | AQ49: 16261428 | AR49: 4779878 | AS49: 0 | AT49: 0 | AU49: 1707290 | AV49: 1925258 | AW49: 0 | AX49: 0 | AY49: 0 | AZ49: 50500 | BA49: 7766996 | BC49: 31506 | BD49: 0 | BE49: 132070843 | BF49: 0 | BG49: 611206 | BH49: 205448 | BI49: 78316 | BJ49: 2054509 | BK49: 435 | BL49: 8409859 | BM49: 10228253.05 | BN49: 517124 | BO49: 1411024 | BP49: 0 | BQ49: 1492543 | BR49: 50500 | BS49: 6649560.05 | BT49: 0 | BU49: 0 | BV49: 75996 | BW49: 31506 | BX49: 0 | BY49: 121319389.5 | BZ49: 548559 | CA49: 179525 | CB49: 0 | CC49: 63154 | CD49: 2154218 | CE49: 10134837 | CF49: 466985 | CG49: 1420030 | CH49: 0 | CI49: 1491109 | CJ49: 50500 | CK49: 6665960 | CL49: 0 | CM49: 0 | CN49: 12693 | CP49: 27560 | CQ49: 0 | CR49: 124933275 | CS49: 567450 | CT49: 165923 | CU49: 0 | CV49: 60782 | CW49: 13174 | CX49: 1982051 | CY49: 227000 | CZ49: 0 | DA49: 10190923 | DB49: 466362 | DC49: 1472860 | DD49: 0 | DE49: 1444189 | DF49: 50500 | DG49: 6114362 | DH49: 126838 | DI49: 0 | DJ49: 19726 | DK49: 0 | DL49: 264749 | DM49: 32399 | DN49: 0 | DO49: 0 | DP49: 20937 | DQ49: 0 | DR49: 178001 | DS49: 0 | DT49: 128622764 | DU49: 591162 | DV49: 211881 | DW49: 0 | DX49: 16379 | DY49: 17061 | DZ49: 1872585 | EA49: 196000 | EB49: 0 | EC49: 9901865 | ED49: 463464 | EE49: 1421571 | EF49: 0 | EG49: 1318635 | EH49: 50000 | EI49: 5987441 | EJ49: 127964 | EK49: 0 | EL49: 18808 | EM49: 0 | EN49: 266421 | EO49: 60827 | EP49: 0 | EQ49: 0 | ER49: 12296 | ES49: 174438 | ET49: 0 | EU49: 130508458 | EV49: 594634 | EW49: 243662 | EX49: 0 | EY49: 15924 | EZ49: 17194 | FA49: 1873098 | FB49: 196000 | FD49: 16631712 | FE49: 4553473 | FF49: 0 | FG49: 0 | FH49: 1956903 | FI49: 1884527 | FJ49: 0 | FK49: 0 | FL49: 0 | FM49: 50500 | FN49: 7809457 | FP49: 376852 | FQ49: 0 | FR49: 119870083 | FS49: 0 | FT49: 530435 | FU49: 185015 | FV49: 66531 | FW49: 1779911 | FX49: 200576 | FY49: 0 | FZ49: 13748926.05 | GA49: 4586409.84 | GB49: 7439342.21 | GC49: 279002.88 | GD49: 1444171.12 | GE49: 129151377.7 | GF49: 2011937.54 | GG49: 138676548.3 | GH49: 12839382.47 | GI49: 4147247.32 | GJ49: 7306777.68 | GK49: 331566.38 | GL49: 1053791.09 | GM49: 130083759.2 | GN49: 2053896.97 | GO49: 140950320.5 | GP49: 13291203.04 | GQ49: 4275674 | GR49: 7240802 | GS49: 532859.04 | GT49: 1241868 | GU49: 140255170.5 | GV49: 1963818 | GW49: 152546831.4 | GX49: 13424726.24 | GY49: 4467279 | GZ49: 6982929 | HA49: 689897.24 | HB49: 1284621 | HC49: 142561716.4 | HD49: 1929251.71 | HE49: 160772618.7 | HG49: 0 | HH49: 50 | HI49: 110 | HJ49: 301 | HK49: 54 | HL49: 32 | HM49: 15 | HN49: 562
A50: 343 | B50: Sefton | C50: 23897188 | D50: 190872845.7 | E50: 25084077.26 | F50: 192231140.9 | G50: 26660897.77 | H50: 193582774.5 | I50: 26945295.22 | J50: 191273000 | L50: 153783212 | M50: 23392926 | N50: 0.1521162531 | O50: 5126 | P50: 0 | Q50: 153788338 | S50: 21623370 | T50: 8707999 | U50: 0 | V50: 0 | W50: 205785 | X50: 3467778 | Y50: 200000 | Z50: 3446404 | AA50: 485404 | AB50: 0 | AC50: 0 | AD50: 5110000 | AF50: 0 | AG50: 0 | AH50: 192948292 | AI50: 0 | AJ50: 945810.05 | AK50: 366241.17 | AL50: 483927.75 | AM50: 3601283 | AN50: 497 | AO50: 521 | AP50: 5110000 | AQ50: 22993633 | AR50: 9171293 | AS50: 0 | AT50: 192743 | AU50: 3996859 | AV50: 4751718 | AW50: 541020 | AX50: 0 | AY50: 0 | AZ50: 0 | BA50: 4340000 | BC50: 0 | BD50: 0 | BE50: 192275676 | BF50: 25400 | BG50: 754950 | BH50: 187550 | BI50: 260500 | BJ50: 524800 | BK50: 631 | BL50: 11898862 | BM50: 15543172.09 | BN50: 732350 | BO50: 2305442 | BP50: 227591 | BQ50: 3983250 | BR50: 0 | BS50: 8280939.09 | BT50: 0 | BU50: 0 | BV50: 13600 | BW50: 0 | BX50: 0 | BY50: 174138410.2 | BZ50: 803100 | CA50: 186550 | CB50: 59500 | CC50: 53400 | CD50: 3168950 | CE50: 11174028.67 | CF50: 856375 | CG50: 2101043 | CH50: 283614 | CI50: 2768743 | CJ50: 0 | CK50: 5061267.673 | CL50: 0 | CM50: 0 | CN50: 102986 | CP50: 0 | CQ50: 0 | CR50: 145522469.1 | CS50: 671000 | CT50: 122500 | CU50: 95100 | CV50: 194050 | CW50: 122500 | CX50: 3198350 | CY50: 32050 | CZ50: 0 | DA50: 13604200.63 | DB50: 804150 | DC50: 1927600 | DD50: 180800 | DE50: 3067050 | DF50: 0 | DG50: 6903061.631 | DH50: 208620 | DI50: 0 | DJ50: 29255 | DK50: 0 | DL50: 360782 | DM50: 27592 | DN50: 0 | DO50: 0 | DP50: 95290 | DQ50: 0 | DR50: 0 | DS50: 0 | DT50: 205057903.3 | DU50: 862300 | DV50: 134100 | DW50: 95100 | DX50: 135700 | DY50: 0 | DZ50: 3048350 | EA50: 184600 | EB50: 55380 | EC50: 13358865 | ED50: 912271 | EE50: 2237284 | EF50: 186224 | EG50: 2754741 | EH50: 0 | EI50: 6519399 | EJ50: 212428 | EK50: 0 | EL50: 27828 | EM50: 0 | EN50: 380061 | EO50: 25392 | EP50: 0 | EQ50: 0 | ER50: 103237 | ES50: 0 | ET50: 0 | EU50: 200319474.7 | EV50: 862300 | EW50: 134100 | EX50: 94700 | EY50: 136300 | EZ50: 0 | FA50: 3048350 | FB50: 184600 | FD50: 35867704 | FE50: 18166153 | FF50: 0 | FG50: 1085261 | FH50: 3169457 | FI50: 2280380 | FJ50: 769356 | FK50: 0 | FL50: 0 | FM50: 0 | FN50: 10397097 | FP50: 0 | FQ50: 0 | FR50: 175194192 | FS50: 40084 | FT50: 1063564 | FU50: 379797 | FV50: 48291 | FW50: 5087614 | FX50: 0 | FY50: 0 | FZ50: 31251682.45 | GA50: 16306093.98 | GB50: 9528867.47 | GC50: 1241259 | GD50: 4175462 | GE50: 190728858.9 | GF50: 3648560 | GG50: 207261807.9 | GH50: 30858286.97 | GI50: 17240892.38 | GJ50: 8766978.59 | GK50: 1020406 | GL50: 3830010 | GM50: 210713706.6 | GN50: 2942052 | GO50: 222462480.6 | GP50: 32735433.83 | GQ50: 18870615 | GR50: 8844467 | GS50: 989050.01 | GT50: 4031301.82 | GU50: 231007074.1 | GV50: 3753662.43 | GW50: 247117580.8 | GX50: 31843010 | GY50: 17655911 | GZ50: 8609564 | HA50: 1520401 | HB50: 4057134 | HC50: 226389640.8 | HD50: 3542436 | HE50: 241901601.8 | HG50: 153 | HH50: 84 | HI50: 130 | HJ50: 473 | HK50: 84 | HL50: 51 | HM50: 54 | HN50: 1029
A51: 344 | B51: Wirral | C51: 30577980.38 | D51: 227016723.3 | E51: 32310339.03 | F51: 234905159.5 | G51: 33642524.09 | H51: 237278789.6 | I51: 33817738.89 | J51: 236897000 | L51: 183060443 | M51: 8149285 | N51: 0.04451690855 | O51: 90 | P51: 0 | Q51: 183060533 | S51: 31889500 | T51: 8377400 | U51: 0 | V51: 0 | W51: 341400 | X51: 3295200 | Y51: 0 | Z51: 2282700 | AA51: 4648500 | AB51: 0 | AC51: 58200 | AD51: 12796300 | AF51: 89800 | AG51: 0 | AH51: 245802000 | AI51: 18500 | AJ51: 744100 | AK51: 574300 | AL51: 0 | AM51: 4783900 | AN51: 963 | AO51: 963 | AP51: 9678909 | AQ51: 30742900 | AR51: 7435800 | AS51: 0 | AT51: 858300 | AU51: 3315300 | AV51: 2292900 | AW51: 5332900 | AX51: 0 | AY51: 0 | AZ51: 58200 | BA51: 11369700 | BC51: 79800 | BD51: 0 | BE51: 242746354.7 | BF51: 18500 | BG51: 643600 | BH51: 396000 | BI51: 108900 | BJ51: 4787100 | BK51: 1113 | BL51: 11248972 | BM51: 28215244.38 | BN51: 5616800 | BO51: 2296700 | BP51: 231100 | BQ51: 3371100 | BR51: 58200 | BS51: 16250544.38 | BT51: 0 | BU51: 0 | BV51: 261000 | BW51: 129800 | BX51: 0 | BY51: 219964712.1 | BZ51: 728800 | CA51: 291600 | CB51: 18500 | CC51: 69300 | CD51: 4517500 | CE51: 27566600 | CF51: 5558600 | CG51: 2155700 | CH51: 336300 | CI51: 3222200 | CJ51: 58200 | CK51: 16004800 | CL51: 0 | CM51: 0 | CN51: 166000 | CP51: 64800 | CQ51: 0 | CR51: 258475400 | CS51: 644600 | CT51: 342800 | CU51: 37500 | CV51: 69300 | CW51: 0 | CX51: 3817100 | CY51: 86400 | CZ51: 0 | DA51: 27497720 | DB51: 5308200 | DC51: 2491900 | DD51: 331500 | DE51: 3414100 | DF51: 58200 | DG51: 14285500 | DH51: 509036 | DI51: 20695 | DJ51: 67880 | DK51: 1809 | DL51: 712900 | DM51: 100000 | DN51: 0 | DO51: 0 | DP51: 196000 | DQ51: 0 | DR51: 0 | DS51: 0 | DT51: 254247896.3 | DU51: 866500 | DV51: 396800 | DW51: 159200 | DX51: 69300 | DY51: 0 | DZ51: 4346400 | EA51: 86400 | EB51: 0 | EC51: 26567648 | ED51: 4494600 | EE51: 2730000 | EF51: 177500 | EG51: 3940000 | EH51: 58200 | EI51: 13783300 | EJ51: 483076 | EK51: 0 | EL51: 67172 | EM51: 0 | EN51: 613300 | EO51: 71100 | EP51: 0 | EQ51: 0 | ER51: 149400 | ES51: 0 | ET51: 0 | EU51: 245530501 | EV51: 827500 | EW51: 392900 | EX51: 50600 | EY51: 69300 | EZ51: 0 | FA51: 4310000 | FB51: 86400 | FD51: 29400315 | FE51: 9596751 | FF51: 0 | FG51: 1815079 | FH51: 3674686 | FI51: 1802314 | FJ51: 994903 | FK51: 0 | FL51: 0 | FM51: 58200 | FN51: 11397756 | FP51: 60626 | FQ51: 0 | FR51: 182157353 | FS51: 18500 | FT51: 586518 | FU51: 333819 | FV51: 0 | FW51: 4704473 | FX51: 123306 | FY51: 298576 | FZ51: 34443573.22 | GA51: 11880935.49 | GB51: 18848597.73 | GC51: 420421 | GD51: 3293619 | GE51: 218375827.7 | GF51: 4879008 | GG51: 236875267.7 | GH51: 35533728.45 | GI51: 13170090.02 | GJ51: 18425253.43 | GK51: 493536 | GL51: 3444849 | GM51: 249528836.5 | GN51: 5304609 | GO51: 279645106.5 | GP51: 37443884 | GQ51: 15461131 | GR51: 17903985 | GS51: 597963 | GT51: 3480805 | GU51: 271179523 | GV51: 4887264 | GW51: 309877447 | GX51: 34177052 | GY51: 12735326 | GZ51: 17261834 | HA51: 563697 | HB51: 3616195 | HC51: 267091879.7 | HD51: 4775655 | HE51: 294086516.7 | HG51: 148 | HH51: 135 | HI51: 80 | HJ51: 904 | HK51: 173 | HL51: 96 | HM51: 66 | HN51: 1602
A52: 350 | B52: Bolton | C52: 25055804.19 | D52: 219941761.2 | E52: 25828975.88 | F52: 228149123.6 | G52: 27148496.27 | H52: 233724209.1 | I52: 27496647.88 | J52: 233004000 | L52: 183967457 | M52: 17703409 | N52: 0.0962311992 | O52: 440068 | P52: 0 | Q52: 184407525 | S52: 25729500 | T52: 11558800 | U52: 0 | V52: 0 | W52: 513200 | X52: 4453900 | Y52: 157600 | Z52: 2701500 | AA52: 1083900 | AB52: 0 | AC52: 0 | AD52: 5260600 | AF52: 0 | AG52: 0 | AH52: 239637599 | AI52: 47900 | AJ52: 225252 | AK52: 224676 | AL52: 21800 | AM52: 3287500 | AN52: 539 | AO52: 555 | AP52: 5536664 | AQ52: 25926931 | AR52: 11826924 | AS52: 0 | AT52: 777654 | AU52: 3682192 | AV52: 2708661 | AW52: 1009500 | AX52: 0 | AY52: 0 | AZ52: 0 | BA52: 5922000 | BC52: 0 | BD52: 0 | BE52: 234419430 | BF52: 37200 | BG52: 230321 | BH52: 217798 | BI52: 89700 | BJ52: 3273700 | BK52: 642.9 | BL52: 6277206 | BM52: 17782387.78 | BN52: 957500 | BO52: 1328160.4 | BP52: 1268000 | BQ52: 2768096.37 | BR52: 0 | BS52: 11405431.01 | BT52: 0 | BU52: 0 | BV52: 0 | BW52: 55200 | BX52: 0 | BY52: 219634370.7 | BZ52: 246754 | CA52: 214494 | CB52: 36500 | CC52: 89700 | CD52: 3160200 | CE52: 15566383 | CF52: 61600 | CG52: 1333000 | CH52: 1180600 | CI52: 2044500 | CJ52: 0 | CK52: 10727352 | CL52: 0 | CM52: 1931 | CN52: 163600 | CP52: 53800 | CQ52: 0 | CR52: 216391434.7 | CS52: 283100 | CT52: 310600 | CU52: 33300 | CV52: 87400 | CW52: 7500 | CX52: 2879000 | CY52: 0 | CZ52: 0 | DA52: 15070661.18 | DB52: 62300 | DC52: 1327500 | DD52: 1138600 | DE52: 2004400 | DF52: 0 | DG52: 9639060.177 | DH52: 252705.003 | DI52: 0 | DJ52: 31926 | DK52: 0 | DL52: 516122 | DM52: 44848 | DN52: 0 | DO52: 0 | DP52: 0 | DQ52: 0 | DR52: 53200 | DS52: 0 | DT52: 220283183.4 | DU52: 593800 | DV52: 371200 | DW52: 69500 | DX52: 85700 | DY52: 38000 | DZ52: 2929900 | EA52: 0 | EB52: 0 | EC52: 14111779.97 | ED52: 61900 | EE52: 1200900 | EF52: 1028600 | EG52: 1974800 | EH52: 0 | EI52: 9054690.45 | EJ52: 242023 | EK52: 0 | EL52: 31272 | EM52: 0 | EN52: 409522.49 | EO52: 55672.03 | EP52: 0 | EQ52: 0 | ER52: 0 | ES52: 52400 | ET52: 0 | EU52: 209019564.5 | EV52: 589830 | EW52: 369070 | EX52: 71300 | EY52: 84400 | EZ52: 36900 | FA52: 2849681 | FB52: 0 | FD52: 26280532 | FE52: 12449935 | FF52: 0 | FG52: 527198 | FH52: 3923078 | FI52: 2800109 | FJ52: 587453 | FK52: 0 | FL52: 0 | FM52: 0 | FN52: 5992759 | FP52: 0 | FQ52: 0 | FR52: 213079592 | FS52: 44372 | FT52: 159326 | FU52: 208481 | FV52: 20640 | FW52: 3225421 | FX52: 0 | FY52: 0 | FZ52: 27416746.99 | GA52: 10552619.5 | GB52: 13156776.49 | GC52: 1036266 | GD52: 2671085 | GE52: 233952865.4 | GF52: 2399585 | GG52: 260312739.4 | GH52: 25566393.81 | GI52: 10351232.33 | GJ52: 11950709.87 | GK52: 851384.38 | GL52: 2413067.23 | GM52: 233956078.6 | GN52: 2403107.43 | GO52: 258423774.3 | GP52: 24714972 | GQ52: 10428293 | GR52: 11236602 | GS52: 595849 | GT52: 2454228 | GU52: 230588104 | GV52: 2605549 | GW52: 257881475 | GX52: 23658494 | GY52: 10472575 | GZ52: 10313785 | HA52: 543017 | HB52: 2329117 | HC52: 229276783 | HD52: 2566666 | HE52: 265345187 | HG52: 0 | HH52: 29 | HI52: 114 | HJ52: 481 | HK52: 126 | HL52: 109 | HM52: 66 | HN52: 925
A53: 351 | B53: Bury | C53: 22074585.37 | D53: 135810785.1 | E53: 22498757.78 | F53: 140174175.8 | G53: 24077280.31 | H53: 144153536.3 | I53: 24338519.5 | J53: 148271000 | L53: 106875326 | M53: 9512319 | N53: 0.0890038829 | O53: 1264671 | P53: 0 | Q53: 108139997 | S53: 24986875 | T53: 7747950 | U53: 0 | V53: 110000 | W53: 196505 | X53: 4678000 | Y53: 4597720 | Z53: 3316700 | AA53: 1155000 | AB53: 0 | AC53: 0 | AD53: 3185000 | AF53: 0 | AG53: 0 | AH53: 145121457 | AI53: 0 | AJ53: 369900 | AK53: 80000 | AL53: 56200 | AM53: 1554000 | AN53: 460 | AO53: 478 | AP53: 4401000.33 | AQ53: 23979916 | AR53: 12705350 | AS53: 0 | AT53: 443900 | AU53: 3478000 | AV53: 2473400 | AW53: 741600 | AX53: 0 | AY53: 0 | AZ53: 0 | BA53: 4137666 | BC53: 0 | BD53: 0 | BE53: 142060354 | BF53: 0 | BG53: 342100 | BH53: 88100 | BI53: 62600 | BJ53: 1630600 | BK53: 444.16 | BL53: 4137600 | BM53: 13786299.12 | BN53: 2058900 | BO53: 94800 | BP53: 1131390 | BQ53: 3695000 | BR53: 0 | BS53: 6806209.12 | BT53: 0 | BU53: 0 | BV53: 0 | BW53: 0 | BX53: 0 | BY53: 140164709.7 | BZ53: 401900 | CA53: 285500 | CB53: 0 | CC53: 62600 | CD53: 1855100 | CE53: 12491817 | CF53: 1337300 | CG53: 197000 | CH53: 1042100 | CI53: 3645000 | CJ53: 0 | CK53: 6270417 | CL53: 0 | CM53: 0 | CN53: 0 | CO53: 0 | CP53: 0 | CQ53: 0 | CR53: 134312863 | CS53: 434700 | CT53: 0 | CU53: 0 | CV53: 62600 | CW53: 67400 | CX53: 1887300 | CY53: 0 | CZ53: 19800 | DA53: 12163579 | DB53: 1303180 | DC53: 189100 | DD53: 1098600 | DE53: 3644991 | DF53: 0 | DG53: 5400210 | DH53: 123570 | DI53: 12893 | DJ53: 18770 | DK53: 1809 | DL53: 322298 | DM53: 48158 | DN53: 0 | DO53: 0 | DP53: 0 | DQ53: 0 | DR53: 0 | DS53: 0 | DT53: 139933004 | DU53: 444000 | DV53: 0 | DW53: 0 | DX53: 62600 | DY53: 83120 | DZ53: 1879300 | EA53: 0 | EB53: 0 | EC53: 11295440 | ED53: 1104800 | EE53: 105900 | EF53: 1071600 | EG53: 3348291 | EH53: 0 | EI53: 5255720 | EJ53: 129090 | EK53: 12628 | EL53: 18340 | EM53: 1772 | EN53: 232792 | EO53: 14507 | EP53: 0 | EQ53: 0 | ER53: 0 | ES53: 0 | ET53: 0 | EU53: 131574558.9 | EV53: 479300 | EW53: 0 | EX53: 0 | EY53: 70500 | EZ53: 162100 | FA53: 2037000 | FB53: 0 | FD53: 23294276 | FE53: 10327226 | FF53: 0 | FG53: 1215855 | FH53: 4198650 | FI53: 1604346 | FJ53: 1104646 | FK53: 0 | FL53: 0 | FM53: 0 | FN53: 4843553 | FP53: 0 | FQ53: 0 | FR53: 140222603 | FS53: 0 | FT53: 502829 | FU53: 52390 | FV53: 56138 | FW53: 1878956 | FX53: 135956 | FY53: 0 | FZ53: 23317285.1 | GA53: 12289235 | GB53: 6871099.1 | GC53: 382059 | GD53: 3774892 | GE53: 147058555.1 | GF53: 1649384 | GG53: 158116354.1 | GH53: 21833862.94 | GI53: 11491130 | GJ53: 6360565.94 | GK53: 380045 | GL53: 3602122 | GM53: 142352932.2 | GN53: 1656241 | GO53: 153312939.2 | GP53: 21545368 | GQ53: 11446850 | GR53: 6265942 | GS53: 487501 | GT53: 3345075 | GU53: 148968940 | GV53: 2005186 | GW53: 161639502 | GX53: 20863654 | GY53: 10959785 | GZ53: 5654807 | HA53: 752615 | HB53: 3496447 | HC53: 144904741 | HD53: 2054748 | HE53: 165220516 | HG53: 56 | HH53: 12 | HI53: 152 | HJ53: 273 | HK53: 78 | HL53: 67 | HM53: 31 | HN53: 669
A54: 352 | B54: Manchester | C54: 56723524.48 | D54: 382748986.6 | E54: 59828191.79 | F54: 403024019.2 | G54: 63337356.67 | H54: 418303423.6 | I54: 64306697.23 | J54: 445152000 | L54: 310242600 | M54: 37946918 | N54: 0.1223136926 | O54: 2284282 | P54: 42035 | Q54: 312526882 | S54: 55039537 | T54: 26253611 | U54: 0 | V54: 0 | W54: 3081258 | X54: 9498906 | Y54: 78968 | Z54: 3252044 | AA54: 2409480 | AB54: 0 | AC54: 500000 | AD54: 9965270 | AF54: 0 | AG54: 0 | AH54: 414321629 | AI54: 0 | AJ54: 1000000 | AK54: 1264000 | AL54: 0 | AM54: 5214634 | AN54: 1015 | AO54: 1015 | AP54: 10150000 | AQ54: 57590292 | AR54: 10490049 | AS54: 0 | AT54: 1441297 | AU54: 7011260 | AV54: 2420000 | AW54: 2504000 | AX54: 0 | AY54: 0 | AZ54: 500000 | BA54: 33223686 | BC54: 0 | BD54: 0 | BE54: 401920000 | BF54: 0 | BG54: 1031352 | BH54: 372660 | BI54: 180745 | BJ54: 6671866 | BK54: 1486 | BL54: 14024000 | BM54: 44211734.89 | BN54: 2663245 | BO54: 2564732 | BP54: 3154068 | BQ54: 5637250 | BR54: 500000 | BS54: 29681578.89 | BT54: 0 | BU54: 1832 | BV54: 9029 | BW54: 0 | BX54: 0 | BY54: 365439981.9 | BZ54: 1079351.94 | CA54: 365483.03 | CB54: 0 | CC54: 460078 | CD54: 25178.28 | CE54: 42873750 | CF54: 3564254 | CG54: 3234522 | CH54: 2657447 | CI54: 8028344 | CJ54: 0 | CK54: 25351133 | CL54: 0 | CM54: 0 | CN54: 30651 | CP54: 0 | CQ54: 7399 | CR54: 370940925 | CS54: 986992 | CT54: 338950 | CU54: 150000 | CV54: 1553655 | CW54: 0 | CX54: 6070923 | CY54: 82879 | CZ54: 0 | DA54: 42250291.97 | DB54: 2417715 | DC54: 3544322 | DD54: 3111324 | DE54: 8928344 | DF54: 0 | DG54: 22076121.67 | DH54: 585493.2944 | DI54: 0 | DJ54: 74494 | DK54: 0 | DL54: 959997 | DM54: 375788 | DN54: 143731 | DO54: 0 | DP54: 32962 | DQ54: 0 | DR54: 0 | DS54: 0 | DT54: 346072037.3 | DU54: 2079686 | DV54: 439656 | DW54: 0 | DX54: 400675 | DY54: 0 | DZ54: 6317830 | EA54: 157946 | EB54: 157946 | EC54: 41441051.17 | ED54: 2271621 | EE54: 3711735 | EF54: 3127422 | EG54: 8759101 | EH54: 0 | EI54: 21569655.91 | EJ54: 576722.83 | EK54: 1368 | EL54: 72968 | EM54: 0 | EN54: 891595.32 | EO54: 268923.11 | EP54: 153924 | EQ54: 0 | ER54: 36015 | ES54: 0 | ET54: 0 | EU54: 338776246.5 | EV54: 2185374 | EW54: 513395 | EX54: 0 | EY54: 472029 | EZ54: 0 | FA54: 6622631 | FB54: 352268 | FD54: 57686706 | FE54: 8647365 | FF54: 0 | FG54: 1782445 | FH54: 8167745 | FI54: 4933304 | FJ54: 0 | FK54: 0 | FL54: 0 | FM54: 500000 | FN54: 33655006 | FP54: 0 | FQ54: 841 | FR54: 327888898 | FS54: 0 | FT54: 1000081 | FU54: 565608 | FV54: 0 | FW54: 4011963 | FX54: 1183105 | FY54: 448437 | FZ54: 67241712.13 | GA54: 28556687.19 | GB54: 30556312.94 | GC54: 116761 | GD54: 8011951 | GE54: 371037645.4 | GF54: 7274818 | GG54: 420709073.4 | GH54: 66653352.55 | GI54: 26809763.78 | GJ54: 29820665.77 | GK54: 174860 | GL54: 9848063 | GM54: 372790837 | GN54: 2912858 | GO54: 417329365 | GP54: 63736365 | GQ54: 25321392 | GR54: 28654572 | GS54: 556365 | GT54: 9204036 | GU54: 374776399 | GV54: 6860790 | GW54: 442380565 | GX54: 63034075 | GY54: 25138156 | GZ54: 27127909 | HA54: 968618 | HB54: 9799392 | HC54: 373602351.4 | HD54: 8041320 | HE54: 454756977.4 | HG54: 42 | HH54: 129 | HI54: 377 | HJ54: 1100 | HK54: 188 | HL54: 186 | HM54: 153 | HN54: 2175
A55: 353 | B55: Oldham | C55: 22954723.28 | D55: 206728425.4 | E55: 23534525.71 | F55: 212998541.7 | G55: 24900485.55 | H55: 217408017.4 | I55: 25530732.68 | J55: 216316000 | L55: 172027230 | M55: 13847875 | N55: 0.08049815718 | O55: 1026 | P55: 0 | Q55: 171668196 | S55: 23101948 | T55: 7012128 | U55: 0 | V55: 0 | W55: 4621669 | X55: 1582610 | Y55: 0 | Z55: 2351570 | AA55: 1672560 | AB55: 0 | AC55: 0 | AD55: 5861411 | AF55: 0 | AG55: 0 | AH55: 217394942 | AI55: 0 | AJ55: 134547 | AK55: 200592 | AL55: 59850 | AM55: 1885900 | AN55: 236 | AO55: 236 | AP55: 2360000 | AQ55: 22030903 | AR55: 8438970 | AS55: 0 | AT55: 3119414 | AU55: 1392610 | AV55: 2323300 | AW55: 1550742 | AX55: 0 | AY55: 0 | AZ55: 0 | BA55: 5205867 | BC55: 0 | BD55: 0 | BE55: 212684720 | BF55: 0 | BG55: 147890 | BH55: 337180 | BI55: 51890 | BJ55: 1903760 | BK55: 267 | BL55: 2554000 | BM55: 18631928.28 | BN55: 2378083 | BO55: 1855211 | BP55: 3824127 | BQ55: 1392610 | BR55: 0 | BS55: 9169525.28 | BT55: 0 | BU55: 5247 | BV55: 5201 | BW55: 1924 | BX55: 0 | BY55: 179627969 | BZ55: 530260 | CA55: 470330 | CB55: 0 | CC55: 59980 | CD55: 2090040 | CE55: 20583244 | CF55: 4720200 | CG55: 1657534 | CH55: 3958884 | CI55: 1240440 | CJ55: 0 | CK55: 8874610 | CL55: 0 | CM55: 0 | CN55: 131576 | CP55: 0 | CQ55: 0 | CR55: 204925370.7 | CS55: 786837 | CT55: 333690 | CU55: 0 | CV55: 62400 | CW55: 0 | CX55: 2481520 | CY55: 0 | CZ55: 0 | DA55: 20559697 | DB55: 5860456 | DC55: 1230566 | DD55: 3453383 | DE55: 1233580 | DF55: 0 | DG55: 8094319 | DH55: 189468 | DI55: 0 | DJ55: 19461 | DK55: 0 | DL55: 371328 | DM55: 27231 | DN55: 0 | DO55: 0 | DP55: 79905 | DQ55: 0 | DR55: 0 | DS55: 0 | DT55: 204170624 | DU55: 642800 | DV55: 1239904 | DW55: 0 | DX55: 56110 | DY55: 0 | DZ55: 0 | EA55: 0 | EB55: 0 | EC55: 14328313 | ED55: 0 | EE55: 2014637 | EF55: 2969826 | EG55: 1360977 | EH55: 0 | EI55: 7442509 | EJ55: 188762 | EK55: 0 | EL55: 18496 | EM55: 0 | EN55: 195486 | EO55: 26000 | EP55: 0 | EQ55: 0 | ER55: 111620 | ES55: 0 | ET55: 0 | EU55: 202881559 | EV55: 818178 | EW55: 712278 | EX55: 0 | EY55: 62340 | EZ55: 64747 | FA55: 2676731 | FB55: 0 | FD55: 19305101 | FE55: 7476196 | FF55: 0 | FG55: 3537672 | FH55: 1422610 | FI55: 2201570 | FJ55: 1672469 | FK55: 0 | FL55: 0 | FM55: 0 | FN55: 2994584 | FP55: 0 | FQ55: 0 | FR55: 169850331 | FS55: 572217 | FT55: 418894 | FU55: 255194 | FV55: 35306 | FW55: 1765534 | FX55: 0 | FY55: 0 | FZ55: 22267432.11 | GA55: 13763193.76 | GB55: 7029106.35 | GC55: 82522 | GD55: 1392610 | GE55: 184505967.9 | GF55: 2124993 | GG55: 200182338.9 | GH55: 22848901.78 | GI55: 10617773.94 | GJ55: 10265227.84 | GK55: 440040 | GL55: 1525860 | GM55: 193138179.4 | GN55: 2299147 | GO55: 211505739.4 | GP55: 22605586 | GQ55: 10874081 | GR55: 9799640 | GS55: 386158 | GT55: 1545707 | GU55: 208778741 | GV55: 2178139 | GW55: 229741066 | GX55: 22790211 | GY55: 12280762 | GZ55: 9068518 | HA55: 349838 | HB55: 1091093 | HC55: 214058630.5 | HD55: 2307036 | HE55: 233129633.5 | HG55: 0 | HH55: 46 | HI55: 40 | HJ55: 437 | HK55: 110 | HL55: 34 | HM55: 74 | HN55: 741
A56: 354 | B56: Rochdale | C56: 21712718 | D56: 169762365.6 | E56: 22092760.75 | F56: 173705492.6 | G56: 22747629.72 | H56: 177576988.2 | I56: 22915773.34 | J56: 178646000 | L56: 143179883 | M56: 12826481 | N56: 0.08958298283 | O56: 878117 | P56: 0 | Q56: 144058001 | S56: 19726838 | T56: 8738116 | U56: 0 | V56: 0 | W56: 468516 | X56: 3005573 | Y56: 0 | Z56: 2527913 | AA56: 262655 | AB56: 0 | AC56: 0 | AD56: 4720000 | AF56: 4065 | AG56: 0 | AH56: 180499047 | AI56: 0 | AJ56: 603471 | AK56: 449245 | AL56: 68025 | AM56: 2295548 | AN56: 472 | AO56: 472 | AP56: 4720000 | AQ56: 16579553 | AR56: 6892190 | AS56: 0 | AT56: 0 | AU56: 1507787 | AV56: 1990930 | AW56: 319001 | AX56: 0 | AY56: 0 | AZ56: 0 | BA56: 5690000 | BC56: 179645 | BD56: 0 | BE56: 175689051 | BF56: 0 | BG56: 528222 | BH56: 416320 | BI56: 67739 | BJ56: 2523304 | BK56: 595 | BL56: 5690000 | BM56: 13988788.99 | BN56: 2112166 | BO56: 877489 | BP56: 661033 | BQ56: 1794734 | BR56: 0 | BS56: 8364999.99 | BT56: 0 | BU56: 0 | BV56: 32232 | BW56: 146135 | BX56: 0 | BY56: 176560360.1 | BZ56: 570300 | CA56: 397124 | CB56: 0 | CC56: 72144 | CD56: 2186163 | CE56: 13859087.1 | CF56: 1195914.703 | CG56: 2345996.009 | CH56: 88568.05873 | CI56: 1761735.871 | CJ56: 0 | CK56: 8211000 | CL56: 0 | CM56: 0 | CN56: 64600 | CO56: 0 | CP56: 191272.462 | CQ56: 0 | CR56: 175344471.9 | CS56: 515200 | CT56: 363442.705 | CU56: 247486.2298 | CV56: 668159 | CW56: 46288.625 | CX56: 2110711 | CY56: 330100 | CZ56: 0 | DA56: 13716362 | DB56: 869398 | DC56: 2499662 | DD56: 207420 | DE56: 1880923 | DF56: 0 | DG56: 7535291 | DH56: 233719 | DI56: 1230 | DJ56: 24199 | DK56: 90 | DL56: 234853 | DM56: 87974 | DN56: 0 | DO56: 0 | DP56: 31030 | DQ56: 0 | DR56: 110573 | DS56: 0 | DT56: 174562111 | DU56: 550277 | DV56: 374040 | DW56: 201721 | DX56: 698793 | DY56: 49258 | DZ56: 1930503 | EA56: 76034 | EB56: 0 | EC56: 13466168.81 | ED56: 749075 | EE56: 2602624 | EF56: 237477 | EG56: 1848034 | EH56: 0 | EI56: 7301101 | EJ56: 235271.81 | EK56: 0 | EL56: 23916 | EM56: 0 | EN56: 229098 | EO56: 72512 | EP56: 0 | EQ56: 0 | ER56: 61722 | ES56: 105338 | ET56: 0 | EU56: 167415141 | EV56: 556501 | EW56: 391473 | EX56: 202021 | EY56: 44700 | EZ56: 56261 | FA56: 1843080 | FB56: 92878 | FD56: 19776626 | FE56: 8262762 | FF56: 0 | FG56: 863798 | FH56: 2034877 | FI56: 2089974 | FJ56: 130835 | FK56: 0 | FL56: 690502 | FM56: 0 | FN56: 5690000 | FP56: 13878 | FQ56: 0 | FR56: 177388383 | FS56: 99732 | FT56: 515139 | FU56: 397443 | FV56: 63639 | FW56: 1626104 | FX56: 651935 | FY56: 0 | FZ56: 21784831 | GA56: 10657741 | GB56: 8885205 | GC56: 1190309 | GD56: 1051576 | GE56: 195835837 | GF56: 2238985 | GG56: 205587966 | GH56: 19281512 | GI56: 8347969 | GJ56: 8645330 | GK56: 1457091 | GL56: 831122 | GM56: 184042813 | GN56: 2155019 | GO56: 196494817 | GP56: 21222251 | GQ56: 8048555 | GR56: 8347183 | GS56: 3083045 | GT56: 1743468 | GU56: 191492174 | GV56: 1938435 | GW56: 213777917 | GX56: 19252355 | GY56: 7213639 | GZ56: 8118824 | HA56: 2326011 | HB56: 1593881 | HC56: 184282751 | HD56: 1936602 | HE56: 213041479 | HG56: 12 | HH56: 24 | HI56: 130 | HJ56: 408 | HK56: 89 | HL56: 60 | HM56: 40 | HN56: 763
A57: 355 | B57: Salford | C57: 25909390.47 | D57: 167672935.4 | E57: 27621856.48 | F57: 176040881.7 | G57: 28940794.04 | H57: 182076487.1 | I57: 29768349.63 | J57: 187823000 | L57: 132893237 | M57: 11062522 | N57: 0.08324367929 | O57: 1126281 | P57: 0 | Q57: 134019518 | S57: 26653862 | T57: 10531937 | U57: 0 | V57: 0 | W57: 3042808 | X57: 5438726 | Y57: 959501 | Z57: 1849944 | AA57: 80946 | AB57: 0 | AC57: 0 | AD57: 4750000 | AF57: 0 | AG57: 0 | AH57: 184241513 | AI57: 185422 | AJ57: 1070344 | AK57: 437423 | AL57: 115403 | AM57: 2669667 | AN57: 363 | AO57: 363 | AP57: 3630000 | AQ57: 25671095 | AR57: 11157393 | AS57: 0 | AT57: 1098972 | AU57: 3910768 | AV57: 2325161 | AW57: 76759 | AX57: 0 | AY57: 0 | AZ57: 0 | BA57: 7102042 | BC57: 0 | BD57: 0 | BE57: 178328591 | BF57: 118614 | BG57: 1042034 | BH57: 403921 | BI57: 118307 | BJ57: 2771724 | BK57: 532 | BL57: 4954000 | BM57: 17314743.3 | BN57: 1806689 | BO57: 2793790 | BP57: 50432 | BQ57: 3206430 | BR57: 0 | BS57: 9457402.3 | BT57: 0 | BU57: 0 | BV57: 0 | BW57: 0 | BX57: 0 | BY57: 166492398.1 | BZ57: 772476 | CA57: 393952 | CB57: 32447 | CC57: 94580 | CD57: 3003927 | CE57: 16488872 | CF57: 42689 | CG57: 1929969 | CH57: 43472 | CI57: 3639337 | CJ57: 0 | CK57: 10823648 | CL57: 0 | CM57: 0 | CN57: 9757 | CP57: 0 | CQ57: 0 | CR57: 166308930.2 | CS57: 646756 | CT57: 323543 | CU57: 16406 | CV57: 52398 | CW57: 34868 | CX57: 3150975 | CY57: 135204 | CZ57: 72802 | DA57: 16231340 | DB57: 556363 | DC57: 1515037 | DD57: 46900 | DE57: 3376053 | DF57: 0 | DG57: 10017246 | DH57: 181495 | DI57: 0 | DJ57: 27273 | DK57: 0 | DL57: 446722 | DM57: 60348 | DN57: 0 | DO57: 0 | DP57: 3903 | DQ57: 0 | DR57: 0 | DS57: 0 | DT57: 169173759 | DU57: 705447 | DV57: 402252 | DW57: 42449 | DX57: 76519 | DY57: 29454 | DZ57: 2731891 | EA57: 185543 | EB57: 99907 | EC57: 15447485.35 | ED57: 699391 | EE57: 1676072 | EF57: 49892 | EG57: 3566593 | EH57: 0 | EI57: 8658084 | EJ57: 198241.35 | EK57: 26003 | EL57: 26464 | EM57: 1772 | EN57: 382266 | EO57: 151232 | EP57: 0 | EQ57: 0 | ER57: 11475 | ES57: 0 | ET57: 0 | EU57: 163501524.8 | EV57: 672851 | EW57: 402495 | EX57: 22233 | EY57: 72831 | EZ57: 21532 | FA57: 2832395 | FB57: 0 | FD57: 22645744.14 | FE57: 11403089.62 | FF57: 0 | FG57: 1213383 | FH57: 4121738.6 | FI57: 2039695.28 | FJ57: 69798.64 | FK57: 0 | FL57: 0 | FM57: 0 | FN57: 3798039 | FP57: 0 | FQ57: 0 | FR57: 158068166.2 | FS57: 274442.69 | FT57: 850077.49 | FU57: 495613.35 | FV57: 134845.39 | FW57: 2809452.88 | FX57: 0 | FY57: 0 | FZ57: 21198250.64 | GA57: 7583420.51 | GB57: 8533860.13 | GC57: 1535487 | GD57: 3545483 | GE57: 174398101 | GF57: 2871073 | GG57: 192724067 | GH57: 24208590.68 | GI57: 7828057.88 | GJ57: 11630631.8 | GK57: 1527483 | GL57: 3222418 | GM57: 179990472.6 | GN57: 3180747 | GO57: 203674511.6 | GP57: 26822093 | GQ57: 7854331 | GR57: 11974850 | GS57: 1784246 | GT57: 5208666 | GU57: 185495865 | GV57: 3639871 | GW57: 206653066 | GX57: 27305597.58 | GY57: 7914738 | GZ57: 12081627 | HA57: 2076683.045 | HB57: 5232549.538 | HC57: 190306611.2 | HD57: 3451547.881 | HE57: 217761607.2 | HG57: 6 | HH57: 114 | HI57: 180 | HJ57: 522 | HK57: 86 | HL57: 23 | HM57: 47 | HN57: 978
A58: 356 | B58: Stockport | C58: 24725245.84 | D58: 183244054.3 | E58: 25821751.48 | F58: 187923302.6 | G58: 27135500.46 | H58: 191765749.9 | I58: 27504381.59 | J58: 194628000 | L58: 149187536 | M58: 22012239 | N58: 0.1475474399 | O58: 0 | P58: 0 | Q58: 149187537 | S58: 22384260 | T58: 6599647 | U58: 0 | V58: 0 | W58: 780462 | X58: 3204427 | Y58: 35857 | Z58: 4866847 | AA58: 1772253 | AB58: 0 | AC58: 0 | AD58: 4629167 | AF58: 0 | AG58: 495600 | AH58: 191605001 | AI58: 0 | AJ58: 615639 | AK58: 490347 | AL58: 69493 | AM58: 2153107 | AN58: 619 | AO58: 638 | AP58: 5940834 | AQ58: 22026770 | AR58: 6057946 | AS58: 0 | AT58: 406620 | AU58: 3311528 | AV58: 4649102 | AW58: 1810269 | AX58: 0 | AY58: 0 | AZ58: 0 | BA58: 5790000 | BC58: 1305 | BD58: 0 | BE58: 188163296 | BF58: 0 | BG58: 631478 | BH58: 496491 | BI58: 70366 | BJ58: 2180155 | BK58: 612 | BL58: 5790000 | BM58: 16728465.23 | BN58: 975878.68 | BO58: 3301350.84 | BP58: 1910502 | BQ58: 3032605.89 | BR58: 0 | BS58: 7297261.12 | BT58: 0 | BU58: 0 | BV58: 209866 | BW58: 1000.7 | BX58: 0 | BY58: 169610518.9 | BZ58: 640162.79 | CA58: 498687.18 | CB58: 0 | CC58: 70695.25 | CD58: 2658181.04 | CE58: 17198144.03 | CF58: 293463.1826 | CG58: 3529236.784 | CH58: 2318058.913 | CI58: 3935447.476 | CJ58: 0 | CK58: 7112492 | CL58: 0 | CM58: 0 | CN58: 9445.67054 | CP58: 0 | CQ58: 0 | CR58: 185638772 | CS58: 649205.3108 | CT58: 441449.8713 | CU58: 0 | CV58: 108461.7396 | CW58: 124511.5022 | CX58: 3173957.937 | CY58: 214730.2862 | CZ58: 0 | DA58: 15889725.28 | DB58: 337065.0015 | DC58: 3561323.804 | DD58: 770140.7452 | DE58: 4408504.918 | DF58: 0 | DG58: 6399637.125 | DH58: 249441.8859 | DI58: 0 | DJ58: 33993 | DK58: 0 | DL58: 123850 | DM58: 0 | DN58: 0 | DO58: 0 | DP58: 5768.79719 | DQ58: 0 | DR58: 0 | DS58: 0 | DT58: 182302977.3 | DU58: 664824.0616 | DV58: 500233.7611 | DW58: 0 | DX58: 111842.6259 | DY58: 141091.5737 | DZ58: 3053549.584 | EA58: 105979.2 | EB58: 0 | EC58: 14350224 | ED58: 508746 | EE58: 2360860 | EF58: 1168532 | EG58: 3972148 | EH58: 0 | EI58: 5946367 | EJ58: 227351 | EK58: 0 | EL58: 32936 | EM58: 0 | EN58: 113208 | EO58: 0 | EP58: 0 | EQ58: 0 | ER58: 5881 | ES58: 14195 | ET58: 0 | EU58: 170170359.4 | EV58: 670561 | EW58: 443370 | EX58: 0 | EY58: 101547 | EZ58: 125053 | FA58: 2941362 | FB58: 111949 | FD58: 25023810 | FE58: 6405446 | FF58: 0 | FG58: 1209727 | FH58: 2782523 | FI58: 5177990 | FJ58: 1980969 | FK58: 0 | FL58: 0 | FM58: 0 | FN58: 7467155 | FP58: 0 | FQ58: 0 | FR58: 171868242 | FS58: 0 | FT58: 874224 | FU58: 558283 | FV58: 74076 | FW58: 2627064 | FX58: 225739 | FY58: 137096 | FZ58: 22357113.94 | GA58: 11076408.5 | GB58: 7561309.44 | GC58: 432744 | GD58: 3286652 | GE58: 185099561.8 | GF58: 2423553 | GG58: 199079362.8 | GH58: 25018764.99 | GI58: 13021778.74 | GJ58: 7450861.25 | GK58: 550589 | GL58: 3995536 | GM58: 198109583 | GN58: 2865827 | GO58: 213496763 | GP58: 25064872.42 | GQ58: 12907444 | GR58: 7332194 | GS58: 536118.7 | GT58: 4289115.72 | GU58: 192570781.8 | GV58: 3282723.39 | GW58: 208867946.6 | GX58: 22297556.38 | GY58: 9855858 | GZ58: 6673147 | HA58: 674481.62 | HB58: 5094069.76 | HC58: 191143364.4 | HD58: 3023731.59 | HE58: 206108582.6 | HG58: 74 | HH58: 95 | HI58: 148 | HJ58: 445 | HK58: 60 | HL58: 66 | HM58: 42 | HN58: 930
A59: 357 | B59: Tameside | C59: 13324363.97 | D59: 167352437.8 | E59: 13814117.18 | F59: 171084619.8 | G59: 14794189.26 | H59: 175226911.5 | I59: 15001396.39 | J59: 173687000 | L59: 143531625 | M59: 5678169 | N59: 0.0395604035 | O59: 461756 | P59: 0 | Q59: 143993381 | S59: 14904930 | T59: 4870701 | U59: 0 | V59: 0 | W59: 542033 | X59: 3381345 | Y59: 0 | Z59: 1559541 | AA59: 139310 | AB59: 0 | AC59: 0 | AD59: 4412000 | AF59: 0 | AG59: 0 | AH59: 174549954 | AI59: 0 | AJ59: 461250 | AK59: 210610 | AL59: 64730 | AM59: 1253520 | AN59: 339 | AO59: 339 | AP59: 3390000 | AQ59: 12547802 | AR59: 6974086 | AS59: 0 | AT59: 0 | AU59: 780000 | AV59: 3632000 | AW59: 129549 | AX59: 0 | AY59: 950326 | AZ59: 0 | BA59: 5681 | BC59: 76160 | BD59: 0 | BE59: 188753361.5 | BF59: 0 | BG59: 461250 | BH59: 210610 | BI59: 0 | BJ59: 861290 | BK59: 500 | BL59: 4830000 | BM59: 10483480.98 | BN59: 1754499 | BO59: 0 | BP59: 0 | BQ59: 915000 | BR59: 0 | BS59: 7806569.98 | BT59: 0 | BU59: 0 | BV59: 7412 | BW59: 0 | BX59: 0 | BY59: 146212794.9 | BZ59: 682710 | CA59: 405900 | CB59: 0 | CC59: 73186 | CD59: 1048841 | CE59: 10380895 | CF59: 1732468 | CG59: 0 | CH59: 100000 | CI59: 915000 | CJ59: 0 | CK59: 7629827 | CL59: 0 | CM59: 0 | CN59: 3600 | CO59: 0 | CP59: 0 | CQ59: 0 | CR59: 154856106 | CS59: 733610 | CT59: 385236 | CU59: 0 | CV59: 62520 | CW59: 0 | CX59: 1345430 | CY59: 0 | CZ59: 0 | DA59: 11489359.2 | DB59: 2080069 | DC59: 544724 | DD59: 338250 | DE59: 711690 | DF59: 0 | DG59: 6713640.2 | DH59: 208840 | DI59: 0 | DJ59: 27020 | DK59: 0 | DL59: 550650 | DM59: 70330 | DN59: 0 | DO59: 0 | DP59: 10800 | DQ59: 0 | DR59: 233346 | DS59: 0 | DT59: 163900841.2 | DU59: 544725 | DV59: 338250 | DW59: 0 | DX59: 75130 | DY59: 0 | DZ59: 1095110.4 | EA59: 0 | EB59: 0 | EC59: 11758639.7 | ED59: 2029000 | EE59: 820000 | EF59: 544000 | EG59: 180000 | EH59: 980000 | EI59: 6420669.7 | EJ59: 203190 | EK59: 0 | EL59: 26720 | EM59: 0 | EN59: 535060 | EO59: 0 | EP59: 0 | EQ59: 0 | ER59: 20000 | ES59: 0 | ET59: 0 | EU59: 157918665.7 | EV59: 590000 | EW59: 385000 | EX59: 10000 | EY59: 65000 | EZ59: 35000 | FA59: 0 | FB59: 0 | FD59: 14834298.2 | FE59: 5438208 | FF59: 0 | FG59: 588295 | FH59: 2688937 | FI59: 1372975.24 | FJ59: 133882.96 | FK59: 0 | FL59: 382000 | FM59: 0 | FN59: 4230000 | FP59: 0 | FQ59: 0 | FR59: 135584577.3 | FS59: 0 | FT59: 453925.19 | FU59: 207946.67 | FV59: 138590.85 | FW59: 1216547.67 | FX59: 102808.47 | FY59: 0 | FZ59: 16012872.56 | GA59: 5150628.66 | GB59: 8589135.9 | GC59: 280386 | GD59: 1992722 | GE59: 151324270.7 | GF59: 1285045 | GG59: 159577134.7 | GH59: 14871834.4 | GI59: 5322250.54 | GJ59: 8350550.86 | GK59: 326938 | GL59: 872095 | GM59: 152792187.2 | GN59: 1139002 | GO59: 164382826.2 | GP59: 14927079.86 | GQ59: 5819783 | GR59: 7866802 | GS59: 325597.86 | GT59: 914897 | GU59: 162480275 | GV59: 1192766 | GW59: 180769455 | GX59: 14982977 | GY59: 5662189 | GZ59: 7838369 | HA59: 702031 | HB59: 780388 | HC59: 169858680.5 | HD59: 1115012 | HE59: 195088012.7 | HG59: 17 | HH59: 59 | HI59: 106 | HJ59: 408 | HK59: 23 | HL59: 82 | HM59: 56 | HN59: 751
A60: 358 | B60: Trafford | C60: 21961200.87 | D60: 167352184 | E60: 22875748.28 | F60: 172057741.1 | G60: 23336859.43 | H60: 174743394.2 | I60: 23578136.5 | J60: 174727000 | L60: 140635069 | M60: 4425247 | N60: 0.03146617008 | O60: 0 | P60: 2800000 | Q60: 140635069 | S60: 21650171 | T60: 7610209 | U60: 0 | V60: 0 | W60: 803477 | X60: 4944603 | Y60: 422688 | Z60: 2055518 | AA60: 483676 | AB60: 0 | AC60: 0 | AD60: 5330000 | AF60: 0 | AG60: 0 | AH60: 170199431 | AI60: 0 | AJ60: 390013 | AK60: 446458 | AL60: 84840 | AM60: 2154439 | AN60: 589 | AO60: 589 | AP60: 5778000 | AQ60: 23243297 | AR60: 14581700 | AS60: 0 | AT60: 1717708 | AU60: 4440766 | AV60: 2019503 | AW60: 483620 | AX60: 0 | AY60: 0 | AZ60: 0 | BA60: 0 | BC60: 0 | BD60: 0 | BE60: 171727382 | BF60: 0 | BG60: 418935 | BH60: 611669 | BI60: 86448 | BJ60: 1971527 | BK60: 596 | BL60: 10999868 | BM60: 17062329.08 | BN60: 2812451 | BO60: 632888 | BP60: 0 | BQ60: 4086770 | BR60: 64674 | BS60: 9464522.08 | BT60: 0 | BU60: 1024 | BV60: 0 | BW60: 0 | BX60: 0 | BY60: 146847775.6 | BZ60: 490566 | CA60: 457594 | CB60: 0 | CC60: 81828 | CD60: 2825217.35 | CE60: 11410343.87 | CF60: 2138724 | CG60: 583183 | CH60: 0 | CI60: 3730145 | CJ60: 66542 | CK60: 4791749.867 | CL60: 0 | CM60: 0 | CN60: 100000 | CO60: 0 | CP60: 0 | CQ60: 0 | CR60: 84109547.78 | CS60: 467808 | CT60: 379672 | CU60: 0 | CV60: 75707 | CW60: 17496 | CX60: 2715130 | CY60: 30838 | CZ60: 7136 | DA60: 16194154 | DB60: 0 | DC60: 2602714 | DD60: 0 | DE60: 4365005 | DF60: 0 | DG60: 8558813 | DH60: 238953 | DI60: 0 | DJ60: 32191 | DK60: 0 | DL60: 222683 | DM60: 31757 | DN60: 0 | DO60: 0 | DP60: 142038 | DQ60: 0 | DR60: 0 | DS60: 0 | DT60: 179652094 | DU60: 542325 | DV60: 402081 | DW60: 0 | DX60: 68059 | DY60: 17553 | DZ60: 2945497 | EA60: 24508 | EB60: 5671 | EC60: 15637720 | ED60: 0 | EE60: 2616402 | EF60: 0 | EG60: 4258744 | EH60: 0 | EI60: 8243560 | EJ60: 243575 | EK60: 0 | EL60: 32104 | EM60: 0 | EN60: 187676 | EO60: 30277 | EP60: 0 | EQ60: 0 | ER60: 25382 | ES60: 0 | ET60: 0 | EU60: 168365529 | EV60: 534088 | EW60: 415060 | EX60: 0 | EY60: 65798 | EZ60: 0 | FA60: 3039575 | FB60: 31143 | FD60: 23807804 | FE60: 7916289 | FF60: 0 | FG60: 1889066 | FH60: 5472215 | FI60: 1952836 | FJ60: 304253 | FK60: 0 | FL60: 0 | FM60: 0 | FN60: 6273145 | FP60: 0 | FQ60: 0 | FR60: 121275558 | FS60: 0 | FT60: 450929.68 | FU60: 563180.2 | FV60: 114421.03 | FW60: 1617735 | FX60: 215059 | FY60: 0 | FZ60: 20533921.88 | GA60: 6493837.27 | GB60: 9673712.61 | GC60: 505678 | GD60: 3860694 | GE60: 131802894.8 | GF60: 3081147 | GG60: 142434712.8 | GH60: 21215292.82 | GI60: 7275394.24 | GJ60: 9356223.58 | GK60: 992250 | GL60: 3591425 | GM60: 153482200.3 | GN60: 3059679 | GO60: 165324899.3 | GP60: 20891861 | GQ60: 6842005 | GR60: 9150923 | GS60: 987712 | GT60: 3911221 | GU60: 160064065 | GV60: 3408774 | GW60: 177086256 | GX60: 20702026 | GY60: 6859458 | GZ60: 9093407 | HA60: 267358 | HB60: 4481803 | HC60: 177386706.7 | HD60: 3233835.3 | HE60: 196391256.8 | HG60: 92 | HH60: 6 | HI60: 56 | HJ60: 485 | HK60: 75 | HL60: 14 | HM60: 33 | HN60: 761
A61: 359 | B61: Wigan | C61: 22424383.18 | D61: 222183831.9 | E61: 24197501.85 | F61: 227471972.2 | G61: 25601486.77 | H61: 229891524.4 | I61: 25998093.13 | J61: 229121000 | L61: 189458916 | M61: 14740244 | N61: 0.07780179635 | O61: 0 | P61: 300000 | Q61: 189458916 | S61: 22833584 | T61: 9174075 | U61: 0 | V61: 0 | W61: 246272 | X61: 3685076 | Y61: 150052 | Z61: 2885926 | AA61: 312183 | AB61: 0 | AC61: 0 | AD61: 6380000 | AF61: 0 | AG61: 0 | AH61: 231827205 | AI61: 0 | AJ61: 852241 | AK61: 1146276 | AL61: 54017 | AM61: 4817687 | AN61: 651 | AO61: 685 | AP61: 6708333 | AQ61: 24628583 | AR61: 12231701 | AS61: 0 | AT61: 246272 | AU61: 1502132 | AV61: 2199085 | AW61: 317393 | AX61: 0 | AY61: 0 | AZ61: 0 | BA61: 8132000 | BC61: 0 | BD61: 0 | BE61: 231962760 | BF61: 0 | BG61: 945763 | BH61: 535716 | BI61: 60535 | BJ61: 5389432 | BK61: 702 | BL61: 6969757 | BM61: 18256380.5 | BN61: 1937046 | BO61: 2229659 | BP61: 317764 | BQ61: 1510123 | BR61: 0 | BS61: 12241788.5 | BT61: 0 | BU61: 0 | BV61: 20000 | BW61: 0 | BX61: 0 | BY61: 222840871.1 | BZ61: 899007 | CA61: 690013 | CB61: 0 | CC61: 51717 | CD61: 3827204 | CE61: 17482190 | CF61: 530833 | CG61: 2289504 | CH61: 297524 | CI61: 2012840 | CJ61: 0 | CK61: 12202090 | CL61: 0 | CM61: 0 | CN61: 7769 | CO61: 0 | CP61: 0 | CQ61: 141630 | CR61: 230731530.2 | CS61: 938913 | CT61: 327445 | CU61: 0 | CV61: 45989 | CW61: 215448 | CX61: 3233365 | CY61: 83756 | CZ61: 67959 | DA61: 17253979 | DB61: 514019 | DC61: 2087808 | DD61: 138089 | DE61: 1964231 | DF61: 0 | DG61: 11667497 | DH61: 267988 | DI61: 0 | DJ61: 33039 | DK61: 0 | DL61: 411592 | DM61: 9178 | DN61: 0 | DO61: 0 | DP61: 16982 | DQ61: 0 | DR61: 0 | DS61: 143556 | DT61: 230465515.9 | DU61: 979566 | DV61: 941513 | DW61: 0 | DX61: 44175 | DY61: 808335 | DZ61: 3999398 | EA61: 89277 | EB61: 50802 | EC61: 16903097.72 | ED61: 502860 | EE61: 2084531 | EF61: 137986 | EG61: 1652381 | EH61: 0 | EI61: 11503637.91 | EJ61: 303117.81 | EK61: 0 | EL61: 37264 | EM61: 0 | EN61: 372913 | EO61: 28855 | EP61: 0 | EQ61: 0 | ER61: 127596 | ES61: 0 | ET61: 151956 | EU61: 217923470.2 | EV61: 958634 | EW61: 972263 | EX61: 3100 | EY61: 146876 | EZ61: 959533 | FA61: 3411478 | FB61: 58769 | FD61: 22780154 | FE61: 9463018 | FF61: 0 | FG61: 300694 | FH61: 1552637 | FI61: 2400906 | FJ61: 0 | FK61: 0 | FL61: 0 | FM61: 0 | FN61: 8762899 | FP61: 300000 | FQ61: 0 | FR61: 202913438 | FS61: 0 | FT61: 769981 | FU61: 695238 | FV61: 46615 | FW61: 5308026 | FX61: 47046 | FY61: 25334 | FZ61: 25414634.62 | GA61: 9794738.27 | GB61: 14102265.35 | GC61: 58330 | GD61: 1459301 | GE61: 231808866.9 | GF61: 4933931 | GG61: 249731440.9 | GH61: 25847952.38 | GI61: 10043249 | GJ61: 13949770.4 | GK61: 95889.41 | GL61: 1759043.57 | GM61: 247383300.3 | GN61: 5268578.76 | GO61: 268016619.2 | GP61: 24952425.33 | GQ61: 9307906 | GR61: 13897832 | GS61: 73442.05 | GT61: 1673245.28 | GU61: 246786245 | GV61: 4212290 | GW61: 276678963.2 | GX61: 25430349.83 | GY61: 8895156 | GZ61: 13660436 | HA61: 1236085.54 | HB61: 1638672.29 | HC61: 238490888 | HD61: 4311962.47 | HE61: 274324175.8 | HG61: 0 | HH61: 52 | HI61: 193 | HJ61: 560 | HK61: 137 | HL61: 60 | HM61: 33 | HN61: 1035
A62: 370 | B62: Barnsley | C62: 16086950 | D62: 151759769.1 | E62: 17433538.43 | F62: 155469454.7 | G62: 18378605.24 | H62: 157683204.4 | I62: 18601254.55 | J62: 159541000 | L62: 126209911 | M62: 15024041 | N62: 0.1190401045 | O62: 0 | P62: 0 | Q62: 126209912 | S62: 16290858 | T62: 8893097 | U62: 0 | V62: 0 | W62: 959996 | X62: 2077708 | Y62: 0 | Z62: 1095057 | AA62: 0 | AB62: 0 | AC62: 0 | AD62: 3265000 | AF62: 0 | AG62: 0 | AH62: 158374393 | AI62: 0 | AJ62: 533222 | AK62: 715727 | AL62: 90623 | AM62: 742087 | AN62: 353 | AO62: 383 | AP62: 3705000 | AQ62: 17731701 | AR62: 8676980 | AS62: 0 | AT62: 551733 | AU62: 2943716 | AV62: 1269232 | AW62: 0 | AX62: 0 | AY62: 0 | AZ62: 0 | BA62: 4290040 | BC62: 0 | BD62: 0 | BE62: 157618250 | BF62: 0 | BG62: 390433 | BH62: 373963 | BI62: 95286 | BJ62: 640510 | BK62: 449 | BL62: 4290040 | BM62: 10960901.76 | BN62: 687184 | BO62: 1467880 | BP62: 877632 | BQ62: 2292516 | BR62: 0 | BS62: 5608912.76 | BT62: 0 | BU62: 13177 | BV62: 13600 | BW62: 0 | BX62: 0 | BY62: 158614700.3 | BZ62: 385177 | CA62: 322315 | CB62: 45000 | CC62: 94038 | CD62: 261978 | CE62: 11090754.35 | CF62: 1118390 | CG62: 872680 | CH62: 599504 | CI62: 3497165 | CJ62: 0 | CK62: 4987660 | CL62: 0 | CM62: 0 | CN62: 15355.35 | CP62: 0 | CQ62: 0 | CR62: 158256187 | CS62: 439339 | CT62: 395864 | CU62: 0 | CV62: 110159 | CW62: 0 | CX62: 1591981 | CY62: 46933 | CZ62: 15645 | DA62: 10542990.42 | DB62: 1039043 | DC62: 0 | DD62: 2111399 | DE62: 2721610 | DF62: 0 | DG62: 4325394 | DH62: 92197.92453 | DI62: 0 | DJ62: 14961.5 | DK62: 0 | DL62: 216787 | DM62: 21598 | DN62: 0 | DO62: 0 | DP62: 0 | DQ62: 0 | DR62: 0 | DS62: 0 | DT62: 157777978.4 | DU62: 621244 | DV62: 302320 | DW62: 0 | DX62: 129800 | DY62: 0 | DZ62: 1647163 | EA62: 0 | EB62: 0 | EC62: 10377752 | ED62: 948320 | EE62: 0 | EF62: 2200840 | EG62: 2746678 | EH62: 0 | EI62: 4226073 | EJ62: 93712 | EK62: 0 | EL62: 14792 | EM62: 0 | EN62: 128754 | EO62: 18583 | EP62: 0 | EQ62: 0 | ER62: 0 | ES62: 0 | ET62: 0 | EU62: 152548636 | EV62: 618182 | EW62: 292450 | EX62: 0 | EY62: 128650 | EZ62: 0 | FA62: 1599025 | FB62: 0 | FD62: 18181434 | FE62: 9469424 | FF62: 0 | FG62: 1387320 | FH62: 1876568 | FI62: 1014987 | FJ62: 0 | FK62: 0 | FL62: 0 | FM62: 0 | FN62: 4433135 | FP62: 0 | FQ62: 0 | FR62: 140364239 | FS62: 0 | FT62: 502104 | FU62: 401639 | FV62: 74853 | FW62: 666473 | FX62: 35127 | FY62: 0 | FZ62: 17744750.51 | GA62: 7864583 | GB62: 6822584.51 | GC62: 1109110 | GD62: 1948473 | GE62: 166775658.7 | GF62: 655682 | GG62: 198620226.7 | GH62: 17396350.34 | GI62: 8342996.28 | GJ62: 5884227.06 | GK62: 1025570 | GL62: 2143557 | GM62: 170765487.4 | GN62: 600142 | GO62: 198176368.4 | GP62: 16628053 | GQ62: 8948239 | GR62: 5191026 | GS62: 9338 | GT62: 2479450 | GU62: 164367959 | GV62: 1587750 | GW62: 187526020 | GX62: 17300020 | GY62: 8761851 | GZ62: 4999149 | HA62: 703384 | HB62: 2835636 | HC62: 160975166.8 | HD62: 1591332 | HE62: 186330948.8 | HG62: 0 | HH62: 109 | HI62: 158 | HJ62: 274 | HK62: 75 | HL62: 218 | HM62: 107 | HN62: 941
A63: 371 | B63: Doncaster | C63: 25099364.65 | D63: 209566343.8 | E63: 26319292.96 | F63: 215639733.6 | G63: 27535648.4 | H63: 220253845.9 | I63: 27842695.68 | J63: 222304000 | L63: 175236063 | M63: 13383782 | N63: 0.07637572866 | O63: 19 | P63: 0 | Q63: 175236082 | S63: 21829110 | T63: 6999790 | U63: 0 | V63: 0 | W63: 1158010 | X63: 7563990 | Y63: 0 | Z63: 855840 | AA63: 181480 | AB63: 0 | AC63: 0 | AD63: 5070000 | AF63: 0 | AG63: 0 | AH63: 222452500 | AI63: 0 | AJ63: 652100 | AK63: 461880 | AL63: 0 | AM63: 3267310 | AN63: 507 | AO63: 507 | AP63: 5070000 | AQ63: 22897544 | AR63: 7947587 | AS63: 0 | AT63: 965937 | AU63: 6960950 | AV63: 691600 | AW63: 181470 | AX63: 0 | AY63: 0 | AZ63: 0 | BA63: 6150000 | BC63: 0 | BD63: 0 | BE63: 217854206 | BF63: 0 | BG63: 653130 | BH63: 365930 | BI63: 51260 | BJ63: 3115330 | BK63: 643 | BL63: 6150000 | BM63: 17586837 | BN63: 439740 | BO63: 743360 | BP63: 181470 | BQ63: 6741310 | BR63: 0 | BS63: 8959920.79 | BT63: 283294 | BU63: 0 | BV63: 237742.21 | BW63: 0 | BX63: 0 | BY63: 168479550.7 | BZ63: 628940 | CA63: 381040 | CB63: 0 | CC63: 102000 | CD63: 3560580 | CE63: 16155358.56 | CF63: 323950 | CG63: 487610 | CH63: 145610 | CI63: 6029530 | CJ63: 0 | CK63: 8868769 | CL63: 267037 | CM63: 0 | CN63: 32852.55517 | CP63: 0 | CQ63: 0 | CR63: 208870966 | CS63: 582110 | CT63: 406990 | CU63: 0 | CV63: 64010 | CW63: 58700 | CX63: 3450550 | CY63: 9460 | CZ63: 0 | DA63: 14034480.48 | DB63: 323950 | DC63: 550160 | DD63: 161860 | DE63: 3854965.7 | DF63: 0 | DG63: 8311521.33 | DH63: 215000 | DI63: 0 | DJ63: 27665 | DK63: 0 | DL63: 283619 | DM63: 17530 | DN63: 249740.43 | DO63: 0 | DP63: 23002.2135 | DQ63: 0 | DR63: 15466.80328 | DS63: 0 | DT63: 220273541 | DU63: 508444.4266 | DV63: 351913.0002 | DW63: 128935.6333 | DX63: 103784.0978 | DY63: 98581.65771 | DZ63: 3355807.999 | EA63: 9061.00128 | EB63: 0 | EC63: 12420018 | ED63: 317550 | EE63: 644155 | EF63: 194905 | EG63: 2418106 | EH63: 0 | EI63: 7992697 | EJ63: 215000 | EK63: 0 | EL63: 27776 | EM63: 0 | EN63: 174175 | EO63: 19016 | EP63: 235510 | EQ63: 0 | ER63: 137940 | ES63: 43188 | ET63: 0 | EU63: 211612118.5 | EV63: 601750 | EW63: 378194 | EX63: 135196 | EY63: 106854 | EZ63: 143200 | FA63: 3219687 | FB63: 197506 | FD63: 22390008 | FE63: 6976417 | FF63: 0 | FG63: 1263725 | FH63: 7375611 | FI63: 702243 | FJ63: 178012 | FK63: 0 | FL63: 0 | FM63: 0 | FN63: 5894000 | FP63: 0 | FQ63: 0 | FR63: 136473408 | FS63: 0 | FT63: 542001 | FU63: 562691 | FV63: 0 | FW63: 2869098 | FX63: 225587 | FY63: 0 | FZ63: 30764110.03 | GA63: 12941278.36 | GB63: 9386450.67 | GC63: 65096 | GD63: 8371285 | GE63: 159298008.2 | GF63: 2859922 | GG63: 181297897.6 | GH63: 33353183.95 | GI63: 17068410.79 | GJ63: 9229690.16 | GK63: 14828 | GL63: 7040255 | GM63: 197804312.2 | GN63: 3289051 | GO63: 223535757.2 | GP63: 31331668.6 | GQ63: 15151285 | GR63: 9303913 | GS63: 40522.6 | GT63: 6835948 | GU63: 225057768.7 | GV63: 3171591.73 | GW63: 249704157.3 | GX63: 21488420.43 | GY63: 8502343 | GZ63: 8928721 | HA63: 56281.04197 | HB63: 4001075.39 | HC63: 225793573.3 | HD63: 3093914.899 | HE63: 259070088.3 | HG63: 12 | HH63: 40 | HI63: 239 | HJ63: 464 | HK63: 96 | HL63: 64 | HM63: 36 | HN63: 951
A64: 372 | B64: Rotherham | C64: 18721796.08 | D64: 208916725.5 | E64: 19263137.16 | F64: 213845527.7 | G64: 20549574.31 | H64: 217917323.2 | I64: 20859661.97 | J64: 217024000 | L64: 179022739 | M64: 14933860 | N64: 0.08341878849 | O64: 0 | P64: 0 | Q64: 179022739 | S64: 19159037 | T64: 7030299 | U64: 0 | V64: 0 | W64: 227000 | X64: 2695748 | Y64: 0 | Z64: 1871538 | AA64: 162612 | AB64: 0 | AC64: 101000 | AD64: 7070840 | AF64: 0 | AG64: 0 | AH64: 219829713 | AI64: 0 | AJ64: 639989 | AK64: 295847 | AL64: 76965 | AM64: 2139639 | AN64: 620 | AO64: 620 | AP64: 6200000 | AQ64: 18475075 | AR64: 6435196 | AS64: 0 | AT64: 23317 | AU64: 3907751 | AV64: 2479069 | AW64: 162612 | AX64: 0 | AY64: 0 | AZ64: 101000 | BA64: 5366130 | BC64: 0 | BD64: 0 | BE64: 219384114 | BF64: 134500 | BG64: 684287 | BH64: 223626 | BI64: 106337 | BJ64: 2264842 | BK64: 680 | BL64: 6156130 | BM64: 14350192.92 | BN64: 2166458 | BO64: 1336000 | BP64: 10000 | BQ64: 954501 | BR64: 101000 | BS64: 9460688.73 | BT64: 263429.19 | BU64: 0 | BV64: 58116 | BW64: 0 | BX64: 0 | BY64: 196336403 | BZ64: 796995.22 | CA64: 171681.14 | CB64: 722509 | CC64: 100245 | CD64: 2712239 | CE64: 11382613.88 | CF64: 443906 | CG64: 1650029 | CH64: 151581 | CI64: 2728519 | CJ64: 0 | CK64: 5213263.684 | CL64: 272368.1998 | CM64: 0 | CN64: 885250 | CP64: 37697 | CQ64: 0 | CR64: 142238157.9 | CS64: 565459 | CT64: 134040.72 | CU64: 1118534 | CV64: 102383 | CW64: 24371.04 | CX64: 2810239 | CY64: 14111 | CZ64: 0 | DA64: 14616500.13 | DB64: 499310 | DC64: 1450885 | DD64: 163206 | DE64: 2804537 | DF64: 101000 | DG64: 8777994 | DH64: 252597 | DI64: 0 | DJ64: 31926 | DK64: 0 | DL64: 471407 | DM64: 12864 | DN64: 0 | DO64: 0 | DP64: 13470.71629 | DQ64: 0 | DR64: 37303.41585 | DS64: 0 | DT64: 218932960.9 | DU64: 686909.5909 | DV64: 400709.7646 | DW64: 0 | DX64: 111513.1774 | DY64: 58457.52 | DZ64: 2981553.981 | EA64: 14111 | EB64: 0 | EC64: 14576843.48 | ED64: 582912.11 | EE64: 2318811.11 | EF64: 232353.5 | EG64: 2183266.78 | EH64: 102000 | EI64: 8588873.31 | EJ64: 248898 | EK64: 0 | EL64: 31324 | EM64: 0 | EN64: 202467 | EO64: 18763 | EP64: 0 | EQ64: 0 | ER64: 5362 | ES64: 61812.67 | ET64: 0 | EU64: 219357500.4 | EV64: 810675.82 | EW64: 335257.75 | EX64: 25190 | EY64: 133181.18 | EZ64: 105662.07 | FA64: 2629602.88 | FB64: 49512 | FD64: 20012386 | FE64: 6530744 | FF64: 0 | FG64: 50508 | FH64: 4213702 | FI64: 2293591 | FJ64: 0 | FK64: 0 | FL64: 0 | FM64: 101000 | FN64: 6822841 | FP64: 0 | FQ64: 0 | FR64: 176441588 | FS64: 60000 | FT64: 452958 | FU64: 265318 | FV64: 105103 | FW64: 2224326 | FX64: 0 | FY64: 0 | FZ64: 24008076.67 | GA64: 9599777 | GB64: 11313800.67 | GC64: 1858696 | GD64: 1235803 | GE64: 211835826.4 | GF64: 0 | GG64: 230282635.4 | GH64: 22634288.06 | GI64: 9885302 | GJ64: 10685184.06 | GK64: 2063802 | GL64: 0 | GM64: 209953410 | GN64: 0 | GO64: 234165362 | GP64: 21562947.01 | GQ64: 10712588 | GR64: 10635772 | GS64: 214587.01 | GT64: 0 | GU64: 248959591.9 | GV64: 1675293.96 | GW64: 271591270.5 | GX64: 24166215.11 | GY64: 11097754 | GZ64: 10348432 | HA64: 1240651.259 | HB64: 1479377.85 | HC64: 237238855.7 | HD64: 2388749.495 | HE64: 266727905.4 | HG64: 40 | HH64: 34 | HI64: 128 | HJ64: 537 | HK64: 107 | HL64: 119 | HM64: 62 | HN64: 1027
A65: 373 | B65: Sheffield | C65: 47115258.43 | D65: 350716162.5 | E65: 49588765.31 | F65: 363630478.2 | G65: 51794405.01 | H65: 372196066.1 | I65: 52484610.03 | J65: 378062000 | L65: 287253058 | M65: 44472252 | N65: 0.1548190725 | O65: 15575 | P65: 0 | Q65: 287268633 | S65: 43629339 | T65: 15862838 | U65: 0 | V65: 0 | W65: 3335021 | X65: 1942761 | Y65: 0 | Z65: 4132497 | AA65: 4806484 | AB65: 620000 | AC65: 2839139 | AD65: 10054167 | AF65: 36432 | AG65: 0 | AH65: 404752655 | AI65: 92711 | AJ65: 1211551 | AK65: 734185 | AL65: 108516 | AM65: 2586448 | AN65: 1103 | AO65: 1126 | AP65: 10880166 | AQ65: 43027318 | AR65: 15752634 | AS65: 0 | AT65: 2249579 | AU65: 2062761 | AV65: 3796842 | AW65: 4278925 | AX65: 320000 | AY65: 0 | AZ65: 2801371 | BA65: 11718750 | BC65: 46456 | BD65: 0 | BE65: 395632020 | BF65: 89829 | BG65: 1234694 | BH65: 750028 | BI65: 196101 | BJ65: 2229042 | BK65: 1218.87 | BL65: 11718750 | BM65: 36607821.17 | BN65: 1700070 | BO65: 3451877 | BP65: 3896033 | BQ65: 3174633 | BR65: 3928379 | BS65: 20320529.17 | BT65: 0 | BU65: 0 | BV65: 53416 | BW65: 82884 | BX65: 0 | BY65: 408368217.8 | BZ65: 1392183 | CA65: 608860 | CB65: 97705 | CC65: 213297 | CD65: 2778443 | CE65: 33566708.05 | CF65: 1263527 | CG65: 4389902 | CH65: 5733700 | CI65: 2047751 | CJ65: 0 | CK65: 18742520.05 | CL65: 0 | CM65: 0 | CN65: 1240769 | CP65: 148539 | CQ65: 0 | CR65: 401936610.8 | CS65: 1759949 | CT65: 1390596 | CU65: 122002 | CV65: 296853 | CW65: 166338 | CX65: 4621460 | CY65: 7366 | CZ65: 0 | DA65: 32694575 | DB65: 1174211 | DC65: 4478949 | DD65: 5283020 | DE65: 2099383 | DF65: 0 | DG65: 17318558 | DH65: 466302 | DI65: 0 | DJ65: 53952 | DK65: 0 | DL65: 417876 | DM65: 95041 | DN65: 0 | DO65: 0 | DP65: 1167763 | DQ65: 0 | DR65: 139520 | DS65: 0 | DT65: 402173821 | DU65: 1722889 | DV65: 641827 | DW65: 119048 | DX65: 302803 | DY65: 174128 | DZ65: 4698331 | EA65: 6970 | EB65: 0 | EC65: 31054165 | ED65: 1183828 | EE65: 4575853 | EF65: 4692570 | EG65: 2144564 | EH65: 0 | EI65: 16487582 | EJ65: 452398 | EK65: 0 | EL65: 55448 | EM65: 0 | EN65: 295770 | EO65: 92789 | EP65: 0 | EQ65: 0 | ER65: 935812 | ES65: 137551 | ET65: 0 | EU65: 378702490 | EV65: 1600871 | EW65: 639176 | EX65: 114600 | EY65: 257740 | EZ65: 178186 | FA65: 10173473 | FB65: 6823 | FD65: 45612287 | FE65: 16048976 | FF65: 0 | FG65: 1911901 | FH65: 2663181 | FI65: 3868153 | FJ65: 4708589 | FK65: 918784 | FL65: 369475 | FM65: 3240390 | FN65: 11716964 | FP65: 165874 | FQ65: 0 | FR65: 313535900 | FS65: 82386 | FT65: 1221108 | FU65: 687876 | FV65: 193718 | FW65: 3334356 | FX65: 75631 | FY65: 75631 | FZ65: 48807844.64 | GA65: 17011932.05 | GB65: 22853288.59 | GC65: 5350692.7 | GD65: 3591931.3 | GE65: 415236482.4 | GF65: 2839373.8 | GG65: 456649305.3 | GH65: 46482947.98 | GI65: 18927425.63 | GJ65: 20591291 | GK65: 3538083.04 | GL65: 3426148.31 | GM65: 465429346.3 | GN65: 4612859.28 | GO65: 522746174.6 | GP65: 41968900 | GQ65: 13144745 | GR65: 19955576 | GS65: 6240325 | GT65: 2628254 | GU65: 477968479 | GV65: 5510075 | GW65: 575862492 | GX65: 38838822 | GY65: 12206228 | GZ65: 19264966 | HA65: 4885275 | HB65: 2482353 | HC65: 453523194.6 | HD65: 10827333 | HE65: 544586003.6 | HG65: 12 | HH65: 189 | HI65: 340 | HJ65: 901 | HK65: 133 | HL65: 178 | HM65: 87 | HN65: 1840
A66: 380 | B66: Bradford | C66: 44302485 | D66: 442578375.8 | E66: 47198990.52 | F66: 459764945.3 | G66: 49646227.01 | H66: 471785685.3 | I66: 50147509.94 | J66: 492424000 | L66: 374948329 | M66: 36785792 | N66: 0.0981089637 | O66: 0 | P66: 488523.82 | Q66: 374948329 | S66: 46237759.85 | T66: 19254336.6 | U66: 661560.1 | V66: 0 | W66: 5656432.33 | X66: 4594129 | Y66: 583623 | Z66: 9061455.49 | AA66: 428700 | AB66: 0 | AC66: 0 | AD66: 5997523.33 | AF66: 0 | AG66: 0 | AH66: 506406210.6 | AI66: 0 | AJ66: 1202059 | AK66: 1322153 | AL66: 102060 | AM66: 7020527 | AN66: 584 | AO66: 608 | AP66: 5997523.34 | AQ66: 46548618.91 | AR66: 19365058.29 | AS66: 0 | AT66: 1341536.79 | AU66: 4754426.07 | AV66: 10740765.97 | AW66: 328677 | AX66: 0 | AY66: 646154.79 | AZ66: 0 | BA66: 9372000 | BC66: 0 | BD66: 0 | BE66: 484412063.4 | BF66: 0 | BG66: 1278859 | BH66: 1299353 | BI66: 99260 | BJ66: 7267227 | BK66: 1228.57 | BL66: 11938092.12 | BM66: 29687458.22 | BN66: 4688676.79 | BO66: 3112777.8 | BP66: 110400 | BQ66: 4997143 | BR66: 0 | BS66: 16752880.31 | BT66: 0 | BU66: 0 | BV66: 23001.44 | BW66: 2578.88 | BX66: 0 | BY66: 461264558.6 | BZ66: 1278359 | CA66: 1481189.75 | CB66: 0 | CC66: 98812.1 | CD66: 7532927 | CE66: 28090803.92 | CF66: 3154969.68 | CG66: 3727065.549 | CH66: 100000 | CI66: 4619783.442 | CJ66: 0 | CK66: 15789459.29 | CL66: 0 | CM66: 0 | CN66: 696750.9621 | CP66: 2775 | CQ66: 0 | CR66: 459056058.5 | CS66: 1171880.971 | CT66: 1087666.702 | CU66: 0 | CV66: 397593.8337 | CW66: 119242.1152 | CX66: 9879857.614 | CY66: 0 | CZ66: 0 | DA66: 27549719 | DB66: 1840016 | DC66: 3727067 | DD66: 100000 | DE66: 4268033 | DF66: 0 | DG66: 14637988 | DH66: 290480 | DI66: 0 | DJ66: 39526 | DK66: 0 | DL66: 324718 | DM66: 297314 | DN66: 0 | DO66: 0 | DP66: 2010324 | DQ66: 0 | DR66: 14253 | DS66: 0 | DT66: 452625979 | DU66: 1245759 | DV66: 1134065 | DW66: 0 | DX66: 332388 | DY66: 149359 | DZ66: 10343183 | EA66: 0 | EB66: 0 | EC66: 26335058.84 | ED66: 402700 | EE66: 3872684 | EF66: 100000 | EG66: 4447602 | EH66: 0 | EI66: 14391755.82 | EJ66: 427706.02 | EK66: 0 | EL66: 57332 | EM66: 0 | EN66: 427727 | EO66: 208282 | EP66: 0 | EQ66: 0 | ER66: 1985017 | ES66: 14253 | ET66: 0 | EU66: 431879421.2 | EV66: 1188533 | EW66: 925807 | EX66: 0 | EY66: 367809 | EZ66: 138202 | FA66: 6664559 | FB66: 0 | FD66: 42941819 | FE66: 15701130 | FF66: 0 | FG66: 3634789 | FH66: 4316796 | FI66: 10385645 | FJ66: 353875 | FK66: 0 | FL66: 646155 | FM66: 0 | FN66: 7903429 | FP66: 0 | FQ66: 0 | FR66: 415819109 | FS66: 0 | FT66: 1198486 | FU66: 1363714 | FV66: 93478 | FW66: 7381210 | FX66: 0 | FY66: 0 | FZ66: 55792033.72 | GA66: 30807620.35 | GB66: 17562378.37 | GC66: 2978660 | GD66: 4443375 | GE66: 469783975.8 | GF66: 6802432 | GG66: 503108648.8 | GH66: 54481341.67 | GI66: 31364141 | GJ66: 17099526.67 | GK66: 2609898 | GL66: 3407776 | GM66: 475635242.4 | GN66: 6040359 | GO66: 513766413.4 | GP66: 54492073.26 | GQ66: 32166023 | GR66: 16721297 | GS66: 1877023.63 | GT66: 3727729.63 | GU66: 473607716.3 | GV66: 5889852 | GW66: 516799468.1 | GX66: 51632689.48 | GY66: 30965211 | GZ66: 16657767 | HA66: 1431402 | HB66: 2578309.48 | HC66: 460026398.9 | HD66: 5462262 | HE66: 517718753.8 | HG66: 116 | HH66: 143 | HI66: 307 | HJ66: 774 | HK66: 247 | HL66: 74 | HM66: 85 | HN66: 1746
A67: 381 | B67: Calderdale | C67: 17863855 | D67: 163457230 | E67: 18620019.88 | F67: 166752354.1 | G67: 19230486.39 | H67: 170757068.7 | I67: 19466929.27 | J67: 169512000 | L67: 138127178 | M67: 14961376 | N67: 0.1083159463 | O67: 108396 | P67: 0 | Q67: 138235575 | S67: 15237192 | T67: 6890262 | U67: 0 | V67: 0 | W67: 1328548 | X67: 484000 | Y67: 0 | Z67: 1022694 | AA67: 2417488 | AB67: 0 | AC67: 0 | AD67: 3094200 | AF67: 0 | AG67: 0 | AH67: 169676606 | AI67: 0 | AJ67: 439368 | AK67: 169540 | AL67: 84575 | AM67: 1625013 | AN67: 270 | AO67: 270 | AP67: 2700000 | AQ67: 14987992 | AR67: 6953844 | AS67: 0 | AT67: 1264967 | AU67: 484000 | AV67: 772694 | AW67: 2292487 | AX67: 0 | AY67: 0 | AZ67: 0 | BA67: 3220000 | BC67: 0 | BD67: 0 | BE67: 170275674 | BF67: 0 | BG67: 435872 | BH67: 168228 | BI67: 88020 | BJ67: 1630797 | BK67: 335 | BL67: 3220000 | BM67: 13522934.57 | BN67: 3721706 | BO67: 144986 | BP67: 2105611 | BQ67: 2220221 | BR67: 0 | BS67: 5161825.57 | BT67: 163488 | BU67: 0 | BV67: 1172 | BW67: 3925 | BX67: 0 | BY67: 135245801.5 | BZ67: 428632 | CA67: 164793 | CB67: 0 | CC67: 99440 | CD67: 1780938 | CE67: 11084858.5 | CF67: 1151880 | CG67: 185757 | CH67: 2257159 | CI67: 2220221 | CJ67: 0 | CK67: 5104123 | CL67: 105206.5 | CM67: 0 | CN67: 57171 | CP67: 3341 | CQ67: 0 | CR67: 167510125.9 | CS67: 411000 | CT67: 55511 | CU67: 0 | CV67: 66751 | CW67: 0 | CX67: 1689438 | CY67: 0 | CZ67: 0 | DA67: 11508442.22 | DB67: 1354412 | DC67: 560684 | DD67: 2334303 | DE67: 2301540 | DF67: 0 | DG67: 4475601.222 | DH67: 136612 | DI67: 463 | DJ67: 17341 | DK67: 21 | DL67: 153666 | DM67: 17498 | DN67: 123463 | DO67: 0 | DP67: 29453 | DQ67: 0 | DR67: 3385 | DS67: 0 | DT67: 170128293.9 | DU67: 426033 | DV67: 141860 | DW67: 0 | DX67: 78840 | DY67: 0 | DZ67: 1846200 | EA67: 0 | EB67: 0 | EC67: 10597382.26 | ED67: 1301371 | EE67: 494747 | EF67: 1922847 | EG67: 2291894 | EH67: 0 | EI67: 4124086 | EJ67: 124560.26 | EK67: 0 | EL67: 17040 | EM67: 0 | EN67: 162136 | EO67: 16869 | EP67: 121780 | EQ67: 0 | ER67: 16599 | ES67: 3453 | ET67: 0 | EU67: 174276658.9 | EV67: 391030 | EW67: 137940 | EX67: 0 | EY67: 78870 | EZ67: 0 | FA67: 1792400 | FB67: 0 | FD67: 15862110 | FE67: 6811691 | FF67: 0 | FG67: 1048023 | FH67: 469936 | FI67: 976719 | FJ67: 2405539 | FK67: 0 | FL67: 0 | FM67: 0 | FN67: 4150202 | FP67: 0 | FQ67: 0 | FR67: 115821646 | FS67: 0 | FT67: 450502 | FU67: 162511 | FV67: 79611 | FW67: 1607998 | FX67: 0 | FY67: 0 | FZ67: 18556564.07 | GA67: 10848655.59 | GB67: 5616721.44 | GC67: 851542.51 | GD67: 1239644.53 | GE67: 131625359.4 | GF67: 1525602.8 | GG67: 146101038.9 | GH67: 21369063.49 | GI67: 13516254.66 | GJ67: 5408748.83 | GK67: 722651 | GL67: 1721409 | GM67: 147193927.8 | GN67: 1689438 | GO67: 161399937.8 | GP67: 25922861 | GQ67: 17201563 | GR67: 5278046 | GS67: 1057840 | GT67: 2385412 | GU67: 181488474 | GV67: 1846200 | GW67: 198695952.6 | GX67: 22230845 | GY67: 14955449 | GZ67: 4949795 | HA67: 59915 | HB67: 2265686 | HC67: 185206732.4 | HD67: 1792400 | HE67: 217580735.4 | HG67: 0 | HH67: 36 | HI67: 80 | HJ67: 225 | HK67: 96 | HL67: 18 | HM67: 30 | HN67: 485
A68: 382 | B68: Kirklees | C68: 28121574 | D68: 311489538.8 | E68: 28757692.32 | F68: 319804269.5 | G68: 29707841.29 | H68: 325466872.3 | I68: 30210113.63 | J68: 326262000 | L68: 266517707 | M68: 26956456 | N68: 0.1011432085 | O68: 0 | P68: 0 | Q68: 266517707 | S68: 24105940 | T68: 11625679 | U68: 0 | V68: 0 | W68: 1185172 | X68: 2943000 | Y68: 0 | Z68: 738211 | AA68: 890546 | AB68: 0 | AC68: 0 | AD68: 6723332 | AF68: 0 | AG68: 0 | AH68: 326625348 | AI68: 152519 | AJ68: 1170466 | AK68: 306399 | AL68: 97000 | AM68: 3241795 | AN68: 778 | AO68: 790 | AP68: 7646100 | AQ68: 28026146 | AR68: 11644066 | AS68: 0 | AT68: 1047931 | AU68: 2694810 | AV68: 1561536 | AW68: 3532303 | AX68: 0 | AY68: 0 | AZ68: 0 | BA68: 7545500 | BC68: 0 | BD68: 0 | BE68: 318745736 | BF68: 153286 | BG68: 1220692 | BH68: 389903 | BI68: 103087 | BJ68: 2828390 | BK68: 776 | BL68: 7536000 | BM68: 18048105.62 | BN68: 1593600 | BO68: 1096080 | BP68: 224907 | BQ68: 2543834 | BR68: 0 | BS68: 12293550.68 | BT68: 261664.94 | BU68: 0 | BV68: 34469 | BW68: 0 | BX68: 0 | BY68: 288487187.5 | BZ68: 1354480 | CA68: 440979 | CB68: 150700 | CC68: 128765 | CD68: 3129260 | CE68: 16408494 | CF68: 0 | CG68: 1093989 | CH68: 209906 | CI68: 2541834 | CJ68: 0 | CK68: 12170423 | CL68: 280010 | CM68: 0 | CN68: 112332 | CP68: 0 | CQ68: 0 | CR68: 318326299.8 | CS68: 1405827 | CT68: 269969 | CU68: 131886 | CV68: 152074 | CW68: 48200 | CX68: 2892791 | CY68: 194306 | CZ68: 0 | DA68: 17781191 | DB68: 0 | DC68: 2100002 | DD68: 145366 | DE68: 2535834 | DF68: 0 | DG68: 11010621 | DH68: 250509 | DI68: 0 | DJ68: 35848 | DK68: 0 | DL68: 390435 | DM68: 193543 | DN68: 278528 | DO68: 0 | DP68: 108985 | DQ68: 0 | DR68: 731520 | DS68: 0 | DT68: 319800307 | DU68: 1880638 | DV68: 541367 | DW68: 115000 | DX68: 633317 | DY68: 50889 | DZ68: 2958432 | EA68: 178988 | EB68: 0 | EC68: 16606711.44 | ED68: 0 | EE68: 1899965 | EF68: 141864 | EG68: 2403430 | EH68: 0 | EI68: 10860800 | EJ68: 252559.44 | EK68: 0 | EL68: 36056 | EM68: 0 | EN68: 385112 | EO68: 195868 | EP68: 309196 | EQ68: 0 | ER68: 121861 | ES68: 0 | ET68: 0 | EU68: 310240912.4 | EV68: 1801966 | EW68: 468020 | EX68: 110000 | EY68: 234585 | EZ68: 67648 | FA68: 2914816 | FB68: 125313 | FD68: 29385223 | FE68: 13702242 | FF68: 0 | FG68: 1382497 | FH68: 2622147 | FI68: 724975 | FJ68: 959579 | FK68: 0 | FL68: 2448283 | FM68: 0 | FN68: 7545500 | FP68: 0 | FQ68: 0 | FR68: 267427792 | FS68: 0 | FT68: 1070017 | FU68: 392061 | FV68: 98806 | FW68: 3703687 | FX68: 0 | FY68: 0 | FZ68: 29846076.11 | GA68: 13187960.52 | GB68: 13355796.59 | GC68: 728643 | GD68: 2573676 | GE68: 302143194.4 | GF68: 3494130 | GG68: 344127932.4 | GH68: 29638466 | GI68: 13595463 | GJ68: 13004986 | GK68: 646999 | GL68: 2391018 | GM68: 320937821 | GN68: 2410750 | GO68: 363001479 | GP68: 30786693 | GQ68: 14056612 | GR68: 12911454 | GS68: 732644 | GT68: 3085983 | GU68: 377919539 | GV68: 2446605 | GW68: 442854611 | GX68: 29804395 | GY68: 13820290 | GZ68: 12721283 | HA68: 309500 | HB68: 2953322 | HC68: 352811245 | HD68: 2712416 | HE68: 425106448 | HG68: 0 | HH68: 188 | HI68: 112 | HJ68: 648 | HK68: 65 | HL68: 134 | HM68: 47 | HN68: 1194
A69: 383 | B69: Leeds | C69: 53542598.48 | D69: 506959875 | E69: 54211614.39 | F69: 523727490 | G69: 56902539.59 | H69: 539350129.9 | I69: 57899214.31 | J69: 546429000 | L69: 430397172 | M69: 37054962 | N69: 0.08609480826 | O69: 0 | P69: 1200000 | Q69: 430397172 | S69: 46065002 | T69: 18393254 | U69: 0 | V69: 0 | W69: 2892000 | X69: 6422710 | Y69: 3350000 | Z69: 2591660 | AA69: 2072089 | AB69: 0 | AC69: 0 | AD69: 10336739 | AF69: 0 | AG69: 6550 | AH69: 566430083 | AI69: 356604 | AJ69: 1555899 | AK69: 1804807 | AL69: 203932 | AM69: 4743430 | AN69: 1023 | AO69: 992 | AP69: 10150046 | AQ69: 47292038 | AR69: 22459913 | AS69: 0 | AT69: 1910576 | AU69: 7221610 | AV69: 2553710 | AW69: 2000650 | AX69: 0 | AY69: 0 | AZ69: 0 | BA69: 11139029 | BC69: 0 | BD69: 6550 | BE69: 544737682 | BF69: 516332 | BG69: 1554441 | BH69: 1549619 | BI69: 266155 | BJ69: 5030460 | BK69: 1127.83 | BL69: 11139029 | BM69: 27930387.23 | BN69: 5600556 | BO69: 158780 | BP69: 1176640 | BQ69: 4165140 | BR69: 0 | BS69: 16786901.23 | BT69: 0 | BU69: 20000 | BV69: 2640 | BW69: 0 | BX69: 19730 | BY69: 496373038.7 | BZ69: 156370 | CA69: 941630 | CB69: 358490 | CC69: 270050 | CD69: 5973650 | CE69: 25319120 | CF69: 3847532 | CG69: 156880 | CH69: 1144012 | CI69: 3662250 | CJ69: 0 | CK69: 16483911 | CL69: 0 | CM69: 4500 | CN69: 11195 | CP69: 5740 | CQ69: 3100 | CR69: 510681427.5 | CS69: 1723575 | CT69: 633850 | CU69: 194100 | CV69: 313231 | CW69: 287578 | CX69: 5919815 | CY69: 70857 | CZ69: 637713 | DA69: 24216325 | DB69: 2920000 | DC69: 595840 | DD69: 315180 | DE69: 3406720 | DF69: 0 | DG69: 15250870 | DH69: 292144 | DI69: 0 | DJ69: 35106 | DK69: 0 | DL69: 875250 | DM69: 224325 | DN69: 0 | DO69: 4310 | DP69: 264000 | DQ69: 0 | DR69: 32580 | DS69: 0 | DT69: 529728520 | DU69: 2014890 | DV69: 344130 | DW69: 195000 | DX69: 369860 | DY69: 759620 | DZ69: 6543249 | EA69: 77357 | EB69: 696213 | EC69: 23248476 | ED69: 2866540 | EE69: 551220 | EF69: 667250 | EG69: 2980720 | EH69: 0 | EI69: 14429338 | EJ69: 287974 | EK69: 0 | EL69: 34236 | EM69: 0 | EN69: 835015 | EO69: 144843 | EP69: 0 | EQ69: 2770 | ER69: 410000 | ES69: 38570 | ET69: 0 | EU69: 513528336.7 | EV69: 2046340 | EW69: 344130 | EX69: 0 | EY69: 376210 | EZ69: 731860 | FA69: 6354410 | FB69: 665540 | FD69: 41563802 | FE69: 20007188 | FF69: 0 | FG69: 1685511 | FH69: 7407055 | FI69: 2503200 | FJ69: 1967864 | FK69: 0 | FL69: 0 | FM69: 0 | FN69: 7986434 | FP69: 0 | FQ69: 6550 | FR69: 448303439 | FS69: 121662 | FT69: 1488938 | FU69: 1444389 | FV69: 242295 | FW69: 7025163 | FX69: 358268 | FY69: 511910 | FZ69: 88856104.55 | GA69: 60710274.53 | GB69: 22397095.11 | GC69: 1161596.72 | GD69: 4587138.19 | GE69: 526767773.8 | GF69: 7490348.87 | GG69: 572547283.7 | GH69: 55199330.61 | GI69: 29844178.26 | GJ69: 20780392.1 | GK69: 813146.25 | GL69: 3761614 | GM69: 546338482.6 | GN69: 6876449.77 | GO69: 591175317.5 | GP69: 56046279 | GQ69: 30815282 | GR69: 20251428 | GS69: 1629777 | GT69: 3349792 | GU69: 574703287 | GV69: 6036708 | GW69: 621485389 | GX69: 54680779 | GY69: 30201479 | GZ69: 19430414 | HA69: 1988599 | HB69: 3060287 | HC69: 563471534 | HD69: 6277184 | HE69: 637587765 | HG69: 0 | HH69: 187 | HI69: 154 | HJ69: 807 | HK69: 250 | HL69: 67 | HM69: 104 | HN69: 1569
A70: 384 | B70: Wakefield | C70: 21118307.59 | D70: 231292692 | E70: 22570369.53 | F70: 237103222.7 | G70: 23564043.25 | H70: 241282355.9 | I70: 23851960.82 | J70: 240272000 | L70: 197842028 | M70: 14986082 | N70: 0.07574771726 | O70: 190 | P70: 100000 | Q70: 197842217 | S70: 22793409 | T70: 8051629 | U70: 0 | V70: 0 | W70: 2259742 | X70: 1790383 | Y70: 100000 | Z70: 6105587 | AA70: 546550 | AB70: 0 | AC70: 0 | AD70: 3939518 | AF70: 0 | AG70: 0 | AH70: 249607170 | AI70: 0 | AJ70: 776330 | AK70: 719377 | AL70: 120677 | AM70: 2888413 | AN70: 457 | AO70: 457 | AP70: 4570000 | AQ70: 22107024.51 | AR70: 6565525 | AS70: 0 | AT70: 680329 | AU70: 2124155 | AV70: 5511668.01 | AW70: 513817.5 | AX70: 27467 | AY70: 0 | AZ70: 0 | BA70: 6684063 | BC70: 0 | BD70: 0 | BE70: 239688673.4 | BF70: 0 | BG70: 910550 | BH70: 605190 | BI70: 186140 | BJ70: 3374230 | BK70: 537 | BL70: 5212000 | BM70: 19073356.45 | BN70: 2168844 | BO70: 5469359 | BP70: 502328 | BQ70: 596750.01 | BR70: 0 | BS70: 10325545.44 | BT70: 0 | BU70: 0 | BV70: 10530 | BW70: 0 | BX70: 0 | BY70: 192039175.2 | BZ70: 929940 | CA70: 595060 | CB70: 0 | CC70: 205310 | CD70: 3571030 | CE70: 18074461.29 | CF70: 811310.288 | CG70: 5319393 | CH70: 224070 | CI70: 1276280 | CJ70: 0 | CK70: 10425646 | CL70: 0 | CM70: 0 | CN70: 17762 | CP70: 0 | CQ70: 0 | CR70: 202670064.3 | CS70: 829710 | CT70: 629810 | CU70: 0 | CV70: 265740 | CW70: 0 | CX70: 3625390 | CY70: 476070 | CZ70: 0 | DA70: 18201933.57 | DB70: 1133075 | DC70: 4089069 | DD70: 1688256 | DE70: 1074157 | DF70: 0 | DG70: 9247716 | DH70: 247320 | DI70: 54944 | DJ70: 33993 | DK70: 3618 | DL70: 611085 | DM70: 5844 | DN70: 0 | DO70: 0 | DP70: 12856.57188 | DQ70: 0 | DR70: 0 | DS70: 0 | DT70: 236547793.8 | DU70: 993533 | DV70: 0 | DW70: 0 | DX70: 67406.09 | DY70: 0 | DZ70: 3431008.63 | EA70: 427421.63 | EB70: 0 | EC70: 19213819.8 | ED70: 945431 | EE70: 4056428 | EF70: 1674044 | EG70: 1288200 | EH70: 0 | EI70: 10474474.8 | EJ70: 234699 | EK70: 32251 | EL70: 33820 | EM70: 3544 | EN70: 461530 | EO70: 5358 | EP70: 0 | EQ70: 0 | ER70: 4040 | ES70: 0 | ET70: 0 | EU70: 230608687.6 | EV70: 783066 | EW70: 151024 | EX70: 0 | EY70: 590473 | EZ70: 0 | FA70: 3689966 | FB70: 0 | FD70: 24162656 | FE70: 8212608 | FF70: 0 | FG70: 2902945 | FH70: 1855824 | FI70: 5869453 | FJ70: 553952 | FK70: 225125 | FL70: 0 | FM70: 0 | FN70: 4077172 | FP70: 465577 | FQ70: 0 | FR70: 129719730 | FS70: 0 | FT70: 786339 | FU70: 625890 | FV70: 54388 | FW70: 2198811 | FX70: 246142 | FY70: 91975 | FZ70: 17914744.09 | GA70: 6179894 | GB70: 10532085 | GC70: 13620.41 | GD70: 1189144.68 | GE70: 180812822.2 | GF70: 0 | GG70: 207953444.5 | GH70: 18140749.95 | GI70: 6909783.9 | GJ70: 10456608.6 | GK70: 17408.99 | GL70: 756948.46 | GM70: 202657911.5 | GN70: 433215.6 | GO70: 230292091.7 | GP70: 19791870.07 | GQ70: 7833553 | GR70: 10602287.57 | GS70: 233876.56 | GT70: 1122152.94 | GU70: 243208805.1 | GV70: 0 | GW70: 282511912.4 | GX70: 19125253.84 | GY70: 6753328 | GZ70: 11040307 | HA70: 178269 | HB70: 1153349.84 | HC70: 247326351.2 | HD70: 0 | HE70: 289680183.5 | HG70: 0 | HH70: 119 | HI70: 84 | HJ70: 394 | HK70: 81 | HL70: 102 | HM70: 85 | HN70: 865
A71: 390 | B71: Gateshead | C71: 18204932 | D71: 129537011.5 | E71: 19941971.95 | F71: 133142688.2 | G71: 20737265.64 | H71: 134817317.8 | I71: 20917870.57 | J71: 132840000 | L71: 102556698 | M71: 7901511 | N71: =M71/L71 -> 0.0770452945 | O71: 71895 | P71: 0 | Q71: 102628593 | S71: 19771746 | T71: 7195620 | U71: 0 | V71: 0 | W71: 1581493 | X71: 2630302 | Y71: 0 | Z71: 3134591 | AA71: 596936 | AB71: 0 | AC71: 0 | AD71: 4632804 | AF71: 0 | AG71: 0 | AH71: 134776204 | AI71: 91938 | AJ71: 369092 | AK71: 28172 | AL71: 52216 | AM71: 1646817 | AN71: 372 | AO71: 372 | AP71: 3792815 | AQ71: 20092435 | AR71: 7851476 | AS71: 0 | AT71: 1516292 | AU71: 2138632 | AV71: 2875463 | AW71: 676572 | AX71: 0 | AY71: 0 | AZ71: 0 | BA71: 5034000 | BC71: 0 | BD71: 0 | BE71: 133033657 | BF71: 91938 | BG71: 371556 | BH71: 72492 | BI71: 52216 | BJ71: 1531982 | BK71: 449 | BL71: 4304000 | BM71: 14884234.51 | BN71: 2960391 | BO71: 216297 | BP71: 1605954 | BQ71: 1641112 | BR71: 0 | BS71: 8460480.51 | BT71: 0 | BU71: 0 | BV71: 0 | BW71: 0 | BX71: 0 | BY71: 108309204.2 | BZ71: 378508 | CA71: 315331 | CB71: 91002 | CC71: 52216 | CD71: 1459030 | CE71: 14977022.58 | CF71: 2689538.18 | CG71: 189012.5726 | CH71: 1738570.973 | CI71: 2020808.853 | CJ71: 0 | CK71: 8339092 | CL71: 0 | CM71: 0 | CN71: 0 | CP71: 0 | CQ71: 0 | CR71: 141812564.3 | CS71: 447231.0903 | CT71: 184842.4851 | CU71: 129782.9352 | CV71: 52942.4989 | CW71: 0 | CX71: 1356489.308 | CY71: 0 | CZ71: 62648.69129 | DA71: 14804608.81 | DB71: 2566359 | DC71: 1294901 | DD71: 1510204 | DE71: 1440068 | DF71: 0 | DG71: 7323591.586 | DH71: 244027.2222 | DI71: 0 | DJ71: 31926 | DK71: 0 | DL71: 338587 | DM71: 54945 | DN71: 0 | DO71: 0 | DP71: 0 | DQ71: 0 | DR71: 0 | DS71: 0 | DT71: 139632784.6 | DU71: 536433 | DV71: 226455 | DW71: 168106 | DX71: 52872 | DY71: 66287 | DZ71: 0 | EA71: 123128 | EB71: 0 | EC71: 14156334.83 | ED71: 2235652 | EE71: 1287885 | EF71: 1188406 | EG71: 1628134 | EH71: 0 | EI71: 7178511.83 | EJ71: 239008 | EK71: 0 | EL71: 31272 | EM71: 0 | EN71: 332872 | EO71: 22400 | EP71: 0 | EQ71: 0 | ER71: 12194 | ES71: 0 | ET71: 0 | EU71: 133309395.8 | EV71: 628581 | EW71: 338934 | EX71: 192045 | EY71: 53558 | EZ71: 179078 | FA71: 1405974 | FB71: 145839 | FD71: 23099907.93 | FE71: 7645916.5 | FF71: 0 | FG71: 954993.14 | FH71: 2361578.68 | FI71: 2701916.17 | FJ71: 642027.44 | FK71: 0 | FL71: 0 | FM71: 0 | FN71: 8793476 | FP71: 0 | FQ71: 0 | FR71: 104078620.3 | FS71: 0 | FT71: 374972 | FU71: 0 | FV71: 48606 | FW71: 1363735 | FX71: 223282 | FY71: 0 | FZ71: 14891319.92 | GA71: 6611396.29 | GB71: 8191469.63 | GC71: 88454 | GD71: 0 | GE71: 111794004.2 | GF71: 1668771 | GG71: 135561348.2 | GH71: 16462468.57 | GI71: 7888976.1 | GJ71: 8519511.47 | GK71: 53981 | GL71: 0 | GM71: 142049692.6 | GN71: 1518732 | GO71: 165959874.6 | GP71: 19057698.73 | GQ71: 8547473 | GR71: 8544918 | GS71: 462443.49 | GT71: 1502864.24 | GU71: 148831047.7 | GV71: 1281815.3 | GW71: 175827409.1 | GX71: 17983209 | GY71: 7576753 | GZ71: 8191350 | HA71: 665486 | HB71: 1549620 | HC71: 149977817 | HD71: 1375726 | HE71: 179797306 | HG71: 120 | HH71: 36 | HI71: 48 | HJ71: 448 | HK71: 51 | HL71: 21 | HM71: 59 | HN71: 783
A72: 391 | B72: Newcastle upon Tyne | C72: 26031763.31 | D72: 179808051.4 | E72: 27456615.72 | F72: 187603300.7 | G72: 28591080.01 | H72: 191736665.8 | I72: 29934508.17 | J72: 192834000 | L72: 144890094 | M72: 12986630 | N72: 0.08963090327 | O72: 0 | P72: 2232094 | Q72: 144890094 | S72: =SUM(T72:AG72) -> 27831220 | T72: 5673870 | U72: 0 | V72: 0 | W72: 376600 | X72: 3699740 | Y72: 0 | Z72: 4757860 | AA72: 217000 | AB72: 0 | AC72: 0 | AD72: 13106150 | AF72: 0 | AG72: 0 | AH72: 196992330 | AI72: 371940 | AJ72: 678170 | AK72: 389280 | AL72: 0 | AM72: 2285120 | AN72: 571 | AO72: 586 | AP72: 5797500 | AQ72: =SUM(AR72:BD72) -> 17293938 | AR72: 8397281 | AS72: 0 | AT72: 1658567 | AU72: 3597000 | AV72: 3424090 | AW72: 217000 | AX72: 0 | AY72: 0 | AZ72: 0 | BA72: 0 | BC72: 0 | BD72: 0 | BE72: 161985358 | BF72: 183210 | BG72: 662630 | BH72: 180270 | BI72: 42000 | BJ72: 963910 | BK72: 771 | BL72: 7242000 | BM72: =SUM(BN72:BX72) -> 19416678.47 | BN72: 3244230 | BO72: 1968570 | BP72: 358000 | BQ72: 2166830 | BR72: 0 | BS72: 11674054.47 | BT72: 0 | BU72: 1585 | BV72: 3409 | BW72: 0 | BX72: 0 | BY72: 169609120.1 | BZ72: 800630 | CA72: 177050 | CB72: 539090 | CC72: 99000 | CD72: 1211910 | CE72: =SUM(CF72:CQ72) -> 18549776 | CF72: 3885251 | CG72: 1163660 | CH72: 220941 | CI72: 1879470 | CJ72: 0 | CK72: 11330583 | CL72: 0 | CM72: 1475 | CN72: 66799 | CP72: 1597 | CQ72: 0 | CR72: 181622941 | CS72: 1160396 | CT72: 55950 | CU72: 0 | CV72: 99815 | CW72: 21635 | CX72: 1772810 | CY72: 48113 | CZ72: 88835 | DA72: =SUM(DB72:DS72) -> 18800864 | DB72: 3118030 | DC72: 2022012 | DD72: 0 | DE72: 2166830 | DF72: 0 | DG72: 10156236 | DH72: 254800 | DI72: 0 | DJ72: 33283 | DK72: 0 | DL72: 512383 | DM72: 57385 | DN72: 0 | DO72: 1376 | DP72: 477040 | DQ72: 0 | DR72: 1489 | DS72: 0 | DT72: 190341065.8 | DU72: 1184425 | DV72: 855 | DW72: 0 | DX72: 69149 | DY72: 37291 | DZ72: 2115158 | EA72: 52291 | EB72: 92962 | EC72: =SUM(ED72:ET72) -> 18413187 | ED72: 3279270 | EE72: 1793030 | EF72: 0 | EG72: 2184870 | EH72: 0 | EI72: 9804403 | EJ72: 225620 | EK72: 0 | EL72: 28712 | EM72: 0 | EN72: 493817 | EO72: 43502 | EP72: 0 | EQ72: 0 | ER72: 558435 | ES72: 1528 | ET72: 0 | EU72: 182601829 | EV72: 1023480 | EW72: 15980 | EX72: 0 | EY72: 74340 | EZ72: 42620 | FA72: 2121550 | FB72: 145510 | FD72: =SUM(FE72:FQ72) -> 23717049.87 | FE72: 5972701.89 | FF72: 0 | FG72: 430906.41 | FH72: 4404979.8 | FI72: 3746813.93 | FJ72: 195651.64 | FK72: 0 | FL72: 0 | FM72: 0 | FN72: 8965996.2 | FP72: 0 | FQ72: 0 | FR72: 150383780 | FS72: 258945.71 | FT72: 796076.02 | FU72: 549440.77 | FV72: 20711.84 | FW72: 2055227 | FX72: 216075.21 | FY72: 304012.8 | FZ72: =SUM(GA72:GD72) -> 18533072.01 | GA72: 1690943.38 | GB72: 12958758.63 | GC72: 1501916 | GD72: 2381454 | GE72: 171925473.2 | GF72: 2577009 | GG72: 194352755.2 | GH72: =SUM(GI72:GL72) -> 22203428.05 | GI72: 6635282.08 | GJ72: 12018533.97 | GK72: 1221611 | GL72: 2328001 | GM72: 188467323.9 | GN72: 1991324 | GO72: 211903546.9 | GP72: =SUM(GQ72:GT72) -> 19455818 | GQ72: 3855032 | GR72: 12111349 | GS72: 1054777 | GT72: 2434660 | GU72: 203157190 | GV72: 1971159 | GW72: 231693588 | GX72: =SUM(GY72:HB72) -> 21571451 | GY72: 7185850 | GZ72: 11557371 | HA72: 787009 | HB72: 2041221 | HC72: 194659255.1 | HD72: 1959996 | HE72: 246545171.1 | HG72: 143 | HH72: 24 | HI72: 194 | HJ72: 763 | HK72: 72 | HL72: 113 | HM72: 33 | HN72: 1342
A73: 392 | B73: North Tyneside | C73: 15865271.93 | D73: 133776532.9 | E73: 16101187.75 | F73: 136805527.9 | G73: 16566339.24 | H73: 139911919.1 | I73: 16763707.15 | J73: 137823000 | L73: 109301646 | M73: 8489737 | N73: 0.07767254484 | O73: 426185 | P73: 0 | Q73: 109727831 | S73: 14998937 | T73: 5230040 | U73: 0 | V73: 0 | W73: 356760 | X73: 1057341 | Y73: 0 | Z73: 3058310 | AA73: 194616 | AB73: 0 | AC73: 100000 | AD73: 5001870 | AF73: 0 | AG73: 0 | AH73: 146875964 | AI73: 169374 | AJ73: 292209 | AK73: 366355 | AL73: 35462 | AM73: 1779678 | AN73: 493.2 | AO73: 493.2 | AP73: 5001870 | AQ73: 14930243 | AR73: 5244057 | AS73: 0 | AT73: 230000 | AU73: 1542290 | AV73: 2224034 | AW73: 258202 | AX73: 0 | AY73: 0 | AZ73: 100000 | BA73: 5331660 | BC73: 0 | BD73: 0 | BE73: 145587762 | BF73: 342974 | BG73: 358985 | BH73: 371929 | BI73: 35462 | BJ73: 1574444 | BK73: 540 | BL73: 5331660 | BM73: 11623120.84 | BN73: 60454 | BO73: 54761 | BP73: 161159 | BQ73: 1609789 | BR73: 0 | BS73: 9686694.84 | BT73: 0 | BU73: 20000 | BV73: 30263 | BW73: 0 | BX73: 0 | BY73: 140282505.2 | BZ73: 385487 | CA73: 591945 | CB73: 0 | CC73: 35462 | CD73: 1549739 | CE73: 11370467 | CF73: 0 | CG73: 175382 | CH73: 249872 | CI73: 1472132 | CJ73: 0 | CK73: 9439150 | CL73: 0 | CM73: 4608 | CN73: 29323 | CO73: 0 | CP73: 0 | CQ73: 0 | CR73: 146529582 | CS73: 475501 | CT73: 270620 | CU73: 0 | CV73: 35462 | CW73: 54933 | CX73: 1290261 | CY73: 143897 | CZ73: 0 | DA73: 11858287.31 | DB73: 0 | DC73: 648432 | DD73: 260532 | DE73: 1472132 | DF73: 0 | DG73: 8551758.492 | DH73: 213640 | DI73: 0 | DJ73: 26923 | DK73: 0 | DL73: 393654 | DM73: 264669.82 | DN73: 0 | DO73: 3331 | DP73: 23215 | DQ73: 0 | DR73: 0 | DS73: 0 | DT73: 144262398.5 | DU73: 551280 | DV73: 255609 | DW73: 0 | DX73: 35462 | DY73: 123117 | DZ73: 1200261 | EA73: 148664 | EB73: 0 | EC73: 11409101.68 | ED73: 0 | EE73: 873909 | EF73: 617077 | EG73: 1472132 | EH73: 0 | EI73: 7690505 | EJ73: 207711 | EK73: 0 | EL73: 26060 | EM73: 0 | EN73: 315653 | EO73: 182322.68 | EP73: 0 | EQ73: 4464 | ER73: 19268 | ES73: 0 | ET73: 0 | EU73: 137213815.8 | EV73: 617684 | EW73: 293009 | EX73: 0 | EY73: 37831 | EZ73: 167241 | FA73: 1301009 | FB73: 148664 | FD73: 16224635 | FE73: 5738160 | FF73: 0 | FG73: 447447 | FH73: 1127354 | FI73: 3367146 | FJ73: 114298 | FK73: 0 | FL73: 0 | FM73: 100000 | FN73: 5330230 | FP73: 0 | FQ73: 0 | FR73: 136745968 | FS73: 347722 | FT73: 338292 | FU73: 318328 | FV73: 35462 | FW73: 1562070 | FX73: 150814 | FY73: 150814 | FZ73: 25196696.54 | GA73: 12807254.92 | GB73: 10949162.62 | GC73: 326766 | GD73: 1113513 | GE73: 146858177 | GF73: 2003514 | GG73: 161349935 | GH73: 25221612.47 | GI73: 13153714.71 | GJ73: 10446123.76 | GK73: 399090 | GL73: 1222684 | GM73: 149451952.7 | GN73: 1625942 | GO73: 168273522.7 | GP73: 25516304 | GQ73: 13512200 | GR73: 10080809 | GS73: 451163 | GT73: 1472132 | GU73: 148725601 | GV73: 1469382 | GW73: 171264060 | GX73: 23272055 | GY73: 11980592 | GZ73: 9568591 | HA73: 268672 | HB73: 1454200 | HC73: 145163707.1 | HD73: 1477115 | HE73: 176445830.1 | HG73: 0 | HH73: 168 | HI73: 60 | HJ73: 440.2 | HK73: 57 | HL73: 29 | HM73: 26 | HN73: 780.2
A74: 393 | B74: South Tyneside | C74: 14127080.07 | D74: 107354781.1 | E74: 14995690.44 | F74: 109054378.5 | G74: 15839242.83 | H74: 110144781.3 | I74: 16169808.6 | J74: 108848000 | L74: 83272719 | M74: 7315527 | N74: 0.08785022379 | O74: 0 | P74: 0 | Q74: 83272719 | S74: 14318354 | T74: 4694650 | U74: 0 | V74: 0 | W74: 577000 | X74: 3231342 | Y74: 124000 | Z74: 1364162 | AA74: 27200 | AB74: 0 | AC74: 0 | AD74: 4300000 | AF74: 0 | AG74: 0 | AH74: 111255919 | AI74: 0 | AJ74: 536200 | AK74: 451346 | AL74: 43724 | AM74: 717692 | AN74: 421 | AO74: 421 | AP74: 4300000 | AQ74: 13749161 | AR74: 4388858 | AS74: 0 | AT74: 0 | AU74: 3533807 | AV74: 1342928 | AW74: 253568 | AX74: 0 | AY74: 0 | AZ74: 0 | BA74: 4230000 | BC74: 0 | BD74: 0 | BE74: 109231597 | BF74: 0 | BG74: 505500 | BH74: 507680 | BI74: 50287 | BJ74: 891271 | BK74: 430 | BL74: 4230000 | BM74: 11516318.91 | BN74: 1206877 | BO74: 227100 | BP74: 822100 | BQ74: 3024278 | BR74: 0 | BS74: 6226220.91 | BT74: 0 | BU74: 3534 | BV74: 6209 | BW74: 0 | BX74: 0 | BY74: 112522968.3 | BZ74: 562092 | CA74: 463535 | CB74: 0 | CC74: 45903 | CD74: 978335 | CE74: 10008498 | CF74: 1076093 | CG74: 281553 | CH74: 764066 | CI74: 1475593 | CJ74: 0 | CK74: 6397767 | CL74: 0 | CM74: 0 | CN74: 13426 | CP74: 0 | CQ74: 0 | CR74: 105990623 | CS74: 781128 | CT74: 561569 | CU74: 0 | CV74: 45888 | CW74: 0 | CX74: 1090440 | CY74: 193694 | CZ74: 116102 | DA74: 10467685 | DB74: 1279845 | DC74: 187253 | DD74: 797065 | DE74: 1353737 | DF74: 0 | DG74: 5736300 | DH74: 237904 | DI74: 16560 | DJ74: 32297 | DK74: 1809 | DL74: 672180 | DM74: 28946 | DN74: 0 | DO74: 0 | DP74: 123789 | DQ74: 0 | DR74: 0 | DS74: 0 | DT74: 113959927.7 | DU74: 973300 | DV74: 558711 | DW74: 0 | DX74: 47486 | DY74: 0 | DZ74: 1091635 | EA74: 200821 | EB74: 0 | EC74: 10685094 | ED74: 1433172 | EE74: 197316 | EF74: 751707 | EG74: 1627522 | EH74: 0 | EI74: 5653019 | EJ74: 235175 | EK74: 21676 | EL74: 32312 | EM74: 1772 | EN74: 581860 | EO74: 49563 | EP74: 0 | EQ74: 0 | ER74: 100000 | ES74: 0 | ET74: 0 | EU74: 112680353 | EV74: 712924 | EW74: 402022 | EX74: 0 | EY74: 45840 | EZ74: 0 | FA74: 1019306 | FB74: 180000 | FD74: 13641456 | FE74: 3935266 | FF74: 0 | FG74: 0 | FH74: 3848869 | FI74: 1344574 | FJ74: 282747 | FK74: 0 | FL74: 0 | FM74: 0 | FN74: 4230000 | FP74: 0 | FQ74: 0 | FR74: 100296948 | FS74: 0 | FT74: 523990 | FU74: 453397 | FV74: 47744 | FW74: 827365 | FX74: 175018 | FY74: 171041 | FZ74: 17058093.9 | GA74: 8978799 | GB74: 7019021.9 | GC74: 192336 | GD74: 867937 | GE74: 116546098.8 | GF74: 756777 | GG74: 128798717.8 | GH74: 16894543.6 | GI74: 8979911 | GJ74: 6983349.6 | GK74: 344674 | GL74: 586609 | GM74: 117112040.9 | GN74: 870064 | GO74: 131707060.9 | GP74: 17331838 | GQ74: 9223820 | GR74: 7026196 | GS74: 254676 | GT74: 827146 | GU74: 119956295 | GV74: 991341 | GW74: 141619160 | GX74: 17480815 | GY74: 8770304 | GZ74: 7299196 | HA74: 275162 | HB74: 1136153 | HC74: 119015350 | HD74: 1085596 | HE74: 139849375 | HG74: 103 | HH74: 20 | HI74: 35 | HJ74: 405 | HK74: 39 | HL74: 48 | HM74: 68 | HN74: 718
A75: 394 | B75: Sunderland | C75: 20937208.38 | D75: 193614823 | E75: 21453480.08 | F75: 196278498.5 | G75: 23047274.67 | H75: 197911269.3 | I75: 23268951.48 | J75: 195990000 | L75: 157633554 | M75: 12888941 | N75: 0.08176521225 | O75: 928738 | P75: 0 | Q75: 158562292 | S75: 17926429 | T75: 3277461 | U75: 0 | V75: 0 | W75: 4044467 | X75: 894665 | Y75: 40570 | Z75: 1458644 | AA75: 2013955 | AB75: 0 | AC75: 0 | AD75: 6196667 | AF75: 0 | AG75: 0 | AH75: 200477321 | AI75: 0 | AJ75: 808103 | AK75: 335510 | AL75: 121448 | AM75: 1487468 | AN75: 300 | AO75: 305 | AP75: 3029167 | AQ75: 17172754 | AR75: 4320722 | AS75: 0 | AT75: 2611594 | AU75: 881633 | AV75: 1110757 | AW75: 1485381 | AX75: 0 | AY75: 0 | AZ75: 0 | BA75: 6762667 | BC75: 0 | BD75: 0 | BE75: 200034983 | BF75: 0 | BG75: 367406 | BH75: 269018 | BI75: 79812 | BJ75: 1855383 | BK75: 452 | BL75: 4216000 | BM75: 14399295.93 | BN75: 1759540.73 | BO75: 114640 | BP75: 899763 | BQ75: 846921 | BR75: 0 | BS75: 10778431.2 | BT75: 0 | BU75: 0 | BV75: 0 | BW75: 0 | BX75: 0 | BY75: 184716997.2 | BZ75: 397053 | CA75: 319567 | CB75: 0 | CC75: 80661 | CD75: 1903114 | CE75: 13770208 | CF75: 368383 | CG75: 131279 | CH75: 1291924 | CI75: 953969 | CJ75: 0 | CK75: 10964811 | CL75: 0 | CM75: 0 | CN75: 59842 | CP75: 0 | CQ75: 0 | CR75: 194649575 | CS75: 662107 | CT75: 289178 | CU75: 60040 | CV75: 77027 | CW75: 118918 | CX75: 2000096 | CY75: 37995 | CZ75: 215305 | DA75: 13158302 | DB75: 425872 | DC75: 0 | DD75: 1126083 | DE75: 937198 | DF75: 0 | DG75: 9873972 | DH75: 280457 | DI75: 0 | DJ75: 37247 | DK75: 0 | DL75: 409448 | DM75: 12900 | DN75: 0 | DO75: 0 | DP75: 55125 | DQ75: 0 | DR75: 0 | DS75: 0 | DT75: 194145921 | DU75: 950740 | DV75: 428971 | DW75: 137249 | DX75: 87266 | DY75: 354445 | DZ75: 2032908 | EA75: 153888 | EB75: 89494 | EC75: 12806565 | ED75: 424775 | EE75: 0 | EF75: 1049484 | EG75: 948286 | EH75: 0 | EI75: 9570271 | EJ75: 294695 | EK75: 0 | EL75: 36484 | EM75: 0 | EN75: 331152 | EO75: 15821 | EP75: 0 | EQ75: 0 | ER75: 135597 | ES75: 0 | ET75: 0 | EU75: 188159746 | EV75: 928770 | EW75: 434319 | EX75: 140034 | EY75: 91204 | EZ75: 367573 | FA75: 2025554 | FB75: 248071 | FD75: 15374688 | FE75: 3367046 | FF75: 0 | FG75: 3462820 | FH75: 1479041 | FI75: 987871 | FJ75: 2320542 | FK75: 0 | FL75: 0 | FM75: 0 | FN75: 3757368 | FP75: 0 | FQ75: 0 | FR75: 35773858 | FS75: 0 | FT75: 390593 | FU75: 287044 | FV75: 162065 | FW75: 1527988 | FX75: 492902 | FY75: 188862 | FZ75: 20397562.51 | GA75: 10229198.73 | GB75: 8879948.78 | GC75: 257497 | GD75: 1030918 | GE75: 177576253.8 | GF75: 2291934 | GG75: 192013421.8 | GH75: 26533652.26 | GI75: 13680637 | GJ75: 11711204.26 | GK75: 314486 | GL75: 827325 | GM75: 200293790.2 | GN75: 2084009 | GO75: 220239549.2 | GP75: 24700396 | GQ75: 11484658 | GR75: 11763606 | GS75: 474758 | GT75: 977374 | GU75: 212921666 | GV75: 1971418 | GW75: 239585377 | GX75: 23964404.93 | GY75: 11100545 | GZ75: 11632135.93 | HA75: 305666 | HB75: 926058 | HC75: 218606938.4 | HD75: 2037389 | HE75: 264211414.4 | HG75: 116 | HH75: 64 | HI75: 179 | HJ75: 531 | HK75: 132 | HL75: 95 | HM75: 82 | HN75: 1199
A76: 420 | B76: Isles Of Scilly | L76: 2514447 | M76: 158702 | N76: 0.06311606488 | O76: 0 | P76: 50358 | Q76: 2514447 | S76: 154949 | T76: 52099 | U76: 0 | V76: 0 | W76: 90850 | X76: 5000 | Y76: 0 | Z76: 2000 | AA76: 5000 | AB76: 0 | AC76: 0 | AD76: 0 | AF76: 0 | AG76: 0 | AH76: 2790654 | AI76: 0 | AJ76: 5000 | AK76: 22123 | AL76: 0 | AM76: 3500 | AN76: 0 | AO76: 0 | AP76: 0 | AQ76: 180000 | AR76: 63000 | AS76: 0 | AT76: 60500 | AU76: 36500 | AV76: 2000 | AW76: 18000 | AX76: 0 | AY76: 0 | AZ76: 0 | BA76: 0 | BC76: 0 | BD76: 0 | BE76: 2824670 | BF76: 0 | BG76: 5000 | BH76: 26998 | BI76: 0 | BJ76: 10500 | BK76: 0 | BL76: 0 | BM76: 231965 | BN76: 145598 | BO76: 66367 | BP76: 0 | BQ76: 20000 | BR76: 0 | BS76: 0 | BT76: 0 | BU76: 0 | BV76: 0 | BW76: 0 | BX76: 0 | BY76: 2851168.15 | BZ76: 6600 | CA76: 37242 | CB76: 0 | CC76: 1000 | CD76: 10500 | CE76: 58584 | CF76: 0 | CG76: 0 | CH76: 58584 | CI76: 0 | CJ76: 0 | CK76: 0 | CL76: 0 | CM76: 0 | CN76: 0 | CP76: 0 | CQ76: 0 | CR76: 2705728 | CS76: 4600 | CT76: 4000 | CU76: 0 | CV76: 2000 | CW76: 4000 | CX76: 12400 | CY76: 0 | CZ76: 0 | DA76: 35364 | DB76: 0 | DC76: 0 | DD76: 35364 | DE76: 0 | DF76: 0 | DG76: 0 | DH76: 0 | DI76: 0 | DJ76: 0 | DK76: 0 | DL76: 0 | DM76: 0 | DN76: 0 | DO76: 0 | DP76: 0 | DQ76: 0 | DR76: 0 | DS76: 0 | DT76: 2749645 | DU76: 4600 | DV76: 4000 | DW76: 0 | DX76: 2000 | DY76: 4000 | DZ76: 11000 | EA76: 0 | EB76: 0 | EC76: 62740 | ED76: 0 | EE76: 0 | EF76: 62740 | EG76: 0 | EH76: 0 | EI76: 0 | EJ76: 0 | EK76: 0 | EL76: 0 | EM76: 0 | EN76: 0 | EO76: 0 | EP76: 0 | EQ76: 0 | ER76: 0 | ES76: 0 | ET76: 0 | EU76: 2869560 | EV76: 4600 | EW76: 1850 | EX76: 0 | EY76: 1000 | EZ76: 0 | FA76: 1000 | FB76: 0 | FD76: 137363 | FE76: 64195 | FF76: 0 | FG76: 0 | FH76: 72795 | FI76: 373 | FJ76: 0 | FK76: 0 | FL76: 0 | FM76: 0 | FN76: 0 | FP76: 0 | FQ76: 0 | FR76: 2780333.2 | FS76: 0 | FT76: 7985 | FU76: 22021.27 | FV76: 700 | FW76: 8350 | FX76: 0 | FY76: 0 | FZ76: =SUM(GA76:GD76) -> 172333 | GA76: 140598 | GB76: 0 | GC76: 0 | GD76: 31735 | GE76: 2941186.52 | GF76: 10533 | GG76: 3615427.52 | GH76: 65244 | GI76: 29394 | GJ76: 0 | GK76: 0 | GL76: 35850 | GM76: 2830410.66 | GN76: 8558 | GO76: 3434900.66 | GP76: 23188 | GQ76: 0 | GR76: 0 | GS76: 0 | GT76: 23188 | GU76: 2831046.74 | GV76: 9094 | GW76: 3528497.74 | GX76: 0 | GY76: 0 | GZ76: 0 | HA76: 0 | HB76: 0 | HC76: 2727618.75 | HD76: 10622.55 | HE76: 3803928.97 | HG76: 1 | HH76: 0 | HI76: 0 | HJ76: 0 | HK76: 0 | HL76: 3 | HM76: 1 | HN76: 5
A77: 800 | B77: Bath and North East Somerset | C77: 13889976 | D77: 114231149.7 | E77: 14727746.29 | F77: 116848594.3 | G77: 15456136.16 | H77: 118333781.4 | I77: 15759812.38 | J77: 119274000 | L77: 88659930 | M77: 8094027 | N77: 0.091292955 | O77: 1976457 | P77: 546000 | Q77: 90636388 | S77: 17858929 | T77: 3908774 | U77: 0 | V77: 0 | W77: 3621474 | X77: 4241571 | Y77: 607870 | Z77: 765157 | AA77: 723493 | AB77: 0 | AC77: 0 | AD77: 3990000 | AF77: 0 | AG77: 590 | AH77: 120237766 | AI77: 0 | AJ77: 492353 | AK77: 318241 | AL77: 374283 | AM77: 1976367 | AN77: 21 | AO77: 22 | AP77: 215833 | AQ77: 15685940 | AR77: 5463308 | AS77: 0 | AT77: 1645671 | AU77: 5895559 | AV77: 693630 | AW77: 291890 | AX77: 0 | AY77: 0 | AZ77: 0 | BA77: 1690000 | BC77: 0 | BD77: 5882 | BE77: 117096404 | BF77: 0 | BG77: 361858 | BH77: 342860 | BI77: 301855 | BJ77: 1854261 | BK77: 189 | BL77: 1890000 | BM77: 9342435 | BN77: 2025543 | BO77: 430745 | BP77: 596417 | BQ77: 3055859 | BR77: 0 | BS77: 3227940 | BT77: 0 | BU77: 0 | BV77: 1697 | BW77: 0 | BX77: 4234 | BY77: 84536500.42 | BZ77: 372658 | CA77: 472646 | CB77: 0 | CC77: 82364 | CD77: 1799188 | CE77: 14276695 | CF77: 4002047 | CG77: 787959 | CH77: 438310 | CI77: 3043923 | CJ77: 0 | CK77: 5936961 | CL77: 0 | CM77: 0 | CN77: 61572 | CP77: 0 | CQ77: 5923 | CR77: 116165716 | CS77: 363052 | CT77: 139326 | CU77: 0 | CV77: 99218 | CW77: 96028 | CX77: 2691938 | CY77: 116578 | CZ77: 0 | DA77: 9692809 | DB77: 700473 | DC77: 428802 | DD77: 390638 | DE77: 2123591 | DF77: 0 | DG77: 5138521 | DH77: 170355 | DI77: 0 | DJ77: 19090 | DK77: 0 | DL77: 215284 | DM77: 122730 | DN77: 0 | DO77: 0 | DP77: 362740 | DQ77: 0 | DR77: 0 | DS77: 20585 | DT77: 129931989.8 | DU77: 397592 | DV77: 171882 | DW77: 0 | DX77: 92973 | DY77: 110907 | DZ77: 2635310 | EA77: 0 | EB77: 0 | EC77: 10071454.69 | ED77: 1060931.69 | EE77: 1145572.47 | EF77: 340167.49 | EG77: 2072908.57 | EH77: 0 | EI77: 4951520.51 | EJ77: 156111 | EK77: 0 | EL77: 18548 | EM77: 0 | EN77: 198020 | EO77: 25709.56 | EP77: 0 | EQ77: 0 | ER77: 97026.16 | ES77: 0 | ET77: 4939.24 | EU77: 123806955 | EV77: 483759.93 | EW77: 204314.96 | EX77: 0 | EY77: 107658.63 | EZ77: 99320.06 | FA77: 2588216.8 | FB77: 4732.8 | FD77: 16750588 | FE77: 4906450 | FF77: 0 | FG77: 2898508 | FH77: 4615401 | FI77: 881649 | FJ77: 271033 | FK77: 0 | FL77: 0 | FM77: 0 | FN77: 3171667 | FP77: 0 | FQ77: 5880 | FR77: 117860334 | FS77: 0 | FT77: 350744 | FU77: 299365 | FV77: 289626 | FW77: 1965794 | FX77: 154850 | FY77: 51617 | FZ77: 12905148.27 | GA77: 5686652.4 | GB77: 4595538.87 | GC77: 80017 | GD77: 2542940 | GE77: 90501355.29 | GF77: 1902456 | GG77: 102121945.3 | GH77: 14540552.23 | GI77: 6329602.15 | GJ77: 5574747.08 | GK77: 49879 | GL77: 2586324 | GM77: 106029615.5 | GN77: 1747267 | GO77: 118353258.5 | GP77: 16581357 | GQ77: 6724199 | GR77: 7415744 | GS77: 71321 | GT77: 2370093 | GU77: 134782134 | GV77: 1587312 | GW77: 153159291 | GX77: 16030886.82 | GY77: 6548292 | GZ77: 7581778 | HA77: 106503.82 | HB77: 1794313 | HC77: 138254464.9 | HD77: 1752117 | HE77: 154775581.4 | HG77: 43 | HH77: 0 | HI77: 0 | HJ77: 327 | HK77: 78 | HL77: 48 | HM77: 21 | HN77: 517
A78: 801 | B78: Bristol, City of | C78: 36633540.17 | D78: 262922655.8 | E78: 40392198.59 | F78: 278054266.1 | G78: 42218604.21 | H78: 286489737.2 | I78: 42649480.98 | J78: 302865000 | L78: 215570705 | M78: 31325586 | N78: 0.1453146707 | O78: 28305 | P78: 0 | Q78: 215599011 | S78: 36504056.78 | T78: 14580585 | U78: 0 | V78: 0 | W78: 1707208 | X78: 7952834.21 | Y78: 0 | Z78: 2143537.57 | AA78: 1151726 | AB78: 400000 | AC78: 0 | AD78: 8568166 | AF78: 0 | AG78: 0 | AH78: 298492247.8 | AI78: 156507.8 | AJ78: 779004.12 | AK78: 716095.12 | AL78: 57651.58 | AM78: 5619612 | AN78: 671 | AO78: 770 | AP78: 7077501 | AQ78: 39667363 | AR78: 17573179 | AS78: 0 | AT78: 1607848 | AU78: 6432025 | AV78: 2061547 | AW78: 1172344 | AX78: 400000 | AY78: 0 | AZ78: 0 | BA78: 10420420 | BC78: 0 | BD78: 0 | BE78: 274307600 | BF78: 186056 | BG78: 1248086 | BH78: 681500 | BI78: 58228 | BJ78: 6583736 | BK78: 930 | BL78: 10989000 | BM78: 26117855.38 | BN78: 1198403 | BO78: 1494082 | BP78: 474265 | BQ78: 5641226 | BR78: 0 | BS78: 17182445.38 | BT78: 0 | BU78: 0 | BV78: 127434 | BW78: 0 | BX78: 0 | BY78: 238283283.9 | BZ78: 717638 | CA78: 634434 | CB78: 5471 | CC78: 54272 | CD78: 6842561 | CE78: 25874258 | CF78: 946471 | CG78: 953380 | CH78: 656122 | CI78: 5376539 | CJ78: 0 | CK78: 16454798 | CL78: 0 | CM78: 0 | CN78: 1463189 | CP78: 23759 | CQ78: 0 | CR78: 248762328 | CS78: 381460 | CT78: 379697 | CU78: 184516 | CV78: 55737 | CW78: 245670 | CX78: 6042783 | CY78: 100137 | CZ78: 0 | DA78: 25075055.2 | DB78: 819785 | DC78: 922004 | DD78: 625517 | DE78: 5377560 | DF78: 0 | DG78: 15289479.2 | DH78: 369824 | DI78: 0 | DJ78: 53136 | DK78: 0 | DL78: 674744 | DM78: 168674 | DN78: 0 | DO78: 0 | DP78: 769400 | DQ78: 0 | DR78: 4932 | DS78: 0 | DT78: 242780797.2 | DU78: 399762 | DV78: 641894 | DW78: 322295 | DX78: 61978 | DY78: 273061 | DZ78: 5484922 | EA78: 280290 | EB78: 0 | EC78: 23598511 | ED78: 720218 | EE78: 1011687 | EF78: 847433 | EG78: 5277595 | EH78: 0 | EI78: 14569481 | EJ78: 384380 | EK78: 0 | EL78: 53980 | EM78: 0 | EN78: 573290 | EO78: 27954 | EP78: 0 | EQ78: 0 | ER78: 127561 | ES78: 4932 | ET78: 0 | EU78: 233639078 | EV78: 583984.2 | EW78: 492333 | EX78: 277332 | EY78: 56734 | EZ78: 333555 | FA78: 6128851 | FB78: 205342 | FD78: 38588534 | FE78: 14747608 | FF78: 0 | FG78: 1651956 | FH78: 7482804 | FI78: 2590701 | FJ78: 962087 | FK78: 700000 | FL78: 0 | FM78: 0 | FN78: 10453378 | FP78: 0 | FQ78: 0 | FR78: 189078706 | FS78: 0 | FT78: 723168 | FU78: 811056 | FV78: 63352 | FW78: 5342761 | FX78: 60648 | FY78: 8818 | FZ78: 40476732.26 | GA78: 14507410.2 | GB78: 19436321.06 | GC78: 1696200 | GD78: 4836801 | GE78: 253254636.1 | GF78: 5413477 | GG78: 276366190.1 | GH78: 43967418.64 | GI78: 18264684.7 | GJ78: 19021223.94 | GK78: 1370743 | GL78: 5310767 | GM78: 270577479.6 | GN78: 5851852 | GO78: 293619158.6 | GP78: 44319644.21 | GQ78: 18444366 | GR78: 17664384 | GS78: 2328691.75 | GT78: 5882202.46 | GU78: 327142738 | GV78: 6073508.37 | GW78: 362192845.8 | GX78: 42114711.32 | GY78: 17581100 | GZ78: 16894582.8 | HA78: 2065708.64 | HB78: 5573319.88 | HC78: 363394058.5 | HD78: 5459216.1 | HE78: 407487804.5 | HG78: 316 | HH78: 0 | HI78: 146 | HJ78: 735 | HK78: 223 | HL78: 162 | HM78: 139 | HN78: 1721
A79: 802 | B79: North Somerset | C79: 12249533 | D79: 132616902.1 | E79: 15276442.85 | F79: 137425442.5 | G79: 16705819.49 | H79: 139867880.2 | I79: 16948496.05 | J79: 139335000 | L79: 111270269 | M79: 12928623 | N79: 0.1161911723 | O79: 110363 | P79: 0 | Q79: 111380631 | S79: 16106395 | T79: 4773117 | U79: 0 | V79: 0 | W79: 3876312 | X79: 2586586 | Y79: 26110 | Z79: 1748147 | AA79: 462790 | AB79: 0 | AC79: 0 | AD79: 2633333 | AF79: 0 | AG79: 0 | AH79: 141409160 | AI79: 60250 | AJ79: 468520 | AK79: 405650 | AL79: 54560 | AM79: 1397040 | AN79: 247 | AO79: 263 | AP79: 2593333 | AQ79: 15918458 | AR79: 4684013 | AS79: 0 | AT79: 3127913 | AU79: 2208164 | AV79: 1891556 | AW79: 406145 | AX79: 0 | AY79: 0 | AZ79: 0 | BA79: 3600667 | BC79: 0 | BD79: 0 | BE79: 139458544 | BF79: 60250 | BG79: 475810 | BH79: 418920 | BI79: 50950 | BJ79: 1529030 | BK79: 342 | BL79: 3220700 | BM79: 7185011.83 | BN79: 1220705 | BO79: 455514 | BP79: 848895 | BQ79: 0 | BR79: 0 | BS79: 4496247.43 | BT79: 0 | BU79: 0 | BV79: 155727 | BW79: 7923.4 | BX79: 0 | BY79: 100332146.3 | BZ79: 465780 | CA79: 427210 | CB79: 65250 | CC79: 50740 | CD79: 3836683 | CE79: 8956757 | CF79: 1308487 | CG79: 663660 | CH79: 597300 | CI79: 1729640 | CJ79: 50000 | CK79: 4488966 | CL79: 0 | CM79: 0 | CN79: 86490 | CP79: 32214 | CQ79: 0 | CR79: 130379365.8 | CS79: 475210 | CT79: 369420 | CU79: 66570 | CV79: 50200 | CW79: 89870 | CX79: 1576995 | CY79: 65280 | CZ79: 0 | DA79: 6662520.464 | DB79: 896074 | DC79: 556452 | DD79: 637300 | DE79: 0 | DF79: 50000 | DG79: 4034342 | DH79: 128343.4637 | DI79: 0 | DJ79: 16705 | DK79: 0 | DL79: 225945 | DM79: 3914 | DN79: 0 | DO79: 0 | DP79: 81231 | DQ79: 0 | DR79: 32214 | DS79: 0 | DT79: 133135447.5 | DU79: 457210 | DV79: 292140 | DW79: 16570 | DX79: 50120 | DY79: 85670 | DZ79: 1535480 | EA79: 66210 | EB79: 0 | EC79: 8073021.99 | ED79: 875280 | EE79: 530105 | EF79: 605870 | EG79: 1689673 | EH79: 0 | EI79: 3932358.76 | EJ79: 124432.23 | EK79: 0 | EL79: 15636 | EM79: 0 | EN79: 202707 | EO79: 3886 | EP79: 0 | EQ79: 0 | ER79: 55679 | ES79: 37395 | ET79: 0 | EU79: 129630122.8 | EV79: 456905 | EW79: 291993 | EX79: 16570 | EY79: 49410 | EZ79: 84710 | FA79: 1668832 | FB79: 67665 | FD79: 16044205 | FE79: 4696044 | FF79: 0 | FG79: 3129030 | FH79: 2268144 | FI79: 1885424 | FJ79: 404896 | FK79: 0 | FL79: 0 | FM79: 0 | FN79: 3660667 | FP79: 0 | FQ79: 0 | FR79: 139458544 | FS79: 60125 | FT79: 489897 | FU79: 421541 | FV79: 50950 | FW79: 1570626 | FX79: 3707 | FY79: 0 | FZ79: 21080037.05 | GA79: 13363877 | GB79: 4968271.05 | GC79: 645029 | GD79: 2102860 | GE79: 103667081.4 | GF79: 2173271 | GG79: 113638511.4 | GH79: 20558328.62 | GI79: 13498861 | GJ79: 4934285.62 | GK79: 158951 | GL79: 1966231 | GM79: 121835144.7 | GN79: 2302364 | GO79: 132658697.7 | GP79: 18687296 | GQ79: 11709009 | GR79: 4770894 | GS79: 116604 | GT79: 2090789 | GU79: 145603854.1 | GV79: 1310177 | GW79: 155732393.1 | GX79: 18265532 | GY79: 11512720 | GZ79: 4659161 | HA79: 66019 | HB79: 2027632 | HC79: 140502815.1 | HD79: 1359315 | HE79: 152141493.1 | HG79: 28 | HH79: 0 | HI79: 142 | HJ79: 228 | HK79: 40 | HL79: 391 | HM79: 84 | HN79: 913
A80: 803 | B80: South Gloucestershire | C80: 22321100.9 | D80: 168986885.8 | E80: 24372637.84 | F80: 173311073.8 | G80: 25882871.8 | H80: 175333789.5 | I80: 26061699.18 | J80: 186372000 | L80: 133771819 | M80: 15821599 | N80: 0.1182730348 | O80: 17818 | P80: 910000 | Q80: 133789638 | S80: 24441718 | T80: 8513608 | U80: 0 | V80: 0 | W80: 1457075 | X80: 6877409 | Y80: 876975 | Z80: 205127 | AA80: 1271158 | AB80: 0 | AC80: 0 | AD80: 3967601 | AF80: 0 | AG80: 1272765 | AH80: 179332744 | AI80: 0 | AJ80: 135306 | AK80: 245724 | AL80: 52614 | AM80: 3753471 | AN80: 383 | AO80: 398 | AP80: 3917500 | AQ80: 22692609 | AR80: 8171464 | AS80: 0 | AT80: 1865160 | AU80: 5742211 | AV80: 189032 | AW80: 1032644 | AX80: 0 | AY80: 0 | AZ80: 0 | BA80: 4419333 | BC80: 0 | BD80: 1272765 | BE80: 178440136 | BF80: 0 | BG80: 154307 | BH80: 257642 | BI80: 53554 | BJ80: 4145604 | BK80: 494 | BL80: 4564505 | BM80: 17006109.32 | BN80: 1697000 | BO80: 91000 | BP80: 1082000 | BQ80: 4133000 | BR80: 0 | BS80: 8677109.32 | BT80: 0 | BU80: 0 | BV80: 35000 | BW80: 0 | BX80: 1291000 | BY80: 168222959.6 | BZ80: 124000 | CA80: 247000 | CB80: 0 | CC80: 52001 | CD80: 3201000 | CE80: 13509746.67 | CF80: 871788 | CG80: 98000 | CH80: 1228000 | CI80: 2934000 | CJ80: 0 | CK80: 7414958.67 | CL80: 0 | CM80: 4000 | CN80: 19000 | CP80: 0 | CQ80: 940000 | CR80: 178455785.1 | CS80: 362000 | CT80: 351000 | CU80: 0 | CV80: 80000 | CW80: 61000 | CX80: 3173000 | CY80: 102000 | CZ80: 21000 | DA80: 10735865.14 | DB80: 207000 | DC80: 270000 | DD80: 1696000 | DE80: 2927685 | DF80: 0 | DG80: 4852959.137 | DH80: 131097 | DI80: 2730 | DJ80: 17394 | DK80: 0 | DL80: 240000 | DM80: 17000 | DN80: 0 | DO80: 3000 | DP80: 9000 | DQ80: 0 | DR80: 0 | DS80: 362000 | DT80: 178339648.2 | DU80: 314000 | DV80: 469000 | DW80: 80000 | DX80: 83000 | DY80: 70000 | DZ80: 3077000 | EA80: 136000 | EB80: 27000 | EC80: 9011149 | ED80: 91000 | EE80: 257000 | EF80: 1656000 | EG80: 1947559 | EH80: 0 | EI80: 4474350 | EJ80: 128018 | EK80: 3000 | EL80: 16572 | EM80: 0 | EN80: 134170 | EO80: 23480 | EP80: 0 | EQ80: 2000 | ER80: 8000 | ES80: 0 | ET80: 270000 | EU80: 179199333 | EV80: 357000 | EW80: 498000 | EX80: 79000 | EY80: 82000 | EZ80: 72000 | FA80: 2871000 | FB80: 140000 | FD80: 23049778.34 | FE80: 7890238 | FF80: 0 | FG80: 1672736 | FH80: 6543899 | FI80: 176178.28 | FJ80: 1038957.06 | FK80: 0 | FL80: 0 | FM80: 0 | FN80: 4455010 | FP80: 0 | FQ80: 1272760 | FR80: 144993792 | FS80: 0 | FT80: 149897.21 | FU80: 245014.34 | FV80: 54085.6 | FW80: 4349720.04 | FX80: 63059.27 | FY80: 68316.13 | FZ80: 28100908.44 | GA80: 13009978.5 | GB80: 9866545.94 | GC80: 1450879 | GD80: 3773505 | GE80: 176918542.7 | GF80: 3721768 | GG80: 190880670.7 | GH80: 27742956.95 | GI80: 13468208 | GJ80: 7740868.95 | GK80: 2895371 | GL80: 3638509 | GM80: 188520429.4 | GN80: 3997801 | GO80: 204254788.4 | GP80: 24409258 | GQ80: 13761658 | GR80: 5407600 | GS80: 2118000 | GT80: 3122000 | GU80: 191114686 | GV80: 3134000 | GW80: 209478686 | GX80: 22569735 | GY80: 13266373 | GZ80: 5012362 | HA80: 1776000 | HB80: 2515000 | HC80: 192377301 | HD80: 2836000 | HE80: 216186301 | HG80: 132 | HH80: 0 | HI80: 42 | HJ80: 368 | HK80: 74 | HL80: 110 | HM80: 44 | HN80: 770
A81: 805 | B81: Hartlepool | C81: 9533147 | D81: 73044545.7 | E81: 9898400.808 | F81: 74848176.44 | G81: 10336754.92 | H81: 76006298.78 | I81: 10482019.79 | J81: 74358000 | L81: 60016083 | M81: 5645676 | N81: 0.0940693847 | O81: 58 | P81: 0 | Q81: 60016141 | S81: 8540843 | T81: 5369680 | U81: 0 | V81: 0 | W81: 225200 | X81: 690000 | Y81: 0 | Z81: 384486 | AA81: 121477 | AB81: 0 | AC81: 0 | AD81: 1750000 | AF81: 0 | AG81: 0 | AH81: 78063546 | AI81: 0 | AJ81: 441119 | AK81: 78890 | AL81: 0 | AM81: 1056648 | AN81: 66 | AO81: 66 | AP81: 660000 | AQ81: 7758470 | AR81: 4715862 | AS81: 0 | AT81: 0 | AU81: 590295 | AV81: 380285 | AW81: 121477 | AX81: 0 | AY81: 0 | AZ81: 0 | BA81: 1922000 | BC81: 28551 | BD81: 0 | BE81: 76311159 | BF81: 0 | BG81: 384098 | BH81: 77412 | BI81: 0 | BJ81: 1034368 | BK81: 235 | BL81: 1922000 | BM81: 7544476.62 | BN81: 1882108 | BO81: 380285 | BP81: 121477 | BQ81: 1011250 | BR81: 0 | BS81: 4115431.62 | BT81: 0 | BU81: 0 | BV81: 0 | BW81: 33925 | BX81: 0 | BY81: 79119251.48 | BZ81: 293411 | CA81: 74880 | CB81: 0 | CC81: 49397 | CD81: 1098918 | CE81: 7375909 | CF81: 1980744 | CG81: 359250 | CH81: 149445 | CI81: 1000250 | CJ81: 0 | CK81: 3837948 | CL81: 0 | CM81: 0 | CN81: 3970 | CP81: 44302 | CQ81: 0 | CR81: 78602691 | CS81: 282668 | CT81: 97656 | CU81: 0 | CV81: 57083 | CW81: 0 | CX81: 1113718 | CY81: 6303 | CZ81: 0 | DA81: 6131223 | DB81: 1744776 | DC81: 339946 | DD81: 133591 | DE81: 478091 | DF81: 0 | DG81: 3138044 | DH81: 83709 | DI81: 0 | DJ81: 11926 | DK81: 0 | DL81: 159827 | DM81: 23862 | DN81: 0 | DO81: 0 | DP81: 6875 | DQ81: 0 | DR81: 10576 | DS81: 0 | DT81: 77628594 | DU81: 415207 | DV81: 107733 | DW81: 0 | DX81: 56836 | DY81: 14031 | DZ81: 1073339 | EA81: 6946 | EB81: 0 | EC81: 5696071 | ED81: 1628083 | EE81: 353435 | EF81: 164672 | EG81: 296383 | EH81: 0 | EI81: 2976172 | EJ81: 77554 | EK81: 0 | EL81: 10494 | EM81: 0 | EN81: 132893 | EO81: 14398 | EP81: 0 | EQ81: 0 | ER81: 9963 | ES81: 32024 | ET81: 0 | EU81: 73580873 | EV81: 386437 | EW81: 107306 | EX81: 0 | EY81: 57659 | EZ81: 16324 | FA81: 1156417 | FB81: 5265 | FD81: 7596702 | FE81: 3076693 | FF81: 47159 | FG81: 907775 | FH81: 1567246 | FI81: 485873 | FJ81: 121727 | FK81: 0 | FL81: 0 | FM81: 0 | FN81: 1361703 | FP81: 28526 | FQ81: 0 | FR81: 68243575.88 | FS81: 0 | FT81: 325636 | FU81: 278810.22 | FV81: 0 | FW81: 735659 | FX81: 170779 | FY81: 70321 | FZ81: 9217453.64 | GA81: 2744404.25 | GB81: 4601199.39 | GC81: 758781 | GD81: 1113069 | GE81: 87146739.16 | GF81: 834812 | GG81: 94270009.16 | GH81: 8600549.52 | GI81: 3032043.04 | GJ81: 4042216.26 | GK81: 427416.96 | GL81: 1098873.26 | GM81: 84216687.67 | GN81: 947729.51 | GO81: 91623488.73 | GP81: 16093094 | GQ81: 10766889 | GR81: 4047252 | GS81: 17055 | GT81: 1261898 | GU81: 84283891 | GV81: 996072 | GW81: 96300429 | GX81: 14372460 | GY81: 9671011 | GZ81: 3786335 | HA81: 22143 | HB81: 892971 | HC81: 81878697 | HD81: 1031298 | HE81: 95194151 | HG81: 0 | HH81: 106 | HI81: 24 | HJ81: 172 | HK81: 47 | HL81: 80 | HM81: 38 | HN81: 467
A82: 806 | B82: Middlesbrough | C82: 16113938 | D82: 97463815.12 | E82: 17646531.01 | F82: 103326191.9 | G82: 18404296.49 | H82: 105663069 | I82: 19437170.06 | J82: 119631000 | L82: 75672114 | M82: 9181989 | N82: 0.1213391369 | O82: 17034 | P82: 1013600 | Q82: 75689148 | S82: 17295135 | T82: 6262152 | U82: 0 | V82: 0 | W82: 1131465 | X82: 1501775 | Y82: 1330504 | Z82: 1486074 | AA82: 190823 | AB82: 0 | AC82: 40000 | AD82: 5345834 | AF82: 6508 | AG82: 0 | AH82: 107290227.8 | AI82: 29869 | AJ82: 324118 | AK82: 434243 | AL82: 25966 | AM82: 1194631 | AN82: 520 | AO82: 535 | AP82: 5287500 | AQ82: 19140474 | AR82: 7458010 | AS82: 0 | AT82: 784395 | AU82: 1144358 | AV82: 1272836 | AW82: 270651 | AX82: 0 | AY82: 0 | AZ82: 40000 | BA82: 8160300 | BC82: 9924 | BD82: 0 | BE82: 104184162 | BF82: 39591 | BG82: 323094 | BH82: 108443 | BI82: 23735 | BJ82: 816700 | BK82: 603 | BL82: 5870000 | BM82: 11382943.42 | BN82: 1894382 | BO82: 563633 | BP82: 32848 | BQ82: 1071307 | BR82: 40000 | BS82: 7701364.42 | BT82: 0 | BU82: 0 | BV82: 0 | BW82: 79409 | BX82: 0 | BY82: 104345001.4 | BZ82: 395175 | CA82: 251047 | CB82: 39727 | CC82: 23735 | CD82: 1115736 | CE82: 11357377 | CF82: 2339712 | CG82: 573492 | CH82: 44071 | CI82: 991499 | CJ82: 42873 | CK82: 7225245 | CL82: 0 | CM82: 0 | CN82: 0 | CO82: 0 | CP82: 140485 | CQ82: 0 | CR82: 104710874 | CS82: 378293 | CT82: 247033 | CU82: 39879 | CV82: 23955 | CW82: 23855 | CX82: 1716661 | CY82: 109156 | CZ82: 27409 | DA82: 12208479 | DB82: 1719900 | DC82: 2297906 | DD82: 53364 | DE82: 876256 | DF82: 40000 | DG82: 6583611 | DH82: 167782 | DI82: 0 | DJ82: 21390 | DK82: 0 | DL82: 276637 | DM82: 97740 | DN82: 0 | DO82: 0 | DP82: 2646 | DQ82: 0 | DR82: 71247 | DS82: 0 | DT82: 103723486 | DU82: 487241 | DV82: 281895 | DW82: 41022 | DX82: 19780 | DY82: 27846 | DZ82: 1882565 | EA82: 124469 | EB82: 30564 | EC82: 11929211 | ED82: 1746385 | EE82: 2334303 | EF82: 46178 | EG82: 783492 | EH82: 15556 | EI82: 6434160 | EJ82: 168791 | EK82: 438 | EL82: 20900 | EM82: 0 | EN82: 273727 | EO82: 53646 | EP82: 0 | EQ82: 0 | ER82: 0 | ES82: 51635 | ET82: 0 | EU82: 99797115 | EV82: 507621 | EW82: 255933 | EX82: 45327 | EY82: 18117 | EZ82: 27182 | FA82: 2033500 | FB82: 119592 | FD82: 17072670 | FE82: 7516339 | FF82: 0 | FG82: 1023153 | FH82: 1169020 | FI82: 1133518 | FJ82: 407548 | FK82: 0 | FL82: 0 | FM82: 40000 | FN82: 5775000 | FP82: 8092 | FQ82: 0 | FR82: 86706812 | FS82: 29117 | FT82: 260451 | FU82: 166000 | FV82: 23745 | FW82: 1533768 | FX82: 75005 | FY82: 45270 | FZ82: 14839165.37 | GA82: 5253639.83 | GB82: 8186213.54 | GC82: 178219 | GD82: 1221093 | GE82: 103589380.1 | GF82: 1907642 | GG82: 113587142.1 | GH82: 13876656.05 | GI82: 4667527.43 | GJ82: 7748520.62 | GK82: 173431 | GL82: 1287177 | GM82: 107821797.9 | GN82: 2303781 | GO82: 118093827.9 | GP82: 13497041 | GQ82: 4562835 | GR82: 7624464 | GS82: 320904 | GT82: 988838 | GU82: 108602231 | GV82: 1473834 | GW82: 120212486 | GX82: 13211056.45 | GY82: 4190852.45 | GZ82: 7388992 | HA82: 877692 | HB82: 753520 | HC82: 115629923.4 | HD82: 2107077 | HE82: 136122857.4 | HG82: 0 | HH82: 283 | HI82: 151 | HJ82: 461 | HK82: 80 | HL82: 32 | HM82: 24 | HN82: 1031
A83: 807 | B83: Redcar and Cleveland | C83: 13907630.2 | D83: 105540217.7 | E83: 14867824.84 | F83: 107407358.8 | G83: 14820321.59 | H83: 107818351.7 | I83: 14950832.3 | J83: 106293000 | L83: 85345595 | M83: 11609495 | N83: 0.1360292233 | O83: 14118 | P83: 0 | Q83: 85359713 | S83: 13047625 | T83: 4207373 | U83: 0 | V83: 0 | W83: 1113752 | X83: 2523500 | Y83: 0 | Z83: 1886415 | AA83: 82585 | AB83: 0 | AC83: 0 | AD83: 3234000 | AF83: 0 | AG83: 0 | AH83: 107937347 | AI83: 0 | AJ83: 148300 | AK83: 341250 | AL83: 24150 | AM83: 1756656 | AN83: 190 | AO83: 190 | AP83: 1900000 | AQ83: 12471656 | AR83: 4456806 | AS83: 0 | AT83: 987550 | AU83: 2486500 | AV83: 2210600 | AW83: 86200 | AX83: 0 | AY83: 0 | AZ83: 0 | BA83: 2244000 | BC83: 0 | BD83: 0 | BE83: 109120349 | BF83: 63200 | BG83: 99550 | BH83: 240650 | BI83: 50250 | BJ83: 1756656 | BK83: 218.42 | BL83: 2118200 | BM83: 10232278.22 | BN83: 1109500 | BO83: 1162392 | BP83: 463275 | BQ83: 2216316 | BR83: 0 | BS83: 5280595.22 | BT83: 0 | BU83: 0 | BV83: 200 | BW83: 0 | BX83: 0 | BY83: 109583540.2 | BZ83: 336098 | CA83: 338236 | CB83: 94681 | CC83: 30966 | CD83: 1106310 | CE83: 9898238 | CF83: 1214771 | CG83: 900865 | CH83: 471695 | CI83: 2171340 | CJ83: 0 | CK83: 5138390 | CL83: 0 | CM83: 0 | CN83: 1177 | CP83: 0 | CQ83: 0 | CR83: 107463156 | CS83: 512033 | CT83: 98500 | CU83: 90950 | CV83: 36319 | CW83: 152680 | CX83: 886983 | CY83: 5790 | CZ83: 0 | DA83: 9877376 | DB83: 1215100 | DC83: 1600930 | DD83: 288935 | DE83: 1708890 | DF83: 0 | DG83: 4721803 | DH83: 124028 | DI83: 1136 | DJ83: 18401 | DK83: 90 | DL83: 194098 | DM83: 2073 | DN83: 0 | DO83: 0 | DP83: 1892 | DQ83: 0 | DR83: 0 | DS83: 0 | DT83: 110112206 | DU83: 527900 | DV83: 95367 | DW83: 0 | DX83: 38853 | DY83: 152874 | DZ83: 886983 | EA83: 5790 | EB83: 0 | EC83: 9215881 | ED83: 1198935 | EE83: 1563946 | EF83: 288935 | EG83: 1378890 | EH83: 0 | EI83: 4502231 | EJ83: 128344 | EK83: 1424 | EL83: 18392 | EM83: 89 | EN83: 131316 | EO83: 2021 | EP83: 0 | EQ83: 0 | ER83: 1358 | ES83: 0 | ET83: 0 | EU83: 107708325 | EV83: 548674 | EW83: 94898 | EX83: 0 | EY83: 38655 | EZ83: 138387 | FA83: 1083701 | FB83: 6625 | FD83: 12144986 | FE83: 3982554 | FF83: 0 | FG83: 1013225 | FH83: 2184002 | FI83: 1836011 | FJ83: 61694 | FK83: 0 | FL83: 0 | FM83: 0 | FN83: 3067500 | FP83: 0 | FQ83: 0 | FR83: 88056921 | FS83: 82410 | FT83: 116302 | FU83: 290952 | FV83: 72304 | FW83: 1551945 | FX83: 197321 | FY83: 0 | FZ83: 13939393.7 | GA83: 6659974.52 | GB83: 5149694.18 | GC83: 0 | GD83: 2129725 | GE83: 103461997.8 | GF83: 656274 | GG83: 114347498.8 | GH83: 13961299.12 | GI83: 6091615.83 | GJ83: 5666577.29 | GK83: 14402 | GL83: 2188704 | GM83: 116289147 | GN83: 773973 | GO83: 131237785.5 | GP83: 14032790.09 | GQ83: 5904890.51 | GR83: 5885987.58 | GS83: 256230 | GT83: 1985682 | GU83: 123204388.4 | GV83: 658689 | GW83: 138917206.4 | GX83: 14475212 | GY83: 6576060 | GZ83: 5678450 | HA83: 282764 | HB83: 1937938 | HC83: 122226634 | HD83: 554235 | HE83: 142524332 | HG83: 74 | HH83: 0 | HI83: 90 | HJ83: 271 | HK83: 77 | HL83: 19 | HM83: 16 | HN83: 547
A84: 808 | B84: Stockton-on-Tees | C84: 18839276.23 | D84: 139508579.2 | E84: 19922395.85 | F84: 143204863.1 | G84: 20536681.19 | H84: 145536524.6 | I84: 21039406.05 | J84: 144620000 | L84: 111954469 | M84: 9831355 | N84: 0.08781565477 | O84: 0 | P84: 0 | Q84: 111954469 | S84: 18223959 | T84: 3962288 | U84: 0 | V84: 0 | W84: 4851715 | X84: 2710163 | Y84: 0 | Z84: 1831351 | AA84: 344993 | AB84: 0 | AC84: 85000 | AD84: 4389167 | AF84: 49282 | AG84: 0 | AH84: 146923610 | AI84: 4641 | AJ84: 675465 | AK84: 430045 | AL84: 62860 | AM84: 2183510 | AN84: 123.5 | AO84: 123.5 | AP84: 1235000 | AQ84: 17742762.7 | AR84: 6134278.33 | AS84: 0 | AT84: 141900 | AU84: 3342459 | AV84: 1906927.37 | AW84: 352916 | AX84: 0 | AY84: 0 | AZ84: 0 | BA84: 5815000 | BC84: 49282 | BD84: 0 | BE84: 144367072.8 | BF84: 4223 | BG84: 628691 | BH84: 369724 | BI84: 56300 | BJ84: 2461243 | BK84: 603.5 | BL84: 5815000 | BM84: 15070160.04 | BN84: 2536366 | BO84: 2251509.61 | BP84: 244993 | BQ84: 2192710.23 | BR84: 0 | BS84: 7787311.2 | BT84: 0 | BU84: 5708 | BV84: 2280 | BW84: 49282 | BX84: 0 | BY84: 140176521.8 | BZ84: 623683 | CA84: 373870 | CB84: 3294 | CC84: 60479 | CD84: 2386463 | CE84: 14352361 | CF84: 0 | CG84: 4526024 | CH84: 51871 | CI84: 1928458 | CJ84: 0 | CK84: 7788738 | CL84: 0 | CM84: 5708 | CN84: 2280 | CP84: 49282 | CQ84: 0 | CR84: 136323988 | CS84: 617912 | CT84: 296518 | CU84: 3224 | CV84: 59402 | CW84: 160734 | CX84: 2391713 | CY84: 0 | CZ84: 0 | DA84: 14226194.33 | DB84: 0 | DC84: 4536920.616 | DD84: 51039.67625 | DE84: 1994915 | DF84: 0 | DG84: 6906089 | DH84: 148320 | DI84: 0 | DJ84: 21475 | DK84: 0 | DL84: 456915 | DM84: 61237 | DN84: 0 | DO84: 0 | DP84: 0 | DQ84: 0 | DR84: 49283.04147 | DS84: 0 | DT84: 134520019.1 | DU84: 710236 | DV84: 277978 | DW84: 3695 | DX84: 61301 | DY84: 162416 | DZ84: 2333917 | EA84: 156310 | EB84: 0 | EC84: 13479163.96 | ED84: 0 | EE84: 4290983 | EF84: 49991 | EG84: 1616922 | EH84: 0 | EI84: 6735713.96 | EJ84: 145840 | EK84: 0 | EL84: 21304 | EM84: 0 | EN84: 431864 | EO84: 57291 | EP84: 0 | EQ84: 0 | ER84: 81000 | ES84: 48255 | ET84: 0 | EU84: 134405898.3 | EV84: 704142 | EW84: 273089 | EX84: 3665 | EY84: 61066 | EZ84: 161677 | FA84: 2253845 | FB84: 0 | FD84: 14981418 | FE84: 4569087 | FF84: 0 | FG84: 2428708 | FH84: 2428268 | FI84: 1849757 | FJ84: 253892 | FK84: 0 | FL84: 0 | FM84: 0 | FN84: 3451706 | FP84: 0 | FQ84: 0 | FR84: 120169673 | FS84: 3885 | FT84: 693086 | FU84: 396598 | FV84: 44211 | FW84: 2264456 | FX84: 80106.5 | FY84: 80106.5 | FZ84: 22773079.22 | GA84: 11496504.86 | GB84: 8478514.36 | GC84: 541895 | GD84: 2256165 | GE84: 148514814.3 | GF84: 2629028 | GG84: 161359246.3 | GH84: 22364501.03 | GI84: 11164614.9 | GJ84: 8455721.13 | GK84: 504511 | GL84: 2239654 | GM84: 142401236.5 | GN84: 2625453 | GO84: 154168564.5 | GP84: 21768977.09 | GQ84: 11585236 | GR84: 8189964 | GS84: 661679.02 | GT84: 1332098.07 | GU84: 145602986.3 | GV84: 2335760 | GW84: 159459527.5 | GX84: 21150658.11 | GY84: 11225015 | GZ84: 7918286 | HA84: 666185.8535 | HB84: 1341171.258 | HC84: 147149060.4 | HD84: 0 | HE84: 147149060.4 | HG84: 152 | HH84: 163 | HI84: 110 | HJ84: 464.5 | HK84: 104 | HL84: 127 | HM84: 44 | HN84: 1164.5
A85: 810 | B85: Kingston Upon Hull, City of | C85: 25835282 | D85: 184139115 | E85: 25823217.7 | F85: 190805999.4 | G85: 25737585.74 | H85: 195047248.6 | I85: 25832036.9 | J85: 193436000 | L85: 149379702 | M85: 5270716 | N85: 0.03528401737 | O85: 907 | P85: 400000 | Q85: 149380610 | S85: 21926563 | T85: 7457889 | U85: 0 | V85: 0 | W85: 2772153 | X85: 2225880 | Y85: 517647 | Z85: 3871995 | AA85: 0 | AB85: 0 | AC85: 400999 | AD85: 4680000 | AF85: 0 | AG85: 0 | AH85: 192885975 | AI85: 0 | AJ85: 620100 | AK85: 163754 | AL85: 119788 | AM85: 1568990 | AN85: 508 | AO85: 508 | AP85: 5000000 | AQ85: 23263678 | AR85: 10261549 | AS85: 0 | AT85: 0 | AU85: 365916 | AV85: 4414583 | AW85: 630 | AX85: 0 | AY85: 0 | AZ85: 401000 | BA85: 7820000 | BC85: 0 | BD85: 0 | BE85: 192549609 | BF85: 0 | BG85: 607506 | BH85: 342558 | BI85: 107000 | BJ85: 1678339 | BK85: 733 | BL85: 7060000 | BM85: 21917315.48 | BN85: 4705806 | BO85: 2327572 | BP85: 671 | BQ85: 2011485 | BR85: 401100 | BS85: 12393801.48 | BT85: 0 | BU85: 0 | BV85: 50415 | BW85: 0 | BX85: 26465 | BY85: 188248423.9 | BZ85: 655588 | CA85: 439907 | CB85: 0 | CC85: 107001 | CD85: 2081757 | CE85: 20190587 | CF85: 4965815 | CG85: 1447455 | CH85: 37817 | CI85: 1447484 | CJ85: 0 | CK85: 11969018 | CL85: 222436 | CM85: 0 | CN85: 54835 | CP85: 0 | CQ85: 45727 | CR85: 183267003 | CS85: 644080 | CT85: 374968 | CU85: 0 | CV85: 173278 | CW85: 317 | CX85: 2443366 | CY85: 1938 | CZ85: 0 | DA85: 19900495.37 | DB85: 5283458.37 | DC85: 1548752 | DD85: 155430 | DE85: 1047484 | DF85: 0 | DG85: 10571055 | DH85: 256307 | DI85: 83605 | DJ85: 32562 | DK85: 9045 | DL85: 578315 | DM85: 17328 | DN85: 228022 | DO85: 0 | DP85: 49121 | DQ85: 0 | DR85: 0 | DS85: 40011 | DT85: 186213511.2 | DU85: 824412 | DV85: 399724 | DW85: 0 | DX85: 160123 | DY85: 8740 | DZ85: 2444104 | EA85: 1792 | EB85: 0 | EC85: 20340621.79 | ED85: 6415395.94 | EE85: 1413322.16 | EF85: 103892.83 | EG85: 963584.76 | EH85: 0 | EI85: 10206883 | EJ85: 248636 | EK85: 92978 | EL85: 32000 | EM85: 8680 | EN85: 550442 | EO85: 0.1 | EP85: 213941 | EQ85: 8015 | ER85: 42774 | ES85: 0 | ET85: 40077 | EU85: 178355275.4 | EV85: 834869 | EW85: 364507 | EX85: 0 | EY85: 305611 | EZ85: 0 | FA85: 2435753 | FB85: 17235 | FD85: 22108463 | FE85: 7187911 | FF85: 0 | FG85: 2644322 | FH85: 2591703 | FI85: 3465058 | FJ85: 258469 | FK85: 0 | FL85: 0 | FM85: 401000 | FN85: 5560000 | FP85: 0 | FQ85: 0 | FR85: 134828979 | FS85: 0 | FT85: 670999 | FU85: 326451 | FV85: 0 | FW85: 1375937 | FX85: 0 | FY85: 0 | FZ85: 29392697 | GA85: 13530967 | GB85: 13200341 | GC85: 1059245 | GD85: 1602144 | GE85: 192090885 | GF85: 3114702 | GG85: 214060047 | GH85: 29092385 | GI85: 13888829 | GJ85: 12855727 | GK85: 1144920 | GL85: 1202909 | GM85: 192076551 | GN85: 2948340 | GO85: 214249378 | GP85: 28222033 | GQ85: 13394700 | GR85: 12329925 | GS85: 1115303 | GT85: 1382105 | GU85: 191494842 | GV85: 2858316.08 | GW85: 235849357.8 | GX85: 26845347.33 | GY85: 13423766 | GZ85: 12135849 | HA85: 326415.2697 | HB85: 959317.06 | HC85: 189212174.6 | HD85: 2950025.97 | HE85: 226875263.5 | HG85: 0 | HH85: 0 | HI85: 371 | HJ85: 521 | HK85: 78 | HL85: 16 | HM85: 6 | HN85: 992
A86: 811 | B86: East Riding of Yorkshire | C86: 16842347 | D86: 209375223.6 | E86: 18332029.5 | F86: 211090752.1 | G86: 19102621.88 | H86: 210627348.8 | I86: 19307894.79 | J86: 208457000 | L86: 174214795 | M86: 10338840 | N86: 0.05934536157 | O86: 719 | P86: 800000 | Q86: 174215514 | S86: 18016826 | T86: 7478317 | U86: 0 | V86: 0 | W86: 838330 | X86: 2624810 | Y86: 675000 | Z86: 3199760 | AA86: 537940 | AB86: 0 | AC86: 0 | AD86: 2662669 | AF86: 0 | AG86: 0 | AH86: 218501513 | AI86: 0 | AJ86: 898699 | AK86: 77470 | AL86: 0 | AM86: 4284750 | AN86: 243 | AO86: 230 | AP86: 2354700 | AQ86: 17434374 | AR86: 7395779 | AS86: 0 | AT86: 838327 | AU86: 2632810 | AV86: 3160897 | AW86: 512944 | AX86: 0 | AY86: 0 | AZ86: 0 | BA86: 2893617 | BC86: 0 | BD86: 0 | BE86: 219745760 | BF86: 0 | BG86: 909199 | BH86: 95470 | BI86: 0 | BJ86: 4282810 | BK86: 291 | BL86: 2870000 | BM86: 11835932 | BN86: 1285420 | BO86: 2670340 | BP86: 10000 | BQ86: 2891130 | BR86: 0 | BS86: 4946821 | BT86: 0 | BU86: 0 | BV86: 32221 | BW86: 0 | BX86: 0 | BY86: 197777672 | BZ86: 1025780 | CA86: 88390 | CB86: 0 | CC86: 45740 | CD86: 4800340 | CE86: 10700487 | CF86: 3129470 | CG86: 247790 | CH86: 10000 | CI86: 2250130 | CJ86: 0 | CK86: 4973985 | CL86: 0 | CM86: 0 | CN86: 65017 | CP86: 24095 | CQ86: 0 | CR86: 223112220 | CS86: 774220 | CT86: 88390 | CU86: 123250 | CV86: 45740 | CW86: 0 | CX86: 4525400 | CY86: 377470 | CZ86: 0 | DA86: 10620732 | DB86: 3255440 | DC86: 418810 | DD86: 104600 | DE86: 2020130 | DF86: 0 | DG86: 4487020 | DH86: 124106 | DI86: 0 | DJ86: 15963 | DK86: 0 | DL86: 98451 | DM86: 16581 | DN86: 0 | DO86: 0 | DP86: 55044 | DQ86: 0 | DR86: 24587 | DS86: 0 | DT86: 230595011 | DU86: 676120 | DV86: 173880 | DW86: 208870 | DX86: 45710 | DY86: 0 | DZ86: 4835680 | EA86: 377470 | EB86: 0 | EC86: 9940558 | ED86: 3144370 | EE86: 417030 | EF86: 104600 | EG86: 1620130 | EH86: 0 | EI86: 4322431 | EJ86: 119419 | EK86: 0 | EL86: 15636 | EM86: 0 | EN86: 91476 | EO86: 27017 | EP86: 0 | EQ86: 0 | ER86: 54345 | ES86: 24104 | ET86: 0 | EU86: 221746612.3 | EV86: 660350 | EW86: 170780 | EX86: 99160 | EY86: 45970 | EZ86: 0 | FA86: 4572735 | FB86: 0 | FD86: 17271798 | FE86: 7745548 | FF86: 0 | FG86: 789232 | FH86: 2501508 | FI86: 2689543 | FJ86: 567254 | FK86: 0 | FL86: 0 | FM86: 0 | FN86: 2899393 | FP86: 79320 | FQ86: 0 | FR86: 190921502 | FS86: 0 | FT86: 830284 | FU86: 78806 | FV86: 0 | FW86: 5074691 | FX86: 6208 | FY86: 0 | FZ86: 23382757.84 | GA86: 13303836 | GB86: 5341666.84 | GC86: 2673483 | GD86: 2063772 | GE86: 218415190.6 | GF86: 3678970 | GG86: 244063951.6 | GH86: 24086971.6 | GI86: 13961978 | GJ86: 5234482.6 | GK86: 2570939 | GL86: 2319572 | GM86: 230783617.4 | GN86: 3766153 | GO86: 257992290.4 | GP86: 25446718 | GQ86: 15600561 | GR86: 5085830 | GS86: 2380237 | GT86: 2380090 | GU86: 252937781 | GV86: 3939358 | GW86: 282769882 | GX86: 24384046 | GY86: 15169059 | GZ86: 4782518 | HA86: 2352621 | HB86: 2079848 | HC86: 241138284.4 | HD86: 3777735 | HE86: 276239702.4 | HG86: 0 | HH86: 0 | HI86: 114 | HJ86: 235 | HK86: 71 | HL86: 25 | HM86: 6 | HN86: 451
A87: 812 | B87: North East Lincolnshire | C87: 15194631 | D87: 105251975 | E87: 15440751.91 | F87: 107780890.3 | G87: 15785287.15 | H87: 109783648.1 | I87: 15919179.54 | J87: 121165000 | L87: 85799447 | M87: 10539397 | N87: 0.1228375866 | O87: 128147 | P87: 0 | Q87: 85927594 | S87: 13288500 | T87: 1215020 | U87: 0 | V87: 0 | W87: 3161265 | X87: 2878215 | Y87: 0 | Z87: 853416 | AA87: 1698584 | AB87: 0 | AC87: 300000 | AD87: 3182000 | AF87: 0 | AG87: 0 | AH87: 110094220 | AI87: 0 | AJ87: 381800 | AK87: 283194 | AL87: 65949 | AM87: 2048598 | AN87: 0 | AO87: 0 | AP87: 0 | AQ87: 13510664 | AR87: 786506 | AS87: 0 | AT87: 3841094 | AU87: 1744053 | AV87: 854000 | AW87: 2025732 | AX87: 0 | AY87: 0 | AZ87: 300000 | BA87: 3959279 | BC87: 0 | BD87: 0 | BE87: 107872824 | BF87: 0 | BG87: 347700 | BH87: 364500 | BI87: 78500 | BJ87: 2140074 | BK87: 122 | BL87: 976000 | BM87: 6091799 | BN87: 1893900 | BO87: 727000 | BP87: 870899 | BQ87: 2300000 | BR87: 300000 | BS87: 0 | BT87: 0 | BU87: 0 | BV87: 0 | BW87: 0 | BX87: 0 | BY87: 66836324.85 | BZ87: 796657 | CA87: 256350 | CB87: 0 | CC87: 77680 | CD87: 2206085 | CE87: 12228802 | CF87: 2126739 | CG87: 864100 | CH87: 547804 | CI87: 2761400 | CJ87: 0 | CK87: 5852400 | CL87: 0 | CM87: 0 | CN87: 76359 | CP87: 0 | CQ87: 0 | CR87: 95511738 | CS87: 500719 | CT87: 247495 | CU87: 0 | CV87: 74200 | CW87: 0 | CX87: 2174600 | CY87: 197500 | CZ87: 0 | DA87: 12751023.88 | DB87: 2135976 | DC87: 1200397 | DD87: 836662 | DE87: 2930435 | DF87: 0 | DG87: 5249665 | DH87: 96244.87619 | DI87: 0 | DJ87: 15730 | DK87: 0 | DL87: 249185 | DM87: 4788 | DN87: 0 | DO87: 0 | DP87: 31941 | DQ87: 0 | DR87: 0 | DS87: 0 | DT87: 111294492.4 | DU87: 694077 | DV87: 261231 | DW87: 0 | DX87: 78333 | DY87: 0 | DZ87: 2171113 | EA87: 186924 | EB87: 0 | EC87: 11932481.57 | ED87: 1852559 | EE87: 1092140 | EF87: 591896 | EG87: 3237279 | EH87: 0 | EI87: 4756112 | EJ87: 94066 | EK87: 0 | EL87: 14844 | EM87: 0 | EN87: 268672.28 | EO87: 5684.29 | EP87: 0 | EQ87: 0 | ER87: 19229 | ES87: 0 | ET87: 0 | EU87: 110289174 | EV87: 702661 | EW87: 239980 | EX87: 0 | EY87: 73022 | EZ87: 0 | FA87: 2157103 | FB87: 181914 | FD87: 9877188.83 | FE87: 314367 | FF87: 0 | FG87: 3284424.02 | FH87: 2419906.47 | FI87: 1033843.72 | FJ87: 766007.62 | FK87: 0 | FL87: 0 | FM87: 425640 | FN87: 1633000 | FP87: 0 | FQ87: 0 | FR87: 43277417.36 | FS87: 0 | FT87: 293328.16 | FU87: 489419.57 | FV87: 87227.91 | FW87: 1624167.35 | FX87: 135320.31 | FY87: 135320.31 | FZ87: 6286352.08 | GA87: 3803414 | GB87: 0 | GC87: 19520.7 | GD87: 2463417.38 | GE87: 58330581.95 | GF87: 2019142.67 | GG87: 72367071.01 | GH87: 11731758.62 | GI87: 6604105 | GJ87: 2795343.62 | GK87: 47651 | GL87: 2284659 | GM87: 84646984.56 | GN87: 2313063 | GO87: 101871518.6 | GP87: 16527794 | GQ87: 8041935 | GR87: 6448202 | GS87: 79879 | GT87: 1957778 | GU87: 110453789 | GV87: 1902836 | GW87: 126621149 | GX87: 17696764 | GY87: 8214261 | GZ87: 5933627 | HA87: 149664 | HB87: 3399212 | HC87: 120072528 | HD87: 1839564 | HE87: 140921602 | HG87: 0 | HH87: 12 | HI87: 168 | HJ87: 300 | HK87: 18 | HL87: 78 | HM87: 16 | HN87: 592
